Workbook

Sheet 表紙
A7: 福井県市町勢要覧
A11: 令和元年度版
A45: 福井県地域戦略部統計情報課

Sheet ご利用の方へ
A1: =表紙!A11 -> 令和元年度版 | B1: ご利用の方へ
A2: 1 | B2: 「市町勢要覧」は、人口をはじめ、様々な分野にわたる基礎的なデータを市町別に編集し、個々の市勢町勢および | D2: 4 統計表中の符号の用法は次のとおりです。
B3: 地域ごとの県勢をわかりやすくとらえられる資料として整理したものです。 | D3: 「－」…該当数値なし
A4: 2 | B4: 数値の単位未満は四捨五入を原則としていますので、総数と内訳の合計が一致しない場合があります。 | D4: 「０」…単位未満
A5: 3 | B5: 各項目は「福井県統計年鑑」に準拠して並べています。 | D5: 「ｘ」…１つの事業所の値しかないなど、事業所に関する数が判明する箇所を秘匿としたもの
D6: 5 資料出所および留意事項は次のとおりです。
A8: 分 類 | B8: 項 目 | C8: 資 料 の 出 所 | D8: 調査時点 | E8: 留意事項
A9: １．土 地 | B9: 総面積 | C9: 令和元年全国都道府県市区町村別面積調 | D9: =+データ一覧!A10 -> 元.10.1
C10: （国土交通省国土地理院）
B11: 町・字・大字区画数 | C11: 市町資料 | D11: =+データ一覧!A11 -> 31.4.1 | G11: 照会
B12: 固定資産概要調書による地目別面積 | C12: 固定資産概要調書 | D12: =+データ一覧!A12 -> 31.1.1 | E12: 道路河川を除く非課税地を含めた面積 | G12: 年鑑
C13: （県市町協働課） | E13: 住居表示指定区域内は住居表示の町名
A14: ２．世帯数と人口 | B14: 世帯数、人口、一世帯当たり人員、人口密度 | C14: 国勢調査 | D14: 昭和60年､平成2､7､12､17､22、27年 | E14: 市町村合併のあった市町については、平成17年以降の人口密度のみを計上した。
C15: 福井県の推計人口（県統計情報課） | D15: =データ一覧!$A$76 -> 元.10.1
B16: 年齢階級別人口 | C16: 〃 | D16: =+データ一覧!A79 -> 元.10.1
B17: 人口動態 | C17: 〃 | D17: =+データ一覧!A70 -> 30.10.1～元.9.30 | G17: 人口G
C18: 婚姻、離婚 （県地域福祉課） | D18: =+データ一覧!A74 -> 30.1.1～30.12.31 | G18: 年鑑
A19: ３．事 業 所 | B19: 事業所数、従業者数 | C19: 経済センサス‐活動調査 | D19: =+データ一覧!A95 -> 28.6.1 | E19: 調査は、国・地方公共団体、外国公務の事業所、農林漁業、家事ｻｰﾋﾞｽに属する個人経営の事業所を除く。
A20: ４．農 業 | B20: 農家人口と就業状況 | C20: 2015農林業センサス | D20: =+データ一覧!A209 -> 27.2.1 | E20: 2015年農林業センサス調査対象 | G20: 経済G
B21: 農家数 | C21: 2015農林票センサス | D21: =+データ一覧!A230 -> 27.2.1 | E21: 農林産物の生産を行うかまたは委託を受けて農林業作業を行っている方で、生産または作業に係る | G21: 経済G
B22: 30年産米収穫量 | C22: 北陸農政局 | D22: =データ一覧!A261 -> 30年 | E22: 面積・頭数が一定規模以上（外形基準）の農林業生産活動を行う方（組織の場合は代表者）を対象と
B23: 耕地面積 | C23: 〃 | D23: =+データ一覧!A247 -> 30.7.15 | E23: する。 | G23: 年鑑
B24: 農業生産物 | C24: 〃 | D24: =データ一覧!A264 -> 30年中
B25: 畜産 | C25: 県園芸振興課 | D25: =+データ一覧!A251 -> 31.3.31 | G25: 年鑑
A26: ５．林 業 | B26: 林野面積 | C26: 県森づくり課 | D26: =+データ一覧!A273 -> 31.3.31 | G26: 年鑑
B27: 林産物生産量 | C27: 県産材活用課 | D27: =+データ一覧!A284 -> 30年中 | G27: 年鑑
A28: ６．漁 業 | B28: 漁船隻数・トン数 | C28: 県水産課 | D28: =データ一覧!A290 -> 30.12.31 | E28: エンジンの取り付け場所がわからないジーゼル船は動力船、電気点火式は船外機付漁船に計上した。
B29: 男女別就業者数 | C29: 2018年漁業センサス | D29: =+データ一覧!A294 -> 30.11.1 | G29: 照会
B30: 海面漁業漁獲量（属人） | C30: 北陸農政局福井地域センター | D30: =+データ一覧!A297 -> 29年中 | E30: 内水面漁業、海面養殖業を除く。 | G30: 照会
A31: ７．商 業 | B31: 事業所数、従業者数、年間商品販売額 | C31: 経済センサス‐活動調査 | D31: =データ一覧!$A$302 -> 28.6.1(平成27年実績） | E31: 調査は、民営の事業所を対象とした。
A32: ８．住 宅 | C32: 市町村固定資産課税台帳（市町資料） | D32: =データ一覧!$A$332 -> 30年 | E32: 共同住宅、併用住宅については、独立して生活できる部分を一戸として計上した。
A33: ９．議 員・職 員 | B33: 市町議会 | C33: 市町資料 | D33: =+データ一覧!A333 -> 元.8.1 | G33: 照会
B34: 有権者数 | C34: 選挙人名簿登録者（県選挙管理委員会） | D34: =+データ一覧!A336 -> 元.9.1
B35: 職員数 | C35: 県市町協働課 | D35: =+データ一覧!A338 -> 31.4.1 | G35: 照会
A36: 10．工 業 | B36: 事業所数、従業者数、製造品出荷額等 | C36: 工業統計調査 | D36: =+データ一覧!A340 -> 30.6.1（平成29年実績） | E36: 従業者４人以上の事業所 | G36: 年鑑
A37: 11．上・下 水 道 | B37: 水道供給人口 | C37: 県医薬食品・衛生課 | D37: =+データ一覧!A416 -> 31.3.31
B38: 下水道処理人口 | C38: 県河川課 | D38: =+データ一覧!A420 -> 31.3.31 | E38: 引用
A39: 12．交 通・通 信 | B39: 道路 | C39: 県道路保全課 | D39: =+データ一覧!A421 -> 30.4.1 | G39: 年鑑
B40: 鉄道営業キロ数 | C40: 西日本旅客鉄道㈱金沢支社、福井鉄道㈱、えちぜん鉄道㈱ | D40: =+データ一覧!A425 -> 31.4.1 | G40: 照会
B41: 自動車台数 | C41: 中部運輸局福井運輸支局 | D41: =データ一覧!$A$426 -> 31.3.31 | E41: 町不明の車両は県計に一括計上した。 | G41: 年鑑
B42: 通信（郵便局数） | C42: 日本郵便株式会社北陸支社 | D42: =+データ一覧!A433 -> 31.3.31 | G42: 照会
B43: 〃（一般電話加入数） | C43: 株式会社NTT西日本－北陸 | D43: =データ一覧!A436 -> 31.3.31 | G43: 年鑑
B44: 〃（ＩＮＳネット64加入数） | C44: 〃 | D44: =D43 -> 31.3.31 | G44: 照会
A45: 13．税 ･ 財 政 | B45: 普通会計28年度歳入決算額 | C45: 県税務課 | D45: =+データ一覧!A438 -> 29年度 | E45: 現年課税分の調定額 | G45: 年鑑
B46: 歳入歳出当初予算額 | C46: 県市町協働課 | D46: =+データ一覧!A446 -> 元年度 | G46: 年鑑
B47: 歳入歳出決算額 | C47: 〃 | D47: =+データ一覧!A460 -> 30年度 | G47: 照会
A48: 14．文 化 | B48: 公共施設数 | C48: 図書館・公民館(県生涯学習・文化財課) | D48: =+データ一覧!A502 -> 31.4.1 | E48: 県の図書館数・図書数は県立図書館、若狭図書学習センターの分 | G48: 照会
C49: 公園(県都市計画課) | D49: =+データ一覧!A506 -> 31.3.31 | E49: 都市公園の箇所数
C50: 児童館(県子ども家庭課) | D50: =+データ一覧!A507 -> 31.4.1 | G50: 年鑑
C51: 公会堂・市民会館（県市町協働課） | D51: =データ一覧!A513 -> 31.3.31 | G51: 照会
B52: 社会教育学級講座 | C52: 県生涯学習・文化財課 | D52: =+データ一覧!A508 -> 31.3.31 | E52: 青年、成人、婦人、高齢者、家庭教育、その他の学級・講座の合計 | G52: 年鑑
B53: 宗教法人数 | C53: 県情報公開・法制課 | D53: =+データ一覧!A510 -> 30.12.31 | G53: 市町財政要覧
B54: 衛星放送契約数 | C54: 日本放送協会 | D54: =+データ一覧!A514 -> 31.3.31 | G54: 年鑑
A55: 15．労 働 | B55: 産業別就業者数 | C55: 国勢調査 | D55: =+データ一覧!A515 -> 27.10.1 | G55: 照会
A56: 16．社 会 福 祉 | B56: 施設数、収容定員 | C56: 県地域福祉課 | D56: =+データ一覧!A565 -> 31.4.1 | G56: 年鑑
A57: 17．教 育 | B57: 学校数、教員数、学生・生徒・児童・園児数 | C57: 学校基本調査 | D57: =+データ一覧!A591 -> 元.5.1（特別支援学校、専修学校はH30.5.1現在） | E57: 福井大学松岡キャンパス・敦賀キャンパスは本校に、福井県立大学小浜キャンパスは分校に計上した。
C58: （大学・短大・高専の教員数、学生数は直接照会した。） | E58: 各市町の小学校・中学校の教員数および児童・生徒数は公立学校分のみを計上した。
E59: 各市町の幼稚園の園数、教員数および園児数は公立・私立分のみ計上した。
E60: ただし、県計は国立、公立、私立学校の合計である。
A61: 18．衛 生 | B61: 医療関係施設数 | C61: 県地域医療課 | D61: =+データ一覧!A669 -> 30.10.1 | E61: 医療関係者については、就業届出による。
B62: 医療関係者数 | C62: 〃 | D62: =+データ一覧!A674 -> 30.12.31 | E62: 看護師には准看護師を含む。
B63: 死因別死亡数 | C63: 県地域福祉課 | D63: =+データ一覧!A680 -> 30年中 | E63: 交通事故の数は不慮の事故の内数。 | G63: 年鑑
A64: 19．警 察・消 防 | B64: 警察署数・交番・駐在所・検問所数 | C64: 県警察本部警務課 | D64: =+データ一覧!A690 -> 31.4.1 | G64: 年鑑
B65: 刑法犯認知件数・刑法犯検挙件数 | C65: 県警本部捜査第一課 | D65: =+データ一覧!A692 -> 30年中 | E65: 発生地不明の認知件数・検挙件数は県計に一括計上した。 | G65: 照会
B66: 交通事故発生件数 | C66: 県警察本部交通企画課 | D66: 〃 | E66: 交通事故発生件数は人身事故の数。 | G66: 照会
B67: 火災発生件数、焼損棟数、林野焼損面積 | C67: 県危機対策・防災課 | D67: =+データ一覧!A694 -> 30年中
B68: 損害見積額 | C68: 〃 | D68: 〃
B69: 消防自動車数、ポンプ数、消防吏員、消防団員数 | C69: 〃 | D69: =データ一覧!$A$698 -> 31.4.1 | E69: 消防本部等、複数の市町に跨っているものは市町ごとに按分している。 | G69: 年鑑、照会
A70: 20．そ の 他 | B70: 名所・旧跡、文化財等 | C70: 県生涯学習・文化財課 | G70: 年鑑
B71: 名所・旧跡、文化財等 | C71: 市町資料
B72: 特産物、年中行事 | C72: 市町資料 | G72: 照会
A73: 欄 外 | B73: 市（町）章とそのいわれ | C73: 〃 | G73: 照会
B74: 位置および地勢 | C74: 〃 | G74: 照会
G75: 照会

Sheet 行政区画図（目次）
B1: （＊地図上の市町名または五十音順市町名を押すと該当市町のシートに、分野名を押すとデータ一覧の該当箇所に移動します。）
H2: （五十音順市町名） | L2: （分野別）
I3: 福井県 | L3: 1． | M3: 土 地
H4: あ行 | I4: あわら市 | L4: 2． | M4: 世帯数と人口
I5: 池田町 | J5: 今立郡 | L5: 3． | M5: 事 業 所
I6: 永平寺町 | J6: 吉田郡 | L6: 4． | M6: 農 業
I7: 越前市 | L7: 5． | M7: 林 業
I8: 越前町 | J8: 丹生郡 | L8: 6． | M8: 漁 業
I9: おおい町 | J9: 大飯郡 | L9: 7． | M9: 商 業
I10: 大野市 | L10: 8． | M10: 住 宅
I11: 小浜市 | L11: 9． | M11: 議員・職員
H12: か行 | I12: 勝山市 | L12: 10． | M12: 工 業
H13: さ行 | I13: 坂井市 | L13: 11． | M13: 上・下水道
I14: 鯖江市 | L14: 12． | M14: 交通･通信
H15: た行 | I15: 高浜町 | J15: 大飯郡 | L15: 13． | M15: 税・財 政
I16: 敦賀市 | L16: 14． | M16: 文 化
H17: は行 | I17: 福井市 | L17: 15． | M17: 労 働
H18: ま行 | I18: 南越前町 | J18: 南条郡 | L18: 16． | M18: 社会福祉
I19: 美浜町 | J19: 三方郡 | L19: 17． | M19: 教 育
H20: わ行 | I20: 若狭町 | J20: 三方上中郡 | L20: 18． | M20: 衛 生
L21: 19． | M21: 警察・消防
B29: ※令和2年3月31日現在の市町区分に合わせて、旧市町村のデータを合算している。

Sheet データ一覧
G1: AR | J1: AS | L1: H | M1: I | N1: AT | O1: AU | P1: AV | Q1: T | R1: U | S1: V | T1: Y | U1: AA | V1: AW | W1: AC
A5: データ一覧 | E5: かな | P5: よしだぐん | Q5: いまだてぐん | R5: なんじょうぐん | S5: にゅうぐん | T5: みかたぐん | U5: おおいぐん | V5: おおいぐん | W5: みかたかみなかぐん
F6: ふくいけん | G6: ふくいし | H6: つるがし | I6: おばまし | J6: おおのし | K6: かつやまし | L6: さばえし | M6: あわらし | N6: えちぜんし | O6: さかいし | P6: えいへいじちょう | Q6: いけだちょう | R6: みなみえちぜんちょう | S6: えちぜんちょう | T6: みはまちょう | U6: たかはまちょう | V6: おおいちょう | W6: わかさちょう
E8: 郡 | P8: 吉田郡 | Q8: 今立郡 | R8: 南条郡 | S8: 丹生郡 | T8: 三方郡 | U8: 大飯郡 | V8: 大飯郡 | W8: 三方上中郡
A9: 基準日 | B9: 分類 | E9: 市町村名 | F9: 福井県 | G9: 福井市 | H9: 敦賀市 | I9: 小浜市 | J9: 大野市 | K9: 勝山市 | L9: 鯖江市 | M9: あわら市 | N9: 越前市 | O9: 坂井市 | P9: 永平寺町 | Q9: 池田町 | R9: 南越前町 | S9: 越前町 | T9: 美浜町 | U9: 高浜町 | V9: おおい町 | W9: 若狭町
A10: 元.10.1 | B10: 1 土地 | C10: 総面積 | F10: 4190.52 | G10: 536.41 | H10: 251.41 | I10: 233.11 | J10: 872.43 | K10: 253.88 | L10: 84.59 | M10: 116.98 | N10: 230.7 | O10: 209.67 | P10: 94.43 | Q10: 194.65 | R10: 343.69 | S10: 153.15 | T10: 152.35 | U10: 72.4 | V10: 212.19 | W10: 178.49
A11: 31.4.1 | C11: 町・丁・大字区画数 | F11: 2764 | G11: 733 | H11: 158 | I11: 143 | J11: 207 | K11: 118 | L11: 153 | M11: 125 | N11: 253 | O11: 363 | P11: 93 | Q11: 47 | R11: 63 | S11: 99 | T11: 31 | U11: 54 | V11: 48 | W11: 76
A12: 31.1.1 | C12: 固定資産概要調書による地目別面積 | E12: 総数 | F12: 262895.7 | G12: 34845.7 | H12: 11206.8 | I12: 13503.4 | J12: 48571.3 | K12: 20769.8 | L12: 8459 | M12: 8972.1 | N12: 13143.1 | O12: 20308.4 | P12: 6145.3 | Q12: 6532.9 | R12: 13143 | S12: 10408 | T12: 15235 | U12: 7240 | V12: 11802.3 | W12: 12609.6
E13: うち田 | F13: 39515.7 | G13: 7955.6 | H13: 1311.9 | I13: 1490.6 | J13: 4227.8 | K13: 1922.5 | L13: 2032.1 | M13: 2681.8 | N13: 3733.2 | O13: 6071.8 | P13: 1023.8 | Q13: 559.3 | R13: 1003.3 | S13: 1378.8 | T13: 929.1 | U13: 524.2 | V13: 732.3 | W13: 1937.6
E14: うち畑 | F14: 5553.4 | G14: 913.8 | H14: 254 | I14: 238.4 | J14: 235.5 | K14: 150.9 | L14: 125.3 | M14: 895.4 | N14: 335.5 | O14: 903.5 | P14: 86.7 | Q14: 118.7 | R14: 144.2 | S14: 302.2 | T14: 123 | U14: 195.9 | V14: 115.5 | W14: 414.9
E15: うち宅地 | F15: 17606.6 | G15: 4854.1 | H15: 1234.7 | I15: 647.8 | J15: 990.2 | K15: 600.2 | L15: 1462.8 | M15: 868.7 | N15: 1910.6 | O15: 2367.2 | P15: 402.4 | Q15: 96.5 | R15: 279.7 | S15: 487.8 | T15: 280.4 | U15: 316.7 | V15: 278.6 | W15: 528.2
E16: うち山林 | F16: 100577.7 | G16: 17300.7 | H16: 4519.7 | I16: 7284.7 | J16: 13093.2 | K16: 9280.3 | L16: 1161.6 | M16: 2172.8 | N16: 4838 | O16: 5990.4 | P16: 4014.3 | Q16: 2522 | R16: 6128.4 | S16: 4560.1 | T16: 4178.7 | U16: 2136.5 | V16: 5990.2 | W16: 5406.1
E17: うち原野 | F17: 2546.8 | G17: 101 | H17: 220 | I17: 149.4 | J17: 677.3 | K17: 333.7 | L17: 0 | M17: 97.6 | N17: 111.4 | O17: 97.4 | P17: 48 | Q17: 81.6 | R17: 200 | S17: 80.6 | T17: 86 | U17: 118.6 | V17: 78.1 | W17: 66.1
A18: 60.10.1 | B18: 2 世帯数と人口 | C18: 国勢調査人口 | D18: (昭和６０年) | E18: 世帯数 | F18: 224295 | G18: 77605 | H18: 21194 | I18: 9584 | J18: 10925 | K18: 7718 | L18: 15362 | M18: 8588 | N18: 21726 | O18: 20745 | P18: 5033 | Q18: 1166 | R18: 3450 | S18: 6188 | T18: 3878 | U18: 3668 | V18: 3023 | W18: 4442
E19: 人口*計 | F19: 817633 | G19: 269083 | H19: 65670 | I19: 34011 | J19: 43118 | K19: 30416 | L19: 61452 | M19: 31830 | N19: 83953 | O19: 80707 | P19: 19550 | Q19: 4318 | R19: 13886 | S19: 26128 | T19: 13384 | U19: 12310 | V19: 9791 | W19: 18026
E20: 人口*男 | F20: 397115 | G20: 130648 | H20: 32808 | I20: 16309 | J20: 20700 | K20: 14715 | L20: 29881 | M20: 15016 | N20: 40566 | O20: 38775 | P20: 9447 | Q20: 2123 | R20: 6695 | S20: 12647 | T20: 6695 | U20: 6262 | V20: 5067 | W20: 8761
E21: 人口*女 | F21: 420518 | G21: 138435 | H21: 32862 | I21: 17702 | J21: 22418 | K21: 15701 | L21: 31571 | M21: 16814 | N21: 43387 | O21: 41932 | P21: 10103 | Q21: 2195 | R21: 7191 | S21: 13481 | T21: 6689 | U21: 6048 | V21: 4724 | W21: 9265
E22: 男女比*女１００につき男(／１００人) | F22: 94.4 | G22: 378.5 | H22: 99.8 | I22: 92.1 | J22: 92.3 | K22: 93.7 | L22: 94.6 | M22: 89.30653027 | N22: 93.5 | O22: 92.5 | P22: 93.5 | Q22: 96.7 | R22: 93.10248922 | S22: 93.81351532 | T22: 100.1 | U22: 103.5 | V22: 107.3 | W22: 94.56017269
E23: １世帯当たり人員*(／１世帯) | F23: 3.65 | G23: 3.47 | H23: 3.1 | I23: 3.55 | J23: 3.95 | K23: 3.94 | L23: 4 | M23: 3.71 | N23: 3.86 | O23: 3.89 | P23: 3.88 | Q23: 3.7 | R23: 4.02 | S23: 4.22 | T23: 3.45 | U23: 3.36 | V23: 3.24 | W23: 4.06
E24: 人口密度*(人／ｋ㎡) | F24: 195.1 | H24: 263.2 | I24: 145.4 | K24: 120.1 | L24: 729.6 | Q24: 22.2 | T24: 87.6 | U24: 172.7
A25: 2.10.1 | C25: 国勢調査人口 | D25: (平成２年) | E25: 世帯数*(世帯) | F25: 234192 | G25: 81287 | H25: 22995 | I25: 9920 | J25: 10758 | K25: 7701 | L25: 16053 | M25: 8708 | N25: 22678 | O25: 21981 | P25: 5159 | Q25: 1130 | R25: 3484 | S25: 6223 | T25: 4019 | U25: 3822 | V25: 3775 | W25: 4499
E26: 人口*計(人) | F26: 823585 | G26: 270911 | H26: 68041 | I26: 33774 | J26: 41837 | K26: 29805 | L26: 62283 | M26: 31743 | N26: 84897 | O26: 83372 | P26: 19387 | Q26: 4203 | R26: 13804 | S26: 25448 | T26: 13222 | U26: 12425 | V26: 10598 | W26: 17835
E27: 人口*男(人) | F27: 400391 | G27: 131608 | H27: 34091 | I27: 16175 | J27: 19944 | K27: 14400 | L27: 30164 | M27: 14885 | N27: 41272 | O27: 40152 | P27: 9427 | Q27: 2051 | R27: 6628 | S27: 12249 | T27: 6672 | U27: 6250 | V27: 5767 | W27: 8656
E28: 人口*女(人) | F28: 423194 | G28: 139303 | H28: 33950 | I28: 17599 | J28: 21893 | K28: 15405 | L28: 32119 | M28: 16858 | N28: 43625 | O28: 43220 | P28: 9960 | Q28: 2152 | R28: 7176 | S28: 13199 | T28: 6550 | U28: 6175 | V28: 4831 | W28: 9179
E29: 男女比*女１００につき男(／１００人) | F29: 94.6 | G29: 94.5 | H29: 100.4 | I29: 91.9 | J29: 91.1 | K29: 93.5 | L29: 93.9 | M29: 88.29635781 | N29: 94.6 | O29: 92.9 | P29: 94.6 | Q29: 95.3 | R29: 92.36343367 | S29: 92.80248504 | T29: 101.9 | U29: 101.2 | V29: 119.4 | W29: 94.30221157
E30: １世帯当たり人員*(／１世帯) | F30: 3.52 | G30: 3.33 | H30: 2.96 | I30: 3.4 | J30: 3.89 | K30: 3.87 | L30: 3.88 | M30: 3.65 | N30: 3.74 | O30: 3.79 | P30: 3.76 | Q30: 3.72 | R30: 3.96 | S30: 4.09 | T30: 3.29 | U30: 3.25 | V30: 2.81 | W30: 3.96
E31: 人口密度*(人／ｋ㎡) | F31: 196.7 | H31: 271.6 | I31: 145.1 | K31: 117.5 | L31: 734.9 | Q31: 21.6 | T31: 86.9 | U31: 172.6
A32: 7.10.1 | C32: 国勢調査人口 | D32: (平成７年) | E32: 世帯数*(世帯) | F32: 246911 | G32: 87719 | H32: 23115 | I32: 10383 | J32: 10862 | K32: 7733 | L32: 16919 | M32: 9327 | N32: 24233 | O32: 23882 | P32: 6049 | Q32: 1115 | R32: 3634 | S32: 6379 | T32: 3687 | U32: 3816 | V32: 3469 | W32: 4589
E33: 人口*計(人) | F33: 826996 | G33: 272970 | H33: 67204 | I33: 33496 | J33: 41069 | K33: 29162 | L33: 62890 | M33: 32432 | N33: 85533 | O33: 86870 | P33: 20183 | Q33: 4032 | R33: 13616 | S33: 25158 | T33: 12362 | U33: 12201 | V33: 10251 | W33: 17567
E34: 人口*男(人) | F34: 401860 | G34: 133444 | H34: 33047 | I34: 16164 | J34: 19537 | K34: 14033 | L34: 30376 | M34: 15174 | N34: 41641 | O34: 41942 | P34: 9907 | Q34: 1957 | R34: 6555 | S34: 12060 | T34: 6087 | U34: 6086 | V34: 5400 | W34: 8450
E35: 人口*女(人) | F35: 425136 | G35: 139526 | H35: 34157 | I35: 17332 | J35: 21532 | K35: 15129 | L35: 32514 | M35: 17258 | N35: 43892 | O35: 44928 | P35: 10276 | Q35: 2075 | R35: 7061 | S35: 13098 | T35: 6275 | U35: 6115 | V35: 4851 | W35: 9117
E36: 男女比*女１００につき男(／１００人) | F36: 94.5 | G36: 95.6 | H36: 96.8 | I36: 93.3 | J36: 90.7 | K36: 92.8 | L36: 93.4 | M36: 87.92444084 | N36: 94.9 | O36: 93.4 | P36: 96.4 | Q36: 94.3 | R36: 92.83387622 | S36: 92.07512597 | T36: 97 | U36: 99.5 | V36: 111.3 | W36: 92.68399693
E37: １世帯当たり人員*(／１世帯) | F37: 3.35 | G37: 3.11 | H37: 2.91 | I37: 3.23 | J37: 3.78 | K37: 3.77 | L37: 3.72 | M37: 3.48 | N37: 3.53 | O37: 3.64 | P37: 3.34 | Q37: 3.62 | R37: 3.75 | S37: 3.94 | T37: 3.35 | U37: 3.2 | V37: 2.96 | W37: 3.83
E38: 人口密度*(人／ｋ㎡) | F38: 197.4 | H38: 268.1 | I38: 143.9 | K38: 115 | L38: 742.1 | Q38: 20.7 | T38: 81.2 | U38: 169.4
A39: 12.10.1 | C39: 国勢調査人口 | D39: (平成１2年) | E39: 世帯数*(世帯) | F39: 259612 | G39: 89946 | H39: 24539 | I39: 10962 | J39: 11151 | K39: 7942 | L39: 18598 | M39: 9562 | N39: 26461 | O39: 26278 | P39: 6781 | Q39: 1095 | R39: 3744 | S39: 6619 | T39: 3713 | U39: 4015 | V39: 3490 | W39: 4716
E40: 人口*計(人) | F40: 828944 | G40: 269557 | H40: 68145 | I40: 33295 | J40: 39632 | K40: 28143 | L40: 64898 | M40: 32178 | N40: 87699 | O40: 91173 | P40: 21182 | Q40: 3759 | R40: 13221 | S40: 25017 | T40: 11630 | U40: 12119 | V40: 9983 | W40: 17313
E41: 人口*男(人) | F41: 402367 | G41: 131344 | H41: 33504 | I41: 16134 | J41: 18942 | K41: 13391 | L41: 31448 | M41: 15072 | N41: 42858 | O41: 43972 | P41: 10225 | Q41: 1825 | R41: 6437 | S41: 11973 | T41: 5672 | U41: 6076 | V41: 5192 | W41: 8302
E42: 人口*女(人) | F42: 426577 | G42: 138213 | H42: 34641 | I42: 17161 | J42: 20690 | K42: 14752 | L42: 33450 | M42: 17106 | N42: 44841 | O42: 47201 | P42: 10957 | Q42: 1934 | R42: 6784 | S42: 13044 | T42: 5958 | U42: 6043 | V42: 4791 | W42: 9011
E43: 男女比*女１００につき男(／１００人) | F43: 94.3 | G43: 95 | H43: 96.7 | I43: 94 | J43: 91.6 | K43: 90.8 | L43: 94 | M43: 88.10943529 | N43: 95.6 | O43: 93.2 | P43: 93.3 | Q43: 94.4 | R43: 94.88502358 | S43: 91.78932843 | T43: 95.2 | U43: 100.5 | V43: 108.4 | W43: 92.13183886
E44: １世帯当たり人員*(／１世帯) | F44: 3.19 | G44: 3 | H44: 2.78 | I44: 3.04 | J44: 3.55 | K44: 3.54 | L44: 3.49 | M44: 3.37 | N44: 3.31 | O44: 3.47 | P44: 3.12 | Q44: 3.43 | R44: 3.53 | S44: 3.78 | T44: 3.13 | U44: 3.02 | V44: 2.86 | W44: 3.67
E45: 人口密度*(人／ｋ㎡) | F45: 197.9 | H45: 271.8 | I45: 143 | K45: 110.9 | L45: 765.8 | Q45: 19.3 | T45: 76.4 | U45: 168.2
A46: 17.10.1 | C46: 国勢調査人口 | D46: (平成１7年) | E46: 世帯数*(世帯) | F46: 269577 | G46: 93694 | H46: 25742 | I46: 11136 | J46: 11230 | K46: 7990 | L46: 20177 | M46: 9658 | N46: 27916 | O46: 28035 | P46: 6868 | Q46: 1060 | R46: 3542 | S46: 6670 | T46: 3760 | U46: 4014 | V46: 3258 | W46: 4827
E47: 人口*計(人) | F47: 821592 | G47: 269144 | H47: 68402 | I47: 32182 | J47: 37843 | K47: 26961 | L47: 66831 | M47: 31081 | N47: 87742 | O47: 92318 | P47: 20764 | Q47: 3405 | R47: 12274 | S47: 23995 | T47: 11023 | U47: 11630 | V47: 9217 | W47: 16780
E48: 人口*男(人) | F48: 397271 | G48: 130834 | H48: 33475 | I48: 15620 | J48: 17956 | K48: 12777 | L48: 32263 | M48: 14498 | N48: 42706 | O48: 44349 | P48: 10085 | Q48: 1643 | R48: 5850 | S48: 11447 | T48: 5364 | U48: 5729 | V48: 4649 | W48: 8026
E49: 人口*女(人) | F49: 424321 | G49: 138310 | H49: 34927 | I49: 16562 | J49: 19887 | K49: 14184 | L49: 34568 | M49: 16583 | N49: 45036 | O49: 47969 | P49: 10679 | Q49: 1762 | R49: 6424 | S49: 12548 | T49: 5659 | U49: 5901 | V49: 4568 | W49: 8754
E50: 男女比*女１００につき男(／１００人) | F50: 93.6 | G50: 94.6 | H50: 95.8 | I50: 94.3 | J50: 90.3 | K50: 90.1 | L50: 93.3 | M50: 87.4 | N50: 94.8 | O50: 92.5 | P50: 94.4 | Q50: 93.2 | R50: 91.1 | S50: 91.2 | T50: 94.8 | U50: 97.1 | V50: 101.8 | W50: 91.7
E51: １世帯当たり人員*(／１世帯) | F51: 3.05 | G51: 2.87 | H51: 2.66 | I51: 2.89 | J51: 3.37 | K51: 3.37 | L51: 3.31 | M51: 3.22 | N51: 3.14 | O51: 3.29 | P51: 3.02 | Q51: 3.21 | R51: 3.47 | S51: 3.6 | T51: 2.93 | U51: 2.9 | V51: 2.83 | W51: 3.48
E52: 人口密度*(人／ｋ㎡) | F52: 196.1 | G52: 502 | H52: 272.8 | I52: 138.2 | J52: 43.4 | K52: 106.3 | L52: 788.6 | M52: 265.7 | N52: 380.2 | O52: 439.8 | P52: 220.1 | Q52: 17.5 | R52: 35.7 | S52: 156.9 | T52: 72.4 | U52: 161.3 | V52: 43.4 | W52: 93.9
A53: 22.10.1 | C53: 国勢調査人口 | D53: (平成22年) | E53: 世帯数*(世帯) | F53: 275599 | G53: 97446 | H53: 26453 | I53: 11477 | J53: 10847 | K53: 7773 | L53: 21028 | M53: 9735 | N53: 27601 | O53: 28744 | P53: 7217 | Q53: 1006 | R53: 3483 | S53: 6728 | T53: 3879 | U53: 4044 | V53: 3144 | W53: 4994
E54: 人口*計(人) | F54: 806314 | G54: 266796 | H54: 67760 | I54: 31340 | J54: 35291 | K54: 25466 | L54: 67450 | M54: 29989 | N54: 85614 | O54: 91900 | P54: 20647 | Q54: 3046 | R54: 11551 | S54: 23160 | T54: 10563 | U54: 11062 | V54: 8580 | W54: 16099
E55: 人口*男(人) | F55: 389712 | G55: 128692 | H55: 33396 | I55: 15376 | J55: 16705 | K55: 12072 | L55: 32507 | M55: 14081 | N55: 41762 | O55: 44235 | P55: 10026 | Q55: 1449 | R55: 5501 | S55: 11036 | T55: 5292 | U55: 5521 | V55: 4280 | W55: 7781
E56: 人口*女(人) | F56: 416602 | G56: 138104 | H56: 34364 | I56: 15964 | J56: 18586 | K56: 13394 | L56: 34943 | M56: 15908 | N56: 43852 | O56: 47665 | P56: 10621 | Q56: 1597 | R56: 6050 | S56: 12124 | T56: 5271 | U56: 5541 | V56: 4300 | W56: 8318
E57: 男女比*女１００につき男(／１００人) | F57: 93.5 | G57: 93.2 | H57: 97.2 | I57: 96.3 | J57: 89.9 | K57: 90.1 | L57: 93 | M57: 88.5 | N57: 95.2 | O57: 92.8 | P57: 94.4 | Q57: 90.7 | R57: 90.9 | S57: 91 | T57: 100.4 | U57: 99.6 | V57: 99.5 | W57: 93.5
E58: １世帯当たり人員*(／１世帯) | F58: 2.93 | G58: 2.74 | H58: 2.56 | I58: 2.73 | J58: 3.25 | K58: 3.28 | L58: 3.21 | M58: 3.08 | N58: 3.1 | O58: 3.2 | P58: 2.86 | Q58: 3.03 | R58: 3.32 | S58: 3.44 | T58: 2.72 | U58: 2.74 | V58: 2.73 | W58: 3.22
E59: 人口密度*(人／ｋ㎡) | F59: 192.4 | G59: 497.6 | H59: 269.7 | I59: 134.6 | J59: 40.5 | K59: 100.4 | L59: 795.9 | M59: 256.3 | N59: 371 | O59: 437.8 | P59: 218.9 | Q59: 15.6 | R59: 33.6 | S59: 151.4 | T59: 69.3 | U59: 153.3 | V59: 40.4 | W59: 90.1
A60: 27.10.1 | C60: 国勢調査人口 | D60: （平成27年） | E60: 世帯数*(世帯) | F60: 279687 | G60: 99872 | H60: 26545 | I60: 11220 | J60: 10698 | K60: 7703 | L60: 22335 | M60: 9697 | N60: 27889 | O60: 29454 | P60: 7276 | Q60: 902 | R60: 3353 | S60: 6560 | T60: 3899 | U60: 4191 | V60: 3222 | W60: 4871
E61: 人口*計(人) | F61: 786740 | G61: 265904 | H61: 66165 | I61: 29670 | J61: 33109 | K61: 24125 | L61: 68284 | M61: 28729 | N61: 81524 | O61: 90280 | P61: 19883 | Q61: 2638 | R61: 10799 | S61: 21538 | T61: 9914 | U61: 10596 | V61: 8325 | W61: 15257
E62: 人口*男(人) | F62: 381474 | G62: 128892 | H62: 32558 | I62: 14539 | J62: 15683 | K62: 11478 | L62: 33105 | M62: 13555 | N62: 39859 | O62: 43526 | P62: 9621 | Q62: 1250 | R62: 5173 | S62: 10333 | T62: 4988 | U62: 5417 | V62: 4201 | W62: 7296
E63: 人口*女(人) | F63: 405266 | G63: 137012 | H63: 33607 | I63: 15131 | J63: 17426 | K63: 12647 | L63: 35179 | M63: 15174 | N63: 41665 | O63: 46754 | P63: 10262 | Q63: 1388 | R63: 5626 | S63: 11205 | T63: 4926 | U63: 5179 | V63: 4124 | W63: 7961
E64: 男女比*女１００につき男(／１００人) | F64: 94.12928792 | G64: 94.07351181 | H64: 96.87862648 | I64: 96.08750248 | J64: 89.99770458 | K64: 90.75670119 | L64: 94.10443731 | M64: 89.33043364 | N64: 95.66542662 | O64: 93.0957779 | P64: 93.75365426 | Q64: 90.05763689 | R64: 91.94809812 | S64: 92.21775993 | T64: 101.2586277 | U64: 104.5954818 | V64: 101.8671193 | W64: 91.64677804
E65: １世帯当たり人員*(／１世帯) | F65: 2.812930168 | G65: 2.662447933 | H65: 2.492559804 | I65: 2.644385027 | J65: 3.094877547 | K65: 3.131896664 | L65: 3.057264383 | M65: 2.962668867 | N65: 2.923159669 | O65: 3.06511849 | P65: 2.732682793 | Q65: 2.924611973 | R65: 3.220697882 | S65: 3.283231707 | T65: 2.542703257 | U65: 2.528274875 | V65: 2.583798883 | W65: 3.132211045
E66: 人口密度*(人／ｋ㎡) | F66: 187.7 | G66: 495.7 | H66: 263.2 | I66: 127.3 | J66: 38 | K66: 95 | L66: 807.2 | M66: 245.6 | N66: 353.4 | O66: 430.6 | P66: 210.6 | Q66: 13.6 | R66: 31.4 | S66: 140.6 | T66: 65.1 | U66: 146.4 | V66: 39.2 | W66: 85.5
A67: 元.10.1 | C67: 推計人口 | E67: 世帯数*(世帯) | F67: 288356 | G67: 103954 | H67: 27079 | I67: 11450 | J67: 10792 | K67: 7630 | L67: 23713 | M67: 9866 | N67: 28906 | O67: 30742 | P67: 7402 | Q67: 861 | R67: 3290 | S67: 6482 | T67: 3828 | U67: 4328 | V67: 3259 | W67: 4774
E68: １世帯当たり人員*(／１世帯) | F68: 2.66 | G68: 2.53 | H68: 2.38 | I68: 2.49 | J68: 2.9 | K68: 2.96 | L68: 2.89 | M68: 2.8 | N68: 2.76 | O68: 2.89 | P68: 2.58 | Q68: 2.75 | R68: 3.08 | S68: 3.11 | T68: 2.41 | U68: 2.38 | V68: 2.48 | W68: 2.98
E69: 人口密度*(人／ｋ㎡) | F69: 183.2092437 | G69: 489.420406 | H69: 256.4496241 | I69: 122.4228905 | J69: 35.83553981 | K69: 88.86481802 | L69: 810.1785081 | M69: 235.7411523 | N69: 346.2895535 | O69: 423.4988315 | P69: 202.4780261 | Q69: 12.15001284 | R69: 29.4887835 | S69: 131.7074763 | T69: 60.58418116 | U69: 142.0165746 | V69: 38.01781422 | W69: 79.61790577
A70: 30.10.1～元.9.30 | D70: 自然動態 | E70: 出 生 | F70: 5571 | G70: 2107 | H70: 434 | I70: 211 | J70: 166 | K70: 111 | L70: 567 | M70: 161 | N70: 625 | O70: 601 | P70: 109 | Q70: 10 | R70: 57 | S70: 115 | T70: 61 | U70: 80 | V70: 65 | W70: 91
E71: 死 亡 | F71: 9436 | G71: 2992 | H71: 729 | I71: 407 | J71: 549 | K71: 348 | L71: 676 | M71: 393 | N71: 1009 | O71: 930 | P71: 202 | Q71: 60 | R71: 161 | S71: 313 | T71: 167 | U71: 146 | V71: 116 | W71: 238
A72: 30.10.1～元.9.30 | D72: 社会動態 | E72: 転入計 | F72: 22877 | G72: 8083 | H72: 1944 | I72: 980 | J72: 751 | K72: 422 | L72: 1988 | M72: 854 | N72: 2819 | O72: 2678 | P72: 548 | Q72: 54 | R72: 180 | S72: 424 | T72: 252 | U72: 320 | V72: 282 | W72: 298
E73: 転出計 | F73: 25001 | G73: 8197 | H73: 2105 | I73: 918 | J73: 931 | K73: 593 | L73: 2015 | M73: 925 | N73: 3484 | O73: 2857 | P73: 645 | Q73: 70 | R73: 241 | S73: 595 | T73: 388 | U73: 333 | V73: 268 | W73: 436
A74: 30.1.1～30.12.31 | E74: 婚姻 | F74: 3274 | G74: 1232 | H74: 278 | I74: 129 | J74: 94 | K74: 99 | L74: 294 | M74: 106 | N74: 330 | O74: 362 | P74: 64 | Q74: 10 | R74: 28 | S74: 62 | T74: 45 | U74: 46 | V74: 42 | W74: 53
E75: 離婚 | F75: 1081 | G75: 421 | H75: 121 | I75: 30 | J75: 28 | K75: 16 | L75: 107 | M75: 30 | N75: 106 | O75: 107 | P75: 25 | Q75: 2 | R75: 3 | S75: 32 | T75: 10 | U75: 13 | V75: 13 | W75: 17
A76: 元.10.1 | D76: 総計 | E76: 男女計（年齢不詳含む） | F76: 767742 | G76: 262530 | H76: 64474 | I76: 28538 | J76: 31264 | K76: 22561 | L76: 68533 | M76: 27577 | N76: 79889 | O76: 88795 | P76: 19120 | Q76: 2365 | R76: 10135 | S76: 20171 | T76: 9230 | U76: 10282 | V76: 8067 | W76: 14211
E77: 男 | F77: 373136 | G77: 127531 | H77: 31827 | I77: 14077 | J77: 14842 | K77: 10712 | L77: 33261 | M77: 13033 | N77: 39216 | O77: 42809 | P77: 9288 | Q77: 1119 | R77: 4878 | S77: 9732 | T77: 4662 | U77: 5272 | V77: 4088 | W77: 6789
E78: 女 | F78: 394606 | G78: 134999 | H78: 32647 | I78: 14461 | J78: 16422 | K78: 11849 | L78: 35272 | M78: 14544 | N78: 40673 | O78: 45986 | P78: 9832 | Q78: 1246 | R78: 5257 | S78: 10439 | T78: 4568 | U78: 5010 | V78: 3979 | W78: 7422
A79: 元.10.1 | D79: 男 | E79: 0～14 | F79: 49478 | G79: 16764 | H79: 4335 | I79: 1849 | J79: 1743 | K79: 1285 | L79: 4954 | M79: 1534 | N79: 5311 | O79: 6072 | P79: 1092 | Q79: 95 | R79: 629 | S79: 1209 | T79: 525 | U79: 651 | V79: 557 | W79: 873
E80: 15～24 | F80: 37393 | G80: 13044 | H80: 3084 | I80: 1296 | J80: 1317 | K80: 904 | L80: 3543 | M80: 1213 | N80: 3975 | O80: 4577 | P80: 1165 | Q80: 76 | R80: 490 | S80: 965 | T80: 357 | U80: 463 | V80: 335 | W80: 589
E81: 25～34 | F81: 35450 | G81: 12205 | H81: 3008 | I81: 1347 | J81: 1163 | K81: 890 | L81: 3213 | M81: 1226 | N81: 4004 | O81: 3967 | P81: 1148 | Q81: 88 | R81: 422 | S81: 766 | T81: 474 | U81: 614 | V81: 395 | W81: 520
E82: 35～44 | F82: 46082 | G82: 15739 | H82: 4141 | I82: 1730 | J82: 1671 | K82: 1206 | L82: 4569 | M82: 1483 | N82: 5079 | O82: 5354 | P82: 1032 | Q82: 99 | R82: 528 | S82: 1100 | T82: 534 | U82: 635 | V82: 454 | W82: 728
E83: 45～54 | F83: 51007 | G83: 17502 | H83: 4536 | I83: 1831 | J83: 1822 | K83: 1274 | L83: 4841 | M83: 1771 | N83: 5348 | O83: 6142 | P83: 1153 | Q83: 131 | R83: 579 | S83: 1299 | T83: 636 | U83: 748 | V83: 552 | W83: 842
E84: 55～64 | F84: 47882 | G84: 15322 | H84: 4381 | I84: 2020 | J84: 2153 | K84: 1522 | L84: 3781 | M84: 1890 | N84: 4820 | O84: 5458 | P84: 1169 | Q84: 182 | R84: 676 | S84: 1339 | T84: 733 | U84: 727 | V84: 669 | W84: 1040
E85: 65以上 | F85: 100409 | G85: 32835 | H85: 8075 | I85: 3948 | J85: 4969 | K85: 3617 | L85: 8235 | M85: 3902 | N85: 10308 | O85: 10922 | P85: 2442 | Q85: 448 | R85: 1554 | S85: 3048 | T85: 1397 | U85: 1421 | V85: 1092 | W85: 2196
E86: 計(年齢不詳含む) | F86: 5435 | G86: 4120 | H86: 267 | I86: 56 | J86: 4 | K86: 14 | L86: 125 | M86: 14 | N86: 371 | O86: 317 | P86: 87 | Q86: 0 | R86: 0 | S86: 6 | T86: 6 | U86: 13 | V86: 34 | W86: 1
D87: 女 | E87: 0～14 | F87: 46929 | G87: 15800 | H87: 4034 | I87: 1730 | J87: 1692 | K87: 1189 | L87: 4780 | M87: 1520 | N87: 4957 | O87: 5803 | P87: 1081 | Q87: 94 | R87: 543 | S87: 1184 | T87: 456 | U87: 598 | V87: 563 | W87: 905
E88: 15～24 | F88: 34612 | G88: 11562 | H88: 2755 | I88: 1095 | J88: 1271 | K88: 944 | L88: 3399 | M88: 1197 | N88: 3828 | O88: 4473 | P88: 1082 | Q88: 95 | R88: 428 | S88: 889 | T88: 349 | U88: 390 | V88: 321 | W88: 534
E89: 25～34 | F89: 33012 | G89: 11811 | H89: 2786 | I89: 1081 | J89: 1027 | K89: 801 | L89: 3116 | M89: 1113 | N89: 3794 | O89: 3926 | P89: 1011 | Q89: 73 | R89: 360 | S89: 663 | T89: 314 | U89: 377 | V89: 287 | W89: 472
E90: 35～44 | F90: 44491 | G90: 15495 | H90: 3876 | I90: 1587 | J90: 1655 | K90: 1171 | L90: 4513 | M90: 1474 | N90: 4678 | O90: 5287 | P90: 981 | Q90: 88 | R90: 494 | S90: 1035 | T90: 461 | U90: 548 | V90: 408 | W90: 740
E91: 45～54 | F91: 50847 | G91: 17765 | H91: 4397 | I91: 1775 | J91: 1842 | K91: 1345 | L91: 4750 | M91: 1817 | N91: 5164 | O91: 6325 | P91: 1261 | Q91: 102 | R91: 551 | S91: 1290 | T91: 479 | U91: 650 | V91: 455 | W91: 879
E92: 55～64 | F92: 49122 | G92: 16256 | H92: 4145 | I92: 1937 | J92: 2334 | K92: 1636 | L92: 4013 | M92: 2028 | N92: 4885 | O92: 5738 | P92: 1167 | Q92: 198 | R92: 724 | S92: 1420 | T92: 595 | U92: 589 | V92: 518 | W92: 939
E93: 65以上 | F93: 131091 | G93: 42718 | H93: 10459 | I93: 5231 | J93: 6599 | K93: 4754 | L93: 10604 | M93: 5392 | N93: 13133 | O93: 14170 | P93: 3170 | Q93: 596 | R93: 2157 | S93: 3956 | T93: 1914 | U93: 1858 | V93: 1427 | W93: 2953
E94: 計(年齢不詳含む) | F94: 4502 | G94: 3592 | H94: 195 | I94: 25 | J94: 2 | K94: 9 | L94: 97 | M94: 3 | N94: 234 | O94: 264 | P94: 79 | Q94: 0 | R94: 0 | S94: 2 | T94: 0 | U94: 0 | V94: 0 | W94: 0
A95: 28.6.1 | B95: 3 事業所 | C95: 事業所数 | D95: 全産業 | E95: 総数 | F95: … | G95: … | H95: … | I95: … | J95: … | K95: … | L95: … | M95: … | N95: … | O95: … | P95: … | Q95: … | R95: … | S95: … | T95: … | U95: … | V95: … | W95: …
E96: 民営 | F96: 41644 | G96: 15789 | H96: 3335 | I96: 1765 | J96: 1837 | K96: 1212 | L96: 3520 | M96: 1282 | N96: 4369 | O96: 3754 | P96: 797 | Q96: 143 | R96: 399 | S96: 1076 | T96: 571 | U96: 567 | V96: 478 | W96: 750
E97: 国，地方公共団体 | F97: … | G97: … | H97: … | I97: … | J97: … | K97: … | L97: … | M97: … | N97: … | O97: … | P97: … | Q97: … | R97: … | S97: … | T97: … | U97: … | V97: … | W97: …
D98: 農林漁業 | E98: 総数 | F98: … | G98: … | H98: … | I98: … | J98: … | K98: … | L98: … | M98: … | N98: … | O98: … | P98: … | Q98: … | R98: … | S98: … | T98: … | U98: … | V98: … | W98: …
E99: 民営 | F99: 348 | G99: 56 | H99: 4 | I99: 13 | J99: 37 | K99: 18 | L99: 15 | M99: 24 | N99: 30 | O99: 37 | P99: 13 | Q99: 10 | R99: 17 | S99: 14 | T99: 16 | U99: 5 | V99: 13 | W99: 26
E100: 国，地方公共団体 | F100: … | G100: … | H100: … | I100: … | J100: … | K100: … | L100: … | M100: … | N100: … | O100: … | P100: … | Q100: … | R100: … | S100: … | T100: … | U100: … | V100: … | W100: …
D101: 鉱業 | E101: 総数 | F101: … | G101: … | H101: … | I101: … | J101: … | K101: … | L101: … | M101: … | N101: … | O101: … | P101: … | Q101: … | R101: … | S101: … | T101: … | U101: … | V101: … | W101: …
E102: 民営 | F102: 13 | G102: 7 | H102: 0 | I102: 0 | J102: 1 | K102: 0 | L102: 0 | M102: 1 | N102: 1 | O102: 0 | P102: 1 | Q102: 0 | R102: 2 | S102: 0 | T102: 0 | U102: 0 | V102: 0 | W102: 0
E103: 国，地方公共団体 | F103: … | G103: … | H103: … | I103: … | J103: … | K103: … | L103: … | M103: … | N103: … | O103: … | P103: … | Q103: … | R103: … | S103: … | T103: … | U103: … | V103: … | W103: …
D104: 建設業 | E104: 総数 | F104: … | G104: … | H104: … | I104: … | J104: … | K104: … | L104: … | M104: … | N104: … | O104: … | P104: … | Q104: … | R104: … | S104: … | T104: … | U104: … | V104: … | W104: …
E105: 民営 | F105: 4743 | G105: 1525 | H105: 463 | I105: 190 | J105: 283 | K105: 167 | L105: 265 | M105: 142 | N105: 486 | O105: 448 | P105: 106 | Q105: 24 | R105: 64 | S105: 173 | T105: 94 | U105: 96 | V105: 108 | W105: 109
E106: 国，地方公共団体 | F106: … | G106: … | H106: … | I106: … | J106: … | K106: … | L106: … | M106: … | N106: … | O106: … | P106: … | Q106: … | R106: … | S106: … | T106: … | U106: … | V106: … | W106: …
D107: 製造業 | E107: 総数 | F107: … | G107: … | H107: … | I107: … | J107: … | K107: … | L107: … | M107: … | N107: … | O107: … | P107: … | Q107: … | R107: … | S107: … | T107: … | U107: … | V107: … | W107: …
E108: 民営 | F108: 5292 | G108: 1441 | H108: 170 | I108: 167 | J108: 207 | K108: 172 | L108: 1056 | M108: 166 | N108: 707 | O108: 651 | P108: 142 | Q108: 27 | R108: 38 | S108: 203 | T108: 32 | U108: 28 | V108: 24 | W108: 61
E109: 国，地方公共団体 | F109: … | G109: … | H109: … | I109: … | J109: … | K109: … | L109: … | M109: … | N109: … | O109: … | P109: … | Q109: … | R109: … | S109: … | T109: … | U109: … | V109: … | W109: …
D110: 電気・ガス・熱供給・水道業 | E110: 総数 | F110: … | G110: … | H110: … | I110: … | J110: … | K110: … | L110: … | M110: … | N110: … | O110: … | P110: … | Q110: … | R110: … | S110: … | T110: … | U110: … | V110: … | W110: …
E111: 民営 | F111: 46 | G111: 5 | H111: 9 | I111: 2 | J111: 4 | K111: 2 | L111: 0 | M111: 0 | N111: 5 | O111: 7 | P111: 2 | Q111: 0 | R111: 0 | S111: 0 | T111: 7 | U111: 1 | V111: 2 | W111: 0
E112: 国，地方公共団体 | F112: … | G112: … | H112: … | I112: … | J112: … | K112: … | L112: … | M112: … | N112: … | O112: … | P112: … | Q112: … | R112: … | S112: … | T112: … | U112: … | V112: … | W112: …
D113: 情報通信業 | E113: 総数 | F113: … | G113: … | H113: … | I113: … | J113: … | K113: … | L113: … | M113: … | N113: … | O113: … | P113: … | Q113: … | R113: … | S113: … | T113: … | U113: … | V113: … | W113: …
E114: 民営 | F114: 322 | G114: 195 | H114: 24 | I114: 10 | J114: 3 | K114: 6 | L114: 17 | M114: 2 | N114: 16 | O114: 37 | P114: 3 | Q114: 1 | R114: 1 | S114: 1 | T114: 3 | U114: 1 | V114: 1 | W114: 1
E115: 国，地方公共団体 | F115: … | G115: … | H115: … | I115: … | J115: … | K115: … | L115: … | M115: … | N115: … | O115: … | P115: … | Q115: … | R115: … | S115: … | T115: … | U115: … | V115: … | W115: …
D116: 運輸業、郵便業 | E116: 総数 | F116: … | G116: … | H116: … | I116: … | J116: … | K116: … | L116: … | M116: … | N116: … | O116: … | P116: … | Q116: … | R116: … | S116: … | T116: … | U116: … | V116: … | W116: …
E117: 民営 | F117: 799 | G117: 310 | H117: 92 | I117: 19 | J117: 18 | K117: 16 | L117: 48 | M117: 32 | N117: 76 | O117: 106 | P117: 17 | Q117: 2 | R117: 6 | S117: 15 | T117: 11 | U117: 10 | V117: 6 | W117: 15
E118: 国，地方公共団体 | F118: … | G118: … | H118: … | I118: … | J118: … | K118: … | L118: … | M118: … | N118: … | O118: … | P118: … | Q118: … | R118: … | S118: … | T118: … | U118: … | V118: … | W118: …
D119: 卸売業、小売業 | E119: 総数 | F119: … | G119: … | H119: … | I119: … | J119: … | K119: … | L119: … | M119: … | N119: … | O119: … | P119: … | Q119: … | R119: … | S119: … | T119: … | U119: … | V119: … | W119: …
E120: 民営 | F120: 10543 | G120: 4305 | H120: 875 | I120: 489 | J120: 416 | K120: 285 | L120: 797 | M120: 291 | N120: 1142 | O120: 930 | P120: 174 | Q120: 28 | R120: 94 | S120: 249 | T120: 118 | U120: 102 | V120: 78 | W120: 170
E121: 国，地方公共団体 | F121: … | G121: … | H121: … | I121: … | J121: … | K121: … | L121: … | M121: … | N121: … | O121: … | P121: … | Q121: … | R121: … | S121: … | T121: … | U121: … | V121: … | W121: …
D122: 金融業、保険業 | E122: 総数 | F122: … | G122: … | H122: … | I122: … | J122: … | K122: … | L122: … | M122: … | N122: … | O122: … | P122: … | Q122: … | R122: … | S122: … | T122: … | U122: … | V122: … | W122: …
E123: 民営 | F123: 749 | G123: 394 | H123: 56 | I123: 34 | J123: 23 | K123: 17 | L123: 51 | M123: 15 | N123: 66 | O123: 41 | P123: 7 | Q123: 1 | R123: 4 | S123: 13 | T123: 7 | U123: 5 | V123: 4 | W123: 11
E124: 国，地方公共団体 | F124: … | G124: … | H124: … | I124: … | J124: … | K124: … | L124: … | M124: … | N124: … | O124: … | P124: … | Q124: … | R124: … | S124: … | T124: … | U124: … | V124: … | W124: …
D125: 不動産業、物品賃貸業 | E125: 総数 | F125: … | G125: … | H125: … | I125: … | J125: … | K125: … | L125: … | M125: … | N125: … | O125: … | P125: … | Q125: … | R125: … | S125: … | T125: … | U125: … | V125: … | W125: …
E126: 民営 | F126: 1288 | G126: 697 | H126: 107 | I126: 67 | J126: 26 | K126: 14 | L126: 74 | M126: 19 | N126: 123 | O126: 72 | P126: 47 | Q126: 0 | R126: 2 | S126: 10 | T126: 8 | U126: 11 | V126: 6 | W126: 5
E127: 国，地方公共団体 | F127: … | G127: … | H127: … | I127: … | J127: … | K127: … | L127: … | M127: … | N127: … | O127: … | P127: … | Q127: … | R127: … | S127: … | T127: … | U127: … | V127: … | W127: …
D128: 学術研究、専門・技術サービス業 | E128: 総数 | F128: … | G128: … | H128: … | I128: … | J128: … | K128: … | L128: … | M128: … | N128: … | O128: … | P128: … | Q128: … | R128: … | S128: … | T128: … | U128: … | V128: … | W128: …
E129: 民営 | F129: 1529 | G129: 757 | H129: 136 | I129: 68 | J129: 50 | K129: 32 | L129: 89 | M129: 33 | N129: 130 | O129: 115 | P129: 22 | Q129: 4 | R129: 13 | S129: 15 | T129: 21 | U129: 14 | V129: 12 | W129: 18
E130: 国，地方公共団体 | F130: … | G130: … | H130: … | I130: … | J130: … | K130: … | L130: … | M130: … | N130: … | O130: … | P130: … | Q130: … | R130: … | S130: … | T130: … | U130: … | V130: … | W130: …
D131: 宿泊業、飲食サービス業 | E131: 総数 | F131: … | G131: … | H131: … | I131: … | J131: … | K131: … | L131: … | M131: … | N131: … | O131: … | P131: … | Q131: … | R131: … | S131: … | T131: … | U131: … | V131: … | W131: …
E132: 民営 | F132: 5288 | G132: 1977 | H132: 569 | I132: 244 | J132: 230 | K132: 151 | L132: 338 | M132: 202 | N132: 425 | O132: 376 | P132: 69 | Q132: 14 | R132: 62 | S132: 132 | T132: 100 | U132: 152 | V132: 87 | W132: 160
E133: 国，地方公共団体 | F133: … | G133: … | H133: … | I133: … | J133: … | K133: … | L133: … | M133: … | N133: … | O133: … | P133: … | Q133: … | R133: … | S133: … | T133: … | U133: … | V133: … | W133: …
D134: 生活関連サービス業、娯楽業 | E134: 総数 | F134: … | G134: … | H134: … | I134: … | J134: … | K134: … | L134: … | M134: … | N134: … | O134: … | P134: … | Q134: … | R134: … | S134: … | T134: … | U134: … | V134: … | W134: …
E135: 民営 | F135: 3577 | G135: 1333 | H135: 275 | I135: 167 | J135: 173 | K135: 128 | L135: 296 | M135: 127 | N135: 374 | O135: 330 | P135: 68 | Q135: 10 | R135: 30 | S135: 73 | T135: 41 | U135: 48 | V135: 45 | W135: 59
E136: 国，地方公共団体 | F136: … | G136: … | H136: … | I136: … | J136: … | K136: … | L136: … | M136: … | N136: … | O136: … | P136: … | Q136: … | R136: … | S136: … | T136: … | U136: … | V136: … | W136: …
D137: 教育、学習支援業 | E137: 総数 | F137: … | G137: … | H137: … | I137: … | J137: … | K137: … | L137: … | M137: … | N137: … | O137: … | P137: … | Q137: … | R137: … | S137: … | T137: … | U137: … | V137: … | W137: …
E138: 民営 | F138: 1037 | G138: 413 | H138: 70 | I138: 46 | J138: 36 | K138: 30 | L138: 85 | M138: 32 | N138: 116 | O138: 95 | P138: 25 | Q138: 1 | R138: 10 | S138: 24 | T138: 10 | U138: 15 | V138: 16 | W138: 13
E139: 国，地方公共団体 | F139: … | G139: … | H139: … | I139: … | J139: … | K139: … | L139: … | M139: … | N139: … | O139: … | P139: … | Q139: … | R139: … | S139: … | T139: … | U139: … | V139: … | W139: …
D140: 医療、福祉 | E140: 総数 | F140: … | G140: … | H140: … | I140: … | J140: … | K140: … | L140: … | M140: … | N140: … | O140: … | P140: … | Q140: … | R140: … | S140: … | T140: … | U140: … | V140: … | W140: …
E141: 民営 | F141: 2491 | G141: 1024 | H141: 201 | I141: 81 | J141: 151 | K141: 75 | L141: 195 | M141: 81 | N141: 262 | O141: 200 | P141: 36 | Q141: 5 | R141: 23 | S141: 49 | T141: 32 | U141: 17 | V141: 24 | W141: 35
E142: 国，地方公共団体 | F142: … | G142: … | H142: … | I142: … | J142: … | K142: … | L142: … | M142: … | N142: … | O142: … | P142: … | Q142: … | R142: … | S142: … | T142: … | U142: … | V142: … | W142: …
D143: 複合サービス事業 | E143: 総数 | F143: … | G143: … | H143: … | I143: … | J143: … | K143: … | L143: … | M143: … | N143: … | O143: … | P143: … | Q143: … | R143: … | S143: … | T143: … | U143: … | V143: … | W143: …
E144: 民営 | F144: 367 | G144: 116 | H144: 17 | I144: 21 | J144: 17 | K144: 13 | L144: 24 | M144: 13 | N144: 34 | O144: 36 | P144: 11 | Q144: 4 | R144: 10 | S144: 14 | T144: 8 | U144: 12 | V144: 6 | W144: 11
E145: 国，地方公共団体 | F145: … | G145: … | H145: … | I145: … | J145: … | K145: … | L145: … | M145: … | N145: … | O145: … | P145: … | Q145: … | R145: … | S145: … | T145: … | U145: … | V145: … | W145: …
D146: サービス業（他に分類されないもの） | E146: 総数 | F146: … | G146: … | H146: … | I146: … | J146: … | K146: … | L146: … | M146: … | N146: … | O146: … | P146: … | Q146: … | R146: … | S146: … | T146: … | U146: … | V146: … | W146: …
E147: 民営 | F147: 3212 | G147: 1234 | H147: 267 | I147: 147 | J147: 162 | K147: 86 | L147: 170 | M147: 102 | N147: 376 | O147: 273 | P147: 54 | Q147: 12 | R147: 23 | S147: 91 | T147: 63 | U147: 50 | V147: 46 | W147: 56
E148: 国，地方公共団体 | F148: … | G148: … | H148: … | I148: … | J148: … | K148: … | L148: … | M148: … | N148: … | O148: … | P148: … | Q148: … | R148: … | S148: … | T148: … | U148: … | V148: … | W148: …
D149: 公務（他に分類されないもの） | E149: 総数 | F149: … | G149: … | H149: … | I149: … | J149: … | K149: … | L149: … | M149: … | N149: … | O149: … | P149: … | Q149: … | R149: … | S149: … | T149: … | U149: … | V149: … | W149: …
E150: 民営 | F150: … | G150: … | H150: … | I150: … | J150: … | K150: … | L150: … | M150: … | N150: … | O150: … | P150: … | Q150: … | R150: … | S150: … | T150: … | U150: … | V150: … | W150: …
E151: 国，地方公共団体 | F151: … | G151: … | H151: … | I151: … | J151: … | K151: … | L151: … | M151: … | N151: … | O151: … | P151: … | Q151: … | R151: … | S151: … | T151: … | U151: … | V151: … | W151: …
C152: 従業者数 | D152: 全産業 | E152: 総数 | F152: … | G152: … | H152: … | I152: … | J152: … | K152: … | L152: … | M152: … | N152: … | O152: … | P152: … | Q152: … | R152: … | S152: … | T152: … | U152: … | V152: … | W152: …
E153: 民営 | F153: 377238 | G153: 149061 | H153: 31828 | I153: 12822 | J153: 13996 | K153: 9260 | L153: 29663 | M153: 13756 | N153: 42447 | O153: 34682 | P153: 9454 | Q153: 856 | R153: 2657 | S153: 6957 | T153: 5012 | U153: 4826 | V153: 4277 | W153: 5684
E154: 国，地方公共団体等 | F154: … | G154: … | H154: … | I154: … | J154: … | K154: … | L154: … | M154: … | N154: … | O154: … | P154: … | Q154: … | R154: … | S154: … | T154: … | U154: … | V154: … | W154: …
D155: 農林漁業 | E155: 総数 | F155: … | G155: … | H155: … | I155: … | J155: … | K155: … | L155: … | M155: … | N155: … | O155: … | P155: … | Q155: … | R155: … | S155: … | T155: … | U155: … | V155: … | W155: …
E156: 民営 | F156: 4621 | G156: 743 | H156: 77 | I156: 185 | J156: 671 | K156: 323 | L156: 177 | M156: 285 | N156: 384 | O156: 330 | P156: 334 | Q156: 96 | R156: 227 | S156: 175 | T156: 120 | U156: 94 | V156: 109 | W156: 291
E157: 国，地方公共団体等 | F157: … | G157: … | H157: … | I157: … | J157: … | K157: … | L157: … | M157: … | N157: … | O157: … | P157: … | Q157: … | R157: … | S157: … | T157: … | U157: … | V157: … | W157: …
D158: 鉱業 | E158: 総数 | F158: … | G158: … | H158: … | I158: … | J158: … | K158: … | L158: … | M158: … | N158: … | O158: … | P158: … | Q158: … | R158: … | S158: … | T158: … | U158: … | V158: … | W158: …
E159: 民営 | F159: 92 | G159: 32 | H159: 0 | I159: 0 | J159: 1 | K159: 0 | L159: 0 | M159: 4 | N159: 12 | O159: 0 | P159: 8 | Q159: 0 | R159: 35 | S159: 0 | T159: 0 | U159: 0 | V159: 0 | W159: 0
E160: 国，地方公共団体等 | F160: … | G160: … | H160: … | I160: … | J160: … | K160: … | L160: … | M160: … | N160: … | O160: … | P160: … | Q160: … | R160: … | S160: … | T160: … | U160: … | V160: … | W160: …
D161: 建設業 | E161: 総数 | F161: … | G161: … | H161: … | I161: … | J161: … | K161: … | L161: … | M161: … | N161: … | O161: … | P161: … | Q161: … | R161: … | S161: … | T161: … | U161: … | V161: … | W161: …
E162: 民営 | F162: 32043 | G162: 11445 | H162: 3911 | I162: 983 | J162: 1695 | K162: 814 | L162: 1510 | M162: 686 | N162: 2574 | O162: 2674 | P162: 620 | Q162: 128 | R162: 309 | S162: 635 | T162: 1036 | U162: 1200 | V162: 1261 | W162: 562
E163: 国，地方公共団体等 | F163: … | G163: … | H163: … | I163: … | J163: … | K163: … | L163: … | M163: … | N163: … | O163: … | P163: … | Q163: … | R163: … | S163: … | T163: … | U163: … | V163: … | W163: …
D164: 製造業 | E164: 総数 | F164: … | G164: … | H164: … | I164: … | J164: … | K164: … | L164: … | M164: … | N164: … | O164: … | P164: … | Q164: … | R164: … | S164: … | T164: … | U164: … | V164: … | W164: …
E165: 民営 | F165: 82745 | G165: 20796 | H165: 3953 | I165: 2084 | J165: 2742 | K165: 2909 | L165: 10659 | M165: 4684 | N165: 17247 | O165: 10661 | P165: 1312 | Q165: 210 | R165: 594 | S165: 2224 | T165: 289 | U165: 358 | V165: 293 | W165: 1730
E166: 国，地方公共団体等 | F166: … | G166: … | H166: … | I166: … | J166: … | K166: … | L166: … | M166: … | N166: … | O166: … | P166: … | Q166: … | R166: … | S166: … | T166: … | U166: … | V166: … | W166: …
D167: 電気・ガス・熱供給・水道業 | E167: 総数 | F167: … | G167: … | H167: … | I167: … | J167: … | K167: … | L167: … | M167: … | N167: … | O167: … | P167: … | Q167: … | R167: … | S167: … | T167: … | U167: … | V167: … | W167: …
E168: 民営 | F168: 3601 | G168: 396 | H168: 524 | I168: 34 | J168: 157 | K168: 15 | L168: 0 | M168: 0 | N168: 193 | O168: 162 | P168: 92 | Q168: 0 | R168: 0 | S168: 0 | T168: 1014 | U168: 491 | V168: 523 | W168: 0
E169: 国，地方公共団体等 | F169: … | G169: … | H169: … | I169: … | J169: … | K169: … | L169: … | M169: … | N169: … | O169: … | P169: … | Q169: … | R169: … | S169: … | T169: … | U169: … | V169: … | W169: …
D170: 情報通信業 | E170: 総数 | F170: … | G170: … | H170: … | I170: … | J170: … | K170: … | L170: … | M170: … | N170: … | O170: … | P170: … | Q170: … | R170: … | S170: … | T170: … | U170: … | V170: … | W170: …
E171: 民営 | F171: 5047 | G171: 3411 | H171: 216 | I171: 59 | J171: 11 | K171: 43 | L171: 265 | M171: 10 | N171: 120 | O171: 825 | P171: 20 | Q171: 1 | R171: 32 | S171: 4 | T171: 24 | U171: 0 | V171: 2 | W171: 4
E172: 国，地方公共団体等 | F172: … | G172: … | H172: … | I172: … | J172: … | K172: … | L172: … | M172: … | N172: … | O172: … | P172: … | Q172: … | R172: … | S172: … | T172: … | U172: … | V172: … | W172: …
D173: 運輸業、郵便業 | E173: 総数 | F173: … | G173: … | H173: … | I173: … | J173: … | K173: … | L173: … | M173: … | N173: … | O173: … | P173: … | Q173: … | R173: … | S173: … | T173: … | U173: … | V173: … | W173: …
E174: 民営 | F174: 16135 | G174: 7119 | H174: 2182 | I174: 297 | J174: 215 | K174: 345 | L174: 677 | M174: 1199 | N174: 1567 | O174: 1677 | P174: 254 | Q174: 11 | R174: 49 | S174: 94 | T174: 107 | U174: 103 | V174: 90 | W174: 149
E175: 国，地方公共団体等 | F175: … | G175: … | H175: … | I175: … | J175: … | K175: … | L175: … | M175: … | N175: … | O175: … | P175: … | Q175: … | R175: … | S175: … | T175: … | U175: … | V175: … | W175: …
D176: 卸売業、小売業 | E176: 総数 | F176: … | G176: … | H176: … | I176: … | J176: … | K176: … | L176: … | M176: … | N176: … | O176: … | P176: … | Q176: … | R176: … | S176: … | T176: … | U176: … | V176: … | W176: …
E177: 民営 | F177: 73107 | G177: 34043 | H177: 6007 | I177: 3144 | J177: 2223 | K177: 1379 | L177: 5638 | M177: 1655 | N177: 7217 | O177: 6702 | P177: 922 | Q177: 116 | R177: 411 | S177: 1353 | T177: 552 | U177: 561 | V177: 351 | W177: 833
E178: 国，地方公共団体等 | F178: … | G178: … | H178: … | I178: … | J178: … | K178: … | L178: … | M178: … | N178: … | O178: … | P178: … | Q178: … | R178: … | S178: … | T178: … | U178: … | V178: … | W178: …
D179: 金融業、保険業 | E179: 総数 | F179: … | G179: … | H179: … | I179: … | J179: … | K179: … | L179: … | M179: … | N179: … | O179: … | P179: … | Q179: … | R179: … | S179: … | T179: … | U179: … | V179: … | W179: …
E180: 民営 | F180: 9238 | G180: 5552 | H180: 639 | I180: 348 | J180: 266 | K180: 118 | L180: 650 | M180: 143 | N180: 684 | O180: 481 | P180: 62 | Q180: 4 | R180: 24 | S180: 93 | T180: 41 | U180: 48 | V180: 26 | W180: 59
E181: 国，地方公共団体等 | F181: … | G181: … | H181: … | I181: … | J181: … | K181: … | L181: … | M181: … | N181: … | O181: … | P181: … | Q181: … | R181: … | S181: … | T181: … | U181: … | V181: … | W181: …
D182: 不動産業、物品賃貸業 | E182: 総数 | F182: … | G182: … | H182: … | I182: … | J182: … | K182: … | L182: … | M182: … | N182: … | O182: … | P182: … | Q182: … | R182: … | S182: … | T182: … | U182: … | V182: … | W182: …
E183: 民営 | F183: 5756 | G183: 2900 | H183: 538 | I183: 220 | J183: 642 | K183: 31 | L183: 243 | M183: 37 | N183: 483 | O183: 445 | P183: 88 | Q183: 0 | R183: 2 | S183: 27 | T183: 29 | U183: 17 | V183: 41 | W183: 13
E184: 国，地方公共団体等 | F184: … | G184: … | H184: … | I184: … | J184: … | K184: … | L184: … | M184: … | N184: … | O184: … | P184: … | Q184: … | R184: … | S184: … | T184: … | U184: … | V184: … | W184: …
D185: 学術研究、専門・技術サービス業 | E185: 総数 | F185: … | G185: … | H185: … | I185: … | J185: … | K185: … | L185: … | M185: … | N185: … | O185: … | P185: … | Q185: … | R185: … | S185: … | T185: … | U185: … | V185: … | W185: …
E186: 民営 | F186: 9623 | G186: 4136 | H186: 1765 | I186: 748 | J186: 273 | K186: 97 | L186: 397 | M186: 116 | N186: 728 | O186: 668 | P186: 74 | Q186: 4 | R186: 26 | S186: 36 | T186: 171 | U186: 72 | V186: 246 | W186: 66
E187: 国，地方公共団体 | F187: … | G187: … | H187: … | I187: … | J187: … | K187: … | L187: … | M187: … | N187: … | O187: … | P187: … | Q187: … | R187: … | S187: … | T187: … | U187: … | V187: … | W187: …
D188: 宿泊業、飲食サービス業 | E188: 総数 | F188: … | G188: … | H188: … | I188: … | J188: … | K188: … | L188: … | M188: … | N188: … | O188: … | P188: … | Q188: … | R188: … | S188: … | T188: … | U188: … | V188: … | W188: …
E189: 民営 | F189: 32923 | G189: 13787 | H189: 3423 | I189: 1406 | J189: 848 | K189: 645 | L189: 2542 | M189: 1686 | N189: 2415 | O189: 2523 | P189: 364 | Q189: 94 | R189: 304 | S189: 687 | T189: 429 | U189: 656 | V189: 335 | W189: 779
E190: 国，地方公共団体等 | F190: … | G190: … | H190: … | I190: … | J190: … | K190: … | L190: … | M190: … | N190: … | O190: … | P190: … | Q190: … | R190: … | S190: … | T190: … | U190: … | V190: … | W190: …
D191: 生活関連サービス業、娯楽業 | E191: 総数 | F191: … | G191: … | H191: … | I191: … | J191: … | K191: … | L191: … | M191: … | N191: … | O191: … | P191: … | Q191: … | R191: … | S191: … | T191: … | U191: … | V191: … | W191: …
E192: 民営 | F192: 14326 | G192: 6418 | H192: 1224 | I192: 598 | J192: 605 | K192: 317 | L192: 1069 | M192: 564 | N192: 1276 | O192: 1246 | P192: 143 | Q192: 14 | R192: 74 | S192: 160 | T192: 117 | U192: 152 | V192: 140 | W192: 209
E193: 国，地方公共団体等 | F193: … | G193: … | H193: … | I193: … | J193: … | K193: … | L193: … | M193: … | N193: … | O193: … | P193: … | Q193: … | R193: … | S193: … | T193: … | U193: … | V193: … | W193: …
D194: 教育、学習支援業 | E194: 総数 | F194: … | G194: … | H194: … | I194: … | J194: … | K194: … | L194: … | M194: … | N194: … | O194: … | P194: … | Q194: … | R194: … | S194: … | T194: … | U194: … | V194: … | W194: …
E195: 民営 | F195: 10254 | G195: 4626 | H195: 509 | I195: 218 | J195: 113 | K195: 149 | L195: 490 | M195: 205 | N195: 748 | O195: 253 | P195: 2643 | Q195: 1 | R195: 15 | S195: 45 | T195: 83 | U195: 54 | V195: 85 | W195: 17
E196: 国，地方公共団体等 | F196: … | G196: … | H196: … | I196: … | J196: … | K196: … | L196: … | M196: … | N196: … | O196: … | P196: … | Q196: … | R196: … | S196: … | T196: … | U196: … | V196: … | W196: …
D197: 医療、福祉 | E197: 総数 | F197: … | G197: … | H197: … | I197: … | J197: … | K197: … | L197: … | M197: … | N197: … | O197: … | P197: … | Q197: … | R197: … | S197: … | T197: … | U197: … | V197: … | W197: …
E198: 民営 | F198: 47565 | G198: 20340 | H198: 3682 | I198: 1336 | J198: 2194 | K198: 1671 | L198: 3700 | M198: 1484 | N198: 4288 | O198: 3530 | P198: 2124 | Q198: 117 | R198: 377 | S198: 1098 | T198: 334 | U198: 324 | V198: 294 | W198: 672
E199: 国，地方公共団体等 | F199: … | G199: … | H199: … | I199: … | J199: … | K199: … | L199: … | M199: … | N199: … | O199: … | P199: … | Q199: … | R199: … | S199: … | T199: … | U199: … | V199: … | W199: …
D200: 複合サービス事業 | E200: 総数 | F200: … | G200: … | H200: … | I200: … | J200: … | K200: … | L200: … | M200: … | N200: … | O200: … | P200: … | Q200: … | R200: … | S200: … | T200: … | U200: … | V200: … | W200: …
E201: 民営 | F201: 4934 | G201: 1431 | H201: 381 | I201: 306 | J201: 197 | K201: 133 | L201: 557 | M201: 128 | N201: 552 | O201: 624 | P201: 94 | Q201: 40 | R201: 72 | S201: 112 | T201: 78 | U201: 96 | V201: 39 | W201: 94
E202: 国，地方公共団体等 | F202: … | G202: … | H202: … | I202: … | J202: … | K202: … | L202: … | M202: … | N202: … | O202: … | P202: … | Q202: … | R202: … | S202: … | T202: … | U202: … | V202: … | W202: …
D203: サービス業（他に分類されないもの） | E203: 総数 | F203: … | G203: … | H203: … | I203: … | J203: … | K203: … | L203: … | M203: … | N203: … | O203: … | P203: … | Q203: … | R203: … | S203: … | T203: … | U203: … | V203: … | W203: …
E204: 民営 | F204: 25228 | G204: 11886 | H204: 2797 | I204: 856 | J204: 1143 | K204: 271 | L204: 1089 | M204: 870 | N204: 1959 | O204: 1881 | P204: 300 | Q204: 20 | R204: 106 | S204: 214 | T204: 588 | U204: 600 | V204: 442 | W204: 206
... 496 more rows

Sheet 福井県
A1: =+データ一覧!F5 -> 0
A2: =+データ一覧!F8 -> 0
AO3: 0 | BT3: 0
AB4: 県章とそのいわれ 「フクイ」の三文字を組み合わせ、伸びゆく | AP4: 【位置および地勢 】本県は本州日本海側のほぼ中央にあり、総面積は、 | BT4: 0 | BX4: 所在地 | CF4: 〒910-8580
AB5: 福井県を表現しています。 | AP5: 4,190.52k㎡で北は石川県に、東南は岐阜県、西南は滋賀県、京都府に | BT5: 0 | CF5: 福井市大手３丁目１７番１号
A6: =+データ一覧!F6 -> ふくいけん | AB6: 0 | AP6: 連なり、西北は日本海に面している。 | BT6: 0
A7: =データ一覧!F9 -> 福井県 | AB7: 0 | BT7: 0 | BX7: 電話番号 | CF7: （０７７６）２１－１１１１（代表）
AB8: 0 | BX8: FAX番号
AB9: 0
AB10: 0 | BT10: 0 | BX10: 最寄駅および距離 | CF10: ＪＲ北陸本線福井駅 下車３００ｍ
BT11: 0
BT12: 0 | BX12: ホームページ | CF12: http://www.pref.fukui.jp
A15: １ 土 地 | Z15: =データ一覧!$A$261 -> 30年 | AA15: 産米収穫量 | AD15: 収 穫 量 | AG15: 作 付 面 積 | AJ15: 10a当たり収量 | BQ15: １５ 労 働 | CF15: 27.10.1
AD16: =データ一覧!$F$261 -> 132500 | AF16: t | AG16: =データ一覧!$F$262 -> 25000 | AI16: ha | AJ16: =データ一覧!F263 -> 530 | AM16: kg | AO16: １０ 工 業 | BC16: =データ一覧!$A$340 -> 30.6.1（平成29年実績）
A17: 総 面 積 | K17: 固 定 資 産 概 要 調 書 に よ る 地 目 別 面 積 | AC17: 総 数 | AG17: うち 田 | AK17: うち 畑 | BX17: 産業別就業者数
C18: =データ一覧!$A$10 -> 元.10.1 | Q18: =データ一覧!$A$12 -> 31.1.1 | Z18: 耕 地 面 積 | AD18: ha | AG18: ha | AK18: ha | AP18: 産業分類 | AX18: 事業所数 | BC18: 従業者数 | BI18: 年間製造品出荷額等 | BR18: 区 分 | BW18: 総 数 | CB18: 男 | CF18: 女 | CJ18: 区 分 | CO18: 総 数 | CT18: 男 | CX18: 女
G19: ㎢ | K19: 総 数 | P19: う ち 田 | U19: う ち 畑 | Z19: =データ一覧!$A$247 -> 30.7.15 | AC19: =データ一覧!$F$247 -> 40200 | AF19: =データ一覧!$F$248 -> 36500 | AJ19: =データ一覧!$F$249 -> 3750 | BA19: 事業所 | BC19: 人 | BF19: 人 | BH19: 万円 | BO19: 万円 | BW19: 人 | CC19: 人 | CG19: 人 | CO19: 人 | CS19: 人 | CW19: 人
D20: =データ一覧!F10 -> 4190.52 | O20: ha | T20: ha | Y20: ha | Z20: 農 業 生 産 物 | AD20: 作 付 面 積 | AG20: 収 穫 量 | AJ20: 10a当たり収量 | AP20: 総数 | AY20: =データ一覧!F340 -> 2124 | BC20: =+データ一覧!F365 -> 73300 | BJ20: =データ一覧!F390 -> 210616008 | BQ20: 総 数 | BW20: =CA20+CE20 -> 399169 | CA20: =データ一覧!F515 -> 217914 | CE20: =データ一覧!F540 -> 181255
L21: =データ一覧!F12 -> 262895.7 | Q21: =データ一覧!F13 -> 39515.7 | V21: =データ一覧!F14 -> 5553.4 | Z21: =データ一覧!$A$264 -> 30年中 | AD21: ha | AG21: t | AJ21: kg | AP21: 食料品 | AY21: =データ一覧!F341 -> 198 | BC21: =+データ一覧!F366 -> 4694 | BJ21: =データ一覧!F391 -> 6225891 | CJ21: 卸売業,小売業 | CO21: =CS21+CW21 -> 60800 | CS21: =データ一覧!F528 -> 29022 | CW21: =データ一覧!F553 -> 31778
A22: 町 ･ 丁 ･ 大 字 | K22: う ち 宅 地 | P22: う ち 山 林 | U22: う ち 原 野 | Z22: 水 稲 | AD22: =データ一覧!F264 -> 25000 | AG22: =データ一覧!F265 -> 132500 | AJ22: =データ一覧!F266 -> 530 | AP22: 飲料・飼料 | AY22: =データ一覧!F342 -> 21 | BC22: =+データ一覧!F367 -> 263 | BJ22: =データ一覧!F392 -> 594027 | BQ22: 第１次産業 | BW22: =CA22+CE22 -> 14826 | CA22: =データ一覧!F516 -> 9789 | CE22: =データ一覧!F541 -> 5037 | CJ22: 金融業,保険業 | CO22: =CS22+CW22 -> 9254 | CS22: =データ一覧!F529 -> 3833 | CW22: =データ一覧!F554 -> 5421
A23: 区 画 数 | H23: =データ一覧!F11 -> 2764 | O23: ha | T23: ha | Y23: ha | Z23: 六 条 大 麦 | AD23: =データ一覧!F267 -> 4590 | AG23: =データ一覧!F268 -> 7160 | AJ23: =データ一覧!F269 -> 155.9003497 | AP23: 繊維 | AY23: =データ一覧!F343 -> 529 | BC23: =+データ一覧!F368 -> 15391 | BJ23: =データ一覧!F393 -> 23959381 | BR23: 農業 | BW23: =CA23+CE23 -> 13154 | CA23: =データ一覧!F517 -> 8326 | CE23: =データ一覧!F542 -> 4828 | CJ23: 不動産業 | CO23: 4009 | CS23: =データ一覧!F530 -> 2337 | CW23: =データ一覧!F555 -> 1672
A24: =データ一覧!$A$11 -> 31.4.1 | L24: =データ一覧!F15 -> 17606.6 | Q24: =データ一覧!F16 -> 100577.7 | V24: =データ一覧!F17 -> 2546.8 | Z24: 大 豆 | AD24: =データ一覧!F270 -> 1850 | AG24: =データ一覧!F271 -> 2220 | AJ24: =データ一覧!F272 -> 120.1298701 | AP24: 木材 | AY24: =データ一覧!F344 -> 62 | BC24: =+データ一覧!F369 -> 1443 | BJ24: =データ一覧!F394 -> 4412864 | BR24: 林業 | BW24: 636 | CA24: =データ一覧!F518 -> 554 | CE24: =データ一覧!F543 -> 82 | CJ24: 学術研究 | CO24: 11187 | CS24: =データ一覧!F531 -> 7429 | CW24: =データ一覧!F556 -> 3758
A25: ２ 世 帯 数 と 人 口 | AB25: 区 分 | AD25: 乳 用 牛 | AF25: 肉 用 牛 | AH25: 豚 | AJ25: 採卵鶏 | AL25: ブロイラー | AP25: 家具 | AY25: =データ一覧!F345 -> 44 | BC25: =+データ一覧!F370 -> 891 | BJ25: =データ一覧!F395 -> 1527531 | BR25: 漁業 | BW25: 1036 | CA25: =データ一覧!F519 -> 909 | CE25: =データ一覧!F544 -> 127 | CJ25: 宿泊業,飲食ｻｰﾋﾞｽ | CO25: 21067 | CS25: =データ一覧!F532 -> 7488 | CW25: =データ一覧!F557 -> 13579
Z26: 畜 産 | AB26: 飼養農家 | AD26: =データ一覧!$F$251 -> 20 | AF26: =データ一覧!$F$253 -> 47 | AH26: =データ一覧!$F$255 -> x | AJ26: =データ一覧!$F$257 -> 25 | AL26: =データ一覧!$F$259 -> x | AP26: パルプ・紙 | AY26: =データ一覧!F346 -> 83 | BC26: =+データ一覧!F371 -> 1814 | BJ26: =データ一覧!F396 -> 5806198 | BQ26: 第２次産業 | BW26: 122602 | CA26: =データ一覧!F520 -> 84210 | CE26: =データ一覧!F545 -> 38392 | CJ26: 生活関連ｻｰﾋﾞｽ業 | CO26: 13244 | CS26: =データ一覧!F533 -> 5027 | CW26: =データ一覧!F558 -> 8217
I27: 人 口 | U27: １世帯当 | W27: 人 口 | Z27: =データ一覧!$A$251 -> 31.3.31 | AB27: （戸） | AP27: 印刷 | AY27: =データ一覧!F347 -> 101 | BC27: =+データ一覧!F372 -> 2253 | BJ27: =データ一覧!F397 -> 3197293 | BR27: 鉱業，採石業 | BW27: 100 | CA27: =データ一覧!F521 -> 79 | CE27: =データ一覧!F546 -> 21 | CJ27: 教育,学習支援業 | CO27: 18458 | CS27: =データ一覧!F534 -> 7599 | CW27: =データ一覧!F559 -> 10859
A28: 区 分 | F28: 世帯数 | I28: 総 数 | L28: 男 | O28: 女 | R28: 男／女 | U28: たり人員 | W28: 密 度 | AB28: 頭 羽 | AD28: =データ一覧!$F$252 -> 786 | AF28: =データ一覧!$F$254 -> 2351 | AH28: =データ一覧!$F$256 -> 2307 | AJ28: =データ一覧!$F$258 -> 734748 | AL28: =データ一覧!$F$260 -> 97000 | AP28: 化学 | AY28: =データ一覧!F348 -> 54 | BC28: =+データ一覧!F373 -> 3836 | BJ28: =データ一覧!F398 -> 23378309 | BR28: 建設業 | BW28: 35912 | CA28: =データ一覧!F522 -> 30243 | CE28: =データ一覧!F547 -> 5669 | CJ28: 医療，福祉 | CO28: 50759 | CS28: =データ一覧!F535 -> 10476 | CW28: =データ一覧!F560 -> 40283
F29: 世 帯 | I29: 人 | L29: 人 | O29: 人 | S29: ％ | U29: 人 | W29: 人/㎢ | AP29: 石油・石炭 | AY29: =データ一覧!F349 -> 9 | BC29: =+データ一覧!F374 -> 78 | BJ29: =データ一覧!F399 -> 407462 | BR29: 製造業 | BW29: 86590 | CA29: =データ一覧!F523 -> 53888 | CE29: =データ一覧!F548 -> 32702 | CJ29: 複合サービス事業 | CO29: 4818 | CS29: =データ一覧!F536 -> 2877 | CW29: =データ一覧!F561 -> 1941
A30: =データ一覧!$A$25 -> 2.10.1 | F30: =データ一覧!F25 -> 234192 | I30: =+L30+O30 -> 823585 | L30: =データ一覧!F27 -> 400391 | O30: =データ一覧!F28 -> 423194 | S30: =+L30/O30*100 -> 94.61169109 | U30: =データ一覧!F30 -> 3.52 | W30: =データ一覧!F31 -> 196.7 | Z30: ５ 林 業 | AP30: プラスチック | AY30: =データ一覧!F350 -> 117 | BC30: =+データ一覧!F375 -> 4952 | BJ30: =データ一覧!F400 -> 16162999 | BQ30: 第３次産業 | BW30: 254676 | CA30: =データ一覧!F524 -> 120110 | CE30: =データ一覧!F549 -> 134566 | CJ30: サービス業 | CO30: 21414 | CS30: =データ一覧!F537 -> 13548 | CW30: =データ一覧!F562 -> 7866
A31: =データ一覧!$A$32 -> 7.10.1 | F31: =データ一覧!F32 -> 246911 | I31: =+L31+O31 -> 826996 | L31: =データ一覧!F34 -> 401860 | O31: =データ一覧!F35 -> 425136 | S31: 94.5250461 | U31: =データ一覧!F37 -> 3.35 | W31: =データ一覧!F38 -> 197.4 | AP31: ゴム | AY31: =データ一覧!F351 -> 5 | BC31: =+データ一覧!F376 -> 194 | BJ31: =データ一覧!F401 -> 188431 | BR31: 電気･ｶﾞｽ･水道業 | BW31: 4788 | CA31: =データ一覧!F525 -> 4356 | CE31: =データ一覧!F550 -> 432 | CJ31: 公務 | CO31: 13518 | CS31: =データ一覧!F538 -> 9494 | CW31: =データ一覧!F563 -> 4024
A32: =データ一覧!$A$39 -> 12.10.1 | F32: =データ一覧!F39 -> 259612 | I32: =+L32+O32 -> 828944 | L32: =データ一覧!F41 -> 402367 | O32: =データ一覧!F42 -> 426577 | S32: 94.32458853 | U32: =データ一覧!F44 -> 3.19 | W32: =データ一覧!F45 -> 197.9 | Z32: 森 林 総 面 積 | AH32: =データ一覧!$A$273 -> 31.3.31 | AP32: 皮革 | AY32: =データ一覧!F352 -> 3 | BC32: =+データ一覧!F377 -> 54 | BJ32: =データ一覧!F402 -> 48396 | BR32: 情報通信業 | BW32: 5611 | CA32: =データ一覧!F526 -> 3840 | CE32: =データ一覧!F551 -> 1771 | CI32: 分類不能の産業 | CO32: 7065 | CS32: =データ一覧!F539 -> 3805 | CW32: =データ一覧!F564 -> 3260
A33: =+データ一覧!$A$46 -> 17.10.1 | F33: =データ一覧!F46 -> 269577 | I33: =+L33+O33 -> 821592 | L33: =データ一覧!F48 -> 397271 | O33: =データ一覧!F49 -> 424321 | S33: 93.62510929 | U33: =データ一覧!F51 -> 3.05 | W33: =データ一覧!F52 -> 196.1 | Z33: 森 林 の 構 成 | AP33: 窯業・土石 | AY33: =データ一覧!F353 -> 77 | BC33: =+データ一覧!F378 -> 2028 | BJ33: =データ一覧!F403 -> 4477076 | BR33: 運輸業,郵便業 | BW33: =CA33+CE33 -> 15749 | CA33: =データ一覧!F527 -> 12784 | CE33: =データ一覧!F552 -> 2965
A34: =+データ一覧!$A$53 -> 22.10.1 | F34: =+データ一覧!F53 -> 275599 | I34: =データ一覧!F54 -> 806314 | L34: =+データ一覧!F55 -> 389712 | O34: =+データ一覧!F56 -> 416602 | S34: 93.54539825 | U34: =+データ一覧!F58 -> 2.93 | W34: =+データ一覧!F59 -> 192.4 | AE34: ha | AL34: ha | AP34: 鉄鋼 | AY34: =データ一覧!F354 -> 21 | BC34: =+データ一覧!F379 -> 381 | BJ34: =データ一覧!F404 -> 2647596 | BQ34: １６ 社 会 福 祉 | CF34: =データ一覧!$A$565 -> 31.4.1
A35: =+データ一覧!$A$60 -> 27.10.1 | F35: =+データ一覧!F60 -> 279687 | I35: =データ一覧!F61 -> 786740 | L35: =+データ一覧!F62 -> 381474 | O35: =+データ一覧!F63 -> 405266 | S35: 94.12928792 | U35: =+データ一覧!F65 -> 2.812930168 | W35: =+データ一覧!F66 -> 187.7 | Z35: 総 数 | AD35: =データ一覧!F273 -> 312047 | AG35: 天然林 針葉樹 | AK35: =データ一覧!F276 -> 8888 | AP35: 非鉄金属 | AY35: =データ一覧!F355 -> 14 | BC35: =+データ一覧!F380 -> 1425 | BJ35: =データ一覧!F405 -> 15698919
A36: =+データ一覧!$A$67 -> 元.10.1 | F36: =データ一覧!F67 -> 288356 | I36: =データ一覧!F76 -> 767742 | L36: =データ一覧!F77 -> 373136 | O36: =データ一覧!F78 -> 394606 | S36: 94.55912987 | U36: =データ一覧!F68 -> 2.66 | W36: =データ一覧!F69 -> 183.2092437 | Z36: 人工林 針葉樹 | AD36: =データ一覧!F274 -> 120888 | AG36: 天然林 広葉樹 | AK36: =データ一覧!F277 -> 169889 | AP36: 金属 | AY36: =データ一覧!F356 -> 181 | BC36: =+データ一覧!F381 -> 4235 | BJ36: =データ一覧!F406 -> 10527765 | BR36: 区分 | BY36: 施設数 | CD36: 収容定員 | CJ36: 区分 | CQ36: 施設数 | CV36: 収容定員
A37: 年 | C37: 区 | E37: 0歳 | H37: 15歳 | K37: 25歳 | N37: 35歳 | Q37: 45歳 | T37: 55歳 | W37: 65歳 | Z37: 人工林 広葉樹 | AD37: =データ一覧!F275 -> 2928 | AG37: 竹 林 | AK37: =データ一覧!F278 -> 1392 | AP37: はん用機械 | AY37: =データ一覧!F357 -> 30 | BC37: =+データ一覧!F382 -> 740 | BJ37: =データ一覧!F407 -> 1893547 | BQ37: 生活保護施設 | BY37: =データ一覧!F565 -> 2 | CC37: =データ一覧!F578 -> 140 | CG37: 人 | CI37: 指定障害者支援施設 | CQ37: =データ一覧!F571 -> 27 | CU37: =データ一覧!F584 -> 1653 | CY37: 人
A38: 齢 | B38: 令 | F38: ～ | I38: ～ | L38: ～ | O38: ～ | R38: ～ | U38: ～ | AP38: 生産用機械 | AY38: =データ一覧!F358 -> 145 | BC38: =+データ一覧!F383 -> 3525 | BJ38: =データ一覧!F408 -> 9885470 | BQ38: 地域福祉施設 | BY38: =データ一覧!F566 -> 3 | CC38: =データ一覧!F579 -> 0 | CI38: 指定相談支援事業所 | CQ38: =データ一覧!F572 -> 24 | CU38: =データ一覧!F585 -> 0
A39: 階 | B39: =+LEFT(データ一覧!$A$79,1) -> 元 | C39: 分 | G39: 14歳 | J39: 24歳 | M39: 34歳 | P39: 44歳 | S39: 54歳 | V39: 64歳 | Y39: 以上 | Z39: 林 野 の 構 成 | AG39: 保 有 形 態 別 | AP39: 業務用機械 | AY39: =データ一覧!F359 -> 16 | BC39: =+データ一覧!F384 -> 890 | BJ39: =データ一覧!F409 -> 1272240 | BQ39: 老人福祉施設 | BY39: =データ一覧!F567 -> 169 | CC39: =データ一覧!F580 -> 5651 | CI39: 児童福祉施設 | CQ39: =データ一覧!F573 -> 524 | CU39: =データ一覧!F586 -> 32632
A40: 級 | B40: ・ | G40: 人 | J40: 人 | L40: 人 | O40: 人 | R40: 人 | U40: 人 | X40: 人 | AF40: ha | AL40: ha | AP40: 電子・デバイス | AY40: =データ一覧!F360 -> 48 | BC40: =+データ一覧!F385 -> 9944 | BJ40: =データ一覧!F410 -> 33634815 | BQ40: 介護保険施設 | BY40: =データ一覧!F568 -> 1181 | CC40: =データ一覧!F581 -> 23064 | CI40: 母子福祉施設 | CQ40: =データ一覧!F574 -> 1 | CU40: =データ一覧!F587 -> 0
A41: 別 | B41: =+MID(データ一覧!$A$79,3,2) -> 10 | C41: 総 数 | E41: =+E42+E43 -> 96407 | H41: =+H42+H43 -> 72005 | K41: =+K42+K43 -> 68462 | N41: =+N42+N43 -> 90573 | Q41: =+Q42+Q43 -> 101854 | T41: =+T42+T43 -> 97004 | W41: =+W42+W43 -> 231500 | Z41: 無立木地 伐採跡地 | AD41: =データ一覧!F279 -> 111 | AG41: 国 有 | AK41: =データ一覧!F281 -> 39230 | AP41: 電気機械 | AY41: =データ一覧!F361 -> 65 | BC41: =+データ一覧!F386 -> 3409 | BJ41: =データ一覧!F411 -> 17661588 | BQ41: 障害者自立支援法施行前からの身体障害者福祉施設 | BY41: =データ一覧!F569 -> 2 | CC41: =データ一覧!F582 -> 0 | CI41: 婦人保護施設 | CQ41: =データ一覧!F575 -> 1 | CU41: =データ一覧!F588 -> 15
A42: 人 | B42: ・ | C42: 男 | E42: =データ一覧!F79 -> 49478 | H42: =データ一覧!F80 -> 37393 | K42: =データ一覧!F81 -> 35450 | N42: =データ一覧!F82 -> 46082 | Q42: =データ一覧!F83 -> 51007 | T42: =データ一覧!F84 -> 47882 | W42: =データ一覧!F85 -> 100409 | Z42: 無立木地 未立木地 | AD42: =データ一覧!F280 -> 7952 | AG42: 公 有 | AK42: =データ一覧!F282 -> 38873 | AP42: 情報通信機械 | AY42: =データ一覧!F362 -> 3 | BC42: =+データ一覧!F387 -> 203 | BJ42: =データ一覧!F412 -> 503504 | CI42: その他の社会福祉施設 | CQ42: =データ一覧!F576+データ一覧!F577 -> 17 | CU42: =SUM(データ一覧!F589,データ一覧!F590) -> 0
A43: 口 | B43: =+RIGHT(データ一覧!$A$79,1) -> 1 | C43: 女 | E43: =データ一覧!F87 -> 46929 | H43: =データ一覧!F88 -> 34612 | K43: =データ一覧!F89 -> 33012 | N43: =データ一覧!F90 -> 44491 | Q43: =データ一覧!F91 -> 50847 | T43: =データ一覧!F92 -> 49122 | W43: =データ一覧!F93 -> 131091 | AG43: 私 有 | AK43: =データ一覧!F283 -> 233944 | AP43: 輸送機械 | AY43: =データ一覧!F363 -> 27 | BC43: =+データ一覧!F388 -> 4752 | BJ43: =データ一覧!F413 -> 17772645 | BQ43: 障害福祉サービス事業所 | BY43: =データ一覧!F570 -> 540 | CC43: =データ一覧!F583 -> 6000
Z44: 林 産 物 生 産 量 | AJ44: =データ一覧!$A$284 -> 30年中 | AP44: その他 | AY44: =データ一覧!F364 -> 271 | BC44: =+データ一覧!F389 -> 5905 | BJ44: =データ一覧!F414 -> 8732061 | BQ44: １７ 教 育 | CE44: =データ一覧!$A$591 -> 元.5.1（特別支援学校、専修学校はH30.5.1現在）
A45: 人口動態 | H45: 自 然 動 態 | N45: 社 会 動 態 | T45: =データ一覧!$A74 -> 30.1.1～30.12.31 | Z45: 生椎茸 | AD45: =データ一覧!F284 -> 214187 | AF45: ㎏ | AG45: 乾椎茸 | AK45: =データ一覧!F285 -> 2294 | AM45: ㎏
C46: 区 分 | H46: 出 生 | K46: 死 亡 | N46: 転 入 | Q46: 転 出 | T46: 婚 姻 | W46: 離 婚 | Z46: えのきだけ | AD46: =データ一覧!F287 -> 296014 | AF46: ㎏ | AG46: なめこ | AK46: =データ一覧!F286 -> 29070 | AM46: ㎏ | AP46: 工 業 用 水 量 | AV46: （従業者30人以上の事業所） | BG46: =データ一覧!F415 -> 275469 | BL46: ㎥／日 | CA46: 学校数（校） | CH46: 教員数（人） | CP46: 学生・生徒・児童数（人）
A47: =LEFT(データ一覧!$A70,7) -> 30.10.1 | H47: 人 | K47: 人 | N47: 人 | Q47: 人 | U47: 件 | X47: 件 | Z47: ひらたけ | AD47: =+データ一覧!F288 -> 10393 | AF47: ㎏ | AG47: まいたけ | AK47: =+データ一覧!F289 -> 127833 | AM47: ㎏ | BS47: 区分 | CA47: 本 校 | CD47: 分 校 | CG47: 本 務 | CK47: 兼 務 | CO47: 総 数 | CS47: 男 | CW47: 女
A48: ～ | C48: 実 数 | H48: =データ一覧!F70 -> 5571 | K48: =データ一覧!F71 -> 9436 | N48: =データ一覧!F72 -> 22877 | Q48: =データ一覧!F73 -> 25001 | T48: =データ一覧!F74 -> 3274 | W48: =データ一覧!F75 -> 1081 | AO48: １１ 上 ・ 下 水 道 | BR48: 小学校 | CA48: =データ一覧!F592 -> 194 | CD48: =データ一覧!F593 -> 1 | CG48: =データ一覧!F594 -> 3090 | CK48: =データ一覧!F595 -> 416 | CO48: =データ一覧!F596 -> 41012 | CS48: =データ一覧!F597 -> 21064 | CW48: =データ一覧!F598 -> 19948
A49: =RIGHT(データ一覧!$A72,7) -> ～元.9.30 | C49: 比率(対1,000人) | H49: =+H48/I36*1000 -> 7.256343928 | K49: =+K48/I36*1000 -> 12.2905872 | N49: - | Q49: - | T49: =+T48/I36*1000 -> 4.264453423 | W49: =+W48/I36*1000 -> 1.408025092 | Z49: ６ 漁 業 | BR49: 中学校 | CA49: =データ一覧!F600 -> 76 | CD49: =データ一覧!F601 -> 2 | CG49: =データ一覧!F602 -> 1794 | CK49: =データ一覧!F603 -> 285 | CO49: =データ一覧!F604 -> 20812 | CS49: =データ一覧!F605 -> 10667 | CW49: =データ一覧!F606 -> 10145
AO50: 水 道 供 給 人 口 | AV50: 上 水 道 | AZ50: 簡易水道 | BD50: 専用水道 | BH50: 飲料水供給施設 | BL50: 下水道処理人口 | BR50: 高等学校 | CA50: =データ一覧!F608 -> 34 | CD50: =データ一覧!F609 -> 1 | CG50: =データ一覧!F610 -> 1654 | CK50: =データ一覧!F611 -> 620 | CO50: =データ一覧!F612 -> 21856 | CS50: =データ一覧!F613 -> 11034 | CW50: =データ一覧!F614 -> 10822
A51: ３ 事 業 所（民 営） （平 28.6.1） | Z51: 漁船隻数・トン数 | AD51: =データ一覧!$A$290 -> 30.12.31 | AH51: 動 力 船 | AO51: =データ一覧!$A$416 -> 31.3.31 | AU51: 人 | AW51: =データ一覧!F416 -> 700984 | AZ51: =データ一覧!F417 -> 52589 | BE51: =データ一覧!F418 -> 963 | BI51: =データ一覧!F419 -> 1235 | BM51: =データ一覧!F420 -> 628213 | BR51: 大学・短期大学 | CA51: =データ一覧!F615 -> 8 | CD51: =データ一覧!F616 -> 1 | CG51: =データ一覧!F617 -> 1075 | CK51: =データ一覧!F618 -> 861 | CO51: =データ一覧!F619 -> 11579 | CS51: =データ一覧!F620 -> 6918 | CW51: =データ一覧!F621 -> 4661
Z52: 無動力船隻数 | AD52: 船外機付漁船隻数 | AH52: 隻 数 | AK52: 総 ト ン 数 | BR52: 高等専門学校 | CA52: =データ一覧!F622 -> 1 | CD52: =データ一覧!F623 -> 0 | CG52: =データ一覧!F624 -> 77 | CK52: =データ一覧!F625 -> 42 | CO52: =データ一覧!F626 -> 1012 | CS52: =データ一覧!F627 -> 802 | CW52: =データ一覧!F628 -> 210
H53: 総 数 | N53: 民 営 | T53: 国 ･ 地方公共団体 | AC53: 隻 | AG53: 隻 | AJ53: 隻 | AM53: t | AO53: １２ 交 通 ・ 通 信 | BR53: 特別支援学校 | CA53: =+データ一覧!F630 -> 12 | CD53: =+データ一覧!F631 -> 0 | CG53: =+データ一覧!F632 -> 770 | CK53: =+データ一覧!F633 -> x | CO53: =+データ一覧!F634 -> 952 | CS53: =+データ一覧!F635 -> x | CW53: =+データ一覧!F636 -> x
A54: 区 分 | H54: 事業所数 | K54: 従業者数 | N54: 事業所数 | Q54: 従業者数 | T54: 事業所数 | W54: 従業者数 | Z54: =データ一覧!$F$290 -> 75 | AD54: =データ一覧!$F$291 -> 1119 | AH54: =データ一覧!F292 -> 1164 | AK54: =データ一覧!F293 -> 6524.65 | BR54: 幼稚園 | CA54: =データ一覧!F646 -> 117 | CD54: =データ一覧!F647 -> 1 | CG54: =データ一覧!F648 -> 2312 | CK54: =データ一覧!F649 -> 286 | CO54: =データ一覧!F650 -> 13329 | CS54: =データ一覧!F651 -> 6845 | CW54: =データ一覧!F652 -> 6484
K55: 人 | Q55: 人 | W55: 人 | Z55: 男女別就業者数 | AH55: =データ一覧!$A$294 -> 30.11.1 | AO55: 道 路 | AS55: 実 延 長 | AW55: 国 道 | BA55: 県 道 | BE55: 市町道 | BI55: 鉄 道 営 業 キ ロ 数 | BR55: 幼保連携認定こども園 | CA55: =データ一覧!F638 -> 71 | CD55: =データ一覧!F639 -> 0 | CG55: =データ一覧!F640 -> 249 | CK55: =データ一覧!F641 -> 89 | CO55: =データ一覧!F642 -> 1567 | CS55: =データ一覧!F643 -> 773 | CW55: =データ一覧!F644 -> 794
A56: 総数 | H56: =データ一覧!F95 -> … | K56: =データ一覧!F152 -> … | N56: =データ一覧!F96 -> 41644 | Q56: =データ一覧!F153 -> 377238 | T56: =データ一覧!F97 -> … | W56: =データ一覧!F154 -> … | Z56: 総 数 | AF56: 男 | AJ56: 女 | AO56: =データ一覧!$A$421 -> 30.4.1 | AS56: =データ一覧!F421 -> 10680.425 | AV56: ㎞ | AW56: =データ一覧!F422 -> 592.7 | AZ56: ㎞ | BA56: =データ一覧!F423 -> 1564.3 | BD56: ㎞ | BE56: =データ一覧!F424 -> 8523.425 | BH56: km | BI56: =データ一覧!$A$425 -> 31.4.1 | BM56: =データ一覧!F425 -> 302.63 | BP56: ㎞ | BR56: 各種学校 | CA56: =データ一覧!F654 -> 12 | CD56: =データ一覧!F655 -> 0 | CG56: =データ一覧!F656 -> 222 | CK56: =データ一覧!F657 -> 9 | CO56: =データ一覧!F658 -> 1883 | CS56: =データ一覧!F659 -> 1253 | CW56: =データ一覧!F660 -> 630
A57: 農林漁業 | H57: =データ一覧!F98 -> … | K57: =データ一覧!F155 -> … | N57: =データ一覧!F99 -> 348 | Q57: =データ一覧!F156 -> 4621 | T57: =データ一覧!F100 -> … | W57: =データ一覧!F157 -> … | AE57: 人 | AH57: 人 | AM57: 人 | AO57: 自 動 車 | AX57: 乗用車 | BR57: 専修学校 | CA57: =データ一覧!F662 -> 20 | CD57: =データ一覧!F663 -> 0 | CG57: =データ一覧!F664 -> 172 | CK57: =データ一覧!F665 -> 418 | CO57: =データ一覧!F666 -> 1550 | CS57: =データ一覧!F667 -> 580 | CW57: =データ一覧!F668 -> 970
A58: 鉱業 | H58: =データ一覧!F101 -> … | K58: =データ一覧!F158 -> … | N58: =データ一覧!F102 -> 13 | Q58: =データ一覧!F159 -> 92 | T58: =データ一覧!F103 -> … | W58: =データ一覧!F160 -> … | Z58: =AF58+AJ58 -> 1328 | AF58: =データ一覧!F295 -> 1234 | AJ58: =データ一覧!F296 -> 94 | AO58: 台 数 | AS58: 貨 物 | AW58: 普 通 | BA58: 小 型 | BE58: 乗 合 | BH58: 特 種 | BK58: 小型二輪 | BN58: 軽自動車 | BQ58: １８ 衛 生
A59: 建設業 | H59: =データ一覧!F104 -> … | K59: =データ一覧!F161 -> … | N59: =データ一覧!F105 -> 4743 | Q59: =データ一覧!F162 -> 32043 | T59: =データ一覧!F106 -> … | W59: =データ一覧!F163 -> … | Z59: 海 面 漁 業 漁 獲 量 （属人） | AH59: =データ一覧!$A$297 -> 29年中 | AO59: =データ一覧!$A$426 -> 31.3.31 | AT59: =データ一覧!F426 -> 44687 | AX59: =データ一覧!F428 -> 144339 | BB59: =データ一覧!F429 -> 162270 | BE59: =データ一覧!F427 -> 1886 | BH59: =データ一覧!F430 -> 14566 | BK59: =データ一覧!F431 -> 8112 | BN59: =データ一覧!F432 -> 293849
A60: 製造業 | H60: =データ一覧!F107 -> … | K60: =データ一覧!F164 -> … | N60: =データ一覧!F108 -> 5292 | Q60: =データ一覧!F165 -> 82745 | T60: =データ一覧!F109 -> … | W60: =データ一覧!F166 -> … | AF60: ｔ | AM60: t | AV60: 郵便局数 | BB60: =データ一覧!$A$433 -> 31.3.31 | BI60: 一般加入 | BM60: ＩＮＳネット | BU60: 医療関係施設 | CA60: =データ一覧!$A$669 -> 30.10.1 | CH60: および医療関係者数 | CP60: =データ一覧!$A$674 -> 30.12.31
A61: 電気・ｶﾞ ｽ・熱供給・水道業 | H61: =データ一覧!F110 -> … | K61: =データ一覧!F167 -> … | N61: =データ一覧!F111 -> 46 | Q61: =データ一覧!F168 -> 3601 | T61: =データ一覧!F112 -> … | W61: =データ一覧!F169 -> … | Z61: 総 数 | AD61: =データ一覧!F297 -> 11731 | AG61: 藻 類 | AK61: =データ一覧!F300 -> 58 | AO61: 通 信 | AS61: 総 数 | AY61: 郵 便 局 | BD61: 簡 易 局 | BI61: 電話数 | BM61: 加入数 | BX61: 病 | CA61: 院 | CI61: 一般診療所 | CU61: 歯科診療所
A62: 情報通信業 | H62: =データ一覧!F113 -> … | K62: =データ一覧!F170 -> … | N62: =データ一覧!F114 -> 322 | Q62: =データ一覧!F171 -> 5047 | T62: =データ一覧!F115 -> … | W62: =データ一覧!F172 -> … | Z62: 魚 類 | AD62: =データ一覧!F298 -> 8938 | AG62: そ の 他 | AK62: =データ一覧!F301 -> 2460 | AO62: =データ一覧!$A$436 -> 31.3.31 | AS62: =データ一覧!F433 -> 238 | AY62: =データ一覧!F434 -> 207 | BD62: =データ一覧!F435 -> 31 | BI62: =データ一覧!F436 -> 85496 | BM62: =データ一覧!F437 -> 13845 | BR62: 医療関係 | CD62: 一般病院 | CP62: 有 | CS62: 床
A63: 運輸業、郵便業 | H63: =データ一覧!F116 -> … | K63: =データ一覧!F173 -> … | N63: =データ一覧!F117 -> 799 | Q63: =データ一覧!F174 -> 16135 | T63: =データ一覧!F118 -> … | W63: =データ一覧!F175 -> … | Z63: 貝 類 | AD63: =データ一覧!F299 -> 275 | BR63: 施設数 | BY63: =データ一覧!F669 -> 67 | CE63: =データ一覧!F670 -> 57 | CK63: =データ一覧!F671 -> 575 | CQ63: =データ一覧!F672 -> 64 | CW63: =データ一覧!F673 -> 299
A64: 卸売業、小売業 | H64: =データ一覧!F119 -> … | K64: =データ一覧!F176 -> … | N64: =データ一覧!F120 -> 10543 | Q64: =データ一覧!F177 -> 73107 | T64: =データ一覧!F121 -> … | W64: =データ一覧!F178 -> … | AO64: １３ 税 ・ 財 政 | BX64: 医師 | CC64: 歯科医師 | CH64: 薬剤師 | CM64: 保健師 | CR64: 助産師 | CW64: 看護師
A65: 金融業、保険業 | H65: =データ一覧!F122 -> … | K65: =データ一覧!F179 -> … | N65: =データ一覧!F123 -> 749 | Q65: =データ一覧!F180 -> 9238 | T65: =データ一覧!F124 -> … | W65: =データ一覧!F181 -> … | Z65: ７ 商 業 | AG65: =データ一覧!$A$302 -> 28.6.1(平成27年実績） | BR65: 医療 | CA65: 人 | CF65: 人 | CK65: 人 | CP65: 人 | CU65: 人 | CZ65: 人
A66: 不動産業、物品賃貸業 | H66: =データ一覧!F125 -> … | K66: =データ一覧!F182 -> … | N66: =データ一覧!F126 -> 1288 | Q66: =データ一覧!F183 -> 5756 | T66: =データ一覧!F127 -> … | W66: =データ一覧!F184 -> … | AS66: 歳入 | BB66: (千円） | BG66: 歳出 | BP66: (千円） | BR66: 関係者 | BW66: =データ一覧!F674 -> 2057 | CB66: =データ一覧!F675 -> 445 | CG66: =データ一覧!F676 -> 1466 | CL66: =データ一覧!F677 -> 477 | CQ66: =データ一覧!F678 -> 248 | CV66: =データ一覧!F679 -> 11822
A67: 学術研究、専門・技術ｻｰﾋﾞｽ業 | H67: =データ一覧!F128 -> … | K67: =データ一覧!F185 -> … | N67: =データ一覧!F129 -> 1529 | Q67: =データ一覧!F186 -> 9623 | T67: =データ一覧!F130 -> … | W67: =データ一覧!F187 -> … | Z67: 産 業 分 類 | AD67: 商 店 数 | AG67: 従 業 者 数 | AJ67: 年 間 販 売 額 | AO67: 一人当たり歳入歳出予算決算額 | BZ67: 死因別死亡数 | CP67: =データ一覧!$A$680 -> 30年中 | CY67: 単 位：人
A68: 宿泊業、飲食サービス業 | H68: =データ一覧!F131 -> … | K68: =データ一覧!F188 -> … | N68: =データ一覧!F132 -> 5288 | Q68: =データ一覧!F189 -> 32923 | T68: =データ一覧!F133 -> … | W68: =データ一覧!F190 -> … | AE68: 店 | AI68: 人 | AK68: 百万円 | AO68: 区分 | AS68: =データ一覧!$A$446 -> 元年度 | AX68: =データ一覧!$A$460 -> 30年度 | BC68: 区分 | BG68: =+AS68 -> 元年度 | BL68: =データ一覧!$A$460 -> 30年度 | BQ68: 死 因 | CC68: 悪 性 | CF68: 高血圧 | CL68: 脳血管 | CU68: 不慮の事故
A69: 生活関連サービス業、娯楽業 | H69: =データ一覧!F134 -> … | K69: =データ一覧!F191 -> … | N69: =データ一覧!F135 -> 3577 | Q69: =データ一覧!F192 -> 14326 | T69: =データ一覧!F136 -> … | W69: =データ一覧!F193 -> … | Z69: 総 計 | AD69: =データ一覧!F302 -> 8905 | AG69: =データ一覧!F311 -> 60306 | AJ69: =データ一覧!F320 -> 1945172 | AS69: =データ一覧!F442 -> 478291.443 | AX69: =データ一覧!F443 -> 494665.7753 | BG69: =データ一覧!F444 -> 478291.443 | BL69: =データ一覧!F445 -> 477455.9737 | BV69: 全 死 因 | BZ69: 結 核 | CC69: 新生物 | CF69: 性疾患 | CI69: 心疾患 | CL69: 疾 患 | CO69: 肺 炎 | CR69: 老 衰 | CX69: 交通事故
A70: 教育、学習支援業 | H70: =データ一覧!F137 -> … | K70: =データ一覧!F194 -> … | N70: =データ一覧!F138 -> 1037 | Q70: =データ一覧!F195 -> 10254 | T70: =データ一覧!F139 -> … | W70: =データ一覧!F196 -> … | Z70: 卸売業 | AD70: =データ一覧!F303 -> 2072 | AG70: =データ一覧!F312 -> 17447 | AJ70: =データ一覧!F321 -> 1124125 | AO70: 項目別歳入歳出予算決算額
A71: 医療、福祉 | H71: =データ一覧!F140 -> … | K71: =データ一覧!F197 -> … | N71: =データ一覧!F141 -> 2491 | Q71: =データ一覧!F198 -> 47565 | T71: =データ一覧!F142 -> … | W71: =データ一覧!F199 -> … | Z71: 小売業 | AD71: =データ一覧!F304 -> 6833 | AG71: =データ一覧!F313 -> 42859 | AJ71: =データ一覧!F322 -> 821047 | AO71: 区分 | AS71: =データ一覧!$A$446 -> 元年度 | AX71: =データ一覧!$A$460 -> 30年度 | BC71: 区分 | BG71: =+AS71 -> 元年度 | BL71: =データ一覧!$A$460 -> 30年度 | BV71: =データ一覧!F680 -> 9221 | BZ71: － | CA71: =データ一覧!F681 -> 15 | CC71: =データ一覧!F682 -> 2386 | CG71: =データ一覧!F683 -> 48 | CI71: =データ一覧!F684 -> 1501 | CL71: =データ一覧!F685 -> 760 | CO71: =データ一覧!F686 -> 715 | CR71: =データ一覧!F687 -> 739 | CU71: =データ一覧!F688 -> 375 | CX71: =データ一覧!F689 -> 32
A72: 複合サービス事業 | H72: =データ一覧!F143 -> … | K72: =データ一覧!F200 -> … | N72: =データ一覧!F144 -> 367 | Q72: =データ一覧!F201 -> 4934 | T72: =データ一覧!F145 -> … | W72: =データ一覧!F202 -> … | Z72: 各種商品 | AD72: =データ一覧!F305 -> 26 | AG72: =データ一覧!F314 -> 2195 | AJ72: =データ一覧!F323 -> 61566 | AO72: 総額 | AS72: =SUM(AS73:AW85) -> 367204429 | AX72: =SUM(AX73:BB85) -> 382738245 | BC72: 総額 | BG72: =SUM(BG73:BK85) -> 367204429 | BL72: =SUM(BL73:BP85) -> 369422488 | BQ72: １９ 警 察 ・ 消 防 | CF72: =+データ一覧!$A690 -> 31.4.1
A73: サービス業 | H73: =データ一覧!F146 -> … | K73: =データ一覧!F203 -> … | N73: =データ一覧!F147 -> 3212 | Q73: =データ一覧!F204 -> 25228 | T73: =データ一覧!F148 -> … | W73: =データ一覧!F205 -> … | Z73: 織物・衣服・身の回り品 | AD73: =データ一覧!F306 -> 986 | AG73: =データ一覧!F315 -> 3532 | AJ73: =データ一覧!F324 -> 46990 | AO73: 地方税 | AS73: =データ一覧!F447 -> 125429272 | AX73: =データ一覧!F461 -> 127766063 | BC73: 議会費 | BG73: =データ一覧!F475 -> 3292520 | BL73: =データ一覧!F489 -> 3125561
A74: 公務 | H74: =データ一覧!F149 -> … | K74: =データ一覧!F206 -> … | N74: =データ一覧!F150 -> … | Q74: =データ一覧!F207 -> … | T74: =データ一覧!F151 -> … | W74: =データ一覧!F208 -> … | Z74: 飲食料品 | AD74: =データ一覧!F307 -> 2102 | AG74: =データ一覧!F316 -> 15273 | AJ74: =データ一覧!F325 -> 238769 | AO74: 地方譲与税 | AS74: =データ一覧!F448 -> 3106926 | AX74: =データ一覧!F462 -> 3143140 | BC74: 総務費 | BG74: =データ一覧!F476 -> 47492862 | BL74: =データ一覧!F490 -> 51177110 | CA74: 交番・駐在所 | CJ74: 刑法犯認知件数 | CS74: 交通事故発生件数
A75: ４ 農 業 | Z75: 機械器具 | AD75: =データ一覧!F308 -> 1028 | AG75: =データ一覧!F317 -> 6435 | AJ75: =データ一覧!F326 -> 178495 | AO75: 各種交付金 | AS75: =データ一覧!F449 -> 16951544 | AX75: =データ一覧!F463 -> 17070676 | BC75: 民生費 | BG75: =データ一覧!F477 -> 122925537 | BL75: =データ一覧!F491 -> 118396170 | BR75: 警察署数 | CA75: 検問所数 | CK75: （27年中） | CT75: （27年中）
Z76: その他 | AD76: =データ一覧!F309 -> 2465 | AG76: =データ一覧!F318 -> 13896 | AJ76: =データ一覧!F327 -> 254849 | AO76: 地方特例交付金 | AS76: =データ一覧!F450 -> 906188 | AX76: =データ一覧!F464 -> 493369 | BC76: 衛生費 | BG76: =データ一覧!F478 -> 26566485 | BL76: =データ一覧!F492 -> 25442824 | CO76: 件 | CX76: 件
C77: 農家人口と世帯員数(販売農家) | K77: 農家世帯の就業状態（販売農家） | Z77: 無店舗 | AD77: =データ一覧!F310 -> 226 | AG77: =データ一覧!F319 -> 1528 | AJ77: =データ一覧!F328 -> 40378 | AO77: 地方交付税 | AS77: =データ一覧!F451 -> 64614400 | AX77: =データ一覧!F465 -> 67397695 | BC77: 労働費 | BG77: =データ一覧!F479 -> 1716233 | BL77: =データ一覧!F493 -> 1805198 | BS77: =データ一覧!F690 -> 11 | CB77: =データ一覧!F691 -> 139 | CK77: =データ一覧!F692 -> 3142 | CT77: =データ一覧!F693 -> 1398
A78: 農 | B78: 平 | K78: 農業従事者 | T78: 非農業従事 | W78: 農業従事者 | AO78: 分担金および負担金 | AS78: =データ一覧!F452 -> 5261272 | AX78: =データ一覧!F466 -> 3733049 | BC78: 農林水産業費 | BG78: =データ一覧!F480 -> 24743105 | BL78: =データ一覧!F494 -> 19860881 | BQ78: 火災発生件数 | CA78: 林野焼損 | CF78: 損 害 | CK78: 消 防 自 | CO78: その他の
A79: 家 | B79: =+LEFT(データ一覧!$A$209,2) -> 27 | C79: 区分 | E79: 農家人口 | H79: 15歳以上の | N79: 農業就業人口 | T79: 者 | W79: の平均年齢 | Z79: ８ 住 宅 | AO79: 使用料および手数料 | AS79: =データ一覧!F453 -> 5582435 | AX79: =データ一覧!F467 -> 5901367 | BC79: 商工費 | BG79: =データ一覧!F481 -> 14190971 | BL79: =データ一覧!F495 -> 13559786 | BQ79: =+データ一覧!$A$694 -> 30年中 | BV79: 焼損棟数 | CA79: 面 積 | CF79: 見 積 額 | CK79: 動 車 数 | CO79: ﾎﾟﾝﾌﾟ数 | CS79: 消防吏員 | CW79: 消防団員
A80: 人就 | B80: ・ | H80: 世帯員数 | Q80: 基幹的農業 | AO80: 国庫支出金 | AS80: =データ一覧!F454 -> 48265991 | AX80: =データ一覧!F468 -> 49349346 | BC80: 土木費 | BG80: =データ一覧!F482 -> 39233696 | BL80: =データ一覧!F496 -> 43337484 | BQ80: 件 | BW80: 棟 | CD80: ａ | CH80: 千円 | CU80: 人 | CY80: 人
A81: 口業 | B81: =+MID(データ一覧!$A$209,4,1) -> 2 | G81: 人 | J81: 人 | M81: 人 | P81: 人 | Q81: 従事者 | S81: 人 | V81: 人 | Y81: 歳 | Z81: =+データ一覧!$A$329 -> 29年 | AE81: =データ一覧!$A$332 -> 30年 | AF81: 中の増減 | AJ81: =+データ一覧!$A$332 -> 30年 | AO81: 県支出金 | AS81: =データ一覧!F455 -> 35793177 | AX81: =データ一覧!F469 -> 36294106 | BC81: 消防費 | BG81: =データ一覧!F483 -> 13368711 | BL81: =データ一覧!F497 -> 13604343 | BR81: =データ一覧!F694 -> 199 | BW81: =データ一覧!F695 -> 185 | CB81: =データ一覧!F696 -> 29 | CF81: =データ一覧!F697 -> 2623913 | CL81: =データ一覧!F698 -> 265 | CP81: =データ一覧!F699 -> 398 | CT81: =データ一覧!F700 -> 1235 | CX81: =データ一覧!F701 -> 5824
A82: と状 | B82: ・ | C82: 総数 | E82: =データ一覧!F209 -> 63487 | H82: =データ一覧!F212 -> 56979 | K82: =データ一覧!F215 -> 40533 | N82: =データ一覧!F218 -> 18509 | Q82: =データ一覧!F221 -> 14165 | T82: =データ一覧!F224 -> 16446 | W82: =データ一覧!F227 -> 59.1 | AD82: 建設した住宅 | AG82: 消失した住宅 | AO82: 財産収入 | AS82: =データ一覧!F456 -> 1227716 | AX82: =データ一覧!F470 -> 1342438 | BC82: 教育費 | BG82: =データ一覧!F484 -> 35734527 | BL82: =データ一覧!F498 -> 40627615 | BQ82: ２０ そ の 他
A83: 況 | B83: =+RIGHT(データ一覧!$A$209,1) -> 1 | C83: 男 | E83: =データ一覧!F210 -> 31400 | H83: =データ一覧!F213 -> 28079 | K83: =データ一覧!F216 -> 22829 | N83: =データ一覧!F219 -> 9545 | Q83: =データ一覧!F222 -> 8459 | T83: =データ一覧!F225 -> 5250 | W83: =データ一覧!F228 -> 57.7 | AO83: 繰入金 | AS83: =データ一覧!F457 -> 11727554 | AX83: =データ一覧!F471 -> 10002992 | BC83: 災害復旧費 | BG83: =データ一覧!F485 -> 107200 | BL83: =データ一覧!F499 -> 1523560
C84: 女 | E84: =データ一覧!F211 -> 32087 | H84: =データ一覧!F214 -> 28900 | K84: =データ一覧!F217 -> 17704 | N84: =データ一覧!F220 -> 8964 | Q84: =データ一覧!F223 -> 5706 | T84: =データ一覧!F226 -> 11196 | W84: =データ一覧!F229 -> 61 | Z84: 281,432 戸 | AA84: =データ一覧!F329 -> 303230 | AC84: 戸 | AD84: =データ一覧!F330 -> 3828 | AF84: 戸 | AG84: =データ一覧!F331 -> 2315 | AI84: 戸 | AK84: =データ一覧!F332 -> 304743 | AM84: 戸 | AO84: 地方債 | AS84: =データ一覧!F458 -> 36237443 | AX84: =データ一覧!F472 -> 33660442 | BC84: 公債費 | BG84: =データ一覧!F486 -> 37414540 | BL84: =データ一覧!F500 -> 36957885
AO85: その他 | AS85: =データ一覧!F459 -> 12100511 | AX85: =データ一覧!F473 -> 26583562 | BC85: その他 | BG85: =データ一覧!F487 -> 418042 | BL85: =データ一覧!F501 -> 4071 | BR85: 県内文化財数 | CD85: 国指定 | CI85: 国選択・選定 | CP85: 国登録 | CV85: 県指定
C86: 総農家数等 | J86: 専兼業別（販売農家） | R86: 経営面積規模別（販売農家） | BR86: 有形文化財 | CD86: 112 | CP86: 194 | CV86: 256
B87: 平 | C87: 区 分 | G87: 戸数（戸） | J87: 区 分 | O87: 戸数（戸） | R87: 区 分 | W87: 戸数（戸） | Z87: ９ 議 員 ・ 職 員 | AO87: １４ 文 化 | AY87: ( | AZ87: =データ一覧!$A$508 -> 31.3.31 | BD87: ただし図書館・公民館・児童館 | BL87: =データ一覧!$A$502 -> 31.4.1 | BR87: 無形文化財 | CD87: 2 | CV87: 4
A88: 農 | B88: =+LEFT(データ一覧!$A$230,2) -> 27 | C88: 総農家 | G88: =データ一覧!F230 -> 22872 | J88: 総数 | O88: =データ一覧!F236 -> 15245 | R88: 総数 | W88: =データ一覧!F241 -> 15245 | BE88: 宗教法人数 | BL88: =データ一覧!$A$510 -> 30.12.31 | BP88: ） | BR88: 民俗文化財 | CD88: 6 | CJ88: 12 | CP88: 1 | CV88: 74
A89: 家 | B89: ・ | C89: 販売農家 | G89: =データ一覧!F231 -> 15245 | J89: 専業農家 | O89: =データ一覧!F237 -> 2468 | R89: 0.5 ha 未満 | W89: =データ一覧!F242 -> 2901 | Z89: 市 町 村 議 会 | AC89: 有権者数 | AE89: =データ一覧!$A$336 -> 元.9.1 | AG89: 市 町 村 議 会 | AJ89: 市町職員数 | AS89: 県立図書館 | AZ89: 公 民 館 | BK89: 社会教育学級講座 | BR89: 天然記念物、史跡・名勝 | CD89: 62 | CP89: 3 | CV89: 69
A90: 数 | B90: =+MID(データ一覧!$A$230,4,1) -> 2 | D90: 主業 | G90: =データ一覧!F232 -> 998 | J90: 兼業農家 | O90: =データ一覧!F238 -> 12777 | R90: 0.5 ha ～ 1.0 ha | W90: =データ一覧!F243 -> 5269 | Z90: 議 員 定 数 | AC90: 男 | AE90: 女 | AG90: 選 挙 投 票 率 | AJ90: 総 数 | AL90: 一般行政職 | AO90: 公 共 | AS90: 館 数 | AV90: 図書数 | AY90: 本 館 | BB90: 分 館 | BE90: 公 園 | BH90: 児童館 | BK90: 学級講座数 | BN90: 受講者数 | BR90: 選定保存技術
B91: ・ | D91: 準主業 | G91: =データ一覧!F233 -> 2854 | K91: 第１種兼業 | O91: =データ一覧!F239 -> 1235 | R91: 1.0 ha ～ 1.5 ha | W91: =データ一覧!F244 -> 3121 | AB91: 人 | AD91: 人 | AF91: 人 | AI91: ％ | AK91: 人 | AM91: 人 | AO91: 施 設 数 | AT91: =データ一覧!F502 -> 2 | AV91: =データ一覧!F503 -> 1319889 | AZ91: =データ一覧!F504 -> 183 | BB91: =データ一覧!F505 -> 25 | BE91: =データ一覧!F506 -> 924 | BH91: =データ一覧!F507 -> 110 | BK91: =データ一覧!F508 -> 8073 | BN91: =データ一覧!F509 -> 244356 | BR91: 重要伝統的建造物群保存地区 | CJ91: 2
B92: =+RIGHT(データ一覧!$A$230,1) -> 1 | D92: 副業的 | G92: =データ一覧!F234 -> 11393 | K92: 第２種兼業 | O92: =データ一覧!F240 -> 11542 | R92: 1.5 ha ～ 2.0 ha | W92: =データ一覧!F245 -> 1688 | AA92: =データ一覧!F333 -> 300 | AC92: =データ一覧!F336 -> 311570 | AE92: =データ一覧!F337 -> 335430 | AG92: =データ一覧!F335 -> - | AJ92: =データ一覧!F338 -> 7929 | AL92: =データ一覧!F339 -> 4369 | AO92: 宗 教 | AS92: 仏教系 | AV92: ｷﾘｽﾄ教系 | AY92: 神道諸派 | BB92: 公会堂・市民会館 | BH92: テレビ | BK92: 衛星放送契約数 | BR92: その他
C93: 自給的農家 | G93: =データ一覧!F235 -> 7627 | R93: 2.0 ha 以上 | W93: =データ一覧!F246 -> 2247 | AO93: 法 人 数 | AS93: =データ一覧!F510 -> 1692 | AV93: =データ一覧!F511 -> 37 | AY93: =データ一覧!F512 -> 1813 | BB93: =データ一覧!F513 -> 37 | BH93: 等 | BK93: =データ一覧!F514 -> 176514

Sheet 福井市
A1: =+データ一覧!G5 -> 0
A2: =+データ一覧!G8 -> 0
AO3: 0
AB4: 【市章とそのいわれ】福井城内にあった「福ノ井」の井げたに、 | AO4: 【位置および地勢】福井市は、福井県の北部に位置し、面積は536.41平方㎞、東西に | BT4: 所在地 | CB4: 〒910-8511
AB5: 福井の旧称「北ノ庄」の北を組み合せ、古きを | AP5: 広がりのある形で、西方は日本海に臨み、奇岩で有名な越前海岸は風光明媚な | CB5: 福井市大手３丁目１０番１号
A6: =+データ一覧!G6 -> ふくいし | AB6: 生かし新しい時代への発展と繁栄を図案化した | AP6: 観光地となっている。市の西部と南東部は山岳地であるが、他のほとんどは平坦地で
A7: =データ一覧!G9 -> 福井市 | AB7: もの。 | AP7: 穀倉地帯となっている。市南東部の豊かな森林地帯に源を発する足羽川が市の中央部を | BT7: 電話番号 | CB7: （０７７６）２０－５１１１
AB8: 0 | AP8: 流れて、南越から市街地西側に流れ込む日野川と合流し、さらに市の北部を流れる本県 | BT8: FAX番号 | CB8: 〃 ２０－５７３３
AB9: 0 | AP9: 最大河川の九頭竜川へと注いでいる。ＪＲ北陸本線は市街地の東側を走り、その東を
AB10: 0 | AP10: これに平行して国道８号と北陸自動車が南北に貫いている。 | BT10: 最寄駅および距離 | CB10: ＪＲ北陸本線福井駅 下車５００ｍ
AB11: 0 | AO11: 0
AB13: 【市が掲げる標語】自然・活気・誇りにみちた 人が輝く かえりたくなるまち ふくい | BT13: ホームページ | CB13: http://www.city.fukui.lg.jp/
A15: １ 土 地 | Z15: =データ一覧!$A$261 -> 30年 | AA15: 産米収穫量 | AD15: 収 穫 量 | AG15: 作 付 面 積 | AJ15: 10a当たり収量 | BQ15: １５ 労 働 | CF15: 27.10.1
AD16: =データ一覧!$G$261 -> 28500 | AF16: t | AG16: =データ一覧!$G$262 -> 5260 | AI16: ha | AJ16: =データ一覧!G263 -> 543 | AM16: kg | AO16: １０ 工 業 | BC16: =データ一覧!$A$340 -> 30.6.1（平成29年実績）
A17: 総 面 積 | K17: 固 定 資 産 概 要 調 書 に よ る 地 目 別 面 積 | AC17: 総 数 | AG17: うち 田 | AK17: うち 畑 | BX17: 産業別就業者数
C18: =データ一覧!$A$10 -> 元.10.1 | Q18: =データ一覧!$A$12 -> 31.1.1 | Z18: 耕 地 面 積 | AD18: ha | AG18: ha | AK18: ha | AP18: 産業分類 | AX18: 事業所数 | BC18: 従業者数 | BI18: 年間製造品出荷額等 | BR18: 区 分 | BW18: 総 数 | CB18: 男 | CF18: 女 | CJ18: 区 分 | CO18: 総 数 | CT18: 男 | CX18: 女
G19: ㎢ | K19: 総 数 | P19: う ち 田 | U19: う ち 畑 | Z19: =データ一覧!$A$247 -> 30.7.15 | AC19: =データ一覧!$G$247 -> 7900 | AF19: =データ一覧!$G$248 -> 7500 | AJ19: =データ一覧!$G$249 -> 399 | BA19: 事業所 | BC19: 人 | BF19: 人 | BH19: 万円 | BO19: 万円 | BW19: 人 | CC19: 人 | CG19: 人 | CO19: 人 | CS19: 人 | CW19: 人
D20: =データ一覧!G10 -> 536.41 | O20: ha | T20: ha | Y20: ha | Z20: 農 業 生 産 物 | AD20: 作 付 面 積 | AG20: 収 穫 量 | AJ20: 10a当たり収量 | AP20: 総数 | AY20: =データ一覧!G340 -> 578 | BC20: =+データ一覧!G365 -> 17516 | BJ20: =データ一覧!G390 -> 42709238 | BQ20: 総 数 | BW20: =CA20+CE20 -> 129888 | CA20: =データ一覧!G515 -> 70147 | CE20: =データ一覧!G540 -> 59741
L21: =データ一覧!G12 -> 34845.7 | Q21: =データ一覧!G13 -> 7955.6 | V21: =データ一覧!G14 -> 913.8 | Z21: =データ一覧!$A$264 -> 30年中 | AD21: ha | AG21: t | AJ21: kg | AO21: 食料品 | AP21: 食料品 | AY21: =データ一覧!G341 -> 69 | BC21: =+データ一覧!G366 -> 1829 | BJ21: =データ一覧!G391 -> 2305315 | CJ21: 卸売業,小売業 | CO21: =CS21+CW21 -> 22922 | CS21: =データ一覧!G528 -> 11326 | CW21: =データ一覧!G553 -> 11596
A22: 町 ･ 丁 ･ 大 字 | K22: う ち 宅 地 | P22: う ち 山 林 | U22: う ち 原 野 | Z22: 水 稲 | AD22: =データ一覧!G264 -> 5260 | AG22: =データ一覧!G265 -> 28500 | AJ22: =データ一覧!G266 -> 543 | AO22: 飲料・飼料 | AP22: 飲料・飼料 | AY22: =データ一覧!G342 -> 6 | BC22: =+データ一覧!G367 -> 29 | BJ22: =データ一覧!G392 -> 32427 | BQ22: 第１次産業 | BW22: =CA22+CE22 -> 2824 | CA22: =データ一覧!G516 -> 1889 | CE22: =データ一覧!G541 -> 935 | CJ22: 金融業,保険業 | CO22: =CS22+CW22 -> 4136 | CS22: =データ一覧!G529 -> 1818 | CW22: =データ一覧!G554 -> 2318
A23: 区 画 数 | H23: =データ一覧!G11 -> 733 | O23: ha | T23: ha | Y23: ha | Z23: 六 条 大 麦 | AD23: =データ一覧!G267 -> 857 | AG23: =データ一覧!G268 -> 1450 | AJ23: =データ一覧!G269 -> 169 | AO23: 繊維 | AP23: 繊維 | AY23: =データ一覧!G343 -> 140 | BC23: =+データ一覧!G368 -> 4972 | BJ23: =データ一覧!G393 -> 8563233 | BR23: 農業 | BW23: =CA23+CE23 -> 2614 | CA23: =データ一覧!G517 -> 1710 | CE23: =データ一覧!G542 -> 904 | CJ23: 不動産業 | CO23: 1949 | CS23: =データ一覧!G530 -> 1132 | CW23: =データ一覧!G555 -> 817
A24: =データ一覧!$A$11 -> 31.4.1 | L24: =データ一覧!G15 -> 4854.1 | Q24: =データ一覧!G16 -> 17300.7 | V24: =データ一覧!G17 -> 101 | Z24: 大 豆 | AD24: =データ一覧!G270 -> 435 | AG24: =データ一覧!G271 -> 562 | AJ24: =データ一覧!G272 -> 129 | AO24: 衣服 | AP24: 木材 | AY24: =データ一覧!G344 -> 18 | BC24: =+データ一覧!G369 -> 371 | BJ24: =データ一覧!G394 -> 1913007 | BR24: 林業 | BW24: 150 | CA24: =データ一覧!G518 -> 126 | CE24: =データ一覧!G543 -> 24 | CJ24: 学術研究 | CO24: 3993 | CS24: =データ一覧!G531 -> 2449 | CW24: =データ一覧!G556 -> 1544
A25: ２ 世 帯 数 と 人 口 | AB25: 区 分 | AD25: 乳 用 牛 | AF25: 肉 用 牛 | AH25: 豚 | AJ25: 採卵鶏 | AL25: ブロイラー | AO25: 木材 | AP25: 家具 | AY25: =データ一覧!G345 -> 12 | BC25: =+データ一覧!G370 -> 300 | BJ25: =データ一覧!G395 -> 456957 | BR25: 漁業 | BW25: 60 | CA25: =データ一覧!G519 -> 53 | CE25: =データ一覧!G544 -> 7 | CJ25: 宿泊業,飲食ｻｰﾋﾞｽ | CO25: 7060 | CS25: =データ一覧!G532 -> 2649 | CW25: =データ一覧!G557 -> 4411
Z26: 畜 産 | AB26: 飼養農家 | AD26: =データ一覧!$G$251 -> 3 | AF26: =データ一覧!$G$253 -> 5 | AH26: =データ一覧!$G$255 -> - | AJ26: =データ一覧!$G$257 -> 5 | AL26: =データ一覧!$G$259 -> x | AO26: 家具 | AP26: パルプ・紙 | AY26: =データ一覧!G346 -> 20 | BC26: =+データ一覧!G371 -> 291 | BJ26: =データ一覧!G396 -> 627569 | BQ26: 第２次産業 | BW26: 32932 | CA26: =データ一覧!G520 -> 23283 | CE26: =データ一覧!G545 -> 9649 | CJ26: 生活関連ｻｰﾋﾞｽ業 | CO26: 4719 | CS26: =データ一覧!G533 -> 1831 | CW26: =データ一覧!G558 -> 2888
I27: 人 口 | U27: １世帯当 | W27: 人 口 | Z27: =データ一覧!$A$251 -> 31.3.31 | AB27: （戸） | AO27: パルプ・紙 | AP27: 印刷 | AY27: =データ一覧!G347 -> 49 | BC27: =+データ一覧!G372 -> 1382 | BJ27: =データ一覧!G397 -> 2142073 | BR27: 鉱業，採石業 | BW27: 22 | CA27: =データ一覧!G521 -> 16 | CE27: =データ一覧!G546 -> 6 | CJ27: 教育,学習支援業 | CO27: 6918 | CS27: =データ一覧!G534 -> 2861 | CW27: =データ一覧!G559 -> 4057
A28: 区 分 | F28: 世帯数 | I28: 総 数 | L28: 男 | O28: 女 | R28: 男／女 | U28: たり人員 | W28: 密 度 | AB28: 頭 羽 | AD28: =データ一覧!$G$252 -> 132 | AF28: =データ一覧!$G$254 -> 232 | AH28: =データ一覧!$G$256 -> - | AJ28: =データ一覧!$G$258 -> 5740 | AL28: =データ一覧!$G$260 -> 26000 | AO28: 出版・印刷 | AP28: 化学 | AY28: =データ一覧!G348 -> 17 | BC28: =+データ一覧!G373 -> 1006 | BJ28: =データ一覧!G398 -> 6407922 | BR28: 建設業 | BW28: 10657 | CA28: =データ一覧!G522 -> 8864 | CE28: =データ一覧!G547 -> 1793 | CJ28: 医療，福祉 | CO28: 17236 | CS28: =データ一覧!G535 -> 4069 | CW28: =データ一覧!G560 -> 13167
F29: 世 帯 | I29: 人 | L29: 人 | O29: 人 | S29: ％ | U29: 人 | W29: 人/㎢ | AO29: 化学 | AP29: 石油・石炭 | AY29: =データ一覧!G349 -> 4 | BC29: =+データ一覧!G374 -> 37 | BJ29: =データ一覧!G399 -> 196458 | BR29: 製造業 | BW29: 22253 | CA29: =データ一覧!G523 -> 14403 | CE29: =データ一覧!G548 -> 7850 | CJ29: 複合サービス事業 | CO29: 1258 | CS29: =データ一覧!G536 -> 746 | CW29: =データ一覧!G561 -> 512
A30: =データ一覧!$A$25 -> 2.10.1 | F30: =データ一覧!G25 -> 81287 | I30: =+L30+O30 -> 270911 | L30: =データ一覧!G27 -> 131608 | O30: =データ一覧!G28 -> 139303 | S30: =+L30/O30*100 -> 94.47607015 | U30: =データ一覧!G30 -> 3.33 | W30: =データ一覧!G24 -> 0 | Z30: ５ 林 業 | AO30: 石油・石炭 | AP30: プラスチック | AY30: =データ一覧!G350 -> 30 | BC30: =+データ一覧!G375 -> 1176 | BJ30: =データ一覧!G400 -> 3656824 | BQ30: 第３次産業 | BW30: 90375 | CA30: =データ一覧!G524 -> 42993 | CE30: =データ一覧!G549 -> 47382 | CJ30: サービス業 | CO30: 6945 | CS30: =データ一覧!G537 -> 4194 | CW30: =データ一覧!G562 -> 2751
A31: =データ一覧!$A$32 -> 7.10.1 | F31: =データ一覧!G32 -> 87719 | I31: =+L31+O31 -> 272970 | L31: =データ一覧!G34 -> 133444 | O31: =データ一覧!G35 -> 139526 | S31: 95.64095581 | U31: =データ一覧!G37 -> 3.11 | W31: =データ一覧!G31 -> 0 | AO31: プラスチック | AP31: ゴム | AY31: =データ一覧!G351 -> 4 | BC31: =+データ一覧!G376 -> 63 | BJ31: =データ一覧!G401 -> x | BR31: 電気･ｶﾞｽ･水道業 | BW31: 627 | CA31: =データ一覧!G525 -> 533 | CE31: =データ一覧!G550 -> 94 | CJ31: 公務 | CO31: 4708 | CS31: =データ一覧!G538 -> 3314 | CW31: =データ一覧!G563 -> 1394
A32: =データ一覧!$A$39 -> 12.10.1 | F32: =データ一覧!G39 -> 89946 | I32: =+L32+O32 -> 269557 | L32: =データ一覧!G41 -> 131344 | O32: =データ一覧!G42 -> 138213 | S32: 95.03013465 | U32: =データ一覧!G44 -> 3 | W32: =データ一覧!G38 -> 0 | Z32: 森 林 総 面 積 | AH32: =データ一覧!$A$273 -> 31.3.31 | AO32: ゴム | AP32: 皮革 | AY32: =データ一覧!G352 -> 0 | BC32: =+データ一覧!G377 -> 0 | BJ32: =データ一覧!G402 -> 0 | BR32: 情報通信業 | BW32: 2639 | CA32: =データ一覧!G526 -> 1807 | CE32: =データ一覧!G551 -> 832 | CI32: 分類不能の産業 | CO32: 3757 | CS32: =データ一覧!G539 -> 1982 | CW32: =データ一覧!G564 -> 1775
A33: =+データ一覧!$A$46 -> 17.10.1 | F33: =データ一覧!G46 -> 93694 | I33: =+L33+O33 -> 269144 | L33: =データ一覧!G48 -> 130834 | O33: =データ一覧!G49 -> 138310 | S33: 94.59475092 | U33: =データ一覧!G51 -> 2.87 | W33: =データ一覧!G52 -> 502 | Z33: 森 林 の 構 成 | AO33: 皮革 | AP33: 窯業・土石 | AY33: =データ一覧!G353 -> 11 | BC33: =+データ一覧!G378 -> 172 | BJ33: =データ一覧!G403 -> 555550 | BR33: 運輸業,郵便業 | BW33: =CA33+CE33 -> 5265 | CA33: =データ一覧!G527 -> 4264 | CE33: =データ一覧!G552 -> 1001
A34: =+データ一覧!$A$53 -> 22.10.1 | F34: =+データ一覧!G53 -> 97446 | I34: =+L34+O34 -> 266796 | L34: =+データ一覧!G55 -> 128692 | O34: =+データ一覧!G56 -> 138104 | S34: 93.1848462 | U34: =+データ一覧!G58 -> 2.74 | W34: =+データ一覧!G59 -> 497.6 | AE34: ha | AL34: ha | AO34: 窯業・土石 | AP34: 鉄鋼 | AY34: =データ一覧!G354 -> 7 | BC34: =+データ一覧!G379 -> 86 | BJ34: =データ一覧!G404 -> 322887 | BQ34: １６ 社 会 福 祉 | CG34: =データ一覧!$A$565 -> 31.4.1
A35: =データ一覧!$A$60 -> 27.10.1 | F35: =データ一覧!G60 -> 99872 | I35: =データ一覧!G61 -> 265904 | L35: =データ一覧!G62 -> 128892 | O35: =データ一覧!G63 -> 137012 | S35: 94.07351181 | U35: =データ一覧!G65 -> 2.662447933 | W35: =データ一覧!G66 -> 495.7 | Z35: 総 数 | AD35: =データ一覧!G273 -> 31931.19 | AG35: 天然林 針葉樹 | AK35: =データ一覧!G276 -> 721.05 | AO35: 鉄鋼 | AP35: 非鉄金属 | AY35: =データ一覧!G355 -> 2 | BC35: =+データ一覧!G380 -> 112 | BJ35: =データ一覧!G405 -> x
A36: =+データ一覧!$A$67 -> 元.10.1 | F36: =データ一覧!G67 -> 103954 | I36: =データ一覧!G76 -> 262530 | L36: =データ一覧!G77 -> 127531 | O36: =データ一覧!G78 -> 134999 | S36: =+L36/O36*100 -> 94.46810717 | U36: =データ一覧!G68 -> 2.53 | W36: =データ一覧!G69 -> 489.420406 | Z36: 人工林 針葉樹 | AD36: =データ一覧!G274 -> 19377.56 | AG36: 天然林 広葉樹 | AK36: =データ一覧!G277 -> 10922.72 | AO36: 非鉄金属 | AP36: 金属 | AY36: =データ一覧!G356 -> 59 | BC36: =+データ一覧!G381 -> 1280 | BJ36: =データ一覧!G406 -> 3506277 | BR36: 区分 | BY36: 施設数 | CD36: 収容定員 | CJ36: 区分 | CQ36: 施設数 | CV36: 収容定員
A37: 年 | C37: 区 | E37: 0歳 | H37: 15歳 | K37: 25歳 | N37: 35歳 | Q37: 45歳 | T37: 55歳 | W37: 65歳 | Z37: 人工林 広葉樹 | AD37: =データ一覧!G275 -> 69.9 | AG37: 竹 林 | AK37: =データ一覧!G278 -> 303.44 | AO37: 金属 | AP37: はん用機械 | AY37: =データ一覧!G357 -> 13 | BC37: =+データ一覧!G382 -> 175 | BJ37: =データ一覧!G407 -> 287516 | BQ37: 生活保護施設 | BY37: =データ一覧!G565 -> 1 | CC37: =データ一覧!G578 -> 0 | CG37: 人 | CI37: 指定障害者支援施設 | CQ37: =データ一覧!G571 -> 9 | CU37: =データ一覧!G584 -> 500 | CY37: 人
A38: 齢 | B38: 令 | F38: ～ | I38: ～ | L38: ～ | O38: ～ | R38: ～ | U38: ～ | AO38: 一般機械 | AP38: 生産用機械 | AY38: =データ一覧!G358 -> 53 | BC38: =+データ一覧!G383 -> 1622 | BJ38: =データ一覧!G408 -> 4537271 | BQ38: 地域福祉施設 | BY38: =データ一覧!G566 -> 0 | CC38: =データ一覧!G579 -> 0 | CI38: 指定相談支援事業所 | CQ38: =データ一覧!G572 -> 4 | CU38: =データ一覧!G585 -> 0
A39: 階 | B39: 元 | C39: 分 | G39: 14歳 | J39: 24歳 | M39: 34歳 | P39: 44歳 | S39: 54歳 | V39: 64歳 | Y39: 以上 | Z39: 林 野 の 構 成 | AG39: 保 有 形 態 別 | AO39: 電気機械 | AP39: 業務用機械 | AY39: =データ一覧!G359 -> 5 | BC39: =+データ一覧!G384 -> 263 | BJ39: =データ一覧!G409 -> 403109 | BQ39: 老人福祉施設 | BY39: =データ一覧!G567 -> 57 | CC39: =データ一覧!G580 -> 1785 | CI39: 児童福祉施設 | CQ39: =データ一覧!G573 -> 183 | CU39: =データ一覧!G586 -> 11785
A40: 級 | B40: ・ | G40: 人 | J40: 人 | L40: 人 | O40: 人 | R40: 人 | U40: 人 | X40: 人 | AF40: ha | AL40: ha | AP40: 電子・デバイス | AY40: =データ一覧!G360 -> 8 | BC40: =+データ一覧!G385 -> 1107 | BJ40: =データ一覧!G410 -> 3886140 | BQ40: 介護保険施設 | BY40: =データ一覧!G568 -> 416 | CC40: =データ一覧!G581 -> 7936 | CI40: 母子福祉施設 | CQ40: =データ一覧!G574 -> 1 | CU40: =データ一覧!G587 -> 0
A41: 別 | B41: 10 | C41: 総 数 | E41: =+E42+E43 -> 32564 | H41: =+H42+H43 -> 24606 | K41: =+K42+K43 -> 24016 | N41: =+N42+N43 -> 31234 | Q41: =+Q42+Q43 -> 35267 | T41: =+T42+T43 -> 31578 | W41: =+W42+W43 -> 75553 | Z41: 無立木地 伐採跡地 | AD41: =データ一覧!G279 -> 21.31 | AG41: 国 有 | AK41: =データ一覧!G281 -> 108.9 | AP41: 電気機械 | AY41: =データ一覧!G361 -> 10 | BC41: =+データ一覧!G386 -> 217 | BJ41: =データ一覧!G411 -> 382190 | BQ41: 障害者自立支援法施行前からの身体障害者福祉施設 | BY41: =データ一覧!G569 -> 2 | CC41: =データ一覧!G582 -> 0 | CI41: 婦人保護施設 | CQ41: =データ一覧!G575 -> 1 | CU41: =データ一覧!G588 -> 15
A42: 人 | B42: ・ | C42: 男 | E42: =データ一覧!G79 -> 16764 | H42: =データ一覧!G80 -> 13044 | K42: =データ一覧!G81 -> 12205 | N42: =データ一覧!G82 -> 15739 | Q42: =データ一覧!G83 -> 17502 | T42: =データ一覧!G84 -> 15322 | W42: =データ一覧!G85 -> 32835 | Z42: 無立木地 未立木地 | AD42: =データ一覧!G280 -> 515.21 | AG42: 公 有 | AK42: =データ一覧!G282 -> 1529.55 | AO42: 輸送機械 | AP42: 情報通信機械 | AY42: =データ一覧!G362 -> 0 | BC42: =+データ一覧!G387 -> 0 | BJ42: =データ一覧!G412 -> 0 | CI42: その他の社会福祉施設 | CQ42: =データ一覧!G576+データ一覧!G577 -> 9 | CU42: =SUM(データ一覧!G589,データ一覧!G590) -> 0
A43: 口 | B43: 1 | C43: 女 | E43: =データ一覧!G87 -> 15800 | H43: =データ一覧!G88 -> 11562 | K43: =データ一覧!G89 -> 11811 | N43: =データ一覧!G90 -> 15495 | Q43: =データ一覧!G91 -> 17765 | T43: =データ一覧!G92 -> 16256 | W43: =データ一覧!G93 -> 42718 | AG43: 私 有 | AK43: =データ一覧!G283 -> 30292.74 | AO43: 精密機械 | AP43: 輸送機械 | AY43: =データ一覧!G363 -> 3 | BC43: =+データ一覧!G388 -> 223 | BJ43: =データ一覧!G413 -> 532207 | BQ43: 障害福祉サービス事業所 | BY43: =データ一覧!G570 -> 196 | CC43: =データ一覧!G583 -> 2470
Z44: 林 産 物 生 産 量 | AJ44: =データ一覧!$A$284 -> 30年中 | AO44: その他 | AP44: その他 | AY44: =データ一覧!G364 -> 38 | BC44: =+データ一覧!G389 -> 803 | BJ44: =データ一覧!G414 -> 979122 | BQ44: １７ 教 育 | CG44: =データ一覧!$A$591 -> 元.5.1（特別支援学校、専修学校はH30.5.1現在）
A45: 人口動態 | H45: 自 然 動 態 | N45: 社 会 動 態 | T45: =データ一覧!$A74 -> 30.1.1～30.12.31 | Z45: 生椎茸 | AD45: =データ一覧!G284 -> 7405 | AF45: ㎏ | AG45: 乾椎茸 | AK45: =データ一覧!G285 -> 158 | AM45: ㎏
C46: 区 分 | H46: 出 生 | K46: 死 亡 | N46: 転 入 | Q46: 転 出 | T46: 婚 姻 | W46: 離 婚 | Z46: えのきだけ | AD46: =データ一覧!G287 -> 295673 | AF46: ㎏ | AG46: なめこ | AK46: =データ一覧!G286 -> - | AM46: ㎏ | AP46: 工 業 用 水 量 | AV46: （従業者30人以上の事業所） | BG46: =データ一覧!G415 -> 60332 | BL46: ㎥／日 | CA46: 学校数（校） | CH46: 教員数（人） | CP46: 学生・生徒・児童数（人）
A47: =LEFT(データ一覧!$A70,7) -> 30.10.1 | H47: 人 | K47: 人 | N47: 人 | Q47: 人 | U47: 件 | X47: 件 | Z47: ひらたけ | AD47: =+データ一覧!G288 -> 8732 | AF47: ㎏ | AG47: まいたけ | AK47: =+データ一覧!G289 -> 190 | AM47: ㎏ | BS47: 区分 | CA47: 本 校 | CD47: 分 校 | CG47: 本 務 | CK47: 兼 務 | CO47: 総 数 | CS47: 男 | CW47: 女
A48: ～ | C48: 実 数 | H48: =データ一覧!G70 -> 2107 | K48: =データ一覧!G71 -> 2992 | N48: =データ一覧!G72 -> 8083 | Q48: =データ一覧!G73 -> 8197 | T48: =データ一覧!G74 -> 1232 | W48: =データ一覧!G75 -> 421 | AO48: １１ 上 ・ 下 水 道 | BR48: 小学校 | CA48: =データ一覧!G592 -> 52 | CD48: =データ一覧!G593 -> 0 | CG48: =データ一覧!G594 -> 946 | CK48: =データ一覧!G595 -> 121 | CO48: =データ一覧!G596 -> 13777 | CS48: =データ一覧!G597 -> 7156 | CW48: =データ一覧!G598 -> 6621
A49: =RIGHT(データ一覧!$A72,7) -> ～元.9.30 | C49: 比率(対1,000人) | H49: =+H48/I35*1000 -> 7.923912389 | K49: =+K48/I35*1000 -> 11.25218124 | N49: - | Q49: - | T49: =+T48/I35*1000 -> 4.633251098 | W49: =+W48/I35*1000 -> 1.583278176 | Z49: ６ 漁 業 | BR49: 中学校 | CA49: =データ一覧!G600 -> 25 | CD49: =データ一覧!G601 -> 1 | CG49: =データ一覧!G602 -> 567 | CK49: =データ一覧!G603 -> 134 | CO49: =データ一覧!G604 -> 6834 | CS49: =データ一覧!G605 -> 3495 | CW49: =データ一覧!G606 -> 3339
AO50: 水 道 供 給 人 口 | AV50: 上 水 道 | AZ50: 簡易水道 | BD50: 専用水道 | BH50: 飲料水供給施設 | BL50: 下水道処理人口 | BR50: 高等学校 | CA50: =データ一覧!G608 -> 13 | CD50: =データ一覧!G609 -> 0 | CG50: =データ一覧!G610 -> 708 | CK50: =データ一覧!G611 -> 358 | CO50: =データ一覧!G612 -> 10824 | CS50: =データ一覧!G613 -> 5257 | CW50: =データ一覧!G614 -> 5567
A51: ３ 事 業 所（民 営） （平 28.6.1） | Z51: 漁船隻数・トン数 | AD51: =データ一覧!$A$290 -> 30.12.31 | AH51: 動 力 船 | AO51: =データ一覧!$A$416 -> 31.3.31 | AU51: 人 | AW51: =データ一覧!G416 -> 256941 | AZ51: =データ一覧!G417 -> 4682 | BE51: =データ一覧!G418 -> 252 | BI51: =データ一覧!G419 -> 523 | BM51: =データ一覧!G420 -> 229151 | BR51: 大学・短期大学 | CA51: =データ一覧!G615 -> 4 | CD51: =データ一覧!G616 -> 0 | CG51: =データ一覧!G617 -> 490 | CK51: =データ一覧!G618 -> 404 | CO51: =データ一覧!G619 -> 7058 | CS51: =データ一覧!G620 -> 5055 | CW51: =データ一覧!G621 -> 2003
Z52: 無動力船隻数 | AD52: 船外機付漁船隻数 | AH52: 隻 数 | AK52: 総 ト ン 数 | BR52: 高等専門学校 | CA52: =データ一覧!G622 -> 0 | CD52: =データ一覧!G623 -> 0 | CG52: =データ一覧!G624 -> 0 | CK52: =データ一覧!G625 -> 0 | CO52: =データ一覧!G626 -> 0 | CS52: =データ一覧!G627 -> 0 | CW52: =データ一覧!G628 -> 0
H53: 総 数 | N53: 民 営 | T53: 国 ･ 地方公共団体 | AC53: 隻 | AG53: 隻 | AJ53: 隻 | AM53: t | AO53: １２ 交 通 ・ 通 信 | BR53: 特別支援学校 | CA53: =+データ一覧!G630 -> 7 | CD53: =+データ一覧!G631 -> 0 | CG53: =+データ一覧!G632 -> 380 | CK53: =+データ一覧!G633 -> x | CO53: =+データ一覧!G634 -> 394 | CS53: =+データ一覧!G635 -> x | CW53: =+データ一覧!G636 -> x
A54: 区 分 | H54: 事業所数 | K54: 従業者数 | N54: 事業所数 | Q54: 従業者数 | T54: 事業所数 | W54: 従業者数 | Z54: =データ一覧!$G$290 -> 0 | AD54: =データ一覧!$G$291 -> 154 | AH54: =データ一覧!G292 -> 74 | AK54: =データ一覧!G293 -> 505.79 | BR54: 幼稚園 | CA54: =データ一覧!G638 -> 26 | CD54: =データ一覧!G639 -> 0 | CG54: =データ一覧!G640 -> 86 | CK54: =データ一覧!G641 -> 45 | CO54: =データ一覧!G642 -> 623 | CS54: =データ一覧!G643 -> 298 | CW54: =データ一覧!G644 -> 325
K55: 人 | Q55: 人 | W55: 人 | Z55: 男女別就業者数 | AH55: =データ一覧!$A$294 -> 30.11.1 | AO55: 道 路 | AS55: 実 延 長 | AW55: 国 道 | BA55: 県 道 | BE55: 市町道 | BI55: 鉄 道 営 業 キ ロ 数 | BR55: 幼保連携認定こども園 | CA55: =データ一覧!G646 -> 60 | CD55: =データ一覧!G647 -> 1 | CG55: =データ一覧!G648 -> 1277 | CK55: =データ一覧!G649 -> 175 | CO55: =データ一覧!G650 -> 7392 | CS55: =データ一覧!G651 -> 3807 | CW55: =データ一覧!G652 -> 3585
A56: 総数 | H56: =データ一覧!G95 -> … | K56: =データ一覧!G152 -> … | N56: =データ一覧!G96 -> 15789 | Q56: =データ一覧!G153 -> 149061 | T56: =データ一覧!G97 -> … | W56: =データ一覧!G154 -> … | Z56: 総 数 | AF56: 男 | AJ56: 女 | AO56: =データ一覧!$A$421 -> 30.4.1 | AS56: =データ一覧!G421 -> 2483.31 | AV56: ㎞ | AW56: =データ一覧!G422 -> 108.8 | AZ56: ㎞ | BA56: =データ一覧!G423 -> 300.7 | BD56: ㎞ | BE56: =データ一覧!G424 -> 2073.81 | BH56: km | BI56: =データ一覧!$A$425 -> 31.4.1 | BM56: =データ一覧!G425 -> 69.91 | BP56: ㎞ | BR56: 各種学校 | CA56: =データ一覧!G654 -> 4 | CD56: =データ一覧!G655 -> 0 | CG56: =データ一覧!G656 -> 105 | CK56: =データ一覧!G657 -> 7 | CO56: =データ一覧!G658 -> 1193 | CS56: =データ一覧!G659 -> 806 | CW56: =データ一覧!G660 -> 387
A57: 農林漁業 | H57: =データ一覧!G98 -> … | K57: =データ一覧!G155 -> … | N57: =データ一覧!G99 -> 56 | Q57: =データ一覧!G156 -> 743 | T57: =データ一覧!G100 -> … | W57: =データ一覧!G157 -> … | AE57: 人 | AH57: 人 | AM57: 人 | AO57: 自 動 車 | AX57: 乗用車 | BR57: 専修学校 | CA57: =データ一覧!G662 -> 13 | CD57: =データ一覧!G663 -> 0 | CG57: =データ一覧!G664 -> 100 | CK57: =データ一覧!G665 -> 276 | CO57: =データ一覧!G666 -> 988 | CS57: =データ一覧!G667 -> 378 | CW57: =データ一覧!G668 -> 610
A58: 鉱業 | H58: =データ一覧!G101 -> … | K58: =データ一覧!G158 -> … | N58: =データ一覧!G102 -> 7 | Q58: =データ一覧!G159 -> 32 | T58: =データ一覧!G103 -> … | W58: =データ一覧!G160 -> … | Z58: =AF58+AJ58 -> 114 | AF58: =データ一覧!$G$295 -> 109 | AJ58: =データ一覧!G296 -> 5 | AO58: 台 数 | AS58: 貨 物 | AW58: 普 通 | BA58: 小 型 | BE58: 乗 合 | BH58: 特 種 | BK58: 小型二輪 | BN58: 軽自動車 | BQ58: １８ 衛 生
A59: 建設業 | H59: =データ一覧!G104 -> … | K59: =データ一覧!G161 -> … | N59: =データ一覧!G105 -> 1525 | Q59: =データ一覧!G162 -> 11445 | T59: =データ一覧!G106 -> … | W59: =データ一覧!G163 -> … | Z59: 海 面 漁 業 漁 獲 量 （属人） | AH59: =データ一覧!$A$297 -> 29年中 | AO59: =データ一覧!$A$426 -> 31.3.31 | AT59: =データ一覧!G426 -> 18085 | AX59: =データ一覧!G428 -> 51666 | BB59: =データ一覧!G429 -> 59202 | BE59: =データ一覧!G427 -> 561 | BH59: =データ一覧!G430 -> 5131 | BK59: =データ一覧!G431 -> 2424 | BN59: =データ一覧!G432 -> 88473
A60: 製造業 | H60: =データ一覧!G107 -> … | K60: =データ一覧!G164 -> … | N60: =データ一覧!G108 -> 1441 | Q60: =データ一覧!G165 -> 20796 | T60: =データ一覧!G109 -> … | W60: =データ一覧!G166 -> … | AF60: ｔ | AM60: t | AV60: 郵便局数 | BB60: =データ一覧!$A$433 -> 31.3.31 | BI60: 一般加入 | BM60: ＩＮＳネット | BU60: 医療関係施設 | CA60: =データ一覧!$A$669 -> 30.10.1 | CH60: および医療関係者数 | CP60: =データ一覧!$A$674 -> 30.12.31
A61: 電気・ｶﾞ ｽ・熱供給・水道業 | H61: =データ一覧!G110 -> … | K61: =データ一覧!G167 -> … | N61: =データ一覧!G111 -> 5 | Q61: =データ一覧!G168 -> 396 | T61: =データ一覧!G112 -> … | W61: =データ一覧!G169 -> … | Z61: 総 数 | AD61: =データ一覧!G297 -> 1292 | AG61: 藻 類 | AK61: =データ一覧!G300 -> 3 | AO61: 通 信 | AS61: 総 数 | AY61: 郵 便 局 | BD61: 簡 易 局 | BI61: 電話数 | BM61: 加入数 | BX61: 病 | CA61: 院 | CI61: 一般診療所 | CU61: 歯科診療所
A62: 情報通信業 | H62: =データ一覧!G113 -> … | K62: =データ一覧!G170 -> … | N62: =データ一覧!G114 -> 195 | Q62: =データ一覧!G171 -> 3411 | T62: =データ一覧!G115 -> … | W62: =データ一覧!G172 -> … | Z62: 魚 類 | AD62: =データ一覧!G298 -> 648 | AG62: そ の 他 | AK62: =データ一覧!G301 -> 637 | AO62: =データ一覧!$A$436 -> 31.3.31 | AS62: =データ一覧!G433 -> 73 | AY62: =データ一覧!G434 -> 65 | BD62: =データ一覧!G435 -> 8 | BI62: =データ一覧!G436 -> 26204 | BM62: =データ一覧!G437 -> 5287 | BR62: 医療関係 | CD62: 一般病院 | CP62: 有 | CS62: 床
A63: 運輸業、郵便業 | H63: =データ一覧!G116 -> … | K63: =データ一覧!G173 -> … | N63: =データ一覧!G117 -> 310 | Q63: =データ一覧!G174 -> 7119 | T63: =データ一覧!G118 -> … | W63: =データ一覧!G175 -> … | Z63: 貝 類 | AD63: =データ一覧!G299 -> 4 | BR63: 施設数 | BY63: =データ一覧!G669 -> 26 | CE63: =データ一覧!G670 -> 22 | CK63: =データ一覧!G671 -> 256 | CQ63: =データ一覧!G672 -> 35 | CW63: =データ一覧!G673 -> 135
A64: 卸売業、小売業 | H64: =データ一覧!G119 -> … | K64: =データ一覧!G176 -> … | N64: =データ一覧!G120 -> 4305 | Q64: =データ一覧!G177 -> 34043 | T64: =データ一覧!G121 -> … | W64: =データ一覧!G178 -> … | AO64: １３ 税 ・ 財 政 | BX64: 医師 | CC64: 歯科医師 | CH64: 薬剤師 | CM64: 保健師 | CR64: 助産師 | CW64: 看護師
A65: 金融業、保険業 | H65: =データ一覧!G122 -> … | K65: =データ一覧!G179 -> … | N65: =データ一覧!G123 -> 394 | Q65: =データ一覧!G180 -> 5552 | T65: =データ一覧!G124 -> … | W65: =データ一覧!G181 -> … | Z65: ７ 商 業 | AG65: =データ一覧!$A$302 -> 28.6.1(平成27年実績） | BR65: 医療 | CA65: 人 | CF65: 人 | CK65: 人 | CP65: 人 | CU65: 人 | CZ65: 人
A66: 不動産業、物品賃貸業 | H66: =データ一覧!G125 -> … | K66: =データ一覧!G182 -> … | N66: =データ一覧!G126 -> 697 | Q66: =データ一覧!G183 -> 2900 | T66: =データ一覧!G127 -> … | W66: =データ一覧!G184 -> … | AS66: 歳入 | BB66: (千円） | BG66: 歳出 | BP66: (千円） | BR66: 関係者 | BW66: =データ一覧!G674 -> 979 | CB66: =データ一覧!G675 -> 201 | CG66: =データ一覧!G676 -> 677 | CL66: =データ一覧!G677 -> 155 | CQ66: =データ一覧!G678 -> 137 | CV66: =データ一覧!G679 -> 5490
A67: 学術研究、専門・技術ｻｰﾋﾞｽ業 | H67: =データ一覧!G128 -> … | K67: =データ一覧!G185 -> … | N67: =データ一覧!G129 -> 757 | Q67: =データ一覧!G186 -> 4136 | T67: =データ一覧!G130 -> … | W67: =データ一覧!G187 -> … | Z67: 産 業 分 類 | AD67: 商 店 数 | AG67: 従 業 者 数 | AJ67: 年 間 販 売 額 | AO67: 一人当たり歳入歳出予算決算額 | BZ67: 死因別死亡数 | CP67: =データ一覧!$A$680 -> 30年中 | CY67: 単 位：人
A68: 宿泊業、飲食サービス業 | H68: =データ一覧!G131 -> … | K68: =データ一覧!G188 -> … | N68: =データ一覧!G132 -> 1977 | Q68: =データ一覧!G189 -> 13787 | T68: =データ一覧!G133 -> … | W68: =データ一覧!G190 -> … | AE68: 店 | AI68: 人 | AK68: 百万円 | AO68: 区分 | AS68: =データ一覧!$A$446 -> 元年度 | AX68: =データ一覧!$A$460 -> 30年度 | BC68: 区分 | BG68: =+AS68 -> 元年度 | BL68: =データ一覧!$A$460 -> 30年度 | BQ68: 死 因 | CC68: 悪 性 | CF68: 高血圧 | CL68: 脳血管 | CU68: 不慮の事故
A69: 生活関連サービス業、娯楽業 | H69: =データ一覧!G134 -> … | K69: =データ一覧!G191 -> … | N69: =データ一覧!G135 -> 1333 | Q69: =データ一覧!G192 -> 6418 | T69: =データ一覧!G136 -> … | W69: =データ一覧!G193 -> … | Z69: 総 計 | AD69: =データ一覧!$G$302 -> 3539 | AG69: =データ一覧!G311 -> 27824 | AJ69: =データ一覧!G320 -> 1186220 | AS69: =データ一覧!G442 -> 391998.9258 | AX69: =データ一覧!G443 -> 387090.7338 | BG69: =データ一覧!G444 -> 391998.9258 | BL69: =データ一覧!G445 -> 379211.2026 | BV69: 全 死 因 | BZ69: 結 核 | CC69: 新生物 | CF69: 性疾患 | CI69: 心疾患 | CL69: 疾 患 | CO69: 肺 炎 | CR69: 老 衰 | CX69: 交通事故
A70: 教育、学習支援業 | H70: =データ一覧!G137 -> … | K70: =データ一覧!G194 -> … | N70: =データ一覧!G138 -> 413 | Q70: =データ一覧!G195 -> 4626 | T70: =データ一覧!G139 -> … | W70: =データ一覧!G196 -> … | Z70: 卸売業 | AD70: =データ一覧!G303 -> 1051 | AG70: =データ一覧!G312 -> 10424 | AJ70: =データ一覧!G321 -> 814926 | AO70: 項目別歳入歳出予算決算額
A71: 医療、福祉 | H71: =データ一覧!G140 -> … | K71: =データ一覧!G197 -> … | N71: =データ一覧!G141 -> 1024 | Q71: =データ一覧!G198 -> 20340 | T71: =データ一覧!G142 -> … | W71: =データ一覧!G199 -> … | Z71: 小売業 | AD71: =データ一覧!G304 -> 2488 | AG71: =データ一覧!G313 -> 17400 | AJ71: =データ一覧!G322 -> 371293 | AO71: 区分 | AS71: =データ一覧!$A$446 -> 元年度 | AX71: =データ一覧!$A$460 -> 30年度 | BC71: 区分 | BG71: =+AS71 -> 元年度 | BL71: =データ一覧!$A$460 -> 30年度 | BV71: =データ一覧!G680 -> 2959 | BZ71: － | CA71: =データ一覧!G681 -> 5 | CC71: =データ一覧!G682 -> 811 | CG71: =データ一覧!G683 -> 13 | CI71: =データ一覧!G684 -> 470 | CL71: =データ一覧!G685 -> 262 | CO71: =データ一覧!G686 -> 222 | CR71: =データ一覧!G687 -> 179 | CU71: =データ一覧!G688 -> 119 | CX71: =データ一覧!G689 -> 8
A72: 複合サービス事業 | H72: =データ一覧!G143 -> … | K72: =データ一覧!G200 -> … | N72: =データ一覧!G144 -> 116 | Q72: =データ一覧!G201 -> 1431 | T72: =データ一覧!G145 -> … | W72: =データ一覧!G202 -> … | Z72: 各種商品 | AD72: =データ一覧!G305 -> 12 | AG72: =データ一覧!G314 -> 1046 | AJ72: =データ一覧!G323 -> 35475 | AO72: 総額 | AS72: =SUM(AS73:AW85) -> 102911478 | AX72: =SUM(AX73:BB85) -> 102009634 | BC72: 総額 | BG72: =SUM(BG73:BK85) -> 102911478 | BL72: =SUM(BL73:BP85) -> 99933149 | BQ72: １９ 警 察 ・ 消 防 | CG72: =+データ一覧!$A690 -> 31.4.1
A73: サービス業 | H73: =データ一覧!G146 -> … | K73: =データ一覧!G203 -> … | N73: =データ一覧!G147 -> 1234 | Q73: =データ一覧!G204 -> 11886 | T73: =データ一覧!G148 -> … | W73: =データ一覧!G205 -> … | Z73: 織物・衣服・身の回り品 | AD73: =データ一覧!G306 -> 455 | AG73: =データ一覧!G315 -> 1990 | AJ73: =データ一覧!G324 -> 29283 | AO73: 地方税 | AS73: =データ一覧!G447 -> 45228000 | AX73: =データ一覧!G461 -> 44670511 | BC73: 議会費 | BG73: =データ一覧!G475 -> 689711 | BL73: =データ一覧!G489 -> 641922
A74: 公務 | H74: =データ一覧!G149 -> … | K74: =データ一覧!G206 -> … | N74: =データ一覧!G150 -> … | Q74: =データ一覧!G207 -> … | T74: =データ一覧!G151 -> … | W74: =データ一覧!G208 -> … | Z74: 飲食料品 | AD74: =データ一覧!G307 -> 665 | AG74: =データ一覧!G316 -> 5305 | AJ74: =データ一覧!G325 -> 83516 | AO74: 地方譲与税 | AS74: =データ一覧!G448 -> 877000 | AX74: =データ一覧!G462 -> 880418 | BC74: 総務費 | BG74: =データ一覧!G476 -> 8163837 | BL74: =データ一覧!G490 -> 7627243 | CA74: 交番・駐在所 | CJ74: 刑法犯認知件数 | CS74: 交通事故発生件数
A75: ４ 農 業 | Z75: 機械器具 | AD75: =データ一覧!G308 -> 388 | AG75: =データ一覧!G317 -> 2815 | AJ75: =データ一覧!G326 -> 93970 | AO75: 各種交付金 | AS75: =データ一覧!G449 -> 6038000 | AX75: =データ一覧!G463 -> 5988901 | BC75: 民生費 | BG75: =データ一覧!G477 -> 43015701 | BL75: =データ一覧!G491 -> 40236908 | BR75: 警察署数 | CA75: 検問所数 | CK75: （30年中） | CT75: （30年中）
Z76: その他 | AD76: =データ一覧!G309 -> 879 | AG76: =データ一覧!G318 -> 5444 | AJ76: =データ一覧!G327 -> 105519 | AO76: 地方特例交付金 | AS76: =データ一覧!G450 -> 200000 | AX76: =データ一覧!G464 -> 179626 | BC76: 衛生費 | BG76: =データ一覧!G478 -> 6230731 | BL76: =データ一覧!G492 -> 5532976 | CO76: 件 | CX76: 件
C77: 農家人口と世帯員数(販売農家) | K77: 農家世帯の就業状態（販売農家） | Z77: 無店舗 | AD77: =データ一覧!G310 -> 89 | AG77: =データ一覧!G319 -> 800 | AJ77: =データ一覧!G328 -> 23530 | AO77: 地方交付税 | AS77: =データ一覧!G451 -> 10533000 | AX77: =データ一覧!G465 -> 9824599 | BC77: 労働費 | BG77: =データ一覧!G479 -> 438251 | BL77: =データ一覧!G493 -> 464422 | BS77: =データ一覧!G690 -> 2 | CB77: =データ一覧!G691 -> 36 | CK77: =データ一覧!G692 -> 1301 | CT77: =データ一覧!G693 -> 629
A78: 農 | B78: 平 | K78: 農業従事者 | T78: 非農業従事 | W78: 農業従事者 | AO78: 分担金および負担金 | AS78: =データ一覧!G452 -> 483755 | AX78: =データ一覧!G466 -> 294106 | BC78: 農林水産業費 | BG78: =データ一覧!G480 -> 3198694 | BL78: =データ一覧!G494 -> 3099750 | BQ78: 火災発生件数 | CA78: 林野焼損 | CF78: 損 害 | CK78: 消 防 自 | CO78: その他の
A79: 家 | B79: =+LEFT(データ一覧!$A$209,2) -> 27 | C79: 区分 | E79: 農家人口 | H79: 15歳以上の | N79: 農業就業人口 | T79: 者 | W79: の平均年齢 | Z79: ８ 住 宅 | AO79: 使用料および手数料 | AS79: =データ一覧!G453 -> 1639841 | AX79: =データ一覧!G467 -> 1562524 | BC79: 商工費 | BG79: =データ一覧!G481 -> 2453927 | BL79: =データ一覧!G495 -> 2092544 | BQ79: =+データ一覧!$A$694 -> 30年中 | BV79: 焼損棟数 | CA79: 面 積 | CF79: 見 積 額 | CK79: 動 車 数 | CO79: ﾎﾟﾝﾌﾟ数 | CS79: 消防吏員 | CW79: 消防団員
A80: 人就 | B80: ・ | H80: 世帯員数 | Q80: 基幹的農業 | AO80: 国庫支出金 | AS80: =データ一覧!G454 -> 15991244 | AX80: =データ一覧!G468 -> 15240738 | BC80: 土木費 | BG80: =データ一覧!G482 -> 13065447 | BL80: =データ一覧!G496 -> 13929803 | BQ80: 件 | BW80: 棟 | CD80: ａ | CH80: 千円 | CU80: 人 | CY80: 人
A81: 口業 | B81: =+MID(データ一覧!$A$209,4,1) -> 2 | G81: 人 | J81: 人 | M81: 人 | P81: 人 | Q81: 従事者 | S81: 人 | V81: 人 | Y81: 歳 | Z81: =+データ一覧!$A$329 -> 29年 | AE81: =データ一覧!$A$332 -> 30年 | AF81: 中の増減 | AJ81: =+データ一覧!$A$332 -> 30年 | AO81: 県支出金 | AS81: =データ一覧!G455 -> 9510971 | AX81: =データ一覧!G469 -> 8713997 | BC81: 消防費 | BG81: =データ一覧!G483 -> 3464030 | BL81: =データ一覧!G497 -> 3445208 | BR81: =データ一覧!G694 -> 57 | BW81: =データ一覧!G695 -> 55 | CB81: =データ一覧!G696 -> 11 | CF81: =データ一覧!G697 -> 84199 | CL81: =データ一覧!G698 -> 39 | CP81: =データ一覧!G699 -> 107 | CT81: =データ一覧!G700 -> 367 | CX81: =データ一覧!G701 -> 1013
A82: と状 | B82: ・ | C82: 総数 | E82: =データ一覧!G209 -> 14257 | H82: =データ一覧!G212 -> 12764 | K82: =データ一覧!G215 -> 8785 | N82: =データ一覧!G218 -> 3991 | Q82: =データ一覧!G221 -> 2845 | T82: =データ一覧!G224 -> 3979 | W82: =データ一覧!G227 -> 59.4 | AD82: 建設した住宅 | AG82: 消失した住宅 | AO82: 財産収入 | AS82: =データ一覧!G456 -> 111050 | AX82: =データ一覧!G470 -> 213059 | BC82: 教育費 | BG82: =データ一覧!G484 -> 8895322 | BL82: =データ一覧!G498 -> 9791899 | BQ82: ２０ そ の 他
A83: 況 | B83: =+RIGHT(データ一覧!$A$209,1) -> 1 | C83: 男 | E83: =データ一覧!G210 -> 7080 | H83: =データ一覧!G213 -> 6293 | K83: =データ一覧!G216 -> 5036 | N83: =データ一覧!G219 -> 2062 | Q83: =データ一覧!G222 -> 1727 | T83: =データ一覧!G225 -> 1257 | W83: =データ一覧!G228 -> 57.7 | AO83: 繰入金 | AS83: =データ一覧!G457 -> 297598 | AX83: =データ一覧!G471 -> 1126496 | BC83: 災害復旧費 | BG83: =データ一覧!G485 -> 17400 | BL83: =データ一覧!G499 -> 196715
C84: 女 | E84: =データ一覧!G211 -> 7177 | H84: =データ一覧!G214 -> 6471 | K84: =データ一覧!G217 -> 3749 | N84: =データ一覧!G220 -> 1929 | Q84: =データ一覧!G223 -> 1118 | T84: =データ一覧!G226 -> 2722 | W84: =データ一覧!G229 -> 61.6 | Z84: 281,432 戸 | AA84: =データ一覧!G329 -> 105949 | AC84: 戸 | AD84: =データ一覧!G330 -> 1501 | AF84: 戸 | AG84: =データ一覧!G331 -> 779 | AI84: 戸 | AK84: =データ一覧!G332 -> 106671 | AM84: 戸 | AO84: 地方債 | AS84: =データ一覧!G458 -> 8431575 | AX84: =データ一覧!G472 -> 9280955 | BC84: 公債費 | BG84: =データ一覧!G486 -> 13178427 | BL84: =データ一覧!G500 -> 12873133 | BV84: 一乗谷朝倉氏遺跡、一乗谷朝倉氏庭園、養浩館庭園、免鳥長山古墳、越前海岸、 福井城址、北の庄城址・柴田公園､グリフィス記念館、足羽川の桜並木、愛宕坂、 丹巌洞、大安禅寺、コスモス広苑、絹本著色 羅漢図、木造十一面観音菩薩立像、 鉄製銀象嵌冑、糸崎の仏舞、睦月神事
AO85: その他 | AS85: =データ一覧!G459 -> 3569444 | AX85: =データ一覧!G473 -> 4033704 | BC85: その他 | BG85: =データ一覧!G487 -> 100000 | BL85: =データ一覧!G501 -> 626 | BQ85: 名所・旧跡
C86: 総農家数等 | J86: 専兼業別（販売農家） | R86: 経営面積規模別（販売農家） | BQ86: 文化財等
B87: 平 | C87: 区 分 | G87: 戸数（戸） | J87: 区 分 | O87: 戸数（戸） | R87: 区 分 | W87: 戸数（戸） | Z87: ９ 議 員 ・ 職 員 | AO87: １４ 文 化 | AY87: ( | AZ87: =データ一覧!$A$508 -> 31.3.31 | BD87: ただし図書館・公民館・児童館 | BL87: =データ一覧!$A$502 -> 31.4.1
A88: 農 | B88: =+LEFT(データ一覧!$A$230,2) -> 27 | C88: 総農家 | G88: =データ一覧!G230 -> 4859 | J88: 総数 | O88: =データ一覧!G236 -> 3405 | R88: 総数 | W88: =データ一覧!G241 -> 3405 | BE88: 宗教法人数 | BL88: =データ一覧!$A$510 -> 30.12.31 | BP88: ）
A89: 家 | B89: ・ | C89: 販売農家 | G89: =データ一覧!G231 -> 3405 | J89: 専業農家 | O89: =データ一覧!G237 -> 555 | R89: 0.5 ha 未満 | W89: =データ一覧!G242 -> 679 | Z89: 市 町 村 議 会 | AC89: 有権者数 | AE89: =データ一覧!$A$336 -> 元.9.1 | AG89: 市 町 村 議 会 | AJ89: 職 員 数 | AT89: 図書館 | AZ89: 公 民 館 | BK89: 社会教育学級講座 | BQ89: 特産物 | BV89: 羽二重餅、水ようかん、越前がに、越前おろしそば、金福すいか、越のルビー、 越前金時、水菜、坊ちゃんかぼちゃ、六条大麦、河内赤かぶら､木田ちそ、明里ネギ、 新保ナス、越前水仙、ワカメ、ソースカツ丼、あべかわ餅
A90: 数 | B90: =+MID(データ一覧!$A$230,4,1) -> 2 | D90: 主業 | G90: =データ一覧!G232 -> 189 | J90: 兼業農家 | O90: =データ一覧!G238 -> 2850 | R90: 0.5 ha ～ 1.0 ha | W90: =データ一覧!G243 -> 1253 | Z90: 議 員 定 数 | AC90: 男 | AE90: 女 | AG90: 選 挙 投 票 率 | AJ90: 総 数 | AL90: 一般行政職 | AO90: 公 共 | AS90: 館 数 | AV90: 図書数 | AY90: 本 館 | BB90: 分 館 | BE90: 公 園 | BH90: 児童館 | BK90: 学級講座数 | BN90: 受講者数
B91: ・ | D91: 準主業 | G91: =データ一覧!G233 -> 528 | K91: 第１種兼業 | O91: =データ一覧!G239 -> 236 | R91: 1.0 ha ～ 1.5 ha | W91: =データ一覧!G244 -> 679 | AB91: 人 | AD91: 人 | AF91: 人 | AI91: ％ | AK91: 人 | AM91: 人 | AO91: 施 設 数 | AT91: =データ一覧!G502 -> 5 | AV91: =データ一覧!G503 -> 1243589 | AZ91: =データ一覧!G504 -> 50 | BB91: =データ一覧!G505 -> 6 | BE91: =データ一覧!G506 -> 395 | BH91: =データ一覧!G507 -> 29 | BK91: =データ一覧!G508 -> 598 | BN91: =データ一覧!G509 -> 67491
B92: =+RIGHT(データ一覧!$A$230,1) -> 1 | D92: 副業的 | G92: =データ一覧!G234 -> 2688 | K92: 第２種兼業 | O92: =データ一覧!G240 -> 2614 | R92: 1.5 ha ～ 2.0 ha | W92: =データ一覧!G245 -> 351 | AA92: =データ一覧!G333 -> 32 | AC92: =データ一覧!G336 -> 104274 | AE92: =データ一覧!G337 -> 113353 | AG92: =データ一覧!G335 -> 46.73 | AJ92: =データ一覧!G338 -> 2351 | AL92: =データ一覧!G339 -> 1289 | AO92: 宗 教 | AS92: 仏教系 | AV92: ｷﾘｽﾄ教系 | AY92: 神道諸派 | BB92: 公会堂・市民会館 | BH92: テレビ | BK92: 衛星放送契約数 | BQ92: 年中行事 | BV92: ふくい桜まつり、福井フェニックスまつり、こしの水仙まつり、そばまつりinみやま、 花山行事、したんじょう行事、じじぐれ祭、馬鹿ばやし、オシッサマのお渡り、 免鳥夜網節、越前朝倉戦国まつり、越前朝倉万灯夜
C93: 自給的農家 | G93: =データ一覧!G235 -> 1454 | R93: 2.0 ha 以上 | W93: =データ一覧!G246 -> 441 | AG93: =データ一覧!G334 -> 31.4.21 | AO93: 法 人 数 | AS93: =データ一覧!G510 -> 389 | AV93: =データ一覧!G511 -> 12 | AY93: =データ一覧!G512 -> 469 | BB93: =データ一覧!G513 -> 6 | BH93: 等 | BK93: =データ一覧!G514 -> 65572

Sheet 敦賀市
A1: =+データ一覧!H5 -> 0
A2: =+データ一覧!H8 -> 0
AO3: 0
AB4: 【市章とそのいわれ】周囲の円形は敦賀港を現して地勢を物語り、 | AO4: 【位置および地勢】敦賀市は福井県の中央部に位置し、北に敦賀湾口を開いて | BT4: 所在地 | CB4: 〒914-8501
AB5: 中央の角は「都怒我阿羅斯等」来朝にちなんで | AP5: 日本海に面し、他の三方は山岳が連なり、敦賀湾と平野部を囲んでいる。 | CB5: 敦賀市中央町２丁目１番１号
A6: =+データ一覧!H6 -> つるがし | AB6: その沿革を象徴する。角の上部は敦賀港最初の | AP6: 東西約１４㎞、南北約２６km、面積は２５１．４１平方kmで若狭湾に大きく
A7: =データ一覧!H9 -> 敦賀市 | AB7: 文明施設としての灯台を具現し、港湾都市と | AP7: 張り出た敦賀半島と５４㎞に及ぶ海岸線が敦賀湾を日本海の風や波浪から | BT7: 電話番号 | CB7: （０７７０）２１－１１１１
AB8: しての将来への発展を意味する。 | AP8: 防ぎ、天然の良港を形成している。 | BT8: FAX番号 | CB8: 〃 ２２－６２２０
AB9: 0 | AP9: 日本三大松原の一つに数えられる気比の松原は、敦賀湾の最奥部に位置し、
AB10: 0 | AP10: 海との織り成す景観は、見事である。 | BT10: 最寄駅および距離 | CB10: ＪＲ北陸本線敦賀駅 下車２ｋｍ
AB11: 0
AB13: 【市が掲げる標語】世界をつなぐ港まちみんなで拓く交流拠点都市 敦賀 | BT13: ホームページ | CB13: http://www.city.tsuruga.lg.jp/
A15: １ 土 地 | Z15: =データ一覧!$A$261 -> 30年 | AA15: 産米収穫量 | AD15: 収 穫 量 | AG15: 作 付 面 積 | AJ15: 10a当たり収量 | BQ15: １５ 労 働 | CF15: 27.10.1
AD16: =データ一覧!$H$261 -> 2280 | AF16: t | AG16: =データ一覧!$H$262 -> 460 | AI16: ha | AJ16: =データ一覧!H263 -> 495 | AM16: kg | AO16: １０ 工 業 | BC16: =データ一覧!$A$340 -> 30.6.1（平成29年実績）
A17: 総 面 積 | K17: 固 定 資 産 概 要 調 書 に よ る 地 目 別 面 積 | AC17: 総 数 | AG17: うち 田 | AK17: うち 畑 | BX17: 産業別就業者数
C18: =データ一覧!$A$10 -> 元.10.1 | Q18: =データ一覧!$A$12 -> 31.1.1 | Z18: 耕 地 面 積 | AD18: ha | AG18: ha | AK18: ha | AP18: 産業分類 | AX18: 事業所数 | BC18: 従業者数 | BI18: 年間製造品出荷額等 | BR18: 区 分 | BW18: 総 数 | CB18: 男 | CF18: 女 | CJ18: 区 分 | CO18: 総 数 | CT18: 男 | CX18: 女
G19: ㎢ | K19: 総 数 | P19: う ち 田 | U19: う ち 畑 | Z19: =データ一覧!$A$247 -> 30.7.15 | AC19: =データ一覧!$H$247 -> 872 | AF19: =データ一覧!$H$248 -> 768 | AJ19: =データ一覧!$H$249 -> 104 | BA19: 事業所 | BC19: 人 | BF19: 人 | BH19: 万円 | BO19: 万円 | BW19: 人 | CC19: 人 | CG19: 人 | CO19: 人 | CS19: 人 | CW19: 人
D20: =データ一覧!H10 -> 251.41 | O20: ha | T20: ha | Y20: ha | Z20: 農 業 生 産 物 | AD20: 作 付 面 積 | AG20: 収 穫 量 | AJ20: 10a当たり収量 | AP20: 総数 | AY20: =データ一覧!H340 -> 77 | BC20: =+データ一覧!H365 -> 3658 | BJ20: =データ一覧!H390 -> 11770705 | BQ20: 総 数 | BW20: =CA20+CE20 -> 32820 | CA20: =データ一覧!H515 -> 18800 | CE20: =データ一覧!H540 -> 14020
L21: =データ一覧!H12 -> 11206.8 | Q21: =データ一覧!H13 -> 1311.9 | V21: =データ一覧!H14 -> 254 | Z21: =データ一覧!$A$264 -> 30年中 | AD21: ha | AG21: t | AJ21: kg | AO21: 食料品 | AP21: 食料品 | AY21: =データ一覧!H341 -> 15 | BC21: =+データ一覧!H366 -> 325 | BJ21: =データ一覧!H391 -> 332794 | CJ21: 卸売業,小売業 | CO21: =CS21+CW21 -> 4628 | CS21: =データ一覧!H528 -> 1910 | CW21: =データ一覧!H553 -> 2718
A22: 町 ･ 丁 ･ 大 字 | K22: う ち 宅 地 | P22: う ち 山 林 | U22: う ち 原 野 | Z22: 水 稲 | AD22: =データ一覧!H264 -> 460 | AG22: =データ一覧!H265 -> 2280 | AJ22: =データ一覧!H266 -> 495 | AO22: 飲料・飼料 | AP22: 飲料・飼料 | AY22: =データ一覧!H342 -> 0 | BC22: =+データ一覧!H367 -> 0 | BJ22: =データ一覧!H392 -> 0 | BQ22: 第１次産業 | BW22: =CA22+CE22 -> 615 | CA22: =データ一覧!H516 -> 380 | CE22: =データ一覧!H541 -> 235 | CJ22: 金融業,保険業 | CO22: =CS22+CW22 -> 578 | CS22: =データ一覧!H529 -> 206 | CW22: =データ一覧!H554 -> 372
A23: 区 画 数 | H23: =データ一覧!H11 -> 158 | O23: ha | T23: ha | Y23: ha | Z23: 六 条 大 麦 | AD23: =データ一覧!H267 -> - | AG23: =データ一覧!H268 -> - | AJ23: =データ一覧!H269 -> - | AO23: 繊維 | AP23: 繊維 | AY23: =データ一覧!H343 -> 4 | BC23: =+データ一覧!H368 -> 294 | BJ23: =データ一覧!H393 -> 1275833 | BR23: 農業 | BW23: =CA23+CE23 -> 521 | CA23: =データ一覧!H517 -> 303 | CE23: =データ一覧!H542 -> 218 | CJ23: 不動産業 | CO23: 362 | CS23: =データ一覧!H530 -> 199 | CW23: =データ一覧!H555 -> 163
A24: =データ一覧!$A$11 -> 31.4.1 | L24: =データ一覧!H15 -> 1234.7 | Q24: =データ一覧!H16 -> 4519.7 | V24: =データ一覧!H17 -> 220 | Z24: 大 豆 | AD24: =データ一覧!H270 -> 2 | AG24: =データ一覧!H271 -> 1 | AJ24: =データ一覧!H272 -> 55 | AO24: 衣服 | AP24: 木材 | AY24: =データ一覧!H344 -> 2 | BC24: =+データ一覧!H369 -> 258 | BJ24: =データ一覧!H394 -> x | BR24: 林業 | BW24: 12 | CA24: =データ一覧!H518 -> 10 | CE24: =データ一覧!H543 -> 2 | CJ24: 学術研究 | CO24: 1766 | CS24: =データ一覧!H531 -> 1369 | CW24: =データ一覧!H556 -> 397
A25: ２ 世 帯 数 と 人 口 | AB25: 区 分 | AD25: 乳 用 牛 | AF25: 肉 用 牛 | AH25: 豚 | AJ25: 採卵鶏 | AL25: ブロイラー | AO25: 木材 | AP25: 家具 | AY25: =データ一覧!H345 -> 1 | BC25: =+データ一覧!H370 -> 4 | BJ25: =データ一覧!H395 -> x | BR25: 漁業 | BW25: 82 | CA25: =データ一覧!H519 -> 67 | CE25: =データ一覧!H544 -> 15 | CJ25: 宿泊業,飲食ｻｰﾋﾞｽ | CO25: 2113 | CS25: =データ一覧!H532 -> 580 | CW25: =データ一覧!H557 -> 1533
Z26: 畜 産 | AB26: 飼養農家 | AD26: =データ一覧!$H$251 -> x | AF26: =データ一覧!$H$253 -> 4 | AH26: =データ一覧!$H$255 -> - | AJ26: =データ一覧!$H$257 -> x | AL26: =データ一覧!$H$259 -> - | AO26: 家具 | AP26: パルプ・紙 | AY26: =データ一覧!H346 -> 3 | BC26: =+データ一覧!H371 -> 119 | BJ26: =データ一覧!H396 -> 185281 | BQ26: 第２次産業 | BW26: 8759 | CA26: =データ一覧!H520 -> 6700 | CE26: =データ一覧!H545 -> 2059 | CJ26: 生活関連ｻｰﾋﾞｽ業 | CO26: 1108 | CS26: =データ一覧!H533 -> 376 | CW26: =データ一覧!H558 -> 732
I27: 人 口 | U27: １世帯当 | W27: 人 口 | Z27: =データ一覧!$A$251 -> 31.3.31 | AB27: （戸） | AO27: パルプ・紙 | AP27: 印刷 | AY27: =データ一覧!H347 -> 2 | BC27: =+データ一覧!H372 -> 62 | BJ27: =データ一覧!H397 -> x | BR27: 鉱業，採石業 | BW27: 11 | CA27: =データ一覧!H521 -> 8 | CE27: =データ一覧!H546 -> 3 | CJ27: 教育,学習支援業 | CO27: 1255 | CS27: =データ一覧!H534 -> 546 | CW27: =データ一覧!H559 -> 709
A28: 区 分 | F28: 世帯数 | I28: 総 数 | L28: 男 | O28: 女 | R28: 男／女 | U28: たり人員 | W28: 密 度 | AB28: 頭 羽 | AD28: =データ一覧!$H$252 -> 33 | AF28: =データ一覧!$H$254 -> 81 | AH28: =データ一覧!$H$256 -> - | AJ28: =データ一覧!$H$258 -> 300 | AL28: =データ一覧!$H$260 -> - | AO28: 出版・印刷 | AP28: 化学 | AY28: =データ一覧!H348 -> 3 | BC28: =+データ一覧!H373 -> 211 | BJ28: =データ一覧!H398 -> 837635 | BR28: 建設業 | BW28: 4404 | CA28: =データ一覧!H522 -> 3736 | CE28: =データ一覧!H547 -> 668 | CJ28: 医療，福祉 | CO28: 3904 | CS28: =データ一覧!H535 -> 762 | CW28: =データ一覧!H560 -> 3142
F29: 世 帯 | I29: 人 | L29: 人 | O29: 人 | S29: ％ | U29: 人 | W29: 人/㎢ | AO29: 化学 | AP29: 石油・石炭 | AY29: =データ一覧!H349 -> 1 | BC29: =+データ一覧!H374 -> 7 | BJ29: =データ一覧!H399 -> x | BR29: 製造業 | BW29: 4344 | CA29: =データ一覧!H523 -> 2956 | CE29: =データ一覧!H548 -> 1388 | CJ29: 複合サービス事業 | CO29: 293 | CS29: =データ一覧!H536 -> 166 | CW29: =データ一覧!H561 -> 127
A30: =データ一覧!$A$25 -> 2.10.1 | F30: =データ一覧!H25 -> 22995 | I30: =+L30+O30 -> 68041 | L30: =データ一覧!H27 -> 34091 | O30: =データ一覧!H28 -> 33950 | S30: =+L30/O30*100 -> 100.4153166 | U30: =データ一覧!H30 -> 2.96 | W30: =データ一覧!H31 -> 271.6 | Z30: ５ 林 業 | AO30: 石油・石炭 | AP30: プラスチック | AY30: =データ一覧!H350 -> 7 | BC30: =+データ一覧!H375 -> 640 | BJ30: =データ一覧!H400 -> 3812546 | BQ30: 第３次産業 | BW30: 22957 | CA30: =データ一覧!H524 -> 11435 | CE30: =データ一覧!H549 -> 11522 | CJ30: サービス業 | CO30: 2396 | CS30: =データ一覧!H537 -> 1643 | CW30: =データ一覧!H562 -> 753
A31: =データ一覧!$A$32 -> 7.10.1 | F31: =データ一覧!H32 -> 23115 | I31: =+L31+O31 -> 67204 | L31: =データ一覧!H34 -> 33047 | O31: =データ一覧!H35 -> 34157 | S31: 96.75030008 | U31: =データ一覧!H37 -> 2.91 | W31: =データ一覧!H38 -> 268.1 | AO31: プラスチック | AP31: ゴム | AY31: =データ一覧!H351 -> 0 | BC31: =+データ一覧!H376 -> 0 | BJ31: =データ一覧!H401 -> 0 | BR31: 電気･ｶﾞｽ･水道業 | BW31: 1294 | CA31: =データ一覧!H525 -> 1187 | CE31: =データ一覧!H550 -> 107 | CJ31: 公務 | CO31: 1027 | CS31: =データ一覧!H538 -> 699 | CW31: =データ一覧!H563 -> 328
A32: =データ一覧!$A$39 -> 12.10.1 | F32: =データ一覧!H39 -> 24539 | I32: =+L32+O32 -> 68145 | L32: =データ一覧!H41 -> 33504 | O32: =データ一覧!H42 -> 34641 | S32: 96.71776219 | U32: =データ一覧!H44 -> 2.78 | W32: =データ一覧!H45 -> 271.8 | Z32: 森 林 総 面 積 | AH32: =データ一覧!$A$273 -> 31.3.31 | AO32: ゴム | AP32: 皮革 | AY32: =データ一覧!H352 -> 0 | BC32: =+データ一覧!H377 -> 0 | BJ32: =データ一覧!H402 -> 0 | BR32: 情報通信業 | BW32: 352 | CA32: =データ一覧!H526 -> 210 | CE32: =データ一覧!H551 -> 142 | CI32: 分類不能の産業 | CO32: 489 | CS32: =データ一覧!H539 -> 285 | CW32: =データ一覧!H564 -> 204
A33: =+データ一覧!$A$46 -> 17.10.1 | F33: =データ一覧!H46 -> 25742 | I33: =+L33+O33 -> 68402 | L33: =データ一覧!H48 -> 33475 | O33: =データ一覧!H49 -> 34927 | S33: 95.84275775 | U33: =データ一覧!H51 -> 2.66 | W33: =データ一覧!H52 -> 272.8 | Z33: 森 林 の 構 成 | AO33: 皮革 | AP33: 窯業・土石 | AY33: =データ一覧!H353 -> 9 | BC33: =+データ一覧!H378 -> 573 | BJ33: =データ一覧!H403 -> 701394 | BR33: 運輸業,郵便業 | BW33: =CA33+CE33 -> 1881 | CA33: =データ一覧!H527 -> 1582 | CE33: =データ一覧!H552 -> 299
A34: =+データ一覧!$A$53 -> 22.10.1 | F34: =+データ一覧!H53 -> 26453 | I34: =+L34+O34 -> 67760 | L34: =+データ一覧!H55 -> 33396 | O34: =+データ一覧!H56 -> 34364 | S34: 97.18309859 | U34: =+データ一覧!H58 -> 2.56 | W34: =+データ一覧!H59 -> 269.7 | AE34: ha | AL34: ha | AO34: 窯業・土石 | AP34: 鉄鋼 | AY34: =データ一覧!H354 -> 0 | BC34: =+データ一覧!H379 -> 0 | BJ34: =データ一覧!H404 -> 0 | BQ34: １６ 社 会 福 祉 | CG34: =データ一覧!$A$565 -> 31.4.1
A35: =データ一覧!$A$60 -> 27.10.1 | F35: =データ一覧!H60 -> 26545 | I35: =データ一覧!H61 -> 66165 | L35: =データ一覧!H62 -> 32558 | O35: =データ一覧!H63 -> 33607 | S35: 96.87862648 | U35: =データ一覧!H65 -> 2.492559804 | W35: =データ一覧!H66 -> 263.2 | Z35: 総 数 | AD35: =データ一覧!H273 -> 19890.45 | AG35: 天然林 針葉樹 | AK35: =データ一覧!H276 -> 2056.07 | AO35: 鉄鋼 | AP35: 非鉄金属 | AY35: =データ一覧!H355 -> 1 | BC35: =+データ一覧!H380 -> 29 | BJ35: =データ一覧!H405 -> x
A36: =+データ一覧!$A$67 -> 元.10.1 | F36: =データ一覧!H67 -> 27079 | I36: =データ一覧!H76 -> 64474 | L36: =データ一覧!H77 -> 31827 | O36: =データ一覧!H78 -> 32647 | S36: =+L36/O36*100 -> 97.48828376 | U36: =データ一覧!H68 -> 2.38 | W36: =データ一覧!H69 -> 256.4496241 | Z36: 人工林 針葉樹 | AD36: =データ一覧!H274 -> 4458.07 | AG36: 天然林 広葉樹 | AK36: =データ一覧!H277 -> 12592.81 | AO36: 非鉄金属 | AP36: 金属 | AY36: =データ一覧!H356 -> 10 | BC36: =+データ一覧!H381 -> 111 | BJ36: =データ一覧!H406 -> 213714 | BR36: 区分 | BY36: 施設数 | CD36: 収容定員 | CJ36: 区分 | CQ36: 施設数 | CV36: 収容定員
A37: 年 | C37: 区 | E37: 0歳 | H37: 15歳 | K37: 25歳 | N37: 35歳 | Q37: 45歳 | T37: 55歳 | W37: 65歳 | Z37: 人工林 広葉樹 | AD37: =データ一覧!H275 -> 335.63 | AG37: 竹 林 | AK37: =データ一覧!H278 -> 72.31 | AO37: 金属 | AP37: はん用機械 | AY37: =データ一覧!H357 -> 0 | BC37: =+データ一覧!H382 -> 0 | BJ37: =データ一覧!H407 -> 0 | BQ37: 生活保護施設 | BY37: =データ一覧!H565 -> 0 | CC37: =データ一覧!H578 -> 0 | CG37: 人 | CI37: 指定障害者支援施設 | CQ37: =データ一覧!H571 -> 1 | CU37: =データ一覧!H584 -> 30 | CY37: 人
A38: 齢 | B38: 令 | F38: ～ | I38: ～ | L38: ～ | O38: ～ | R38: ～ | U38: ～ | AO38: 一般機械 | AP38: 生産用機械 | AY38: =データ一覧!H358 -> 1 | BC38: =+データ一覧!H383 -> 6 | BJ38: =データ一覧!H408 -> x | BQ38: 地域福祉施設 | BY38: =データ一覧!H566 -> 1 | CC38: =データ一覧!H579 -> 0 | CI38: 指定相談支援事業所 | CQ38: =データ一覧!H572 -> 3 | CU38: =データ一覧!H585 -> 0
A39: 階 | B39: 元 | C39: 分 | G39: 14歳 | J39: 24歳 | M39: 34歳 | P39: 44歳 | S39: 54歳 | V39: 64歳 | Y39: 以上 | Z39: 林 野 の 構 成 | AG39: 保 有 形 態 別 | AO39: 電気機械 | AP39: 業務用機械 | AY39: =データ一覧!H359 -> 0 | BC39: =+データ一覧!H384 -> 0 | BJ39: =データ一覧!H409 -> 0 | BQ39: 老人福祉施設 | BY39: =データ一覧!H567 -> 11 | CC39: =データ一覧!H580 -> 214 | CI39: 児童福祉施設 | CQ39: =データ一覧!H573 -> 39 | CU39: =データ一覧!H586 -> 2539
A40: 級 | B40: ・ | G40: 人 | J40: 人 | L40: 人 | O40: 人 | R40: 人 | U40: 人 | X40: 人 | AF40: ha | AL40: ha | AP40: 電子・デバイス | AY40: =データ一覧!H360 -> 5 | BC40: =+データ一覧!H385 -> 704 | BJ40: =データ一覧!H410 -> 2162637 | BQ40: 介護保険施設 | BY40: =データ一覧!H568 -> 103 | CC40: =データ一覧!H581 -> 1943 | CI40: 母子福祉施設 | CQ40: =データ一覧!H574 -> 0 | CU40: =データ一覧!H587 -> 0
A41: 別 | B41: 10 | C41: 総 数 | E41: =+E42+E43 -> 8369 | H41: =+H42+H43 -> 5839 | K41: =+K42+K43 -> 5794 | N41: =+N42+N43 -> 8017 | Q41: =+Q42+Q43 -> 8933 | T41: =+T42+T43 -> 8526 | W41: =+W42+W43 -> 18534 | Z41: 無立木地 伐採跡地 | AD41: =データ一覧!H279 -> 0.35 | AG41: 国 有 | AK41: =データ一覧!H281 -> 4785.73 | AP41: 電気機械 | AY41: =データ一覧!H361 -> 3 | BC41: =+データ一覧!H386 -> 68 | BJ41: =データ一覧!H411 -> 405032 | BQ41: 障害者自立支援法施行前からの身体障害者福祉施設 | BY41: =データ一覧!H569 -> 0 | CC41: =データ一覧!H582 -> 0 | CI41: 婦人保護施設 | CQ41: =データ一覧!H575 -> 0 | CU41: =データ一覧!H588 -> 0
A42: 人 | B42: ・ | C42: 男 | E42: =データ一覧!H79 -> 4335 | H42: =データ一覧!H80 -> 3084 | K42: =データ一覧!H81 -> 3008 | N42: =データ一覧!H82 -> 4141 | Q42: =データ一覧!H83 -> 4536 | T42: =データ一覧!H84 -> 4381 | W42: =データ一覧!H85 -> 8075 | Z42: 無立木地 未立木地 | AD42: =データ一覧!H280 -> 375.21 | AG42: 公 有 | AK42: =データ一覧!H282 -> 1873.88 | AO42: 輸送機械 | AP42: 情報通信機械 | AY42: =データ一覧!H362 -> 0 | BC42: =+データ一覧!H387 -> 0 | BJ42: =データ一覧!H412 -> 0 | CI42: その他の社会福祉施設 | CQ42: =データ一覧!H576+データ一覧!H577 -> 2 | CU42: =データ一覧!H589+データ一覧!H590 -> 0
A43: 口 | B43: 1 | C43: 女 | E43: =データ一覧!H87 -> 4034 | H43: =データ一覧!H88 -> 2755 | K43: =データ一覧!H89 -> 2786 | N43: =データ一覧!H90 -> 3876 | Q43: =データ一覧!H91 -> 4397 | T43: =データ一覧!H92 -> 4145 | W43: =データ一覧!H93 -> 10459 | AG43: 私 有 | AK43: =データ一覧!H283 -> 13230.84 | AO43: 精密機械 | AP43: 輸送機械 | AY43: =データ一覧!H363 -> 4 | BC43: =+データ一覧!H388 -> 53 | BJ43: =データ一覧!H413 -> 24175 | BQ43: 障害福祉サービス事業所 | BY43: =データ一覧!H570 -> 37 | CC43: =データ一覧!H583 -> 384
Z44: 林 産 物 生 産 量 | AJ44: =データ一覧!$A$284 -> 30年中 | AO44: その他 | AP44: その他 | AY44: =データ一覧!H364 -> 6 | BC44: =+データ一覧!H389 -> 194 | BJ44: =データ一覧!H414 -> 649751 | BQ44: １７ 教 育 | CG44: =データ一覧!$A$591 -> 元.5.1（特別支援学校、専修学校はH30.5.1現在）
A45: 人口動態 | H45: 自 然 動 態 | N45: 社 会 動 態 | T45: =データ一覧!$A74 -> 30.1.1～30.12.31 | Z45: 生椎茸 | AD45: =データ一覧!H284 -> 1265 | AF45: ㎏ | AG45: 乾椎茸 | AK45: =データ一覧!H285 -> - | AM45: ㎏
C46: 区 分 | H46: 出 生 | K46: 死 亡 | N46: 転 入 | Q46: 転 出 | T46: 婚 姻 | W46: 離 婚 | Z46: えのきだけ | AD46: =データ一覧!H287 -> - | AF46: ㎏ | AG46: なめこ | AK46: =データ一覧!H286 -> 46 | AM46: ㎏ | AP46: 工 業 用 水 量 | AV46: （従業者30人以上の事業所） | BG46: =データ一覧!H415 -> 67842 | BL46: ㎥／日 | CA46: 学校数（校） | CH46: 教員数（人） | CP46: 学生・生徒・児童数（人）
A47: =LEFT(データ一覧!$A70,7) -> 30.10.1 | H47: 人 | K47: 人 | N47: 人 | Q47: 人 | U47: 件 | X47: 件 | Z47: ひらたけ | AD47: =+データ一覧!H288 -> - | AF47: ㎏ | AG47: まいたけ | AK47: =+データ一覧!H289 -> - | AM47: ㎏ | BS47: 区分 | CA47: 本 校 | CD47: 分 校 | CG47: 本 務 | CK47: 兼 務 | CO47: 総 数 | CS47: 男 | CW47: 女
A48: ～ | C48: 実 数 | H48: =データ一覧!H70 -> 434 | K48: =データ一覧!H71 -> 729 | N48: =データ一覧!H72 -> 1944 | Q48: =データ一覧!H73 -> 2105 | T48: =データ一覧!H74 -> 278 | W48: =データ一覧!H75 -> 121 | AO48: １１ 上 ・ 下 水 道 | BR48: 小学校 | CA48: =データ一覧!H592 -> 15 | CD48: =データ一覧!H593 -> 0 | CG48: =データ一覧!H594 -> 239 | CK48: =データ一覧!H595 -> 41 | CO48: =データ一覧!H596 -> 3575 | CS48: =データ一覧!H597 -> 1816 | CW48: =データ一覧!H598 -> 1759
A49: =RIGHT(データ一覧!$A72,7) -> ～元.9.30 | C49: 比率(対1,000人) | H49: =+H48/I35*1000 -> 6.559359178 | K49: =+K48/I35*1000 -> 11.01790977 | N49: - | Q49: - | T49: =+T48/I35*1000 -> 4.201617169 | W49: =+W48/I35*1000 -> 1.82876143 | Z49: ６ 漁 業 | BR49: 中学校 | CA49: =データ一覧!H600 -> 6 | CD49: =データ一覧!H601 -> 0 | CG49: =データ一覧!H602 -> 137 | CK49: =データ一覧!H603 -> 21 | CO49: =データ一覧!H604 -> 1738 | CS49: =データ一覧!H605 -> 911 | CW49: =データ一覧!H606 -> 827
AO50: 水 道 供 給 人 口 | AV50: 上 水 道 | AZ50: 簡易水道 | BD50: 専用水道 | BH50: 飲料水供給施設 | BL50: 下水道処理人口 | BR50: 高等学校 | CA50: =データ一覧!H608 -> 4 | CD50: =データ一覧!H609 -> 0 | CG50: =データ一覧!H610 -> 142 | CK50: =データ一覧!H611 -> 51 | CO50: =データ一覧!H612 -> 1847 | CS50: =データ一覧!H613 -> 1066 | CW50: =データ一覧!H614 -> 781
A51: ３ 事 業 所（民 営） （平 28.6.1） | Z51: 漁船隻数・トン数 | AD51: =データ一覧!$A$290 -> 30.12.31 | AH51: 動 力 船 | AO51: =データ一覧!$A$416 -> 31.3.31 | AU51: 人 | AW51: =データ一覧!H416 -> 64181 | AZ51: =データ一覧!H417 -> 0 | BE51: =データ一覧!H418 -> 0 | BI51: =データ一覧!H419 -> 0 | BM51: =データ一覧!H420 -> 55892 | BR51: 大学・短期大学 | CA51: =データ一覧!H615 -> 1 | CD51: =データ一覧!H616 -> 0 | CG51: =データ一覧!H617 -> 51 | CK51: =データ一覧!H618 -> 26 | CO51: =データ一覧!H619 -> 363 | CS51: =データ一覧!H620 -> 123 | CW51: =データ一覧!H621 -> 240
Z52: 無動力船隻数 | AD52: 船外機付漁船隻数 | AH52: 隻 数 | AK52: 総 ト ン 数 | BR52: 高等専門学校 | CA52: =データ一覧!H622 -> 0 | CD52: =データ一覧!H623 -> 0 | CG52: =データ一覧!H624 -> 0 | CK52: =データ一覧!H625 -> 0 | CO52: =データ一覧!H626 -> 0 | CS52: =データ一覧!H627 -> 0 | CW52: =データ一覧!H628 -> 0
H53: 総 数 | N53: 民 営 | T53: 国 ･ 地方公共団体 | AC53: 隻 | AG53: 隻 | AJ53: 隻 | AM53: t | AO53: １２ 交 通 ・ 通 信 | BR53: 特別支援学校 | CA53: =データ一覧!H630 -> 0 | CD53: =データ一覧!H631 -> 0 | CG53: =+データ一覧!H632 -> 0 | CK53: =+データ一覧!H633 -> 0 | CO53: =+データ一覧!H634 -> 0 | CS53: =+データ一覧!H635 -> 0 | CW53: =+データ一覧!H636 -> 0
A54: 区 分 | H54: 事業所数 | K54: 従業者数 | N54: 事業所数 | Q54: 従業者数 | T54: 事業所数 | W54: 従業者数 | Z54: =データ一覧!$H$290 -> 0 | AD54: =データ一覧!$H$291 -> 71 | AH54: =データ一覧!H292 -> 144 | AK54: =データ一覧!H293 -> 661.46 | BR54: 幼稚園 | CA54: =データ一覧!H638 -> 4 | CD54: =データ一覧!H639 -> 0 | CG54: =データ一覧!H640 -> 24 | CK54: =データ一覧!H641 -> 14 | CO54: =データ一覧!$H$642 -> 200 | CS54: =データ一覧!H643 -> 102 | CW54: =データ一覧!H644 -> 98
K55: 人 | Q55: 人 | W55: 人 | Z55: 男女別就業者数 | AH55: =データ一覧!$A$294 -> 30.11.1 | AO55: 道 路 | AS55: 実 延 長 | AW55: 国 道 | BA55: 県 道 | BE55: 市町道 | BI55: 鉄 道 営 業 キ ロ 数 | BR55: 幼保連携認定こども園 | CA55: =データ一覧!H646 -> 3 | CD55: =データ一覧!H647 -> 0 | CG55: =データ一覧!H648 -> 57 | CK55: =データ一覧!H649 -> 21 | CO55: =データ一覧!H650 -> 570 | CS55: =データ一覧!H651 -> 260 | CW55: =データ一覧!H652 -> 310
A56: 総数 | H56: =データ一覧!H95 -> … | K56: =データ一覧!H152 -> … | N56: =データ一覧!H96 -> 3335 | Q56: =データ一覧!H153 -> 31828 | T56: =データ一覧!H97 -> … | W56: =データ一覧!H154 -> … | Z56: 総 数 | AF56: 男 | AJ56: 女 | AO56: =データ一覧!$A$421 -> 30.4.1 | AS56: =データ一覧!H421 -> 517.423 | AV56: ㎞ | AW56: =データ一覧!H422 -> 12.2 | AZ56: ㎞ | BA56: =データ一覧!H423 -> 71.6 | BD56: ㎞ | BE56: =データ一覧!H424 -> 433.623 | BH56: km | BI56: =データ一覧!$A$425 -> 31.4.1 | BM56: =データ一覧!H425 -> 30.246 | BP56: ㎞ | BR56: 各種学校 | CA56: =データ一覧!H654 -> 3 | CD56: =データ一覧!H655 -> 0 | CG56: =データ一覧!H656 -> 35 | CK56: =データ一覧!H657 -> - | CO56: =データ一覧!H658 -> 183 | CS56: =データ一覧!H659 -> 116 | CW56: =データ一覧!H660 -> 67
A57: 農林漁業 | H57: =データ一覧!H98 -> … | K57: =データ一覧!H155 -> … | N57: =データ一覧!H99 -> 4 | Q57: =データ一覧!H156 -> 77 | T57: =データ一覧!H100 -> … | W57: =データ一覧!H157 -> … | AE57: 人 | AH57: 人 | AM57: 人 | AO57: 自 動 車 | AX57: 乗用車 | BR57: 専修学校 | CA57: =データ一覧!H662 -> 0 | CD57: =データ一覧!H663 -> 0 | CG57: =データ一覧!H664 -> 0 | CK57: =データ一覧!H665 -> 0 | CO57: =データ一覧!H666 -> 0 | CS57: =データ一覧!H667 -> 0 | CW57: =データ一覧!H668 -> 0
A58: 鉱業 | H58: =データ一覧!H101 -> … | K58: =データ一覧!H158 -> … | N58: =データ一覧!H102 -> 0 | Q58: =データ一覧!H159 -> 0 | T58: =データ一覧!H103 -> … | W58: =データ一覧!H160 -> … | Z58: =AF58+AJ58 -> 134 | AF58: =データ一覧!$H$295 -> 121 | AJ58: =データ一覧!H296 -> 13 | AO58: 台 数 | AS58: 貨 物 | AW58: 普 通 | BA58: 小 型 | BE58: 乗 合 | BH58: 特 種 | BK58: 小型二輪 | BN58: 軽自動車 | BQ58: １８ 衛 生
A59: 建設業 | H59: =データ一覧!H104 -> … | K59: =データ一覧!H161 -> … | N59: =データ一覧!H105 -> 463 | Q59: =データ一覧!H162 -> 3911 | T59: =データ一覧!H106 -> … | W59: =データ一覧!H163 -> … | Z59: 海 面 漁 業 漁 獲 量 （属人） | AH59: =データ一覧!$A$297 -> 29年中 | AO59: =データ一覧!$A$426 -> 31.3.31 | AT59: =データ一覧!H426 -> 4567 | AX59: =データ一覧!H428 -> 11749 | BB59: =データ一覧!H429 -> 11846 | BE59: =データ一覧!H427 -> 201 | BH59: =データ一覧!H430 -> 1502 | BK59: =データ一覧!H431 -> 865 | BN59: =データ一覧!H432 -> 25382
A60: 製造業 | H60: =データ一覧!H107 -> … | K60: =データ一覧!H164 -> … | N60: =データ一覧!H108 -> 170 | Q60: =データ一覧!H165 -> 3953 | T60: =データ一覧!H109 -> … | W60: =データ一覧!H166 -> … | AF60: ｔ | AM60: t | AV60: 郵便局数 | BB60: =データ一覧!$A$433 -> 31.3.31 | BI60: 一般加入 | BM60: ＩＮＳネット | BU60: 医療関係施設 | CA60: =データ一覧!$A$669 -> 30.10.1 | CH60: および医療関係者数 | CP60: =データ一覧!$A$674 -> 30.12.31
A61: 電気・ｶﾞ ｽ・熱供給・水道業 | H61: =データ一覧!H110 -> … | K61: =データ一覧!H167 -> … | N61: =データ一覧!H111 -> 9 | Q61: =データ一覧!H168 -> 524 | T61: =データ一覧!H112 -> … | W61: =データ一覧!H169 -> … | Z61: 総 数 | AD61: =データ一覧!H297 -> 371 | AG61: 藻 類 | AK61: =データ一覧!H300 -> 1 | AO61: 通 信 | AS61: 総 数 | AY61: 郵 便 局 | BD61: 簡 易 局 | BI61: 電話数 | BM61: 加入数 | BX61: 病 | CA61: 院 | CI61: 一般診療所 | CU61: 歯科診療所
A62: 情報通信業 | H62: =データ一覧!H113 -> … | K62: =データ一覧!H170 -> … | N62: =データ一覧!H114 -> 24 | Q62: =データ一覧!H171 -> 216 | T62: =データ一覧!H115 -> … | W62: =データ一覧!H172 -> … | Z62: 魚 類 | AD62: =データ一覧!H298 -> 274 | AG62: そ の 他 | AK62: =データ一覧!H301 -> 82 | AO62: =データ一覧!$A$436 -> 31.3.31 | AS62: =データ一覧!H433 -> 12 | AY62: =データ一覧!H434 -> 11 | BD62: =データ一覧!H435 -> 1 | BI62: =データ一覧!H436 -> 8350 | BM62: =データ一覧!H437 -> 1459 | BR62: 医療関係 | CD62: 一般病院 | CP62: 有 | CS62: 床
A63: 運輸業、郵便業 | H63: =データ一覧!H116 -> … | K63: =データ一覧!H173 -> … | N63: =データ一覧!H117 -> 92 | Q63: =データ一覧!H174 -> 2182 | T63: =データ一覧!H118 -> … | W63: =データ一覧!H175 -> … | Z63: 貝 類 | AD63: =データ一覧!H299 -> 14 | BR63: 施設数 | BY63: =データ一覧!H669 -> 5 | CE63: =データ一覧!H670 -> 3 | CK63: =データ一覧!H671 -> 47 | CQ63: =データ一覧!H672 -> 3 | CW63: =データ一覧!H673 -> 23
A64: 卸売業、小売業 | H64: =データ一覧!H119 -> … | K64: =データ一覧!H176 -> … | N64: =データ一覧!H120 -> 875 | Q64: =データ一覧!H177 -> 6007 | T64: =データ一覧!H121 -> … | W64: =データ一覧!H178 -> … | AO64: １３ 税 ・ 財 政 | BX64: 医師 | CC64: 歯科医師 | CH64: 薬剤師 | CM64: 保健師 | CR64: 助産師 | CW64: 看護師
A65: 金融業、保険業 | H65: =データ一覧!H122 -> … | K65: =データ一覧!H179 -> … | N65: =データ一覧!H123 -> 56 | Q65: =データ一覧!H180 -> 639 | T65: =データ一覧!H124 -> … | W65: =データ一覧!H181 -> … | Z65: ７ 商 業 | AG65: =データ一覧!$A$302 -> 28.6.1(平成27年実績） | BR65: 医療 | CA65: 人 | CF65: 人 | CK65: 人 | CP65: 人 | CU65: 人 | CZ65: 人
A66: 不動産業、物品賃貸業 | H66: =データ一覧!H125 -> … | K66: =データ一覧!H182 -> … | N66: =データ一覧!H126 -> 107 | Q66: =データ一覧!H183 -> 538 | T66: =データ一覧!H127 -> … | W66: =データ一覧!H184 -> … | AS66: 歳入 | BB66: (千円） | BG66: 歳出 | BP66: (千円） | BR66: 関係者 | BW66: =データ一覧!H674 -> 126 | CB66: =データ一覧!H675 -> 35 | CG66: =データ一覧!H676 -> 130 | CL66: =データ一覧!H677 -> 54 | CQ66: =データ一覧!H678 -> 37 | CV66: =データ一覧!H679 -> 1033
A67: 学術研究、専門・技術ｻｰﾋﾞｽ業 | H67: =データ一覧!H128 -> … | K67: =データ一覧!H185 -> … | N67: =データ一覧!H129 -> 136 | Q67: =データ一覧!H186 -> 1765 | T67: =データ一覧!H130 -> … | W67: =データ一覧!H187 -> … | Z67: 産 業 分 類 | AD67: 商 店 数 | AG67: 従 業 者 数 | AJ67: 年 間 販 売 額 | AO67: 一人当たり歳入歳出予算決算額 | BZ67: 死因別死亡数 | CP67: =データ一覧!$A$680 -> 30年中 | CY67: 単 位：人
A68: 宿泊業、飲食サービス業 | H68: =データ一覧!H131 -> … | K68: =データ一覧!H188 -> … | N68: =データ一覧!H132 -> 569 | Q68: =データ一覧!H189 -> 3423 | T68: =データ一覧!H133 -> … | W68: =データ一覧!H190 -> … | AE68: 店 | AI68: 人 | AK68: 百万円 | AO68: 区分 | AS68: =データ一覧!$A$446 -> 元年度 | AX68: =データ一覧!$A$460 -> 30年度 | BC68: 区分 | BG68: =+AS68 -> 元年度 | BL68: =データ一覧!$A$460 -> 30年度 | BQ68: 死 因 | CC68: 悪 性 | CF68: 高血圧 | CL68: 脳血管 | CU68: 不慮の事故
A69: 生活関連サービス業、娯楽業 | H69: =データ一覧!H134 -> … | K69: =データ一覧!H191 -> … | N69: =データ一覧!H135 -> 275 | Q69: =データ一覧!H192 -> 1224 | T69: =データ一覧!H136 -> … | W69: =データ一覧!H193 -> … | Z69: 総 計 | AD69: =データ一覧!$H$302 -> 735 | AG69: =データ一覧!H311 -> 5066 | AJ69: =データ一覧!H320 -> 156769 | AS69: =データ一覧!H442 -> 420521.1093 | AX69: =データ一覧!H443 -> 483368.2581 | BG69: =データ一覧!H444 -> 420521.1093 | BL69: =データ一覧!H445 -> 455585.03 | BV69: 全 死 因 | BZ69: 結 核 | CC69: 新生物 | CF69: 性疾患 | CI69: 心疾患 | CL69: 疾 患 | CO69: 肺 炎 | CR69: 老 衰 | CX69: 交通事故
A70: 教育、学習支援業 | H70: =データ一覧!H137 -> … | K70: =データ一覧!H194 -> … | N70: =データ一覧!H138 -> 70 | Q70: =データ一覧!H195 -> 509 | T70: =データ一覧!H139 -> … | W70: =データ一覧!H196 -> … | Z70: 卸売業 | AD70: =データ一覧!H303 -> 152 | AG70: =データ一覧!H312 -> 1148 | AJ70: =データ一覧!H321 -> 75791 | AO70: 項目別歳入歳出予算決算額
A71: 医療、福祉 | H71: =データ一覧!H140 -> … | K71: =データ一覧!H197 -> … | N71: =データ一覧!H141 -> 201 | Q71: =データ一覧!H198 -> 3682 | T71: =データ一覧!H142 -> … | W71: =データ一覧!H199 -> … | Z71: 小売業 | AD71: =データ一覧!H304 -> 583 | AG71: =データ一覧!H313 -> 3918 | AJ71: =データ一覧!H322 -> 80978 | AO71: 区分 | AS71: =データ一覧!$A$446 -> 元年度 | AX71: =データ一覧!$A$460 -> 30年度 | BC71: 区分 | BG71: =+AS71 -> 元年度 | BL71: =データ一覧!$A$460 -> 30年度 | BV71: =データ一覧!H680 -> 710 | BZ71: － | CA71: =データ一覧!H681 -> 1 | CC71: =データ一覧!H682 -> 177 | CG71: =データ一覧!H683 -> 8 | CI71: =データ一覧!H684 -> 96 | CL71: =データ一覧!H685 -> 43 | CO71: =データ一覧!H686 -> 50 | CR71: =データ一覧!H687 -> 90 | CU71: =データ一覧!H688 -> 20 | CX71: =データ一覧!H689 -> 3
A72: 複合サービス事業 | H72: =データ一覧!H143 -> … | K72: =データ一覧!H200 -> … | N72: =データ一覧!H144 -> 17 | Q72: =データ一覧!H201 -> 381 | T72: =データ一覧!H145 -> … | W72: =データ一覧!H202 -> … | Z72: 各種商品 | AD72: =データ一覧!H305 -> 3 | AG72: =データ一覧!H314 -> 342 | AJ72: =データ一覧!H323 -> 7877 | AO72: 総額 | AS72: =SUM(AS73:AW85) -> 27112678 | AX72: =SUM(AX73:BB85) -> 31385101 | BC72: 総額 | BG72: =SUM(BG73:BK85) -> 27112678 | BL72: =SUM(BL73:BP85) -> 29581136 | BQ72: １９ 警 察 ・ 消 防 | CF72: =+データ一覧!$A690 -> 31.4.1
A73: サービス業 | H73: =データ一覧!H146 -> … | K73: =データ一覧!H203 -> … | N73: =データ一覧!H147 -> 267 | Q73: =データ一覧!H204 -> 2797 | T73: =データ一覧!H148 -> … | W73: =データ一覧!H205 -> … | Z73: 織物・衣服・身の回り品 | AD73: =データ一覧!H306 -> 90 | AG73: =データ一覧!H315 -> 294 | AJ73: =データ一覧!H324 -> 3627 | AO73: 地方税 | AS73: =データ一覧!H447 -> 12516287 | AX73: =データ一覧!H461 -> 13448847 | BC73: 議会費 | BG73: =データ一覧!H475 -> 288204 | BL73: =データ一覧!H489 -> 276985
A74: 公務 | H74: =データ一覧!H149 -> … | K74: =データ一覧!H206 -> … | N74: =データ一覧!H150 -> … | Q74: =データ一覧!H207 -> … | T74: =データ一覧!H151 -> … | W74: =データ一覧!H208 -> … | Z74: 飲食料品 | AD74: =データ一覧!H307 -> 180 | AG74: =データ一覧!H316 -> 1425 | AJ74: =データ一覧!H325 -> 23405 | AO74: 地方譲与税 | AS74: =データ一覧!H448 -> 208001 | AX74: =データ一覧!H462 -> 217472 | BC74: 総務費 | BG74: =データ一覧!H476 -> 3413510 | BL74: =データ一覧!H490 -> 4126090 | CA74: 交番・駐在所 | CJ74: 刑法犯認知件数 | CS74: 交通事故発生件数
A75: ４ 農 業 | Z75: 機械器具 | AD75: =データ一覧!H308 -> 91 | AG75: =データ一覧!H317 -> 652 | AJ75: =データ一覧!H326 -> 19293 | AO75: 各種交付金 | AS75: =データ一覧!H449 -> 1387500 | AX75: =データ一覧!H463 -> 1435054 | BC75: 民生費 | BG75: =データ一覧!H477 -> 9717434 | BL75: =データ一覧!H491 -> 9737743 | BR75: 警察署数 | CA75: 検問所数 | CK75: （27年中） | CT75: （27年中）
Z76: その他 | AD76: =データ一覧!H309 -> 205 | AG76: =データ一覧!H318 -> 1120 | AJ76: =データ一覧!H327 -> 22895 | AO76: 地方特例交付金 | AS76: =データ一覧!H450 -> 214186 | AX76: =データ一覧!H464 -> 50950 | BC76: 衛生費 | BG76: =データ一覧!H478 -> 2624485 | BL76: =データ一覧!H492 -> 2592098 | CO76: 件 | CX76: 件
C77: 農家人口と世帯員数(販売農家) | K77: 農家世帯の就業状態（販売農家） | Z77: 無店舗 | AD77: =データ一覧!H310 -> 14 | AG77: =データ一覧!H319 -> 85 | AJ77: =データ一覧!H328 -> 3881 | AO77: 地方交付税 | AS77: =データ一覧!H451 -> 1000000 | AX77: =データ一覧!H465 -> 1135291 | BC77: 労働費 | BG77: =データ一覧!H479 -> 138067 | BL77: =データ一覧!H493 -> 138254 | BS77: =データ一覧!H690 -> 1 | CB77: =データ一覧!H691 -> 9 | CK77: =データ一覧!H692 -> 371 | CT77: =データ一覧!H693 -> 116
A78: 農 | B78: 平 | K78: 農業従事者 | T78: 非農業従事 | W78: 農業従事者 | AO78: 分担金および負担金 | AS78: =データ一覧!H452 -> 318316 | AX78: =データ一覧!H466 -> 298788 | BC78: 農林水産業費 | BG78: =データ一覧!H480 -> 527655 | BL78: =データ一覧!H494 -> 400216 | BQ78: 火災発生件数 | CA78: 林野焼損 | CF78: 損 害 | CK78: 消 防 自 | CO78: その他の
A79: 家 | B79: =+LEFT(データ一覧!$A$209,2) -> 27 | C79: 区分 | E79: 農家人口 | H79: 15歳以上の | N79: 農業就業人口 | T79: 者 | W79: の平均年齢 | Z79: ８ 住 宅 | AO79: 使用料および手数料 | AS79: =データ一覧!H453 -> 576879 | AX79: =データ一覧!H467 -> 734400 | BC79: 商工費 | BG79: =データ一覧!H481 -> 2269287 | BL79: =データ一覧!H495 -> 1609441 | BQ79: =+データ一覧!$A$694 -> 30年中 | BV79: 焼損棟数 | CA79: 面 積 | CF79: 見 積 額 | CK79: 動 車 数 | CO79: ﾎﾟﾝﾌﾟ数 | CS79: 消防吏員 | CW79: 消防団員
A80: 人就 | B80: ・ | H80: 世帯員数 | Q80: 基幹的農業 | AO80: 国庫支出金 | AS80: =データ一覧!H454 -> 5038315 | AX80: =データ一覧!H468 -> 5334906 | BC80: 土木費 | BG80: =データ一覧!H482 -> 2025300 | BL80: =データ一覧!H496 -> 3716726 | BQ80: 件 | BW80: 棟 | CD80: ａ | CH80: 千円 | CU80: 人 | CY80: 人
A81: 口業 | B81: =+MID(データ一覧!$A$209,4,1) -> 2 | G81: 人 | J81: 人 | M81: 人 | P81: 人 | Q81: 従事者 | S81: 人 | V81: 人 | Y81: 歳 | Z81: =+データ一覧!$A$329 -> 29年 | AE81: =データ一覧!$A$332 -> 30年 | AF81: 中の増減 | AJ81: =+データ一覧!$A$332 -> 30年 | AO81: 県支出金 | AS81: =データ一覧!H455 -> 2748003 | AX81: =データ一覧!H469 -> 2852711 | BC81: 消防費 | BG81: =データ一覧!H483 -> 1036341 | BL81: =データ一覧!H497 -> 1026272 | BR81: =データ一覧!H694 -> 18 | BW81: =データ一覧!H695 -> 13 | CB81: =データ一覧!H696 -> 0 | CF81: =データ一覧!H697 -> 1773750 | CL81: =データ一覧!H698 -> 21 | CP81: =データ一覧!H699 -> 12 | CT81: =データ一覧!H700 -> 109 | CX81: =データ一覧!H701 -> 284
A82: と状 | B82: ・ | C82: 総数 | E82: =データ一覧!H209 -> 1828 | H82: =データ一覧!H212 -> 1692 | K82: =データ一覧!H215 -> 1224 | N82: =データ一覧!H218 -> 646 | Q82: =データ一覧!H221 -> 515 | T82: =データ一覧!H224 -> 468 | W82: =データ一覧!H227 -> 61.4 | AD82: 建設した住宅 | AG82: 消失した住宅 | AO82: 財産収入 | AS82: =データ一覧!H456 -> 15521 | AX82: =データ一覧!H470 -> 138417 | BC82: 教育費 | BG82: =データ一覧!H484 -> 3022373 | BL82: =データ一覧!H498 -> 3945526 | BQ82: ２０ そ の 他
A83: 況 | B83: =+RIGHT(データ一覧!$A$209,1) -> 1 | C83: 男 | E83: =データ一覧!H210 -> 893 | H83: =データ一覧!H213 -> 825 | K83: =データ一覧!H216 -> 664 | N83: =データ一覧!H219 -> 311 | Q83: =データ一覧!H222 -> 285 | T83: =データ一覧!H225 -> 161 | W83: =データ一覧!H228 -> 60.2 | AO83: 繰入金 | AS83: =データ一覧!H457 -> 136616 | AX83: =データ一覧!H471 -> 187095 | BC83: 災害復旧費 | BG83: =データ一覧!H485 -> 4000 | BL83: =データ一覧!H499 -> 28368
C84: 女 | E84: =データ一覧!H211 -> 935 | H84: =データ一覧!H214 -> 867 | K84: =データ一覧!H217 -> 560 | N84: =データ一覧!H220 -> 335 | Q84: =データ一覧!H223 -> 230 | T84: =データ一覧!H226 -> 307 | W84: =データ一覧!H229 -> 62.8 | Z84: 281,432 戸 | AA84: =データ一覧!H329 -> 24507 | AC84: 戸 | AD84: =データ一覧!H330 -> 450 | AF84: 戸 | AG84: =データ一覧!H331 -> 183 | AI84: 戸 | AK84: =データ一覧!H332 -> 24774 | AM84: 戸 | AO84: 地方債 | AS84: =データ一覧!H458 -> 2108100 | AX84: =データ一覧!H472 -> 2538500 | BC84: 公債費 | BG84: =データ一覧!H486 -> 2026022 | BL84: =データ一覧!H500 -> 1983417 | BV84: 気比の松原、柴田氏庭園、西福寺書院庭園、西福寺御影堂・阿弥陀堂・書院及び 庫裏、金ヶ崎城跡、武田耕雲斎等墓、氣比神宮大鳥居、朝鮮鐘、疋壇城跡、 穴地蔵古墳、立洞古墳、中郷古墳群、洲崎の高燈籠、玄蕃尾城跡、 旧大和田銀行本店本館、旧紐育スタンダード石油会社倉庫（赤レンガ倉庫）、 旧敦賀倉庫株式会社新港第一号・第二号・第三号倉庫
AO85: その他 | AS85: =データ一覧!H459 -> 844954 | AX85: =データ一覧!H473 -> 3012670 | BC85: その他 | BG85: =データ一覧!H487 -> 20000 | BL85: =データ一覧!H501 -> 0 | BQ85: 名所・旧跡
C86: 総農家数等 | J86: 専兼業別（販売農家） | R86: 経営面積規模別（販売農家） | BQ86: 文化財等
B87: 平 | C87: 区 分 | G87: 戸数（戸） | J87: 区 分 | O87: 戸数（戸） | R87: 区 分 | W87: 戸数（戸） | Z87: ９ 議 員 ・ 職 員 | AO87: １４ 文 化 | AY87: ( | AZ87: =データ一覧!$A$508 -> 31.3.31 | BD87: ただし図書館・公民館・児童館 | BL87: =データ一覧!$A$502 -> 31.4.1
A88: 農 | B88: =+LEFT(データ一覧!$A$230,2) -> 27 | C88: 総農家 | G88: =データ一覧!H230 -> 975 | J88: 総数 | O88: =データ一覧!H236 -> 502 | R88: 総数 | W88: =データ一覧!H241 -> 502 | BE88: 宗教法人数 | BL88: =データ一覧!$A$510 -> 30.12.31 | BP88: ）
A89: 家 | B89: ・ | C89: 販売農家 | G89: =データ一覧!H231 -> 502 | J89: 専業農家 | O89: =データ一覧!H237 -> 133 | R89: 0.5 ha 未満 | W89: =データ一覧!H242 -> 162 | Z89: 市 町 村 議 会 | AC89: 有権者数 | AE89: =データ一覧!$A$336 -> 元.9.1 | AG89: 市 町 村 議 会 | AJ89: 職 員 数 | AT89: 図書館 | AZ89: 公 民 館 | BK89: 社会教育学級講座 | BQ89: 特産物 | BV89: 昆布加工品、かまぼこ、越前かに、敦賀ふぐ、敦賀真鯛、杉箸アカカンバ、 古田苅かぶら、黒河マナ、東浦みかん、豆らくがん、かたパン、敦賀ラーメン、ソースカツ丼
A90: 数 | B90: =+MID(データ一覧!$A$230,4,1) -> 2 | D90: 主業 | G90: =データ一覧!H232 -> 27 | J90: 兼業農家 | O90: =データ一覧!H238 -> 369 | R90: 0.5 ha ～ 1.0 ha | W90: =データ一覧!H243 -> 182 | Z90: 議 員 定 数 | AC90: 男 | AE90: 女 | AG90: 選 挙 投 票 率 | AJ90: 総 数 | AL90: 一般行政職 | AO90: 公 共 | AS90: 館 数 | AV90: 図書数 | AY90: 本 館 | BB90: 分 館 | BE90: 公 園 | BH90: 児童館 | BK90: 学級講座数 | BN90: 受講者数
B91: ・ | D91: 準主業 | G91: =データ一覧!H233 -> 104 | K91: 第１種兼業 | O91: =データ一覧!H239 -> 20 | R91: 1.0 ha ～ 1.5 ha | W91: =データ一覧!H244 -> 80 | AB91: 人 | AD91: 人 | AF91: 人 | AI91: ％ | AK91: 人 | AM91: 人 | AO91: 施 設 数 | AT91: =データ一覧!H502 -> 1 | AV91: =データ一覧!H503 -> 273338 | AZ91: =データ一覧!H504 -> 9 | BB91: =データ一覧!H505 -> 0 | BE91: =データ一覧!H506 -> 40 | BH91: =データ一覧!H507 -> 3 | BK91: =データ一覧!H508 -> 503 | BN91: =データ一覧!H509 -> 9025 | BQ91: 年中行事 | BV91: 敦賀西町の綱引き､花換まつり､沓見御田植祭､総参祭､とうろう流しと大花火大会､ 氣比神宮例大祭敦賀まつり、赤崎の獅子舞、相撲甚句、菊花大会、厄除せんべい焼､ 彼岸祭、野坂だのせ祭、御船遊管絃祭、昆沙講
B92: =+RIGHT(データ一覧!$A$230,1) -> 1 | D92: 副業的 | G92: =データ一覧!H234 -> 371 | K92: 第２種兼業 | O92: =データ一覧!H240 -> 349 | R92: 1.5 ha ～ 2.0 ha | W92: =データ一覧!H245 -> 27 | AA92: =データ一覧!H333 -> 24 | AC92: =データ一覧!H336 -> 26671 | AE92: =データ一覧!H337 -> 27643 | AG92: =データ一覧!H335 -> 無投票 | AJ92: =データ一覧!H338 -> 997 | AL92: =データ一覧!H339 -> 336 | AO92: 宗 教 | AS92: 仏教系 | AV92: ｷﾘｽﾄ教系 | AY92: 神道諸派 | BB92: 公会堂・市民会館 | BH92: テレビ | BK92: 衛星放送契約数
C93: 自給的農家 | G93: =データ一覧!H235 -> 473 | R93: 2.0 ha 以上 | W93: =データ一覧!H246 -> 51 | AG93: =データ一覧!H334 -> 31.4.21 | AO93: 法 人 数 | AS93: =データ一覧!H510 -> 127 | AV93: =データ一覧!H511 -> 6 | AY93: =データ一覧!H512 -> 106 | BB93: =データ一覧!H513 -> 2 | BH93: 等 | BK93: =データ一覧!H514 -> 15238

Sheet 小浜市
A1: =+データ一覧!I5 -> 0
A2: =+データ一覧!I8 -> 0
AO3: 0
AB4: 【市章とそのいわれ】小浜市の「小」の字を、未来への飛躍を | AO4: 【位置および地勢】小浜市は福井県の南西部に位置し南は東西に走る京都 | BT4: 所在地 | CB4: 〒917-8585
AB5: こめて、鳥の羽ばたく姿にデザインしたもので、 | AP5: 北部一帯に連なる山岳で、一部滋賀県と境を接し、北は内外海半島、 | CB5: 小浜市大手町６番３号
A6: =+データ一覧!I6 -> おばまし | AB6: 市制発足の際、市民の公募作品から選定した。 | AP6: 大島半島で囲まれた小浜湾に面している。付近一帯の海岸は 国定公園の
A7: =データ一覧!I9 -> 小浜市 | AB7: 0 | AP7: 指定を受け、各所に明媚な風光をかもしだしており、遠く南の山岳地帯に | BT7: 電話番号 | CB7: （０７７０）５３－１１１１
AB8: 0 | AP8: 源を発する北川、南川の両河川は海岸に細長く走る肥沃な平野を貫流して、 | BT8: FAX番号 | CB8: 〃 ５３－０７４２
AB9: 0 | AP9: 下流にかんがいをもたらし小浜湾に注いでいる。
AB10: 0 | AO10: 0 | BT10: 最寄駅および距離 | CB10: ＪＲ小浜線小浜駅 下車４００ｍ
AB11: 0 | AO11: 0
AB13: 【市が掲げる標語】「夢、無限大」感動おばま | BT13: ホームページ | CB13: http://www1.city.obama.fukui.jp/
A15: １ 土 地 | Z15: =データ一覧!$A$261 -> 30年 | AA15: 産米収穫量 | AD15: 収 穫 量 | AG15: 作 付 面 積 | AJ15: 10a当たり収量 | BQ15: １５ 労 働 | CF15: 27.10.1
AD16: =データ一覧!$I$261 -> 4530 | AF16: t | AG16: =データ一覧!$I$262 -> 909 | AI16: ha | AJ16: =データ一覧!I263 -> 498 | AM16: kg | AO16: １０ 工 業 | BC16: =データ一覧!$A$340 -> 30.6.1（平成29年実績）
A17: 総 面 積 | K17: 固 定 資 産 概 要 調 書 に よ る 地 目 別 面 積 | AC17: 総 数 | AG17: うち 田 | AK17: うち 畑 | BX17: 産業別就業者数
C18: =データ一覧!$A$10 -> 元.10.1 | Q18: =データ一覧!$A$12 -> 31.1.1 | Z18: 耕 地 面 積 | AD18: ha | AG18: ha | AK18: ha | AP18: 産業分類 | AX18: 事業所数 | BC18: 従業者数 | BI18: 年間製造品出荷額等 | BR18: 区 分 | BW18: 総 数 | CB18: 男 | CF18: 女 | CJ18: 区 分 | CO18: 総 数 | CT18: 男 | CX18: 女
G19: ㎢ | K19: 総 数 | P19: う ち 田 | U19: う ち 畑 | Z19: =データ一覧!$A$247 -> 30.7.15 | AC19: =データ一覧!$I$247 -> 1420 | AF19: =データ一覧!$I$248 -> 1310 | AJ19: =データ一覧!$I$249 -> 118 | BA19: 事業所 | BC19: 人 | BF19: 人 | BH19: 万円 | BO19: 万円 | BW19: 人 | CC19: 人 | CG19: 人 | CO19: 人 | CS19: 人 | CW19: 人
D20: =データ一覧!I10 -> 233.11 | O20: ha | T20: ha | Y20: ha | Z20: 農 業 生 産 物 | AD20: 作 付 面 積 | AG20: 収 穫 量 | AJ20: 10a当たり収量 | AP20: 総数 | AY20: =データ一覧!I340 -> 63 | BC20: =+データ一覧!I365 -> 1668 | BJ20: =データ一覧!I390 -> 3173113 | BQ20: 総 数 | BW20: =CA20+CE20 -> 15214 | CA20: =データ一覧!I515 -> 8537 | CE20: =データ一覧!I540 -> 6677
L21: =データ一覧!I12 -> 13503.4 | Q21: =データ一覧!I13 -> 1490.6 | V21: =データ一覧!I14 -> 238.4 | Z21: =データ一覧!$A$264 -> 30年中 | AD21: ha | AG21: t | AJ21: kg | AO21: 食料品 | AP21: 食料品 | AY21: =データ一覧!I341 -> 13 | BC21: =+データ一覧!I366 -> 275 | BJ21: =データ一覧!I391 -> 343835 | CJ21: 卸売業,小売業 | CO21: =CS21+CW21 -> 2358 | CS21: =データ一覧!I528 -> 1170 | CW21: =データ一覧!I553 -> 1188
A22: 町 ･ 丁 ･ 大 字 | K22: う ち 宅 地 | P22: う ち 山 林 | U22: う ち 原 野 | Z22: 水 稲 | AD22: =データ一覧!I264 -> 909 | AG22: =データ一覧!I265 -> 4530 | AJ22: =データ一覧!I266 -> 498 | AO22: 飲料・飼料 | AP22: 飲料・飼料 | AY22: =データ一覧!I342 -> 0 | BC22: =+データ一覧!I367 -> 0 | BJ22: =データ一覧!I392 -> 0 | BQ22: 第１次産業 | BW22: =CA22+CE22 -> 637 | CA22: =データ一覧!I516 -> 399 | CE22: =データ一覧!I541 -> 238 | CJ22: 金融業,保険業 | CO22: =CS22+CW22 -> 284 | CS22: =データ一覧!I529 -> 113 | CW22: =データ一覧!I554 -> 171
A23: 区 画 数 | H23: =データ一覧!I11 -> 143 | O23: ha | T23: ha | Y23: ha | Z23: 六 条 大 麦 | AD23: =データ一覧!I267 -> 44 | AG23: =データ一覧!I268 -> 41 | AJ23: =データ一覧!I269 -> 93 | AO23: 繊維 | AP23: 繊維 | AY23: =データ一覧!I343 -> 9 | BC23: =+データ一覧!I368 -> 230 | BJ23: =データ一覧!I393 -> 327071 | BR23: 農業 | BW23: =CA23+CE23 -> 514 | CA23: =データ一覧!I517 -> 300 | CE23: =データ一覧!I542 -> 214 | CJ23: 不動産業 | CO23: 114 | CS23: =データ一覧!I530 -> 73 | CW23: =データ一覧!I555 -> 41
A24: =データ一覧!$A$11 -> 31.4.1 | L24: =データ一覧!I15 -> 647.8 | Q24: =データ一覧!I16 -> 7284.7 | V24: =データ一覧!I17 -> 149.4 | Z24: 大 豆 | AD24: =データ一覧!I270 -> 28 | AG24: =データ一覧!I271 -> 12 | AJ24: =データ一覧!I272 -> 44 | AO24: 衣服 | AP24: 木材 | AY24: =データ一覧!I344 -> 4 | BC24: =+データ一覧!I369 -> 42 | BJ24: =データ一覧!I394 -> 42217 | BR24: 林業 | BW24: 23 | CA24: =データ一覧!I518 -> 19 | CE24: =データ一覧!I543 -> 4 | CJ24: 学術研究 | CO24: 503 | CS24: =データ一覧!I531 -> 399 | CW24: =データ一覧!I556 -> 104
A25: ２ 世 帯 数 と 人 口 | AB25: 区 分 | AD25: 乳 用 牛 | AF25: 肉 用 牛 | AH25: 豚 | AJ25: 採卵鶏 | AL25: ブロイラー | AO25: 木材 | AP25: 家具 | AY25: =データ一覧!I345 -> 2 | BC25: =+データ一覧!I370 -> 17 | BJ25: =データ一覧!I395 -> x | BR25: 漁業 | BW25: 100 | CA25: =データ一覧!I519 -> 80 | CE25: =データ一覧!I544 -> 20 | CJ25: 宿泊業,飲食ｻｰﾋﾞｽ | CO25: 891 | CS25: =データ一覧!I532 -> 315 | CW25: =データ一覧!I557 -> 576
Z26: 畜 産 | AB26: 飼養農家 | AD26: =データ一覧!$I$251 -> - | AF26: =データ一覧!$I$253 -> - | AH26: =データ一覧!$I$255 -> - | AJ26: =データ一覧!$I$257 -> - | AL26: =データ一覧!$I$259 -> - | AO26: 家具 | AP26: パルプ・紙 | AY26: =データ一覧!I346 -> 1 | BC26: =+データ一覧!I371 -> 34 | BJ26: =データ一覧!I396 -> x | BQ26: 第２次産業 | BW26: 4332 | CA26: =データ一覧!I520 -> 3020 | CE26: =データ一覧!I545 -> 1312 | CJ26: 生活関連ｻｰﾋﾞｽ業 | CO26: 465 | CS26: =データ一覧!I533 -> 191 | CW26: =データ一覧!I558 -> 274
I27: 人 口 | U27: １世帯当 | W27: 人 口 | Z27: =データ一覧!$A$251 -> 31.3.31 | AB27: （戸） | AO27: パルプ・紙 | AP27: 印刷 | AY27: =データ一覧!I347 -> 3 | BC27: =+データ一覧!I372 -> 20 | BJ27: =データ一覧!I397 -> 19275 | BR27: 鉱業，採石業 | BW27: 1 | CA27: =データ一覧!I521 -> 1 | CE27: =データ一覧!I546 -> 0 | CJ27: 教育,学習支援業 | CO27: 829 | CS27: =データ一覧!I534 -> 384 | CW27: =データ一覧!I559 -> 445
A28: 区 分 | F28: 世帯数 | I28: 総 数 | L28: 男 | O28: 女 | R28: 男／女 | U28: たり人員 | W28: 密 度 | AB28: 頭 羽 | AD28: =データ一覧!$I$252 -> - | AF28: =データ一覧!$I$254 -> - | AH28: =データ一覧!$I$256 -> - | AJ28: =データ一覧!$I$258 -> - | AL28: =データ一覧!$I$260 -> - | AO28: 出版・印刷 | AP28: 化学 | AY28: =データ一覧!I348 -> 1 | BC28: =+データ一覧!I373 -> 57 | BJ28: =データ一覧!I398 -> x | BR28: 建設業 | BW28: 1726 | CA28: =データ一覧!I522 -> 1498 | CE28: =データ一覧!I547 -> 228 | CJ28: 医療，福祉 | CO28: 1990 | CS28: =データ一覧!I535 -> 459 | CW28: =データ一覧!I560 -> 1531
F29: 世 帯 | I29: 人 | L29: 人 | O29: 人 | S29: ％ | U29: 人 | W29: 人/㎢ | AO29: 化学 | AP29: 石油・石炭 | AY29: =データ一覧!I349 -> 1 | BC29: =+データ一覧!I374 -> 14 | BJ29: =データ一覧!I399 -> x | BR29: 製造業 | BW29: 2605 | CA29: =データ一覧!I523 -> 1521 | CE29: =データ一覧!I548 -> 1084 | CJ29: 複合サービス事業 | CO29: 277 | CS29: =データ一覧!I536 -> 185 | CW29: =データ一覧!I561 -> 92
A30: =データ一覧!$A$25 -> 2.10.1 | F30: =データ一覧!I25 -> 9920 | I30: =+L30+O30 -> 33774 | L30: =データ一覧!I27 -> 16175 | O30: =データ一覧!I28 -> 17599 | S30: =+L30/O30*100 -> 91.90863117 | U30: =データ一覧!I30 -> 3.4 | W30: =データ一覧!I31 -> 145.1 | Z30: ５ 林 業 | AO30: 石油・石炭 | AP30: プラスチック | AY30: =データ一覧!I350 -> 1 | BC30: =+データ一覧!I375 -> 49 | BJ30: =データ一覧!I400 -> x | BQ30: 第３次産業 | BW30: 10174 | CA30: =データ一覧!I524 -> 5073 | CE30: =データ一覧!I549 -> 5101 | CJ30: サービス業 | CO30: 1089 | CS30: =データ一覧!I537 -> 743 | CW30: =データ一覧!I562 -> 346
A31: =データ一覧!$A$32 -> 7.10.1 | F31: =データ一覧!I32 -> 10383 | I31: =+L31+O31 -> 33496 | L31: =データ一覧!I34 -> 16164 | O31: =データ一覧!I35 -> 17332 | S31: 93.26102008 | U31: =データ一覧!I37 -> 3.23 | W31: =データ一覧!I38 -> 143.9 | AO31: プラスチック | AP31: ゴム | AY31: =データ一覧!I351 -> 0 | BC31: =+データ一覧!I376 -> 0 | BJ31: =データ一覧!I401 -> 0 | BR31: 電気･ｶﾞｽ･水道業 | BW31: 277 | CA31: =データ一覧!I525 -> 245 | CE31: =データ一覧!I550 -> 32 | CJ31: 公務 | CO31: 626 | CS31: =データ一覧!I538 -> 433 | CW31: =データ一覧!I563 -> 193
A32: =データ一覧!$A$39 -> 12.10.1 | F32: =データ一覧!I39 -> 10962 | I32: =+L32+O32 -> 33295 | L32: =データ一覧!I41 -> 16134 | O32: =データ一覧!I42 -> 17161 | S32: 94.01550026 | U32: =データ一覧!I44 -> 3.04 | W32: =データ一覧!I45 -> 143 | Z32: 森 林 総 面 積 | AH32: =データ一覧!$A$273 -> 31.3.31 | AO32: ゴム | AP32: 皮革 | AY32: =データ一覧!I352 -> 0 | BC32: =+データ一覧!I377 -> 0 | BJ32: =データ一覧!I402 -> 0 | BR32: 情報通信業 | BW32: 104 | CA32: =データ一覧!I526 -> 57 | CE32: =データ一覧!I551 -> 47 | CI32: 分類不能の産業 | CO32: 71 | CS32: =データ一覧!I539 -> 45 | CW32: =データ一覧!I564 -> 26
A33: =+データ一覧!$A$46 -> 17.10.1 | F33: =データ一覧!I46 -> 11136 | I33: =+L33+O33 -> 32182 | L33: =データ一覧!I48 -> 15620 | O33: =データ一覧!I49 -> 16562 | S33: 94.31228113 | U33: =データ一覧!I51 -> 2.89 | W33: =データ一覧!I52 -> 138.2 | Z33: 森 林 の 構 成 | AO33: 皮革 | AP33: 窯業・土石 | AY33: =データ一覧!I353 -> 2 | BC33: =+データ一覧!I378 -> 30 | BJ33: =データ一覧!I403 -> x | BR33: 運輸業,郵便業 | BW33: =CA33+CE33 -> 367 | CA33: =データ一覧!I527 -> 306 | CE33: =データ一覧!I552 -> 61
A34: =+データ一覧!$A$53 -> 22.10.1 | F34: =+データ一覧!I53 -> 11477 | I34: =+L34+O34 -> 31340 | L34: =+データ一覧!I55 -> 15376 | O34: =+データ一覧!I56 -> 15964 | S34: 96.3167126 | U34: =+データ一覧!I58 -> 2.73 | W34: =+データ一覧!I59 -> 134.6 | AE34: ha | AL34: ha | AO34: 窯業・土石 | AP34: 鉄鋼 | AY34: =データ一覧!I354 -> 0 | BC34: =+データ一覧!I379 -> 0 | BJ34: =データ一覧!I404 -> 0 | BQ34: １６ 社 会 福 祉 | CG34: =データ一覧!$A$565 -> 31.4.1
A35: =データ一覧!$A$60 -> 27.10.1 | F35: =データ一覧!I60 -> 11220 | I35: =データ一覧!I61 -> 29670 | L35: =データ一覧!I62 -> 14539 | O35: =データ一覧!I63 -> 15131 | S35: 96.08750248 | U35: =データ一覧!I68 -> 2.49 | W35: =データ一覧!I66 -> 127.3 | Z35: 総 数 | AD35: =データ一覧!I273 -> 19011.3 | AG35: 天然林 針葉樹 | AK35: =データ一覧!I276 -> 1162.01 | AO35: 鉄鋼 | AP35: 非鉄金属 | AY35: =データ一覧!I355 -> 0 | BC35: =+データ一覧!I380 -> 0 | BJ35: =データ一覧!I405 -> 0
A36: =+データ一覧!$A$67 -> 元.10.1 | F36: =データ一覧!I67 -> 11450 | I36: =データ一覧!I76 -> 28538 | L36: =データ一覧!I77 -> 14077 | O36: =データ一覧!I78 -> 14461 | S36: =+L36/O36*100 -> 97.34458198 | U36: =データ一覧!I68 -> 2.49 | W36: =データ一覧!I69 -> 122.4228905 | Z36: 人工林 針葉樹 | AD36: =データ一覧!I274 -> 7355.94 | AG36: 天然林 広葉樹 | AK36: =データ一覧!I277 -> 10139.76 | AO36: 非鉄金属 | AP36: 金属 | AY36: =データ一覧!I356 -> 1 | BC36: =+データ一覧!I381 -> 22 | BJ36: =データ一覧!I406 -> x | BR36: 区分 | BY36: 施設数 | CD36: 収容定員 | CJ36: 区分 | CQ36: 施設数 | CV36: 収容定員
A37: 年 | C37: 区 | E37: 0歳 | H37: 15歳 | K37: 25歳 | N37: 35歳 | Q37: 45歳 | T37: 55歳 | W37: 65歳 | Z37: 人工林 広葉樹 | AD37: =データ一覧!I275 -> 34.73 | AG37: 竹 林 | AK37: =データ一覧!I278 -> 181.31 | AO37: 金属 | AP37: はん用機械 | AY37: =データ一覧!I357 -> 0 | BC37: =+データ一覧!I382 -> 0 | BJ37: =データ一覧!I407 -> 0 | BQ37: 生活保護施設 | BY37: =データ一覧!I565 -> 0 | CC37: =データ一覧!I578 -> 0 | CG37: 人 | CI37: 指定障害者支援施設 | CQ37: =データ一覧!I571 -> 3 | CU37: =データ一覧!I584 -> 120 | CY37: 人
A38: 齢 | B38: 令 | F38: ～ | I38: ～ | L38: ～ | O38: ～ | R38: ～ | U38: ～ | AO38: 一般機械 | AP38: 生産用機械 | AY38: =データ一覧!I358 -> 2 | BC38: =+データ一覧!I383 -> 30 | BJ38: =データ一覧!I408 -> x | BQ38: 地域福祉施設 | BY38: =データ一覧!I566 -> 0 | CC38: =データ一覧!I579 -> 0 | CI38: 指定相談支援事業所 | CQ38: =データ一覧!I572 -> 3 | CU38: =データ一覧!I585 -> 0
A39: 階 | B39: 元 | C39: 分 | G39: 14歳 | J39: 24歳 | M39: 34歳 | P39: 44歳 | S39: 54歳 | V39: 64歳 | Y39: 以上 | Z39: 林 野 の 構 成 | AG39: 保 有 形 態 別 | AO39: 電気機械 | AP39: 業務用機械 | AY39: =データ一覧!I359 -> 1 | BC39: =+データ一覧!I384 -> 61 | BJ39: =データ一覧!I409 -> x | BQ39: 老人福祉施設 | BY39: =データ一覧!I567 -> 10 | CC39: =データ一覧!I580 -> 113 | CI39: 児童福祉施設 | CQ39: =データ一覧!I573 -> 23 | CU39: =データ一覧!I586 -> 1060
A40: 級 | B40: ・ | G40: 人 | J40: 人 | L40: 人 | O40: 人 | R40: 人 | U40: 人 | X40: 人 | AF40: ha | AL40: ha | AP40: 電子・デバイス | AY40: =データ一覧!I360 -> 2 | BC40: =+データ一覧!I385 -> 160 | BJ40: =データ一覧!I410 -> x | BQ40: 介護保険施設 | BY40: =データ一覧!I568 -> 41 | CC40: =データ一覧!I581 -> 775 | CI40: 母子福祉施設 | CQ40: =データ一覧!I574 -> 0 | CU40: =データ一覧!I587 -> 0
A41: 別 | B41: 10 | C41: 総 数 | E41: =+E42+E43 -> 3579 | H41: =+H42+H43 -> 2391 | K41: =+K42+K43 -> 2428 | N41: =+N42+N43 -> 3317 | Q41: =+Q42+Q43 -> 3606 | T41: =+T42+T43 -> 3957 | W41: =+W42+W43 -> 9179 | Z41: 無立木地 伐採跡地 | AD41: =データ一覧!I279 -> 2.56 | AG41: 国 有 | AK41: =データ一覧!I281 -> 689.15 | AP41: 電気機械 | AY41: =データ一覧!I361 -> 5 | BC41: =+データ一覧!I386 -> 265 | BJ41: =データ一覧!I411 -> 905458 | BQ41: 障害者自立支援法施行前からの身体障害者福祉施設 | BY41: =データ一覧!I569 -> 0 | CC41: =データ一覧!I582 -> 0 | CI41: 婦人保護施設 | CQ41: =データ一覧!I575 -> 0 | CU41: =データ一覧!I588 -> 0
A42: 人 | B42: ・ | C42: 男 | E42: =データ一覧!I79 -> 1849 | H42: =データ一覧!I80 -> 1296 | K42: =データ一覧!I81 -> 1347 | N42: =データ一覧!I82 -> 1730 | Q42: =データ一覧!I83 -> 1831 | T42: =データ一覧!I84 -> 2020 | W42: =データ一覧!I85 -> 3948 | Z42: 無立木地 未立木地 | AD42: =データ一覧!I280 -> 134.99 | AG42: 公 有 | AK42: =データ一覧!I282 -> 1887.25 | AO42: 輸送機械 | AP42: 情報通信機械 | AY42: =データ一覧!I362 -> 0 | BC42: =+データ一覧!I387 -> 0 | BJ42: =データ一覧!I412 -> 0 | CI42: その他の社会福祉施設 | CQ42: =データ一覧!I576+データ一覧!I577 -> 0 | CU42: =データ一覧!I589+データ一覧!I590 -> 0
A43: 口 | B43: 1 | C43: 女 | E43: =データ一覧!I87 -> 1730 | H43: =データ一覧!I88 -> 1095 | K43: =データ一覧!I89 -> 1081 | N43: =データ一覧!I90 -> 1587 | Q43: =データ一覧!I91 -> 1775 | T43: =データ一覧!I92 -> 1937 | W43: =データ一覧!I93 -> 5231 | AG43: 私 有 | AK43: =データ一覧!I283 -> 16434.9 | AO43: 精密機械 | AP43: 輸送機械 | AY43: =データ一覧!I363 -> 2 | BC43: =+データ一覧!I388 -> 31 | BJ43: =データ一覧!I413 -> x | BQ43: 障害福祉サービス事業所 | BY43: =データ一覧!I570 -> 25 | CC43: =データ一覧!I583 -> 244
Z44: 林 産 物 生 産 量 | AJ44: =データ一覧!$A$284 -> 30年中 | AO44: その他 | AP44: その他 | AY44: =データ一覧!I364 -> 13 | BC44: =+データ一覧!I389 -> 331 | BJ44: =データ一覧!I414 -> 493624 | BQ44: １７ 教 育 | CG44: =データ一覧!$A$591 -> 元.5.1（特別支援学校、専修学校はH30.5.1現在）
A45: 人口動態 | H45: 自 然 動 態 | N45: 社 会 動 態 | T45: =データ一覧!$A74 -> 30.1.1～30.12.31 | Z45: 生椎茸 | AD45: =データ一覧!I284 -> 3600 | AF45: ㎏ | AG45: 乾椎茸 | AK45: =データ一覧!I285 -> - | AM45: ㎏
C46: 区 分 | H46: 出 生 | K46: 死 亡 | N46: 転 入 | Q46: 転 出 | T46: 婚 姻 | W46: 離 婚 | Z46: えのきだけ | AD46: =データ一覧!I287 -> - | AF46: ㎏ | AG46: なめこ | AK46: =データ一覧!I286 -> - | AM46: ㎏ | AP46: 工 業 用 水 量 | AV46: （従業者30人以上の事業所） | BG46: =データ一覧!I415 -> 557 | BL46: ㎥／日 | CA46: 学校数（校） | CH46: 教員数（人） | CP46: 学生・生徒・児童数（人）
A47: =LEFT(データ一覧!$A70,7) -> 30.10.1 | H47: 人 | K47: 人 | N47: 人 | Q47: 人 | U47: 件 | X47: 件 | Z47: ひらたけ | AD47: =+データ一覧!I288 -> - | AF47: ㎏ | AG47: まいたけ | AK47: =+データ一覧!I289 -> - | AM47: ㎏ | BS47: 区分 | CA47: 本 校 | CD47: 分 校 | CG47: 本 務 | CK47: 兼 務 | CO47: 総 数 | CS47: 男 | CW47: 女
A48: ～ | C48: 実 数 | H48: =データ一覧!I70 -> 211 | K48: =データ一覧!I71 -> 407 | N48: =データ一覧!I72 -> 980 | Q48: =データ一覧!I73 -> 918 | T48: =データ一覧!I74 -> 129 | W48: =データ一覧!I75 -> 30 | AO48: １１ 上 ・ 下 水 道 | BR48: 小学校 | CA48: =データ一覧!I592 -> 9 | CD48: =データ一覧!I593 -> 0 | CG48: =データ一覧!I594 -> 131 | CK48: =データ一覧!I595 -> 14 | CO48: =データ一覧!I596 -> 1500 | CS48: =データ一覧!I597 -> 788 | CW48: =データ一覧!I598 -> 712
A49: =RIGHT(データ一覧!$A72,7) -> ～元.9.30 | C49: 比率(対1,000人) | H49: =+H48/I35*1000 -> 7.111560499 | K49: =+K48/I35*1000 -> 13.71755982 | N49: - | Q49: - | T49: =+T48/I35*1000 -> 4.347826087 | W49: =+W48/I35*1000 -> 1.011122346 | Z49: ６ 漁 業 | BR49: 中学校 | CA49: =データ一覧!I600 -> 2 | CD49: =データ一覧!I601 -> 0 | CG49: =データ一覧!I602 -> 63 | CK49: =データ一覧!I603 -> 6 | CO49: =データ一覧!I604 -> 765 | CS49: =データ一覧!I605 -> 395 | CW49: =データ一覧!I606 -> 370
AO50: 水 道 供 給 人 口 | AV50: 上 水 道 | AZ50: 簡易水道 | BD50: 専用水道 | BH50: 飲料水供給施設 | BL50: 下水道処理人口 | BR50: 高等学校 | CA50: =データ一覧!I608 -> 2 | CD50: =データ一覧!I609 -> 0 | CG50: =データ一覧!I610 -> 122 | CK50: =データ一覧!I611 -> 32 | CO50: =データ一覧!I612 -> 1353 | CS50: =データ一覧!I613 -> 701 | CW50: =データ一覧!I614 -> 652
A51: ３ 事 業 所（民 営） （平 28.6.1） | Z51: 漁船隻数・トン数 | AD51: =データ一覧!$A$290 -> 30.12.31 | AH51: 動 力 船 | AO51: =データ一覧!$A$416 -> 31.3.31 | AU51: 人 | AW51: =データ一覧!I416 -> 24201 | AZ51: =データ一覧!I417 -> 4217 | BE51: =データ一覧!I418 -> 0 | BI51: =データ一覧!I419 -> 168 | BM51: =データ一覧!I420 -> 20064 | BR51: 大学・短期大学 | CA51: =データ一覧!I615 -> 0 | CD51: =データ一覧!I616 -> 1 | CG51: =データ一覧!I617 -> 23 | CK51: =データ一覧!I618 -> 19 | CO51: =データ一覧!I619 -> 184 | CS51: =データ一覧!I620 -> 140 | CW51: =データ一覧!I621 -> 44
Z52: 無動力船隻数 | AD52: 船外機付漁船隻数 | AH52: 隻 数 | AK52: 総 ト ン 数 | BR52: 高等専門学校 | CA52: =データ一覧!I622 -> 0 | CD52: =データ一覧!I623 -> 0 | CG52: =データ一覧!I624 -> 0 | CK52: =データ一覧!I625 -> 0 | CO52: =データ一覧!I626 -> 0 | CS52: =データ一覧!I627 -> 0 | CW52: =データ一覧!I628 -> 0
H53: 総 数 | N53: 民 営 | T53: 国 ･ 地方公共団体 | AC53: 隻 | AG53: 隻 | AJ53: 隻 | AM53: t | AO53: １２ 交 通 ・ 通 信 | BR53: 特別支援学校 | CA53: =+データ一覧!I630 -> 1 | CD53: =+データ一覧!I631 -> 0 | CG53: =+データ一覧!I632 -> 55 | CK53: =+データ一覧!I633 -> x | CO53: =+データ一覧!I634 -> 69 | CS53: =+データ一覧!I635 -> 39 | CW53: =+データ一覧!I636 -> 30
A54: 区 分 | H54: 事業所数 | K54: 従業者数 | N54: 事業所数 | Q54: 従業者数 | T54: 事業所数 | W54: 従業者数 | Z54: =データ一覧!$I$290 -> 2 | AD54: =データ一覧!$I$291 -> 149 | AH54: =データ一覧!I292 -> 158 | AK54: =データ一覧!I293 -> 631.44 | BR54: 幼稚園 | CA54: =データ一覧!I638 -> 1 | CD54: =データ一覧!I639 -> 0 | CG54: =データ一覧!I640 -> 8 | CK54: =データ一覧!I641 -> 3 | CO54: =データ一覧!I642 -> 88 | CS54: =データ一覧!I643 -> 42 | CW54: =データ一覧!I644 -> 46
K55: 人 | Q55: 人 | W55: 人 | Z55: 男女別就業者数 | AH55: =データ一覧!$A$294 -> 30.11.1 | AO55: 道 路 | AS55: 実 延 長 | AW55: 国 道 | BA55: 県 道 | BE55: 市町道 | BI55: 鉄 道 営 業 キ ロ 数 | BR55: 幼保連携認定こども園 | CA55: =データ一覧!I646 -> 1 | CD55: =データ一覧!I647 -> 0 | CG55: =データ一覧!I648 -> 19 | CK55: =データ一覧!I649 -> 0 | CO55: =データ一覧!I650 -> 147 | CS55: =データ一覧!I651 -> 66 | CW55: =データ一覧!I652 -> 81
A56: 総数 | H56: =データ一覧!I95 -> … | K56: =データ一覧!I152 -> … | N56: =データ一覧!I96 -> 1765 | Q56: =データ一覧!I153 -> 12822 | T56: =データ一覧!I97 -> … | W56: =データ一覧!I154 -> … | Z56: 総 数 | AF56: 男 | AJ56: 女 | AO56: =データ一覧!$A$421 -> 30.4.1 | AS56: =データ一覧!I421 -> 553.894 | AV56: ㎞ | AW56: =データ一覧!I422 -> 31.1 | AZ56: ㎞ | BA56: =データ一覧!I423 -> 87.3 | BD56: ㎞ | BE56: =データ一覧!I424 -> 435.494 | BH56: km | BI56: =データ一覧!$A$425 -> 31.4.1 | BM56: =データ一覧!I425 -> 16.247 | BP56: ㎞ | BR56: 各種学校 | CA56: =データ一覧!I654 -> 1 | CD56: =データ一覧!I655 -> 0 | CG56: =データ一覧!I656 -> 13 | CK56: =データ一覧!I657 -> 0 | CO56: =データ一覧!I658 -> 106 | CS56: =データ一覧!I659 -> 68 | CW56: =データ一覧!I660 -> 38
A57: 農林漁業 | H57: =データ一覧!I98 -> … | K57: =データ一覧!I155 -> … | N57: =データ一覧!I99 -> 13 | Q57: =データ一覧!I156 -> 185 | T57: =データ一覧!I100 -> … | W57: =データ一覧!I157 -> … | AE57: 人 | AH57: 人 | AM57: 人 | AO57: 自 動 車 | AX57: 乗用車 | BR57: 専修学校 | CA57: =データ一覧!I662 -> 2 | CD57: =データ一覧!I663 -> 0 | CG57: =データ一覧!I664 -> 19 | CK57: =データ一覧!I665 -> 87 | CO57: =データ一覧!I666 -> 154 | CS57: =データ一覧!I667 -> 48 | CW57: =データ一覧!I668 -> 106
A58: 鉱業 | H58: =データ一覧!I101 -> … | K58: =データ一覧!I158 -> … | N58: =データ一覧!I102 -> 0 | Q58: =データ一覧!I159 -> 0 | T58: =データ一覧!I103 -> … | W58: =データ一覧!I160 -> … | Z58: =AF58+AJ58 -> 154 | AF58: =データ一覧!$I$295 -> 139 | AJ58: =データ一覧!I296 -> 15 | AO58: 台 数 | AS58: 貨 物 | AW58: 普 通 | BA58: 小 型 | BE58: 乗 合 | BH58: 特 種 | BK58: 小型二輪 | BN58: 軽自動車 | BQ58: １８ 衛 生
A59: 建設業 | H59: =データ一覧!I104 -> … | K59: =データ一覧!I161 -> … | N59: =データ一覧!I105 -> 190 | Q59: =データ一覧!I162 -> 983 | T59: =データ一覧!I106 -> … | W59: =データ一覧!I163 -> … | Z59: 海 面 漁 業 漁 獲 量 （属人） | AH59: =データ一覧!$A$297 -> 29年中 | AO59: =データ一覧!$A$426 -> 31.3.31 | AT59: =データ一覧!I426 -> 1455 | AX59: =データ一覧!I428 -> 4514 | BB59: =データ一覧!I429 -> 5224 | BE59: =データ一覧!I427 -> 92 | BH59: =データ一覧!I430 -> 536 | BK59: =データ一覧!I431 -> 345 | BN59: =データ一覧!I432 -> 12687
A60: 製造業 | H60: =データ一覧!I107 -> … | K60: =データ一覧!I164 -> … | N60: =データ一覧!I108 -> 167 | Q60: =データ一覧!I165 -> 2084 | T60: =データ一覧!I109 -> … | W60: =データ一覧!I166 -> … | AF60: ｔ | AM60: t | AV60: 郵便局数 | BB60: =データ一覧!$A$433 -> 31.3.31 | BI60: 一般加入 | BM60: ＩＮＳネット | BU60: 医療関係施設 | CA60: =データ一覧!$A$669 -> 30.10.1 | CH60: および医療関係者数 | CP60: =データ一覧!$A$674 -> 30.12.31
A61: 電気・ｶﾞ ｽ・熱供給・水道業 | H61: =データ一覧!I110 -> … | K61: =データ一覧!I167 -> … | N61: =データ一覧!I111 -> 2 | Q61: =データ一覧!I168 -> 34 | T61: =データ一覧!I112 -> … | W61: =データ一覧!I169 -> … | Z61: 総 数 | AD61: =データ一覧!I297 -> 647 | AG61: 藻 類 | AK61: =データ一覧!I300 -> 13 | AO61: 通 信 | AS61: 総 数 | AY61: 郵 便 局 | BD61: 簡 易 局 | BI61: 電話数 | BM61: 加入数 | BX61: 病 | CA61: 院 | CI61: 一般診療所 | CU61: 歯科診療所
A62: 情報通信業 | H62: =データ一覧!I113 -> … | K62: =データ一覧!I170 -> … | N62: =データ一覧!I114 -> 10 | Q62: =データ一覧!I171 -> 59 | T62: =データ一覧!I115 -> … | W62: =データ一覧!I172 -> … | Z62: 魚 類 | AD62: =データ一覧!I298 -> 535 | AG62: そ の 他 | AK62: =データ一覧!I301 -> 74 | AO62: =データ一覧!$A$436 -> 31.3.31 | AS62: =データ一覧!I433 -> 14 | AY62: =データ一覧!I434 -> 13 | BD62: =データ一覧!I435 -> 1 | BI62: =データ一覧!I436 -> 5431 | BM62: =データ一覧!I437 -> 628 | BR62: 医療関係 | CD62: 一般病院 | CP62: 有 | CS62: 床
A63: 運輸業、郵便業 | H63: =データ一覧!I116 -> … | K63: =データ一覧!I173 -> … | N63: =データ一覧!I117 -> 19 | Q63: =データ一覧!I174 -> 297 | T63: =データ一覧!I118 -> … | W63: =データ一覧!I175 -> … | Z63: 貝 類 | AD63: =データ一覧!I299 -> 25 | BR63: 施設数 | BY63: =データ一覧!I669 -> 2 | CE63: =データ一覧!I670 -> 2 | CK63: =データ一覧!I671 -> 20 | CQ63: =データ一覧!I672 -> 1 | CW63: =データ一覧!I673 -> 9
A64: 卸売業、小売業 | H64: =データ一覧!I119 -> … | K64: =データ一覧!I176 -> … | N64: =データ一覧!I120 -> 489 | Q64: =データ一覧!I177 -> 3144 | T64: =データ一覧!I121 -> … | W64: =データ一覧!I178 -> … | AO64: １３ 税 ・ 財 政 | BX64: 医師 | CC64: 歯科医師 | CH64: 薬剤師 | CM64: 保健師 | CR64: 助産師 | CW64: 看護師
A65: 金融業、保険業 | H65: =データ一覧!I122 -> … | K65: =データ一覧!I179 -> … | N65: =データ一覧!I123 -> 34 | Q65: =データ一覧!I180 -> 348 | T65: =データ一覧!I124 -> … | W65: =データ一覧!I181 -> … | Z65: ７ 商 業 | AG65: =データ一覧!$A$302 -> 28.6.1(平成27年実績） | BR65: 医療 | CA65: 人 | CF65: 人 | CK65: 人 | CP65: 人 | CU65: 人 | CZ65: 人
A66: 不動産業、物品賃貸業 | H66: =データ一覧!I125 -> … | K66: =データ一覧!I182 -> … | N66: =データ一覧!I126 -> 67 | Q66: =データ一覧!I183 -> 220 | T66: =データ一覧!I127 -> … | W66: =データ一覧!I184 -> … | AS66: 歳入 | BB66: (千円） | BG66: 歳出 | BP66: (千円） | BR66: 関係者 | BW66: =データ一覧!I674 -> 68 | CB66: =データ一覧!I675 -> 15 | CG66: =データ一覧!I676 -> 53 | CL66: =データ一覧!I677 -> 28 | CQ66: =データ一覧!I678 -> 23 | CV66: =データ一覧!I679 -> 459
A67: 学術研究、専門・技術ｻｰﾋﾞｽ業 | H67: =データ一覧!I128 -> … | K67: =データ一覧!I185 -> … | N67: =データ一覧!I129 -> 68 | Q67: =データ一覧!I186 -> 748 | T67: =データ一覧!I130 -> … | W67: =データ一覧!I187 -> … | Z67: 産 業 分 類 | AD67: 商 店 数 | AG67: 従 業 者 数 | AJ67: 年 間 販 売 額 | AO67: 一人当たり歳入歳出予算決算額 | BZ67: 死因別死亡数 | CP67: =データ一覧!$A$680 -> 30年中 | CY67: 単 位：人
A68: 宿泊業、飲食サービス業 | H68: =データ一覧!I131 -> … | K68: =データ一覧!I188 -> … | N68: =データ一覧!I132 -> 244 | Q68: =データ一覧!I189 -> 1406 | T68: =データ一覧!I133 -> … | W68: =データ一覧!I190 -> … | AE68: 店 | AI68: 人 | AK68: 百万円 | AO68: 区分 | AS68: =データ一覧!$A$446 -> 元年度 | AX68: =データ一覧!$A$460 -> 30年度 | BC68: 区分 | BG68: =+AS68 -> 元年度 | BL68: =データ一覧!$A$460 -> 30年度 | BQ68: 死 因 | CC68: 悪 性 | CF68: 高血圧 | CL68: 脳血管 | CU68: 不慮の事故
A69: 生活関連サービス業、娯楽業 | H69: =データ一覧!I134 -> … | K69: =データ一覧!I191 -> … | N69: =データ一覧!I135 -> 167 | Q69: =データ一覧!I192 -> 598 | T69: =データ一覧!I136 -> … | W69: =データ一覧!I193 -> … | Z69: 総 計 | AD69: =データ一覧!$I$302 -> 407 | AG69: =データ一覧!I311 -> 2685 | AJ69: =データ一覧!I320 -> 59330 | AS69: =データ一覧!I442 -> 531097.7994 | AX69: =データ一覧!I443 -> 605829.3457 | BG69: =データ一覧!I444 -> 531097.7994 | BL69: =データ一覧!I445 -> 585385.6376 | BV69: 全 死 因 | BZ69: 結 核 | CC69: 新生物 | CF69: 性疾患 | CI69: 心疾患 | CL69: 疾 患 | CO69: 肺 炎 | CR69: 老 衰 | CX69: 交通事故
A70: 教育、学習支援業 | H70: =データ一覧!I137 -> … | K70: =データ一覧!I194 -> … | N70: =データ一覧!I138 -> 46 | Q70: =データ一覧!I195 -> 218 | T70: =データ一覧!I139 -> … | W70: =データ一覧!I196 -> … | Z70: 卸売業 | AD70: =データ一覧!I303 -> 92 | AG70: =データ一覧!I312 -> 679 | AJ70: =データ一覧!I321 -> 24287 | AO70: 項目別歳入歳出予算決算額
A71: 医療、福祉 | H71: =データ一覧!I140 -> … | K71: =データ一覧!I197 -> … | N71: =データ一覧!I141 -> 81 | Q71: =データ一覧!I198 -> 1336 | T71: =データ一覧!I142 -> … | W71: =データ一覧!I199 -> … | Z71: 小売業 | AD71: =データ一覧!I304 -> 315 | AG71: =データ一覧!I313 -> 2006 | AJ71: =データ一覧!I322 -> 35043 | AO71: 区分 | AS71: =データ一覧!$A$446 -> 元年度 | AX71: =データ一覧!$A$460 -> 30年度 | BC71: 区分 | BG71: =+AS71 -> 元年度 | BL71: =データ一覧!$A$460 -> 30年度 | BV71: =データ一覧!I680 -> 443 | BZ71: － | CA71: =データ一覧!I681 -> 1 | CC71: =データ一覧!I682 -> 111 | CG71: =データ一覧!I683 -> 7 | CI71: =データ一覧!I684 -> 63 | CL71: =データ一覧!I685 -> 24 | CO71: =データ一覧!I686 -> 25 | CR71: =データ一覧!I687 -> 54 | CU71: =データ一覧!I688 -> 12 | CX71: =データ一覧!I689 -> 3
A72: 複合サービス事業 | H72: =データ一覧!I143 -> … | K72: =データ一覧!I200 -> … | N72: =データ一覧!I144 -> 21 | Q72: =データ一覧!I201 -> 306 | T72: =データ一覧!I145 -> … | W72: =データ一覧!I202 -> … | Z72: 各種商品 | AD72: =データ一覧!I305 -> 1 | AG72: =データ一覧!I314 -> 5 | AJ72: =データ一覧!I323 -> x | AO72: 総額 | AS72: =SUM(AS73:AW85) -> 15156469 | AX72: =SUM(AX73:BB85) -> 17370339 | BC72: 総額 | BG72: =SUM(BG73:BK85) -> 15156469 | BL72: =SUM(BL73:BP85) -> 16784177 | BQ72: １９ 警 察 ・ 消 防 | CG72: =+データ一覧!$A690 -> 31.4.1
A73: サービス業 | H73: =データ一覧!I146 -> … | K73: =データ一覧!I203 -> … | N73: =データ一覧!I147 -> 147 | Q73: =データ一覧!I204 -> 856 | T73: =データ一覧!I148 -> … | W73: =データ一覧!I205 -> … | Z73: 織物・衣服・身の回り品 | AD73: =データ一覧!I306 -> 33 | AG73: =データ一覧!I315 -> 98 | AJ73: =データ一覧!I324 -> 1276 | AO73: 地方税 | AS73: =データ一覧!I447 -> 3639960 | AX73: =データ一覧!I461 -> 3663049 | BC73: 議会費 | BG73: =データ一覧!I475 -> 186592 | BL73: =データ一覧!I489 -> 178631
A74: 公務 | H74: =データ一覧!I149 -> … | K74: =データ一覧!I206 -> … | N74: =データ一覧!I150 -> … | Q74: =データ一覧!I207 -> … | T74: =データ一覧!I151 -> … | W74: =データ一覧!I208 -> … | Z74: 飲食料品 | AD74: =データ一覧!I307 -> 106 | AG74: =データ一覧!I316 -> 843 | AJ74: =データ一覧!I325 -> 11565 | AO74: 地方譲与税 | AS74: =データ一覧!I448 -> 140000 | AX74: =データ一覧!I462 -> 140935 | BC74: 総務費 | BG74: =データ一覧!I476 -> 1868013 | BL74: =データ一覧!I490 -> 2581425 | CA74: 交番・駐在所 | CJ74: 刑法犯認知件数 | CS74: 交通事故発生件数
A75: ４ 農 業 | Z75: 機械器具 | AD75: =データ一覧!I308 -> 37 | AG75: =データ一覧!I317 -> 311 | AJ75: =データ一覧!I326 -> 7255 | AO75: 各種交付金 | AS75: =データ一覧!I449 -> 659000 | AX75: =データ一覧!I463 -> 636121 | BC75: 民生費 | BG75: =データ一覧!I477 -> 4591401 | BL75: =データ一覧!I491 -> 4301620 | BR75: 警察署数 | CA75: 検問所数 | CK75: （27年中） | CT75: （27年中）
Z76: その他 | AD76: =データ一覧!I309 -> 118 | AG76: =データ一覧!I318 -> 682 | AJ76: =データ一覧!I327 -> x | AO76: 地方特例交付金 | AS76: =データ一覧!I450 -> 20000 | AX76: =データ一覧!I464 -> 16923 | BC76: 衛生費 | BG76: =データ一覧!I478 -> 1650930 | BL76: =データ一覧!I492 -> 1680300 | CO76: 件 | CX76: 件
C77: 農家人口と世帯員数(販売農家) | K77: 農家世帯の就業状態（販売農家） | Z77: 無店舗 | AD77: =データ一覧!I310 -> 20 | AG77: =データ一覧!I319 -> 67 | AJ77: =データ一覧!I328 -> 1548 | AO77: 地方交付税 | AS77: =データ一覧!I451 -> 5089000 | AX77: =データ一覧!I465 -> 5067674 | BC77: 労働費 | BG77: =データ一覧!I479 -> 172735 | BL77: =データ一覧!I493 -> 185243 | BS77: =データ一覧!I690 -> 1 | CB77: =データ一覧!I691 -> 6 | CK77: =データ一覧!I692 -> 137 | CT77: =データ一覧!I693 -> 34
A78: 農 | B78: 平 | K78: 農業従事者 | T78: 非農業従事 | W78: 農業従事者 | AO78: 分担金および負担金 | AS78: =データ一覧!I452 -> 507855 | AX78: =データ一覧!I466 -> 227694 | BC78: 農林水産業費 | BG78: =データ一覧!I480 -> 712077 | BL78: =データ一覧!I494 -> 1031727 | BQ78: 火災発生件数 | CA78: 林野焼損 | CF78: 損 害 | CK78: 消 防 自 | CO78: その他の
A79: 家 | B79: =+LEFT(データ一覧!$A$209,2) -> 27 | C79: 区分 | E79: 農家人口 | H79: 15歳以上の | N79: 農業就業人口 | T79: 者 | W79: の平均年齢 | Z79: ８ 住 宅 | AO79: 使用料および手数料 | AS79: =データ一覧!I453 -> 264393 | AX79: =データ一覧!I467 -> 305683 | BC79: 商工費 | BG79: =データ一覧!I481 -> 525683 | BL79: =データ一覧!I495 -> 557772 | BQ79: =+データ一覧!$A$694 -> 30年中 | BV79: 焼損棟数 | CA79: 面 積 | CF79: 見 積 額 | CK79: 動 車 数 | CO79: ﾎﾟﾝﾌﾟ数 | CS79: 消防吏員 | CW79: 消防団員
A80: 人就 | B80: ・ | H80: 世帯員数 | Q80: 基幹的農業 | AO80: 国庫支出金 | AS80: =データ一覧!I454 -> 1689721 | AX80: =データ一覧!I468 -> 1801638 | BC80: 土木費 | BG80: =データ一覧!I482 -> 1832973 | BL80: =データ一覧!I496 -> 2129426 | BQ80: 件 | BW80: 棟 | CD80: ａ | CH80: 千円 | CU80: 人 | CY80: 人
A81: 口業 | B81: =+MID(データ一覧!$A$209,4,1) -> 2 | G81: 人 | J81: 人 | M81: 人 | P81: 人 | Q81: 従事者 | S81: 人 | V81: 人 | Y81: 歳 | Z81: =+データ一覧!$A$329 -> 29年 | AE81: =データ一覧!$A$332 -> 30年 | AF81: 中の増減 | AJ81: =+データ一覧!$A$332 -> 30年 | AO81: 県支出金 | AS81: =データ一覧!I455 -> 1589840 | AX81: =データ一覧!I469 -> 2039398 | BC81: 消防費 | BG81: =データ一覧!I483 -> 608179 | BL81: =データ一覧!I497 -> 588726 | BR81: =データ一覧!I694 -> 9 | BW81: =データ一覧!I695 -> 12 | CB81: =データ一覧!I696 -> 0 | CF81: =データ一覧!I697 -> 33457 | CL81: =データ一覧!I698 -> 12 | CP81: =データ一覧!I699 -> 35 | CT81: =データ一覧!I700 -> 73 | CX81: =データ一覧!I701 -> 356
A82: と状 | B82: ・ | C82: 総数 | E82: =データ一覧!I209 -> 2468 | H82: =データ一覧!I212 -> 2243 | K82: =データ一覧!I215 -> 1608 | N82: =データ一覧!I218 -> 645 | Q82: =データ一覧!I221 -> 490 | T82: =データ一覧!I224 -> 635 | W82: =データ一覧!I227 -> 58.6 | AD82: 建設した住宅 | AG82: 消失した住宅 | AO82: 財産収入 | AS82: =データ一覧!I456 -> 23989 | AX82: =データ一覧!I470 -> 46662 | BC82: 教育費 | BG82: =データ一覧!I484 -> 1316163 | BL82: =データ一覧!I498 -> 1560045 | BQ82: ２０ そ の 他
A83: 況 | B83: =+RIGHT(データ一覧!$A$209,1) -> 1 | C83: 男 | E83: =データ一覧!I210 -> 1249 | H83: =データ一覧!I213 -> 1129 | K83: =データ一覧!I216 -> 911 | N83: =データ一覧!I219 -> 354 | Q83: =データ一覧!I222 -> 316 | T83: =データ一覧!I225 -> 218 | W83: =データ一覧!I228 -> 57.2 | AO83: 繰入金 | AS83: =データ一覧!I457 -> 151181 | AX83: =データ一覧!I471 -> 528147 | BC83: 災害復旧費 | BG83: =データ一覧!I485 -> 0 | BL83: =データ一覧!I499 -> 229262
C84: 女 | E84: =データ一覧!I211 -> 1219 | H84: =データ一覧!I214 -> 1114 | K84: =データ一覧!I217 -> 697 | N84: =データ一覧!I220 -> 291 | Q84: =データ一覧!I223 -> 174 | T84: =データ一覧!I226 -> 417 | W84: =データ一覧!I229 -> 60.5 | Z84: 281,432 戸 | AA84: =データ一覧!I329 -> 11498 | AC84: 戸 | AD84: =データ一覧!I330 -> 144 | AF84: 戸 | AG84: =データ一覧!I331 -> 71 | AI84: 戸 | AK84: =データ一覧!I332 -> 11571 | AM84: 戸 | AO84: 地方債 | AS84: =データ一覧!I458 -> 833368 | AX84: =データ一覧!I472 -> 1254133 | BC84: 公債費 | BG84: =データ一覧!I486 -> 1681723 | BL84: =データ一覧!I500 -> 1760000 | BV84: 若狭湾国定公園（若狭蘇洞門 蒼島暖地性植物群落 双児島 児島）、明通寺、羽賀寺、 神宮寺、妙楽寺、飯盛寺、国分寺、多田寺、円照寺、萬徳寺、 小浜西組重要伝統的建造物群保存地区、国指定文化財等66、県指定79、 市指定116（R1.5.1現在）
AO85: その他 | AS85: =データ一覧!I459 -> 548162 | AX85: =データ一覧!I473 -> 1642282 | BC85: その他 | BG85: =データ一覧!I487 -> 10000 | BL85: =データ一覧!I501 -> 0 | BQ85: 名所・旧跡
C86: 総農家数等 | J86: 専兼業別（販売農家） | R86: 経営面積規模別（販売農家） | BQ86: 文化財等
B87: 平 | C87: 区 分 | G87: 戸数（戸） | J87: 区 分 | O87: 戸数（戸） | R87: 区 分 | W87: 戸数（戸） | Z87: ９ 議 員 ・ 職 員 | AO87: １４ 文 化 | AY87: ( | AZ87: =データ一覧!$A$508 -> 31.3.31 | BD87: ただし図書館・公民館・児童館 | BL87: =データ一覧!$A$502 -> 31.4.1
A88: 農 | B88: =+LEFT(データ一覧!$A$230,2) -> 27 | C88: 総農家 | G88: =データ一覧!I230 -> 1087 | J88: 総数 | O88: =データ一覧!I236 -> 610 | R88: 総数 | W88: =データ一覧!I241 -> 610 | BE88: 宗教法人数 | BL88: =データ一覧!$A$510 -> 30.12.31 | BP88: ）
A89: 家 | B89: ・ | C89: 販売農家 | G89: =データ一覧!I231 -> 610 | J89: 専業農家 | O89: =データ一覧!I237 -> 88 | R89: 0.5 ha 未満 | W89: =データ一覧!I242 -> 159 | Z89: 市 町 村 議 会 | AC89: 有権者数 | AE89: =データ一覧!$A$336 -> 元.9.1 | AG89: 市 町 村 議 会 | AJ89: 職 員 数 | AT89: 図書館 | AZ89: 公 民 館 | BK89: 社会教育学級講座 | BQ89: 特産物 | BV89: 若狭塗（箸、漆器）、若狭めのう細工、若狭和紙、うるしダルマ、若狭かれい、 小鯛ささ漬、谷田部ねぎ、浜焼き鯖、若狭ぐじ、若狭ふぐ、若狭かき、鯖へしこ、 鯖のなれずし、おばま醤油干、小浜よっぱらいサバ、でっちようかん、くずまんじゅう
A90: 数 | B90: =+MID(データ一覧!$A$230,4,1) -> 2 | D90: 主業 | G90: =データ一覧!I232 -> 38 | J90: 兼業農家 | O90: =データ一覧!I238 -> 522 | R90: 0.5 ha ～ 1.0 ha | W90: =データ一覧!I243 -> 208 | Z90: 議 員 定 数 | AC90: 男 | AE90: 女 | AG90: 選 挙 投 票 率 | AJ90: 総 数 | AL90: 一般行政職 | AO90: 公 共 | AS90: 館 数 | AV90: 図書数 | AY90: 本 館 | BB90: 分 館 | BE90: 公 園 | BH90: 児童館 | BK90: 学級講座数 | BN90: 受講者数
B91: ・ | D91: 準主業 | G91: =データ一覧!I233 -> 95 | K91: 第１種兼業 | O91: =データ一覧!I239 -> 66 | R91: 1.0 ha ～ 1.5 ha | W91: =データ一覧!I244 -> 112 | AB91: 人 | AD91: 人 | AF91: 人 | AI91: ％ | AK91: 人 | AM91: 人 | AO91: 施 設 数 | AT91: =データ一覧!I502 -> 1 | AV91: =データ一覧!I503 -> 192591 | AZ91: =データ一覧!I504 -> 13 | BB91: =データ一覧!I505 -> 0 | BE91: =データ一覧!I506 -> 24 | BH91: =データ一覧!I507 -> 5 | BK91: =データ一覧!I508 -> 75 | BN91: =データ一覧!I509 -> 2248
B92: =+RIGHT(データ一覧!$A$230,1) -> 1 | D92: 副業的 | G92: =データ一覧!I234 -> 477 | K92: 第２種兼業 | O92: =データ一覧!I240 -> 456 | R92: 1.5 ha ～ 2.0 ha | W92: =データ一覧!I245 -> 58 | AA92: =データ一覧!I333 -> 18 | AC92: =データ一覧!I336 -> 11904 | AE92: =データ一覧!I337 -> 12553 | AG92: =データ一覧!I335 -> 67.47 | AJ92: =データ一覧!I338 -> 291 | AL92: =データ一覧!I339 -> 218 | AO92: 宗 教 | AS92: 仏教系 | AV92: ｷﾘｽﾄ教系 | AY92: 神道諸派 | BB92: 公会堂・市民会館 | BH92: テレビ | BK92: 衛星放送契約数 | BQ92: 年中行事 | BV92: お水送り、お城祭り（雲浜獅子）、放生祭、地蔵盆、箸まつり
C93: 自給的農家 | G93: =データ一覧!I235 -> 477 | R93: 2.0 ha 以上 | W93: =データ一覧!I246 -> 73 | AG93: =データ一覧!I334 -> 31.4.21 | AO93: 法 人 数 | AS93: =データ一覧!I510 -> 139 | AV93: =データ一覧!I511 -> 2 | AY93: =データ一覧!I512 -> 108 | BB93: =データ一覧!I513 -> 0 | BH93: 等 | BK93: =データ一覧!I514 -> 4852 | BV93: 若狭マリンピア、芽立ち神事、すり鉢くぐり、小浜祇園祭、OBAMA食のまつり

Sheet 大野市
A1: =+データ一覧!J5 -> 0
A2: =+データ一覧!J8 -> 0
AB4: 【市紋章とそのいわれ】大の（大野）を図案化したもので、円は | AO4: 【位置および地勢】大野市は福井県の東端に位置し、東は岐阜県郡上市、高山市、 | BT4: 所在地 | CB4: 〒912-8666
AB5: 和と団結を象徴し、円満な市政の運用を意味し、 | AP5: 西は福井市、池田町、 南は岐阜県関市、本巣市および揖斐川町、北は勝山市および | CB5: 大野市天神町１番１号
A6: =+データ一覧!J6 -> おおのし | AB6: 剣尖は市の将来の発展性を表す。昭和２９年 | AP6: 石川県の白山市に接している。四方を1,000ｍ級の霊峰白山の支脈に囲まれ、市域の
A7: =データ一覧!J9 -> 大野市 | AB7: ７月１日、市制施行と同時に公募により制定。 | AP7: 約8割が林野に覆われており、これらの山岳地形の間を縫うように、岐阜県境に源を | BT7: 電話番号 | CB7: （０７７９）６６－１１１１
AB8: 0 | AP8: 発する九頭竜川が貫流し、これへ石徹白川をはじめ多くの中小河川が合流している。 | BT8: FAX番号 | CB8: 〃 ６５－８３７１
AB9: 0 | AP9: 市内の交通は、国道１５７号が南北に、国道１５８号が東西に走り、東は東海北陸
AB10: 0 | AP10: 自動車道、西は北陸自動車道に連絡している。また、ＪＲ越美北線が国道１５８号に | BT10: 最寄駅および距離 | CB10: ＪＲ越美北線越前大野駅 下車１ｋｍ
AB11: =+データ一覧!#REF! ->  | AP11: ほぼ並行して走り、越前花堂駅でＪＲ北陸本線と接続している。中部縦貫自動車道に
AP12: ついては、永平寺大野道路が全線開通し、北陸自動車道と直結している。
AB13: 【市が掲げる標語】ひかりかがやき、たくましく、心ふれあうまち | BT13: ホームページ | CB13: http://www.city.ono.fukui.jp/
A15: １ 土 地 | Z15: =データ一覧!$A$261 -> 30年 | AA15: 産米収穫量 | AD15: 収 穫 量 | AG15: 作 付 面 積 | AJ15: 10a当たり収量 | BQ15: １５ 労 働 | CF15: 27.10.1
AD16: =データ一覧!$J$261 -> 14600 | AF16: t | AG16: =データ一覧!$J$262 -> 2710 | AI16: ha | AJ16: =データ一覧!J263 -> 540 | AM16: kg | AO16: １０ 工 業 | BC16: =データ一覧!$A$340 -> 30.6.1（平成29年実績）
A17: 総 面 積 | K17: 固 定 資 産 概 要 調 書 に よ る 地 目 別 面 積 | AC17: 総 数 | AG17: うち 田 | AK17: うち 畑 | BX17: 産業別就業者数
C18: =データ一覧!$A$10 -> 元.10.1 | Q18: =データ一覧!$A$12 -> 31.1.1 | Z18: 耕 地 面 積 | AD18: ha | AG18: ha | AK18: ha | AP18: 産業分類 | AX18: 事業所数 | BC18: 従業者数 | BI18: 年間製造品出荷額等 | BR18: 区 分 | BW18: 総 数 | CB18: 男 | CF18: 女 | CJ18: 区 分 | CO18: 総 数 | CT18: 男 | CX18: 女
G19: ㎢ | K19: 総 数 | P19: う ち 田 | U19: う ち 畑 | Z19: =データ一覧!$A$247 -> 30.7.15 | AC19: =データ一覧!$J$247 -> 4200 | AF19: =データ一覧!$J$248 -> 4060 | AJ19: =データ一覧!$J$249 -> 141 | BA19: 事業所 | BC19: 人 | BF19: 人 | BH19: 万円 | BO19: 万円 | BW19: 人 | CC19: 人 | CG19: 人 | CO19: 人 | CS19: 人 | CW19: 人
D20: =データ一覧!J10 -> 872.43 | O20: ha | T20: ha | Y20: ha | Z20: 農 業 生 産 物 | AD20: 作 付 面 積 | AG20: 収 穫 量 | AJ20: 10a当たり収量 | AP20: 総数 | AY20: =データ一覧!J340 -> 81 | BC20: =+データ一覧!J365 -> 2478 | BJ20: =データ一覧!J390 -> 5582399 | BQ20: 総 数 | BW20: =CA20+CE20 -> 17733 | CA20: =データ一覧!J515 -> 9403 | CE20: =データ一覧!J540 -> 8330
L21: =データ一覧!J12 -> 48571.3 | Q21: =データ一覧!J13 -> 4227.8 | V21: =データ一覧!J14 -> 235.5 | Z21: =データ一覧!$A$264 -> 30年中 | AD21: ha | AG21: t | AJ21: kg | AO21: 食料品 | AP21: 食料品 | AY21: =データ一覧!J341 -> 8 | BC21: =+データ一覧!J366 -> 161 | BJ21: =データ一覧!J391 -> 128744 | CJ21: 卸売業,小売業 | CO21: =CS21+CW21 -> 2359 | CS21: =データ一覧!J528 -> 1142 | CW21: =データ一覧!J553 -> 1217
A22: 町 ･ 丁 ･ 大 字 | K22: う ち 宅 地 | P22: う ち 山 林 | U22: う ち 原 野 | Z22: 水 稲 | AD22: =データ一覧!J264 -> 2710 | AG22: =データ一覧!J265 -> 14600 | AJ22: =データ一覧!J266 -> 540 | AO22: 飲料・飼料 | AP22: 飲料・飼料 | AY22: =データ一覧!J342 -> 2 | BC22: =+データ一覧!J367 -> 29 | BJ22: =データ一覧!J392 -> x | BQ22: 第１次産業 | BW22: =CA22+CE22 -> 1557 | CA22: =データ一覧!J516 -> 934 | CE22: =データ一覧!J541 -> 623 | CJ22: 金融業,保険業 | CO22: =CS22+CW22 -> 333 | CS22: =データ一覧!J529 -> 143 | CW22: =データ一覧!J554 -> 190
A23: 区 画 数 | H23: =データ一覧!J11 -> 207 | O23: ha | T23: ha | Y23: ha | Z23: 六 条 大 麦 | AD23: =データ一覧!J267 -> 636 | AG23: =データ一覧!J268 -> 692 | AJ23: =データ一覧!J269 -> 109 | AO23: 繊維 | AP23: 繊維 | AY23: =データ一覧!J343 -> 25 | BC23: =+データ一覧!J368 -> 486 | BJ23: =データ一覧!J393 -> 424124 | BR23: 農業 | BW23: =CA23+CE23 -> 1462 | CA23: =データ一覧!J517 -> 848 | CE23: =データ一覧!J542 -> 614 | CJ23: 不動産業 | CO23: 118 | CS23: =データ一覧!J530 -> 79 | CW23: =データ一覧!J555 -> 39
A24: =データ一覧!$A$11 -> 31.4.1 | L24: =データ一覧!J15 -> 990.2 | Q24: =データ一覧!J16 -> 13093.2 | V24: =データ一覧!J17 -> 677.3 | Z24: 大 豆 | AD24: =データ一覧!J270 -> 86 | AG24: =データ一覧!J271 -> 68 | AJ24: =データ一覧!J272 -> 79 | AO24: 衣服 | AP24: 木材 | AY24: =データ一覧!J344 -> 2 | BC24: =+データ一覧!J369 -> 169 | BJ24: =データ一覧!J394 -> x | BR24: 林業 | BW24: 93 | CA24: =データ一覧!J518 -> 84 | CE24: =データ一覧!J543 -> 9 | CJ24: 学術研究 | CO24: 380 | CS24: =データ一覧!J531 -> 241 | CW24: =データ一覧!J556 -> 139
A25: ２ 世 帯 数 と 人 口 | AB25: 区 分 | AD25: 乳 用 牛 | AF25: 肉 用 牛 | AH25: 豚 | AJ25: 採卵鶏 | AL25: ブロイラー | AO25: 木材 | AP25: 家具 | AY25: =データ一覧!J345 -> 2 | BC25: =+データ一覧!J370 -> 29 | BJ25: =データ一覧!J395 -> x | BR25: 漁業 | BW25: 2 | CA25: =データ一覧!J519 -> 2 | CE25: =データ一覧!J544 -> 0 | CJ25: 宿泊業,飲食ｻｰﾋﾞｽ | CO25: 693 | CS25: =データ一覧!J532 -> 252 | CW25: =データ一覧!J557 -> 441
Z26: 畜 産 | AB26: 飼養農家 | AD26: =データ一覧!$J$251 -> 5 | AF26: =データ一覧!$J$253 -> x | AH26: =データ一覧!$J$255 -> x | AJ26: =データ一覧!$J$257 -> x | AL26: =データ一覧!$J$259 -> - | AO26: 家具 | AP26: パルプ・紙 | AY26: =データ一覧!J346 -> 3 | BC26: =+データ一覧!J371 -> 44 | BJ26: =データ一覧!J396 -> 39055 | BQ26: 第２次産業 | BW26: 5566 | CA26: =データ一覧!J520 -> 3722 | CE26: =データ一覧!J545 -> 1844 | CJ26: 生活関連ｻｰﾋﾞｽ業 | CO26: 613 | CS26: =データ一覧!J533 -> 215 | CW26: =データ一覧!J558 -> 398
I27: 人 口 | U27: １世帯当 | W27: 人 口 | Z27: =データ一覧!$A$251 -> 31.3.31 | AB27: （戸） | AO27: パルプ・紙 | AP27: 印刷 | AY27: =データ一覧!J347 -> 2 | BC27: =+データ一覧!J372 -> 27 | BJ27: =データ一覧!J397 -> x | BR27: 鉱業，採石業 | BW27: 6 | CA27: =データ一覧!J521 -> 5 | CE27: =データ一覧!J546 -> 1 | CJ27: 教育,学習支援業 | CO27: 758 | CS27: =データ一覧!J534 -> 314 | CW27: =データ一覧!J559 -> 444
A28: 区 分 | F28: 世帯数 | I28: 総 数 | L28: 男 | O28: 女 | R28: 男／女 | U28: たり人員 | W28: 密 度 | AB28: 頭 羽 | AD28: =データ一覧!$J$252 -> 196 | AF28: =データ一覧!$J$254 -> 13 | AH28: =データ一覧!$J$256 -> 120 | AJ28: =データ一覧!$J$258 -> 180 | AL28: =データ一覧!$J$260 -> - | AO28: 出版・印刷 | AP28: 化学 | AY28: =データ一覧!J348 -> 0 | BC28: =+データ一覧!J373 -> 0 | BJ28: =データ一覧!J398 -> 0 | BR28: 建設業 | BW28: 2161 | CA28: =データ一覧!J522 -> 1833 | CE28: =データ一覧!J547 -> 328 | CJ28: 医療，福祉 | CO28: 2635 | CS28: =データ一覧!J535 -> 508 | CW28: =データ一覧!J560 -> 2127
F29: 世 帯 | I29: 人 | L29: 人 | O29: 人 | S29: ％ | U29: 人 | W29: 人/㎢ | AO29: 化学 | AP29: 石油・石炭 | AY29: =データ一覧!J349 -> 0 | BC29: =+データ一覧!J374 -> 0 | BJ29: =データ一覧!J399 -> 0 | BR29: 製造業 | BW29: 3399 | CA29: =データ一覧!J523 -> 1884 | CE29: =データ一覧!J548 -> 1515 | CJ29: 複合サービス事業 | CO29: 324 | CS29: =データ一覧!J536 -> 197 | CW29: =データ一覧!J561 -> 127
A30: =データ一覧!$A$25 -> 2.10.1 | F30: =データ一覧!J25 -> 10758 | I30: =+L30+O30 -> 41837 | L30: =データ一覧!J27 -> 19944 | O30: =データ一覧!J28 -> 21893 | S30: =+L30/O30*100 -> 91.09761111 | U30: =データ一覧!J30 -> 3.89 | W30: =データ一覧!J24 -> 0 | Z30: ５ 林 業 | AO30: 石油・石炭 | AP30: プラスチック | AY30: =データ一覧!J350 -> 2 | BC30: =+データ一覧!J375 -> 39 | BJ30: =データ一覧!J400 -> x | BQ30: 第３次産業 | BW30: 10553 | CA30: =データ一覧!J524 -> 4716 | CE30: =データ一覧!J549 -> 5837 | CJ30: サービス業 | CO30: 916 | CS30: =データ一覧!J537 -> 546 | CW30: =データ一覧!J562 -> 370
A31: =データ一覧!$A$32 -> 7.10.1 | F31: =データ一覧!J32 -> 10862 | I31: =+L31+O31 -> 41069 | L31: =データ一覧!J34 -> 19537 | O31: =データ一覧!J35 -> 21532 | S31: 90.73472042 | U31: =データ一覧!J37 -> 3.78 | W31: =データ一覧!J31 -> 0 | AO31: プラスチック | AP31: ゴム | AY31: =データ一覧!J351 -> 0 | BC31: =+データ一覧!J376 -> 0 | BJ31: =データ一覧!J401 -> 0 | BR31: 電気･ｶﾞｽ･水道業 | BW31: 152 | CA31: =データ一覧!J525 -> 137 | CE31: =データ一覧!J550 -> 15 | CJ31: 公務 | CO31: 603 | CS31: =データ一覧!J538 -> 415 | CW31: =データ一覧!J563 -> 188
A32: =データ一覧!$A$39 -> 12.10.1 | F32: =データ一覧!J39 -> 11151 | I32: =+L32+O32 -> 39632 | L32: =データ一覧!J41 -> 18942 | O32: =データ一覧!J42 -> 20690 | S32: 91.55147414 | U32: =データ一覧!J44 -> 3.55 | W32: =データ一覧!J38 -> 0 | Z32: 森 林 総 面 積 | AH32: =データ一覧!$A$273 -> 31.3.31 | AO32: ゴム | AP32: 皮革 | AY32: =データ一覧!J352 -> 0 | BC32: =+データ一覧!J377 -> 0 | BJ32: =データ一覧!J402 -> 0 | BR32: 情報通信業 | BW32: 139 | CA32: =データ一覧!J526 -> 108 | CE32: =データ一覧!J551 -> 31 | CI32: 分類不能の産業 | CO32: 57 | CS32: =データ一覧!J539 -> 31 | CW32: =データ一覧!J564 -> 26
A33: =+データ一覧!$A$46 -> 17.10.1 | F33: =データ一覧!J46 -> 11230 | I33: =+L33+O33 -> 37843 | L33: =データ一覧!J48 -> 17956 | O33: =データ一覧!J49 -> 19887 | S33: 90.29013929 | U33: =データ一覧!J51 -> 3.37 | W33: =データ一覧!J52 -> 43.4 | Z33: 森 林 の 構 成 | AO33: 皮革 | AP33: 窯業・土石 | AY33: =データ一覧!J353 -> 4 | BC33: =+データ一覧!J378 -> 37 | BJ33: =データ一覧!J403 -> 99892 | BR33: 運輸業,郵便業 | BW33: =CA33+CE33 -> 530 | CA33: =データ一覧!J527 -> 419 | CE33: =データ一覧!J552 -> 111
A34: =+データ一覧!$A$53 -> 22.10.1 | F34: =+データ一覧!J53 -> 10847 | I34: =+L34+O34 -> 35291 | L34: =+データ一覧!J55 -> 16705 | O34: =+データ一覧!J56 -> 18586 | S34: 89.87947918 | U34: =+データ一覧!J58 -> 3.25 | W34: =+データ一覧!J59 -> 40.5 | AE34: ha | AL34: ha | AO34: 窯業・土石 | AP34: 鉄鋼 | AY34: =データ一覧!J354 -> 0 | BC34: =+データ一覧!J379 -> 0 | BJ34: =データ一覧!J404 -> 0 | BQ34: １６ 社 会 福 祉 | CG34: =データ一覧!$A$565 -> 31.4.1
A35: =データ一覧!$A$60 -> 27.10.1 | F35: =データ一覧!J60 -> 10698 | I35: =データ一覧!J61 -> 33109 | L35: =データ一覧!J62 -> 15683 | O35: =データ一覧!J63 -> 17426 | S35: 89.99770458 | U35: =データ一覧!J65 -> 3.094877547 | W35: =データ一覧!J66 -> 38 | Z35: 総 数 | AD35: =データ一覧!J273 -> 75839.88 | AG35: 天然林 針葉樹 | AK35: =データ一覧!J276 -> 460.99 | AO35: 鉄鋼 | AP35: 非鉄金属 | AY35: =データ一覧!J355 -> 0 | BC35: =+データ一覧!J380 -> 0 | BJ35: =データ一覧!J405 -> 0
A36: =+データ一覧!$A$67 -> 元.10.1 | F36: =データ一覧!J67 -> 10792 | I36: =データ一覧!J76 -> 31264 | L36: =データ一覧!J77 -> 14842 | O36: =データ一覧!J78 -> 16422 | S36: =+L36/O36*100 -> 90.3787602 | U36: =データ一覧!J68 -> 2.9 | W36: =データ一覧!J69 -> 35.83553981 | Z36: 人工林 針葉樹 | AD36: =データ一覧!J274 -> 18316.35 | AG36: 天然林 広葉樹 | AK36: =データ一覧!J277 -> 51970.78 | AO36: 非鉄金属 | AP36: 金属 | AY36: =データ一覧!J356 -> 15 | BC36: =+データ一覧!J381 -> 325 | BJ36: =データ一覧!J406 -> 716450 | BR36: 区分 | BY36: 施設数 | CD36: 収容定員 | CJ36: 区分 | CQ36: 施設数 | CV36: 収容定員
A37: 年 | C37: 区 | E37: 0歳 | H37: 15歳 | K37: 25歳 | N37: 35歳 | Q37: 45歳 | T37: 55歳 | W37: 65歳 | Z37: 人工林 広葉樹 | AD37: =データ一覧!J275 -> 1373.26 | AG37: 竹 林 | AK37: =データ一覧!J278 -> 8.83 | AO37: 金属 | AP37: はん用機械 | AY37: =データ一覧!J357 -> 0 | BC37: =+データ一覧!J382 -> 0 | BJ37: =データ一覧!J407 -> 0 | BQ37: 生活保護施設 | BY37: =データ一覧!J565 -> 1 | CC37: =データ一覧!J578 -> 140 | CG37: 人 | CI37: 指定障害者支援施設 | CQ37: =データ一覧!J571 -> 2 | CU37: =データ一覧!J584 -> 110 | CY37: 人
A38: 齢 | B38: 令 | F38: ～ | I38: ～ | L38: ～ | O38: ～ | R38: ～ | U38: ～ | AO38: 一般機械 | AP38: 生産用機械 | AY38: =データ一覧!J358 -> 2 | BC38: =+データ一覧!J383 -> 15 | BJ38: =データ一覧!J408 -> x | BQ38: 地域福祉施設 | BY38: =データ一覧!J566 -> 0 | CC38: =データ一覧!J579 -> 0 | CI38: 指定相談支援事業所 | CQ38: =データ一覧!J572 -> 3 | CU38: =データ一覧!J585 -> 0
A39: 階 | B39: 元 | C39: 分 | G39: 14歳 | J39: 24歳 | M39: 34歳 | P39: 44歳 | S39: 54歳 | V39: 64歳 | Y39: 以上 | Z39: 林 野 の 構 成 | AG39: 保 有 形 態 別 | AO39: 電気機械 | AP39: 業務用機械 | AY39: =データ一覧!J359 -> 0 | BC39: =+データ一覧!J384 -> 0 | BJ39: =データ一覧!J409 -> 0 | BQ39: 老人福祉施設 | BY39: =データ一覧!J567 -> 7 | CC39: =データ一覧!J580 -> 356 | CI39: 児童福祉施設 | CQ39: =データ一覧!J573 -> 23 | CU39: =データ一覧!J586 -> 1155
A40: 級 | B40: ・ | G40: 人 | J40: 人 | L40: 人 | O40: 人 | R40: 人 | U40: 人 | X40: 人 | AF40: ha | AL40: ha | AP40: 電子・デバイス | AY40: =データ一覧!J360 -> 6 | BC40: =+データ一覧!J385 -> 695 | BJ40: =データ一覧!J410 -> 2681052 | BQ40: 介護保険施設 | BY40: =データ一覧!J568 -> 74 | CC40: =データ一覧!J581 -> 1170 | CI40: 母子福祉施設 | CQ40: =データ一覧!J574 -> 0 | CU40: =データ一覧!J587 -> 0
A41: 別 | B41: 10 | C41: 総 数 | E41: =+E42+E43 -> 3435 | H41: =+H42+H43 -> 2588 | K41: =+K42+K43 -> 2190 | N41: =+N42+N43 -> 3326 | Q41: =+Q42+Q43 -> 3664 | T41: =+T42+T43 -> 4487 | W41: =+W42+W43 -> 11568 | Z41: 無立木地 伐採跡地 | AD41: =データ一覧!J279 -> 26.14 | AG41: 国 有 | AK41: =データ一覧!J281 -> 20682.02 | AP41: 電気機械 | AY41: =データ一覧!J361 -> 5 | BC41: =+データ一覧!J386 -> 140 | BJ41: =データ一覧!J411 -> 307657 | BQ41: 障害者自立支援法施行前からの身体障害者福祉施設 | BY41: =データ一覧!J569 -> 0 | CC41: =データ一覧!J582 -> 0 | CI41: 婦人保護施設 | CQ41: =データ一覧!J575 -> 0 | CU41: =データ一覧!J588 -> 0
A42: 人 | B42: ・ | C42: 男 | E42: =データ一覧!J79 -> 1743 | H42: =データ一覧!J80 -> 1317 | K42: =データ一覧!J81 -> 1163 | N42: =データ一覧!J82 -> 1671 | Q42: =データ一覧!J83 -> 1822 | T42: =データ一覧!J84 -> 2153 | W42: =データ一覧!J85 -> 4969 | Z42: 無立木地 未立木地 | AD42: =データ一覧!J280 -> 3683.53 | AG42: 公 有 | AK42: =データ一覧!J282 -> 11115.96 | AO42: 輸送機械 | AP42: 情報通信機械 | AY42: =データ一覧!J362 -> 0 | BC42: =+データ一覧!J387 -> 0 | BJ42: =データ一覧!J412 -> 0 | CI42: その他の社会福祉施設 | CQ42: =データ一覧!J576+データ一覧!J577 -> 0 | CU42: =データ一覧!J589+データ一覧!J590 -> 0
A43: 口 | B43: 1 | C43: 女 | E43: =データ一覧!J87 -> 1692 | H43: =データ一覧!J88 -> 1271 | K43: =データ一覧!J89 -> 1027 | N43: =データ一覧!J90 -> 1655 | Q43: =データ一覧!J91 -> 1842 | T43: =データ一覧!J92 -> 2334 | W43: =データ一覧!J93 -> 6599 | AG43: 私 有 | AK43: =データ一覧!J283 -> 44041.9 | AO43: 精密機械 | AP43: 輸送機械 | AY43: =データ一覧!J363 -> 1 | BC43: =+データ一覧!J388 -> 93 | BJ43: =データ一覧!J413 -> x | BQ43: 障害福祉サービス事業所 | BY43: =データ一覧!J570 -> 34 | CC43: =データ一覧!J583 -> 251
Z44: 林 産 物 生 産 量 | AJ44: =データ一覧!$A$284 -> 30年中 | AO44: その他 | AP44: その他 | AY44: =データ一覧!J364 -> 2 | BC44: =+データ一覧!J389 -> 189 | BJ44: =データ一覧!J414 -> x | BQ44: １７ 教 育 | CG44: =データ一覧!$A$591 -> 元.5.1（特別支援学校、専修学校はH30.5.1現在）
A45: 人口動態 | H45: 自 然 動 態 | N45: 社 会 動 態 | T45: =データ一覧!$A74 -> 30.1.1～30.12.31 | Z45: 生椎茸 | AD45: =データ一覧!J284 -> 60700 | AF45: ㎏ | AG45: 乾椎茸 | AK45: =データ一覧!J285 -> 360 | AM45: ㎏
C46: 区 分 | H46: 出 生 | K46: 死 亡 | N46: 転 入 | Q46: 転 出 | T46: 婚 姻 | W46: 離 婚 | Z46: えのきだけ | AD46: =データ一覧!J287 -> - | AF46: ㎏ | AG46: なめこ | AK46: =データ一覧!J286 -> 2 | AM46: ㎏ | AP46: 工 業 用 水 量 | AV46: （従業者30人以上の事業所） | BG46: =データ一覧!J415 -> 4393 | BL46: ㎥／日 | CA46: 学校数（校） | CH46: 教員数（人） | CP46: 学生・生徒・児童数（人）
A47: =LEFT(データ一覧!$A70,7) -> 30.10.1 | H47: 人 | K47: 人 | N47: 人 | Q47: 人 | U47: 件 | X47: 件 | Z47: ひらたけ | AD47: =+データ一覧!J288 -> 1661 | AF47: ㎏ | AG47: まいたけ | AK47: =+データ一覧!J289 -> 127643 | AM47: ㎏ | BS47: 区分 | CA47: 本 校 | CD47: 分 校 | CG47: 本 務 | CK47: 兼 務 | CO47: 総 数 | CS47: 男 | CW47: 女
A48: ～ | C48: 実 数 | H48: =データ一覧!J70 -> 166 | K48: =データ一覧!J71 -> 549 | N48: =データ一覧!J72 -> 751 | Q48: =データ一覧!J73 -> 931 | T48: =データ一覧!J74 -> 94 | W48: =データ一覧!J75 -> 28 | AO48: １１ 上 ・ 下 水 道 | BR48: 小学校 | CA48: =データ一覧!J592 -> 10 | CD48: =データ一覧!J593 -> 0 | CG48: =データ一覧!J594 -> 126 | CK48: =データ一覧!J595 -> 19 | CO48: =データ一覧!J596 -> 1461 | CS48: =データ一覧!J597 -> 736 | CW48: =データ一覧!J598 -> 725
A49: =RIGHT(データ一覧!$A72,7) -> ～元.9.30 | C49: 比率(対1,000人) | H49: =+H48/I35*1000 -> 5.013742487 | K49: =+K48/I35*1000 -> 16.58159413 | N49: - | Q49: - | T49: =+T48/I35*1000 -> 2.839107191 | W49: =+W48/I35*1000 -> 0.8456915038 | Z49: ６ 漁 業 | BR49: 中学校 | CA49: =データ一覧!J600 -> 5 | CD49: =データ一覧!J601 -> 0 | CG49: =データ一覧!J602 -> 83 | CK49: =データ一覧!J603 -> 18 | CO49: =データ一覧!J604 -> 793 | CS49: =データ一覧!J605 -> 402 | CW49: =データ一覧!J606 -> 391
AO50: 水 道 供 給 人 口 | AV50: 上 水 道 | AZ50: 簡易水道 | BD50: 専用水道 | BH50: 飲料水供給施設 | BL50: 下水道処理人口 | BR50: 高等学校 | CA50: =データ一覧!J608 -> 2 | CD50: =データ一覧!J609 -> 0 | CG50: =データ一覧!J610 -> 86 | CK50: =データ一覧!J611 -> 26 | CO50: =データ一覧!J612 -> 884 | CS50: =データ一覧!J613 -> 463 | CW50: =データ一覧!J614 -> 421
A51: ３ 事 業 所（民 営） （平 28.6.1） | Z51: 漁船隻数・トン数 | AD51: =データ一覧!$A$290 -> 30.12.31 | AH51: 動 力 船 | AO51: =データ一覧!$A$416 -> 31.3.31 | AU51: 人 | AW51: =データ一覧!J416 -> 4586 | AZ51: =データ一覧!J417 -> 7968 | BE51: =データ一覧!J418 -> 126 | BI51: =データ一覧!J419 -> 262 | BM51: =データ一覧!J420 -> 17069 | BR51: 大学・短期大学 | CA51: =データ一覧!J615 -> 0 | CD51: =データ一覧!J616 -> 0 | CG51: =データ一覧!J617 -> 0 | CK51: =データ一覧!J618 -> 0 | CO51: =データ一覧!J619 -> 0 | CS51: =データ一覧!J620 -> 0 | CW51: =データ一覧!J621 -> 0
Z52: 無動力船隻数 | AD52: 船外機付漁船隻数 | AH52: 隻 数 | AK52: 総 ト ン 数 | BR52: 高等専門学校 | CA52: =データ一覧!J622 -> 0 | CD52: =データ一覧!J623 -> 0 | CG52: =データ一覧!J624 -> 0 | CK52: =データ一覧!J625 -> 0 | CO52: =データ一覧!J626 -> 0 | CS52: =データ一覧!J627 -> 0 | CW52: =データ一覧!J628 -> 0
H53: 総 数 | N53: 民 営 | T53: 国 ･ 地方公共団体 | AC53: 隻 | AG53: 隻 | AJ53: 隻 | AM53: t | AO53: １２ 交 通 ・ 通 信 | BR53: 特別支援学校 | CA53: =データ一覧!J630 -> 0 | CD53: =データ一覧!J631 -> 0 | CG53: =+データ一覧!J632 -> 0 | CK53: =+データ一覧!J633 -> 0 | CO53: =+データ一覧!J634 -> 0 | CS53: =+データ一覧!J635 -> 0 | CW53: =+データ一覧!J636 -> 0
A54: 区 分 | H54: 事業所数 | K54: 従業者数 | N54: 事業所数 | Q54: 従業者数 | T54: 事業所数 | W54: 従業者数 | Z54: =データ一覧!$J$290 -> 0 | AD54: =データ一覧!$J$291 -> 0 | AH54: =データ一覧!J292 -> 0 | AK54: =データ一覧!J293 -> 0 | BR54: 幼稚園 | CA54: =データ一覧!J638 -> 7 | CD54: =データ一覧!J639 -> 0 | CG54: =データ一覧!J640 -> 9 | CK54: =データ一覧!J641 -> 0 | CO54: =データ一覧!J642 -> 20 | CS54: =データ一覧!J643 -> 10 | CW54: =データ一覧!J644 -> 10
K55: 人 | Q55: 人 | W55: 人 | Z55: 男女別就業者数 | AH55: =データ一覧!$A$294 -> 30.11.1 | AO55: 道 路 | AS55: 実 延 長 | AW55: 国 道 | BA55: 県 道 | BE55: 市町道 | BI55: 鉄 道 営 業 キ ロ 数 | BR55: 幼保連携認定こども園 | CA55: =データ一覧!J646 -> 6 | CD55: =データ一覧!J647 -> 0 | CG55: =データ一覧!J648 -> 120 | CK55: =データ一覧!J649 -> 0 | CO55: =データ一覧!J650 -> 621 | CS55: =データ一覧!J651 -> 318 | CW55: =データ一覧!J652 -> 303
A56: 総数 | H56: =データ一覧!J95 -> … | K56: =データ一覧!J152 -> … | N56: =データ一覧!J96 -> 1837 | Q56: =データ一覧!J153 -> 13996 | T56: =データ一覧!J97 -> … | W56: =データ一覧!J154 -> … | Z56: 総 数 | AF56: 男 | AJ56: 女 | AO56: =データ一覧!$A$421 -> 30.4.1 | AS56: =データ一覧!J421 -> 762.998 | AV56: ㎞ | AW56: =データ一覧!J422 -> 110.3 | AZ56: ㎞ | BA56: =データ一覧!J423 -> 153.4 | BD56: ㎞ | BE56: =データ一覧!J424 -> 499.298 | BH56: km | BI56: =データ一覧!$A$425 -> 31.4.1 | BM56: =データ一覧!J425 -> 26.13 | BP56: ㎞ | BR56: 各種学校 | CA56: =データ一覧!J654 -> 1 | CD56: =データ一覧!J655 -> 0 | CG56: =データ一覧!J656 -> 9 | CK56: =データ一覧!J657 -> 2 | CO56: =データ一覧!J658 -> 39 | CS56: =データ一覧!J659 -> 29 | CW56: =データ一覧!J660 -> 10
A57: 農林漁業 | H57: =データ一覧!J98 -> … | K57: =データ一覧!J155 -> … | N57: =データ一覧!J99 -> 37 | Q57: =データ一覧!J156 -> 671 | T57: =データ一覧!J100 -> … | W57: =データ一覧!J157 -> … | AE57: 人 | AH57: 人 | AM57: 人 | AO57: 自 動 車 | AX57: 乗用車 | BR57: 専修学校 | CA57: =データ一覧!J662 -> 0 | CD57: =データ一覧!J663 -> 0 | CG57: =データ一覧!J664 -> 0 | CK57: =データ一覧!J665 -> 0 | CO57: =データ一覧!J666 -> 0 | CS57: =データ一覧!J667 -> 0 | CW57: =データ一覧!J668 -> 0
A58: 鉱業 | H58: =データ一覧!J101 -> … | K58: =データ一覧!J158 -> … | N58: =データ一覧!J102 -> 1 | Q58: =データ一覧!J159 -> 1 | T58: =データ一覧!J103 -> … | W58: =データ一覧!J160 -> … | Z58: =SUM(AF58,AJ58) -> 0 | AF58: =データ一覧!$J$295 -> 0 | AJ58: =データ一覧!J296 -> 0 | AO58: 台 数 | AS58: 貨 物 | AW58: 普 通 | BA58: 小 型 | BE58: 乗 合 | BH58: 特 種 | BK58: 小型二輪 | BN58: 軽自動車 | BQ58: １８ 衛 生
A59: 建設業 | H59: =データ一覧!J104 -> … | K59: =データ一覧!J161 -> … | N59: =データ一覧!J105 -> 283 | Q59: =データ一覧!J162 -> 1695 | T59: =データ一覧!J106 -> … | W59: =データ一覧!J163 -> … | Z59: 海 面 漁 業 漁 獲 量 （属人） | AH59: =データ一覧!$A$297 -> 29年中 | AO59: =データ一覧!$A$426 -> 31.3.31 | AT59: =データ一覧!J426 -> 1790 | AX59: =データ一覧!J428 -> 5910 | BB59: =データ一覧!J429 -> 6856 | BE59: =データ一覧!J427 -> 86 | BH59: =データ一覧!J430 -> 1010 | BK59: =データ一覧!J431 -> 305 | BN59: =データ一覧!J432 -> 14626
A60: 製造業 | H60: =データ一覧!J107 -> … | K60: =データ一覧!J164 -> … | N60: =データ一覧!J108 -> 207 | Q60: =データ一覧!J165 -> 2742 | T60: =データ一覧!J109 -> … | W60: =データ一覧!J166 -> … | AF60: ｔ | AM60: t | AV60: 郵便局数 | BB60: =データ一覧!$A$433 -> 31.3.31 | BI60: 一般加入 | BM60: ＩＮＳネット | BU60: 医療関係施設 | CA60: =データ一覧!$A$669 -> 30.10.1 | CH60: および医療関係者数 | CP60: =データ一覧!$A$674 -> 30.12.31
A61: 電気・ｶﾞ ｽ・熱供給・水道業 | H61: =データ一覧!J110 -> … | K61: =データ一覧!J167 -> … | N61: =データ一覧!J111 -> 4 | Q61: =データ一覧!J168 -> 157 | T61: =データ一覧!J112 -> … | W61: =データ一覧!J169 -> … | Z61: 総 数 | AD61: =データ一覧!J297 -> 0 | AG61: 藻 類 | AK61: =データ一覧!J300 -> 0 | AO61: 通 信 | AS61: 総 数 | AY61: 郵 便 局 | BD61: 簡 易 局 | BI61: 電話数 | BM61: 加入数 | BX61: 病 | CA61: 院 | CI61: 一般診療所 | CU61: 歯科診療所
A62: 情報通信業 | H62: =データ一覧!J113 -> … | K62: =データ一覧!J170 -> … | N62: =データ一覧!J114 -> 3 | Q62: =データ一覧!J171 -> 11 | T62: =データ一覧!J115 -> … | W62: =データ一覧!J172 -> … | Z62: 魚 類 | AD62: =データ一覧!J298 -> 0 | AG62: そ の 他 | AK62: =データ一覧!J301 -> 0 | AO62: =データ一覧!$A$436 -> 31.3.31 | AS62: =データ一覧!J433 -> 13 | AY62: =データ一覧!J434 -> 10 | BD62: =データ一覧!J435 -> 3 | BI62: =データ一覧!J436 -> 4538 | BM62: =データ一覧!J437 -> 424 | BR62: 医療関係 | CD62: 一般病院 | CP62: 有 | CS62: 床
A63: 運輸業、郵便業 | H63: =データ一覧!J116 -> … | K63: =データ一覧!J173 -> … | N63: =データ一覧!J117 -> 18 | Q63: =データ一覧!J174 -> 215 | T63: =データ一覧!J118 -> … | W63: =データ一覧!J175 -> … | Z63: 貝 類 | AD63: =データ一覧!J299 -> 0 | BR63: 施設数 | BY63: =データ一覧!J669 -> 4 | CE63: =データ一覧!J670 -> 4 | CK63: =データ一覧!J671 -> 23 | CQ63: =データ一覧!J672 -> 1 | CW63: =データ一覧!J673 -> 11
A64: 卸売業、小売業 | H64: =データ一覧!J119 -> … | K64: =データ一覧!J176 -> … | N64: =データ一覧!J120 -> 416 | Q64: =データ一覧!J177 -> 2223 | T64: =データ一覧!J121 -> … | W64: =データ一覧!J178 -> … | AO64: １３ 税 ・ 財 政 | BX64: 医師 | CC64: 歯科医師 | CH64: 薬剤師 | CM64: 保健師 | CR64: 助産師 | CW64: 看護師
A65: 金融業、保険業 | H65: =データ一覧!J122 -> … | K65: =データ一覧!J179 -> … | N65: =データ一覧!J123 -> 23 | Q65: =データ一覧!J180 -> 266 | T65: =データ一覧!J124 -> … | W65: =データ一覧!J181 -> … | Z65: ７ 商 業 | AG65: =データ一覧!$A$302 -> 28.6.1(平成27年実績） | BR65: 医療 | CA65: 人 | CF65: 人 | CK65: 人 | CP65: 人 | CU65: 人 | CZ65: 人
A66: 不動産業、物品賃貸業 | H66: =データ一覧!J125 -> … | K66: =データ一覧!J182 -> … | N66: =データ一覧!J126 -> 26 | Q66: =データ一覧!J183 -> 642 | T66: =データ一覧!J127 -> … | W66: =データ一覧!J184 -> … | AS66: 歳入 | BB66: (千円） | BG66: 歳出 | BP66: (千円） | BR66: 関係者 | BW66: =データ一覧!J674 -> 29 | CB66: =データ一覧!J675 -> 17 | CG66: =データ一覧!J676 -> 31 | CL66: =データ一覧!J677 -> 20 | CQ66: =データ一覧!J678 -> 1 | CV66: =データ一覧!J679 -> 261
A67: 学術研究、専門・技術ｻｰﾋﾞｽ業 | H67: =データ一覧!J128 -> … | K67: =データ一覧!J185 -> … | N67: =データ一覧!J129 -> 50 | Q67: =データ一覧!J186 -> 273 | T67: =データ一覧!J130 -> … | W67: =データ一覧!J187 -> … | Z67: 産 業 分 類 | AD67: 商 店 数 | AG67: 従 業 者 数 | AJ67: 年 間 販 売 額 | AO67: 一人当たり歳入歳出予算決算額 | BZ67: 死因別死亡数 | CP67: =データ一覧!$A$680 -> 30年中 | CY67: 単 位：人
A68: 宿泊業、飲食サービス業 | H68: =データ一覧!J131 -> … | K68: =データ一覧!J188 -> … | N68: =データ一覧!J132 -> 230 | Q68: =データ一覧!J189 -> 848 | T68: =データ一覧!J133 -> … | W68: =データ一覧!J190 -> … | AE68: 店 | AI68: 人 | AK68: 百万円 | AO68: 区分 | AS68: =データ一覧!$A$446 -> 元年度 | AX68: =データ一覧!$A$460 -> 30年度 | BC68: 区分 | BG68: =+AS68 -> 元年度 | BL68: =データ一覧!$A$460 -> 30年度 | BQ68: 死 因 | CC68: 悪 性 | CF68: 高血圧 | CL68: 脳血管 | CU68: 不慮の事故
A69: 生活関連サービス業、娯楽業 | H69: =データ一覧!J134 -> … | K69: =データ一覧!J191 -> … | N69: =データ一覧!J135 -> 173 | Q69: =データ一覧!J192 -> 605 | T69: =データ一覧!J136 -> … | W69: =データ一覧!J193 -> … | Z69: 総 計 | AD69: =データ一覧!J302 -> 378 | AG69: =データ一覧!J311 -> 1944 | AJ69: =データ一覧!J320 -> 32710 | AS69: =データ一覧!J442 -> 583066.7861 | AX69: =データ一覧!J443 -> 579576.2403 | BG69: =データ一覧!J444 -> 583066.7861 | BL69: =データ一覧!J445 -> 553347.7236 | BV69: 全 死 因 | BZ69: 結 核 | CC69: 新生物 | CF69: 性疾患 | CI69: 心疾患 | CL69: 疾 患 | CO69: 肺 炎 | CR69: 老 衰 | CX69: 交通事故
A70: 教育、学習支援業 | H70: =データ一覧!J137 -> … | K70: =データ一覧!J194 -> … | N70: =データ一覧!J138 -> 36 | Q70: =データ一覧!J195 -> 113 | T70: =データ一覧!J139 -> … | W70: =データ一覧!J196 -> … | Z70: 卸売業 | AD70: =データ一覧!J303 -> 48 | AG70: =データ一覧!J312 -> 209 | AJ70: =データ一覧!J321 -> 4267 | AO70: 項目別歳入歳出予算決算額
A71: 医療、福祉 | H71: =データ一覧!J140 -> … | K71: =データ一覧!J197 -> … | N71: =データ一覧!J141 -> 151 | Q71: =データ一覧!J198 -> 2194 | T71: =データ一覧!J142 -> … | W71: =データ一覧!J199 -> … | Z71: 小売業 | AD71: =データ一覧!J304 -> 330 | AG71: =データ一覧!J313 -> 1735 | AJ71: =データ一覧!J322 -> 28443 | AO71: 区分 | AS71: =データ一覧!$A$446 -> 元年度 | AX71: =データ一覧!$A$460 -> 30年度 | BC71: 区分 | BG71: =+AS71 -> 元年度 | BL71: =データ一覧!$A$460 -> 30年度 | BV71: =データ一覧!J680 -> 481 | BZ71: － | CA71: =データ一覧!J681 -> 1 | CC71: =データ一覧!J682 -> 116 | CG71: =データ一覧!J683 -> 2 | CI71: =データ一覧!J684 -> 70 | CL71: =データ一覧!J685 -> 71 | CO71: =データ一覧!J686 -> 22 | CR71: =データ一覧!J687 -> 39 | CU71: =データ一覧!J688 -> 23 | CX71: =データ一覧!J689 -> 1
A72: 複合サービス事業 | H72: =データ一覧!J143 -> … | K72: =データ一覧!J200 -> … | N72: =データ一覧!J144 -> 17 | Q72: =データ一覧!J201 -> 197 | T72: =データ一覧!J145 -> … | W72: =データ一覧!J202 -> … | Z72: 各種商品 | AD72: =データ一覧!J305 -> 0 | AG72: =データ一覧!J314 -> 0 | AJ72: =データ一覧!J323 -> 0 | AO72: 総額 | AS72: =SUM(AS73:AW85) -> 18229000 | AX72: =SUM(AX73:BB85) -> 18446173 | BC72: 総額 | BG72: =SUM(BG73:BK85) -> 18229000 | BL72: =SUM(BL73:BP85) -> 17611398 | BQ72: １９ 警 察 ・ 消 防 | CG72: =+データ一覧!$A690 -> 31.4.1
A73: サービス業 | H73: =データ一覧!J146 -> … | K73: =データ一覧!J203 -> … | N73: =データ一覧!J147 -> 162 | Q73: =データ一覧!J204 -> 1143 | T73: =データ一覧!J148 -> … | W73: =データ一覧!J205 -> … | Z73: 織物・衣服・身の回り品 | AD73: =データ一覧!J306 -> 58 | AG73: =データ一覧!J315 -> 125 | AJ73: =データ一覧!J324 -> 992 | AO73: 地方税 | AS73: =データ一覧!J447 -> 3768361 | AX73: =データ一覧!J461 -> 3891747 | BC73: 議会費 | BG73: =データ一覧!J475 -> 196173 | BL73: =データ一覧!J489 -> 186015
A74: 公務 | H74: =データ一覧!J149 -> … | K74: =データ一覧!J206 -> … | N74: =データ一覧!J150 -> … | Q74: =データ一覧!J207 -> … | T74: =データ一覧!J151 -> … | W74: =データ一覧!J208 -> … | Z74: 飲食料品 | AD74: =データ一覧!J307 -> 86 | AG74: =データ一覧!J316 -> 654 | AJ74: =データ一覧!J325 -> 9947 | AO74: 地方譲与税 | AS74: =データ一覧!J448 -> 176000 | AX74: =データ一覧!J462 -> 180543 | BC74: 総務費 | BG74: =データ一覧!J476 -> 2236742 | BL74: =データ一覧!J490 -> 2255945 | CA74: 交番・駐在所 | CJ74: 刑法犯認知件数 | CS74: 交通事故発生件数
A75: ４ 農 業 | Z75: 機械器具 | AD75: =データ一覧!J308 -> 62 | AG75: =データ一覧!J317 -> 352 | AJ75: =データ一覧!J326 -> 7796 | AO75: 各種交付金 | AS75: =データ一覧!J449 -> 678400 | AX75: =データ一覧!J463 -> 699945 | BC75: 民生費 | BG75: =データ一覧!J477 -> 5756206 | BL75: =データ一覧!J491 -> 5450937 | BR75: 警察署数 | CA75: 検問所数 | CK75: （27年中） | CT75: （27年中）
Z76: その他 | AD76: =データ一覧!J309 -> 118 | AG76: =データ一覧!J318 -> 576 | AJ76: =データ一覧!J327 -> x | AO76: 地方特例交付金 | AS76: =データ一覧!J450 -> 35000 | AX76: =データ一覧!J464 -> 14221 | BC76: 衛生費 | BG76: =データ一覧!J478 -> 1530258 | BL76: =データ一覧!J492 -> 1454139 | CO76: 件 | CX76: 件
C77: 農家人口と世帯員数(販売農家) | K77: 農家世帯の就業状態（販売農家） | Z77: 無店舗 | AD77: =データ一覧!J310 -> 6 | AG77: =データ一覧!J319 -> 28 | AJ77: =データ一覧!J328 -> x | AO77: 地方交付税 | AS77: =データ一覧!J451 -> 5930000 | AX77: =データ一覧!J465 -> 6261791 | BC77: 労働費 | BG77: =データ一覧!J479 -> 146862 | BL77: =データ一覧!J493 -> 155649 | BS77: =データ一覧!J690 -> 1 | CB77: =データ一覧!J691 -> 8 | CK77: =データ一覧!J692 -> 82 | CT77: =データ一覧!J693 -> 26
A78: 農 | B78: 平 | K78: 農業従事者 | T78: 非農業従事 | W78: 農業従事者 | AO78: 分担金および負担金 | AS78: =データ一覧!J452 -> 84798 | AX78: =データ一覧!J466 -> 124386 | BC78: 農林水産業費 | BG78: =データ一覧!J480 -> 1212287 | BL78: =データ一覧!J494 -> 1376952 | BQ78: 火災発生件数 | CA78: 林野焼損 | CF78: 損 害 | CK78: 消 防 自 | CO78: その他の
A79: 家 | B79: =+LEFT(データ一覧!$A$209,2) -> 27 | C79: 区分 | E79: 農家人口 | H79: 15歳以上の | N79: 農業就業人口 | T79: 者 | W79: の平均年齢 | Z79: ８ 住 宅 | AO79: 使用料および手数料 | AS79: =データ一覧!J453 -> 231652 | AX79: =データ一覧!J467 -> 224240 | BC79: 商工費 | BG79: =データ一覧!J481 -> 828958 | BL79: =データ一覧!J495 -> 680840 | BQ79: =+データ一覧!$A$694 -> 30年中 | BV79: 焼損棟数 | CA79: 面 積 | CF79: 見 積 額 | CK79: 動 車 数 | CO79: ﾎﾟﾝﾌﾟ数 | CS79: 消防吏員 | CW79: 消防団員
A80: 人就 | B80: ・ | H80: 世帯員数 | Q80: 基幹的農業 | AO80: 国庫支出金 | AS80: =データ一覧!J454 -> 1970923 | AX80: =データ一覧!J468 -> 2030598 | BC80: 土木費 | BG80: =データ一覧!J482 -> 2446776 | BL80: =データ一覧!J496 -> 1645651 | BQ80: 件 | BW80: 棟 | CD80: ａ | CH80: 千円 | CU80: 人 | CY80: 人
A81: 口業 | B81: =+MID(データ一覧!$A$209,4,1) -> 2 | G81: 人 | J81: 人 | M81: 人 | P81: 人 | Q81: 従事者 | S81: 人 | V81: 人 | Y81: 歳 | Z81: =+データ一覧!$A$329 -> 29年 | AE81: =データ一覧!$A$332 -> 30年 | AF81: 中の増減 | AJ81: =+データ一覧!$A$332 -> 30年 | AO81: 県支出金 | AS81: =データ一覧!J455 -> 1821447 | AX81: =データ一覧!J469 -> 1960721 | BC81: 消防費 | BG81: =データ一覧!J483 -> 693369 | BL81: =データ一覧!J497 -> 857529 | BR81: =データ一覧!J694 -> 8 | BW81: =データ一覧!J695 -> 14 | CB81: =データ一覧!J696 -> 10 | CF81: =データ一覧!J697 -> 15676 | CL81: =データ一覧!J698 -> 16 | CP81: =データ一覧!J699 -> 44 | CT81: =データ一覧!J700 -> 55 | CX81: =データ一覧!J701 -> 465
A82: と状 | B82: ・ | C82: 総数 | E82: =データ一覧!J209 -> 5332 | H82: =データ一覧!J212 -> 4825 | K82: =データ一覧!J215 -> 3599 | N82: =データ一覧!J218 -> 1773 | Q82: =データ一覧!J221 -> 1601 | T82: =データ一覧!J224 -> 1226 | W82: =データ一覧!J227 -> 59 | AD82: 建設した住宅 | AG82: 消失した住宅 | AO82: 財産収入 | AS82: =データ一覧!J456 -> 50299 | AX82: =データ一覧!J470 -> 63187 | BC82: 教育費 | BG82: =データ一覧!J484 -> 1540882 | BL82: =データ一覧!J498 -> 1843906 | BQ82: ２０ そ の 他
A83: 況 | B83: =+RIGHT(データ一覧!$A$209,1) -> 1 | C83: 男 | E83: =データ一覧!J210 -> 2614 | H83: =データ一覧!J213 -> 2355 | K83: =データ一覧!J216 -> 1937 | N83: =データ一覧!J219 -> 856 | Q83: =データ一覧!J222 -> 827 | T83: =データ一覧!J225 -> 418 | W83: =データ一覧!J228 -> 57.6 | AO83: 繰入金 | AS83: =データ一覧!J457 -> 1392937 | AX83: =データ一覧!J471 -> 909574 | BC83: 災害復旧費 | BG83: =データ一覧!J485 -> 3800 | BL83: =データ一覧!J499 -> 112667
C84: 女 | E84: =データ一覧!J211 -> 2718 | H84: =データ一覧!J214 -> 2470 | K84: =データ一覧!J217 -> 1662 | N84: =データ一覧!J220 -> 917 | Q84: =データ一覧!J223 -> 774 | T84: =データ一覧!J226 -> 808 | W84: =データ一覧!J229 -> 60.7 | Z84: 281,432 戸 | AA84: =データ一覧!J329 -> 11430 | AC84: 戸 | AD84: =データ一覧!J330 -> 56 | AF84: 戸 | AG84: =データ一覧!J331 -> 115 | AI84: 戸 | AK84: =データ一覧!J332 -> 11371 | AM84: 戸 | AO84: 地方債 | AS84: =データ一覧!J458 -> 1742900 | AX84: =データ一覧!J472 -> 1064800 | BC84: 公債費 | BG84: =データ一覧!J486 -> 1626687 | BL84: =データ一覧!J500 -> 1591168 | BQ84: 名所・旧跡 | BV84: 越前大野城、民俗資料館、歴史博物館、武家屋敷旧内山家、武家屋敷旧田村家、笛資料館、宝慶寺、 和泉郷土資料館、御清水(名水百選)、本願清水(平成の名水百選)、本願清水イトヨの里、旧橋本家住宅、 専福寺の大ケヤキ、朝倉義景墓所、平成大野屋、荒島岳（日本百名山）、刈込池、九頭竜峡、 七間通り(朝市)、寺町通り、六呂師高原、九頭竜湖、良縁の樹、化石発掘体験センター、 COCONOアートプレイス
AO85: その他 | AS85: =データ一覧!J459 -> 346283 | AX85: =データ一覧!J473 -> 1020420 | BC85: その他 | BG85: =データ一覧!J487 -> 10000 | BL85: =データ一覧!J501 -> 0 | BQ85: 文化財等
C86: 総農家数等 | J86: 専兼業別（販売農家） | R86: 経営面積規模別（販売農家）
B87: 平 | C87: 区 分 | G87: 戸数（戸） | J87: 区 分 | O87: 戸数（戸） | R87: 区 分 | W87: 戸数（戸） | Z87: ９ 議 員 ・ 職 員 | AO87: １４ 文 化 | AY87: ( | AZ87: =データ一覧!$A$508 -> 31.3.31 | BD87: ただし図書館・公民館・児童館 | BL87: =データ一覧!$A$502 -> 31.4.1 | BQ87: 特産物 | BV87: けんけら、でっち羊かん、やまぶどうワイン、地酒、はまな味噌、草木染（什器)、里芋、 大野在来そば、越前おおの米、半夏生さば、穴馬スイートコーン、昇竜まいたけ、とんちゃん、オウレン、 醤油カツ丼
A88: 農 | B88: =+LEFT(データ一覧!$A$230,2) -> 27 | C88: 総農家 | G88: =データ一覧!J230 -> 1658 | J88: 総数 | O88: =データ一覧!J236 -> 1294 | R88: 総数 | W88: =データ一覧!J241 -> 1294 | BE88: 宗教法人数 | BL88: =データ一覧!$A$510 -> 30.12.31 | BP88: ）
A89: 家 | B89: ・ | C89: 販売農家 | G89: =データ一覧!J231 -> 1294 | J89: 専業農家 | O89: =データ一覧!J237 -> 255 | R89: 0.5 ha 未満 | W89: =データ一覧!J242 -> 128 | Z89: 市 町 村 議 会 | AC89: 有権者数 | AE89: =データ一覧!$A$336 -> 元.9.1 | AG89: 市 町 村 議 会 | AJ89: 職 員 数 | AT89: 図書館 | AZ89: 公 民 館 | BK89: 社会教育学級講座 | BQ89: 年中行事 | BV89: 七間朝市(春分の日～12月)､結の花まつり(4月上旬～5月中旬)､七間朝市山菜フードピア(5月中旬)､名水マラソン(5月下旬)､九頭竜新緑まつり(5月中旬)､おおの城まつり(8月13日～16日)、アルプス音楽祭(9月中旬)、三大朝市物産まつり・九頭竜紅葉まつり(10月下旬)、産業と食彩フェア(11月上旬)､小京都物産五番まつり(11月上旬)、新そばまつり(11月中旬)､越前おおの冬物語・ふるさと味物語・でっち羊かんまつり(2月上旬)
A90: 数 | B90: =+MID(データ一覧!$A$230,4,1) -> 2 | D90: 主業 | G90: =データ一覧!J232 -> 129 | J90: 兼業農家 | O90: =データ一覧!J238 -> 1039 | R90: 0.5 ha ～ 1.0 ha | W90: =データ一覧!J243 -> 331 | Z90: 議 員 定 数 | AC90: 男 | AE90: 女 | AG90: 選 挙 投 票 率 | AJ90: 総 数 | AL90: 一般行政職 | AO90: 公 共 | AS90: 館 数 | AV90: 図書数 | AY90: 本 館 | BB90: 分 館 | BE90: 公 園 | BH90: 児童館 | BK90: 学級講座数 | BN90: 受講者数
B91: ・ | D91: 準主業 | G91: =データ一覧!J233 -> 436 | K91: 第１種兼業 | O91: =データ一覧!J239 -> 99 | R91: 1.0 ha ～ 1.5 ha | W91: =データ一覧!J244 -> 345 | AB91: 人 | AD91: 人 | AF91: 人 | AI91: ％ | AK91: 人 | AM91: 人 | AO91: 施 設 数 | AT91: =データ一覧!J502 -> 1 | AV91: =データ一覧!J503 -> 204883 | AZ91: =データ一覧!J504 -> 9 | BB91: =データ一覧!J505 -> 0 | BE91: =データ一覧!J506 -> 34 | BH91: =データ一覧!J507 -> 5 | BK91: =データ一覧!J508 -> 1269 | BN91: =データ一覧!J509 -> 32275
B92: =+RIGHT(データ一覧!$A$230,1) -> 1 | D92: 副業的 | G92: =データ一覧!J234 -> 729 | K92: 第２種兼業 | O92: =データ一覧!J240 -> 940 | R92: 1.5 ha ～ 2.0 ha | W92: =データ一覧!J245 -> 217 | AA92: =データ一覧!J333 -> 18 | AC92: =データ一覧!J336 -> 13410 | AE92: =データ一覧!J337 -> 14856 | AG92: =データ一覧!J335 -> 60.82 | AJ92: =データ一覧!J338 -> 375 | AL92: =データ一覧!J339 -> 238 | AO92: 宗 教 | AS92: 仏教系 | AV92: ｷﾘｽﾄ教系 | AY92: 神道諸派 | BB92: 公会堂・市民会館 | BH92: テレビ | BK92: 衛星放送契約数
C93: 自給的農家 | G93: =データ一覧!J235 -> 364 | R93: 2.0 ha 以上 | W93: =データ一覧!J246 -> 267 | AG93: =データ一覧!J334 -> 31.2.17 | AO93: 法 人 数 | AS93: =データ一覧!J510 -> 78 | AV93: =データ一覧!J511 -> 2 | AY93: =データ一覧!J512 -> 102 | BB93: =データ一覧!J513 -> 2 | BH93: 等 | BK93: =データ一覧!J514 -> 7061

Sheet 勝山市
A1: =+データ一覧!K5 -> 0
A2: =+データ一覧!K8 -> 0
AO3: 0
AB4: 【市章とそのいわれ】 カ ツ 山 をもって勝山を意味 | AO4: 【位置および地勢】勝山市は福井県の北東部に位置し、南東は大野市に、 | BT4: 所在地 | CB4: 〒911-8501
AB5: する。福井、大野、金沢の三方面への発展を | AP5: 南西は福井市、北西に坂井市、西に永平寺町、北は石川県に隣接し、 | CB5: 勝山市元町１丁目１番１号
A6: =+データ一覧!K6 -> かつやまし | AB6: 三角の各頂点であらわし、丸は和合、三角は | AP6: 市の周辺は1,000m級の山々に囲まれ、中心部は県下最大河川 である九頭竜川の
A7: =データ一覧!K9 -> 勝山市 | AB7: どっしりとした安定性を意味し、三角と丸を | AP7: 中流域に位置している。 | BT7: 電話番号 | CB7: （０７７９）８８－１１１１
AB8: 組み合わせて勝山市としての将来の発展を | AP8: 市街地は九頭竜川の流れに沿って形成された河岸段丘に位置しており、 | BT8: FAX番号 | CB8: 〃 ８８－１１１９
AB9: 意味する。 | AP9: 明治以来の地場産業である繊維産業を中心とした商工業、古くから盛んな
AB10: 0 | AP10: 農林業を基幹産業とする水と緑の豊かな田園都市である。 | BT10: 最寄駅および距離 | CB10: えちぜん鉄道勝山永平寺線勝山駅 下車１ｋｍ
AB11: 0
AB13: 【市が掲げる標語】小さくてもキラリと光る誇りと活力に満ちたふるさと勝山 | BT13: ホームページ | CB13: http://www.city.katsuyama.fukui.jp/
A15: １ 土 地 | Z15: =データ一覧!$A$261 -> 30年 | AA15: 産米収穫量 | AD15: 収 穫 量 | AG15: 作 付 面 積 | AJ15: 10a当たり収量 | BQ15: １５ 労 働 | CF15: 27.10.1
AD16: =データ一覧!$K$261 -> 5710 | AF16: t | AG16: =データ一覧!$K$262 -> 1110 | AI16: ha | AJ16: =データ一覧!K263 -> 514 | AM16: kg | AO16: １０ 工 業 | BC16: =データ一覧!$A$340 -> 30.6.1（平成29年実績）
A17: 総 面 積 | K17: 固 定 資 産 概 要 調 書 に よ る 地 目 別 面 積 | AC17: 総 数 | AG17: うち 田 | AK17: うち 畑 | BX17: 産業別就業者数
C18: =データ一覧!$A$10 -> 元.10.1 | Q18: =データ一覧!$A$12 -> 31.1.1 | Z18: 耕 地 面 積 | AD18: ha | AG18: ha | AK18: ha | AP18: 産業分類 | AX18: 事業所数 | BC18: 従業者数 | BI18: 年間製造品出荷額等 | BR18: 区 分 | BW18: 総 数 | CB18: 男 | CF18: 女 | CJ18: 区 分 | CO18: 総 数 | CT18: 男 | CX18: 女
G19: ㎢ | K19: 総 数 | P19: う ち 田 | U19: う ち 畑 | Z19: =データ一覧!$A$247 -> 30.7.15 | AC19: =データ一覧!$K$247 -> 1930 | AF19: =データ一覧!$K$248 -> 1780 | AJ19: =データ一覧!$K$249 -> 155 | BA19: 事業所 | BC19: 人 | BF19: 人 | BH19: 万円 | BO19: 万円 | BW19: 人 | CC19: 人 | CG19: 人 | CO19: 人 | CS19: 人 | CW19: 人
D20: =データ一覧!K10 -> 253.88 | O20: ha | T20: ha | Y20: ha | Z20: 農 業 生 産 物 | AD20: 作 付 面 積 | AG20: 収 穫 量 | AJ20: 10a当たり収量 | AP20: 総数 | AY20: =データ一覧!K340 -> 71 | BC20: =+データ一覧!K365 -> 2393 | BJ20: =データ一覧!K390 -> 6490378 | BQ20: 総 数 | BW20: =CA20+CE20 -> 12480 | CA20: =データ一覧!K515 -> 6673 | CE20: =データ一覧!K540 -> 5807
L21: =データ一覧!K12 -> 20769.8 | Q21: =データ一覧!K13 -> 1922.5 | V21: =データ一覧!K14 -> 150.9 | Z21: =データ一覧!$A$264 -> 30年中 | AD21: ha | AG21: t | AJ21: kg | AO21: 食料品 | AP21: 食料品 | AY21: =データ一覧!K341 -> 4 | BC21: =+データ一覧!K366 -> 83 | BJ21: =データ一覧!K391 -> 131103 | CJ21: 卸売業,小売業 | CO21: =CS21+CW21 -> 1648 | CS21: =データ一覧!K528 -> 845 | CW21: =データ一覧!K553 -> 803
A22: 町 ･ 丁 ･ 大 字 | K22: う ち 宅 地 | P22: う ち 山 林 | U22: う ち 原 野 | Z22: 水 稲 | AD22: =データ一覧!K264 -> 1110 | AG22: =データ一覧!K265 -> 5710 | AJ22: =データ一覧!K266 -> 514 | AO22: 飲料・飼料 | AP22: 飲料・飼料 | AY22: =データ一覧!K342 -> 1 | BC22: =+データ一覧!K367 -> 29 | BJ22: =データ一覧!K392 -> x | BQ22: 第１次産業 | BW22: =CA22+CE22 -> 780 | CA22: =データ一覧!K516 -> 510 | CE22: =データ一覧!K541 -> 270 | CJ22: 金融業,保険業 | CO22: =CS22+CW22 -> 241 | CS22: =データ一覧!K529 -> 99 | CW22: =データ一覧!K554 -> 142
A23: 区 画 数 | H23: =データ一覧!K11 -> 118 | O23: ha | T23: ha | Y23: ha | Z23: 六 条 大 麦 | AD23: =データ一覧!K267 -> 212 | AG23: =データ一覧!K268 -> 207 | AJ23: =データ一覧!K269 -> 98 | AO23: 繊維 | AP23: 繊維 | AY23: =データ一覧!K343 -> 34 | BC23: =+データ一覧!K368 -> 1147 | BJ23: =データ一覧!K393 -> 1438746 | BR23: 農業 | BW23: =CA23+CE23 -> 714 | CA23: =データ一覧!K517 -> 448 | CE23: =データ一覧!K542 -> 266 | CJ23: 不動産業 | CO23: 71 | CS23: =データ一覧!K530 -> 48 | CW23: =データ一覧!K555 -> 23
A24: =データ一覧!$A$11 -> 31.4.1 | L24: =データ一覧!K15 -> 600.2 | Q24: =データ一覧!K16 -> 9280.3 | V24: =データ一覧!K17 -> 333.7 | Z24: 大 豆 | AD24: =データ一覧!K270 -> 10 | AG24: =データ一覧!K271 -> 5 | AJ24: =データ一覧!K272 -> 46 | AO24: 衣服 | AP24: 木材 | AY24: =データ一覧!K344 -> 1 | BC24: =+データ一覧!K369 -> 9 | BJ24: =データ一覧!K394 -> x | BR24: 林業 | BW24: 63 | CA24: =データ一覧!K518 -> 59 | CE24: =データ一覧!K543 -> 4 | CJ24: 学術研究 | CO24: 182 | CS24: =データ一覧!K531 -> 116 | CW24: =データ一覧!K556 -> 66
A25: ２ 世 帯 数 と 人 口 | AB25: 区 分 | AD25: 乳 用 牛 | AF25: 肉 用 牛 | AH25: 豚 | AJ25: 採卵鶏 | AL25: ブロイラー | AO25: 木材 | AP25: 家具 | AY25: =データ一覧!K345 -> 2 | BC25: =+データ一覧!K370 -> 39 | BJ25: =データ一覧!K395 -> x | BR25: 漁業 | BW25: 3 | CA25: =データ一覧!K519 -> 3 | CE25: =データ一覧!K544 -> 0 | CJ25: 宿泊業,飲食ｻｰﾋﾞｽ | CO25: 548 | CS25: =データ一覧!K532 -> 232 | CW25: =データ一覧!K557 -> 316
Z26: 畜 産 | AB26: 飼養農家 | AD26: =データ一覧!$K$251 -> 3 | AF26: =データ一覧!$K$253 -> x | AH26: =データ一覧!$K$255 -> - | AJ26: =データ一覧!$K$257 -> x | AL26: =データ一覧!$K$259 -> - | AO26: 家具 | AP26: パルプ・紙 | AY26: =データ一覧!K346 -> 0 | BC26: =+データ一覧!K371 -> 0 | BJ26: =データ一覧!K396 -> 0 | BQ26: 第２次産業 | BW26: 4424 | CA26: =データ一覧!K520 -> 2807 | CE26: =データ一覧!K545 -> 1617 | CJ26: 生活関連ｻｰﾋﾞｽ業 | CO26: 411 | CS26: =データ一覧!K533 -> 151 | CW26: =データ一覧!K558 -> 260
I27: 人 口 | U27: １世帯当 | W27: 人 口 | Z27: =データ一覧!$A$251 -> 31.3.31 | AB27: （戸） | AO27: パルプ・紙 | AP27: 印刷 | AY27: =データ一覧!K347 -> 3 | BC27: =+データ一覧!K372 -> 37 | BJ27: =データ一覧!K397 -> 49563 | BR27: 鉱業，採石業 | BW27: 10 | CA27: =データ一覧!K521 -> 6 | CE27: =データ一覧!K546 -> 4 | CJ27: 教育,学習支援業 | CO27: 578 | CS27: =データ一覧!K534 -> 229 | CW27: =データ一覧!K559 -> 349
A28: 区 分 | F28: 世帯数 | I28: 総 数 | L28: 男 | O28: 女 | R28: 男／女 | U28: たり人員 | W28: 密 度 | AB28: 頭 羽 | AD28: =データ一覧!$K$252 -> 99 | AF28: =データ一覧!$K$254 -> 9 | AH28: =データ一覧!$K$256 -> - | AJ28: =データ一覧!$K$258 -> 178 | AL28: =データ一覧!$K$260 -> - | AO28: 出版・印刷 | AP28: 化学 | AY28: =データ一覧!K348 -> 1 | BC28: =+データ一覧!K373 -> 344 | BJ28: =データ一覧!K398 -> x | BR28: 建設業 | BW28: 1181 | CA28: =データ一覧!K522 -> 1008 | CE28: =データ一覧!K547 -> 173 | CJ28: 医療，福祉 | CO28: 1707 | CS28: =データ一覧!K535 -> 330 | CW28: =データ一覧!K560 -> 1377
F29: 世 帯 | I29: 人 | L29: 人 | O29: 人 | S29: ％ | U29: 人 | W29: 人/㎢ | AO29: 化学 | AP29: 石油・石炭 | AY29: =データ一覧!K349 -> 0 | BC29: =+データ一覧!K374 -> 0 | BJ29: =データ一覧!K399 -> 0 | BR29: 製造業 | BW29: 3233 | CA29: =データ一覧!K523 -> 1793 | CE29: =データ一覧!K548 -> 1440 | CJ29: 複合サービス事業 | CO29: 170 | CS29: =データ一覧!K536 -> 87 | CW29: =データ一覧!K561 -> 83
A30: =データ一覧!$A$25 -> 2.10.1 | F30: =データ一覧!K25 -> 7701 | I30: =+L30+O30 -> 29805 | L30: =データ一覧!K27 -> 14400 | O30: =データ一覧!K28 -> 15405 | S30: =+L30/O30*100 -> 93.47614411 | U30: =データ一覧!K30 -> 3.87 | W30: =データ一覧!K31 -> 117.5 | Z30: ５ 林 業 | AO30: 石油・石炭 | AP30: プラスチック | AY30: =データ一覧!K350 -> 0 | BC30: =+データ一覧!K375 -> 0 | BJ30: =データ一覧!K400 -> 0 | BQ30: 第３次産業 | BW30: 7199 | CA30: =データ一覧!K524 -> 3310 | CE30: =データ一覧!K549 -> 3889 | CJ30: サービス業 | CO30: 567 | CS30: =データ一覧!K537 -> 362 | CW30: =データ一覧!K562 -> 205
A31: =データ一覧!$A$32 -> 7.10.1 | F31: =データ一覧!K32 -> 7733 | I31: =+L31+O31 -> 29162 | L31: =データ一覧!K34 -> 14033 | O31: =データ一覧!K35 -> 15129 | S31: 92.75563487 | U31: =データ一覧!K37 -> 3.77 | W31: =データ一覧!K38 -> 115 | AO31: プラスチック | AP31: ゴム | AY31: =データ一覧!K351 -> 0 | BC31: =+データ一覧!K376 -> 0 | BJ31: =データ一覧!K401 -> 0 | BR31: 電気･ｶﾞｽ･水道業 | BW31: 58 | CA31: =データ一覧!K525 -> 47 | CE31: =データ一覧!K550 -> 11 | CJ31: 公務 | CO31: 452 | CS31: =データ一覧!K538 -> 319 | CW31: =データ一覧!K563 -> 133
A32: =データ一覧!$A$39 -> 12.10.1 | F32: =データ一覧!K39 -> 7942 | I32: =+L32+O32 -> 28143 | L32: =データ一覧!K41 -> 13391 | O32: =データ一覧!K42 -> 14752 | S32: 90.77413232 | U32: =データ一覧!K44 -> 3.54 | W32: =データ一覧!K45 -> 110.9 | Z32: 森 林 総 面 積 | AH32: =データ一覧!$A$273 -> 31.3.31 | AO32: ゴム | AP32: 皮革 | AY32: =データ一覧!K352 -> 0 | BC32: =+データ一覧!K377 -> 0 | BJ32: =データ一覧!K402 -> 0 | BR32: 情報通信業 | BW32: 140 | CA32: =データ一覧!K526 -> 97 | CE32: =データ一覧!K551 -> 43 | CI32: 分類不能の産業 | CO32: 77 | CS32: =データ一覧!K539 -> 46 | CW32: =データ一覧!K564 -> 31
A33: =+データ一覧!$A$46 -> 17.10.1 | F33: =データ一覧!K46 -> 7990 | I33: =+L33+O33 -> 26961 | L33: =データ一覧!K48 -> 12777 | O33: =データ一覧!K49 -> 14184 | S33: 90.08037225 | U33: =データ一覧!K51 -> 3.37 | W33: =データ一覧!K52 -> 106.3 | Z33: 森 林 の 構 成 | AO33: 皮革 | AP33: 窯業・土石 | AY33: =データ一覧!K353 -> 5 | BC33: =+データ一覧!K378 -> 58 | BJ33: =データ一覧!K403 -> 130382 | BR33: 運輸業,郵便業 | BW33: =CA33+CE33 -> 426 | CA33: =データ一覧!K527 -> 348 | CE33: =データ一覧!K552 -> 78
A34: =+データ一覧!$A$53 -> 22.10.1 | F34: =+データ一覧!K53 -> 7773 | I34: =+L34+O34 -> 25466 | L34: =+データ一覧!K55 -> 12072 | O34: =+データ一覧!K56 -> 13394 | S34: 90.12990891 | U34: =+データ一覧!K58 -> 3.28 | W34: =+データ一覧!K59 -> 100.4 | AE34: ha | AL34: ha | AO34: 窯業・土石 | AP34: 鉄鋼 | AY34: =データ一覧!K354 -> 2 | BC34: =+データ一覧!K379 -> 91 | BJ34: =データ一覧!K404 -> x | BQ34: １６ 社 会 福 祉 | CG34: =データ一覧!$A$565 -> 31.4.1
A35: =データ一覧!$A$60 -> 27.10.1 | F35: =データ一覧!K60 -> 7703 | I35: =データ一覧!K61 -> 24125 | L35: =データ一覧!K62 -> 11478 | O35: =データ一覧!K63 -> 12647 | S35: 90.75670119 | U35: =データ一覧!K65 -> 3.131896664 | W35: =データ一覧!K66 -> 95 | Z35: 総 数 | AD35: =データ一覧!K273 -> 20157.21 | AG35: 天然林 針葉樹 | AK35: =データ一覧!K276 -> 220.8 | AO35: 鉄鋼 | AP35: 非鉄金属 | AY35: =データ一覧!K355 -> 0 | BC35: =+データ一覧!K380 -> 0 | BJ35: =データ一覧!K405 -> 0
A36: =+データ一覧!$A$67 -> 元.10.1 | F36: =データ一覧!K67 -> 7630 | I36: =データ一覧!K76 -> 22561 | L36: =データ一覧!K77 -> 10712 | O36: =データ一覧!K78 -> 11849 | S36: =+L36/O36*100 -> 90.40425352 | U36: =データ一覧!K68 -> 2.96 | W36: =データ一覧!K69 -> 88.86481802 | Z36: 人工林 針葉樹 | AD36: =データ一覧!K274 -> 7902.96 | AG36: 天然林 広葉樹 | AK36: =データ一覧!K277 -> 11063.89 | AO36: 非鉄金属 | AP36: 金属 | AY36: =データ一覧!K356 -> 5 | BC36: =+データ一覧!K381 -> 232 | BJ36: =データ一覧!K406 -> 751247 | BR36: 区分 | BY36: 施設数 | CD36: 収容定員 | CJ36: 区分 | CQ36: 施設数 | CV36: 収容定員
A37: 年 | C37: 区 | E37: 0歳 | H37: 15歳 | K37: 25歳 | N37: 35歳 | Q37: 45歳 | T37: 55歳 | W37: 65歳 | Z37: 人工林 広葉樹 | AD37: =データ一覧!K275 -> 214.3 | AG37: 竹 林 | AK37: =データ一覧!K278 -> 9.4 | AO37: 金属 | AP37: はん用機械 | AY37: =データ一覧!K357 -> 0 | BC37: =+データ一覧!K382 -> 0 | BJ37: =データ一覧!K407 -> 0 | BQ37: 生活保護施設 | BY37: =データ一覧!K565 -> 0 | CC37: =データ一覧!K578 -> 0 | CG37: 人 | CI37: 指定障害者支援施設 | CQ37: =データ一覧!K571 -> 4 | CU37: =データ一覧!K584 -> 215 | CY37: 人
A38: 齢 | B38: 令 | F38: ～ | I38: ～ | L38: ～ | O38: ～ | R38: ～ | U38: ～ | AO38: 一般機械 | AP38: 生産用機械 | AY38: =データ一覧!K358 -> 1 | BC38: =+データ一覧!K383 -> 12 | BJ38: =データ一覧!K408 -> x | BQ38: 地域福祉施設 | BY38: =データ一覧!K566 -> 0 | CC38: =データ一覧!K579 -> 0 | CI38: 指定相談支援事業所 | CQ38: =データ一覧!K572 -> 0 | CU38: =データ一覧!K585 -> 0
A39: 階 | B39: 元 | C39: 分 | G39: 14歳 | J39: 24歳 | M39: 34歳 | P39: 44歳 | S39: 54歳 | V39: 64歳 | Y39: 以上 | Z39: 林 野 の 構 成 | AG39: 保 有 形 態 別 | AO39: 電気機械 | AP39: 業務用機械 | AY39: =データ一覧!K359 -> 0 | BC39: =+データ一覧!K384 -> 0 | BJ39: =データ一覧!K409 -> 0 | BQ39: 老人福祉施設 | BY39: =データ一覧!K567 -> 5 | CC39: =データ一覧!K580 -> 76 | CI39: 児童福祉施設 | CQ39: =データ一覧!K573 -> 14 | CU39: =データ一覧!K586 -> 874
A40: 級 | B40: ・ | G40: 人 | J40: 人 | L40: 人 | O40: 人 | R40: 人 | U40: 人 | X40: 人 | AF40: ha | AL40: ha | AP40: 電子・デバイス | AY40: =データ一覧!K360 -> 2 | BC40: =+データ一覧!K385 -> 54 | BJ40: =データ一覧!K410 -> x | BQ40: 介護保険施設 | BY40: =データ一覧!K568 -> 35 | CC40: =データ一覧!K581 -> 780 | CI40: 母子福祉施設 | CQ40: =データ一覧!K574 -> 0 | CU40: =データ一覧!K587 -> 0
A41: 別 | B41: 10 | C41: 総 数 | E41: =+E42+E43 -> 2474 | H41: =+H42+H43 -> 1848 | K41: =+K42+K43 -> 1691 | N41: =+N42+N43 -> 2377 | Q41: =+Q42+Q43 -> 2619 | T41: =+T42+T43 -> 3158 | W41: =+W42+W43 -> 8371 | Z41: 無立木地 伐採跡地 | AD41: =データ一覧!K279 -> 27.17 | AG41: 国 有 | AK41: =データ一覧!K281 -> 1977.53 | AP41: 電気機械 | AY41: =データ一覧!K361 -> 3 | BC41: =+データ一覧!K386 -> 158 | BJ41: =データ一覧!K411 -> 145311 | BQ41: 障害者自立支援法施行前からの身体障害者福祉施設 | BY41: =データ一覧!K569 -> 0 | CC41: =データ一覧!K582 -> 0 | CI41: 婦人保護施設 | CQ41: =データ一覧!K575 -> 0 | CU41: =データ一覧!K588 -> 0
A42: 人 | B42: ・ | C42: 男 | E42: =データ一覧!K79 -> 1285 | H42: =データ一覧!K80 -> 904 | K42: =データ一覧!K81 -> 890 | N42: =データ一覧!K82 -> 1206 | Q42: =データ一覧!K83 -> 1274 | T42: =データ一覧!K84 -> 1522 | W42: =データ一覧!K85 -> 3617 | Z42: 無立木地 未立木地 | AD42: =データ一覧!K280 -> 718.69 | AG42: 公 有 | AK42: =データ一覧!K282 -> 4145.07 | AO42: 輸送機械 | AP42: 情報通信機械 | AY42: =データ一覧!K362 -> 1 | BC42: =+データ一覧!K387 -> 17 | BJ42: =データ一覧!K412 -> x | CI42: その他の社会福祉施設 | CQ42: =データ一覧!K576+データ一覧!K577 -> 0 | CU42: =データ一覧!K589+データ一覧!K590 -> 0
A43: 口 | B43: 1 | C43: 女 | E43: =データ一覧!K87 -> 1189 | H43: =データ一覧!K88 -> 944 | K43: =データ一覧!K89 -> 801 | N43: =データ一覧!K90 -> 1171 | Q43: =データ一覧!K91 -> 1345 | T43: =データ一覧!K92 -> 1636 | W43: =データ一覧!K93 -> 4754 | AG43: 私 有 | AK43: =データ一覧!K283 -> 14034.61 | AO43: 精密機械 | AP43: 輸送機械 | AY43: =データ一覧!K363 -> 4 | BC43: =+データ一覧!K388 -> 60 | BJ43: =データ一覧!K413 -> 16399 | BQ43: 障害福祉サービス事業所 | BY43: =データ一覧!K570 -> 19 | CC43: =データ一覧!K583 -> 233
Z44: 林 産 物 生 産 量 | AJ44: =データ一覧!$A$284 -> 30年中 | AO44: その他 | AP44: その他 | AY44: =データ一覧!K364 -> 2 | BC44: =+データ一覧!K389 -> 23 | BJ44: =データ一覧!K414 -> x | BQ44: １７ 教 育 | CG44: =データ一覧!$A$591 -> 元.5.1（特別支援学校、専修学校はH30.5.1現在）
A45: 人口動態 | H45: 自 然 動 態 | N45: 社 会 動 態 | T45: =データ一覧!$A74 -> 30.1.1～30.12.31 | Z45: 生椎茸 | AD45: =データ一覧!K284 -> 970 | AF45: ㎏ | AG45: 乾椎茸 | AK45: =データ一覧!K285 -> - | AM45: ㎏
C46: 区 分 | H46: 出 生 | K46: 死 亡 | N46: 転 入 | Q46: 転 出 | T46: 婚 姻 | W46: 離 婚 | Z46: えのきだけ | AD46: =データ一覧!K287 -> - | AF46: ㎏ | AG46: なめこ | AK46: =データ一覧!K286 -> - | AM46: ㎏ | AP46: 工 業 用 水 量 | AV46: （従業者30人以上の事業所） | BG46: =データ一覧!K415 -> 8177 | BL46: ㎥／日 | CA46: 学校数（校） | CH46: 教員数（人） | CP46: 学生・生徒・児童数（人）
A47: =LEFT(データ一覧!$A70,7) -> 30.10.1 | H47: 人 | K47: 人 | N47: 人 | Q47: 人 | U47: 件 | X47: 件 | Z47: ひらたけ | AD47: =+データ一覧!K288 -> - | AF47: ㎏ | AG47: まいたけ | AK47: =+データ一覧!K289 -> - | AM47: ㎏ | BS47: 区分 | CA47: 本 校 | CD47: 分 校 | CG47: 本 務 | CK47: 兼 務 | CO47: 総 数 | CS47: 男 | CW47: 女
A48: ～ | C48: 実 数 | H48: =データ一覧!K70 -> 111 | K48: =データ一覧!K71 -> 348 | N48: =データ一覧!K72 -> 422 | Q48: =データ一覧!K73 -> 593 | T48: =データ一覧!K74 -> 99 | W48: =データ一覧!K75 -> 16 | AO48: １１ 上 ・ 下 水 道 | BR48: 小学校 | CA48: =データ一覧!K592 -> 9 | CD48: =データ一覧!K593 -> 0 | CG48: =データ一覧!K594 -> 106 | CK48: =データ一覧!K595 -> 12 | CO48: =データ一覧!K596 -> 1046 | CS48: =データ一覧!K597 -> 537 | CW48: =データ一覧!K598 -> 509
A49: =RIGHT(データ一覧!$A72,7) -> ～元.9.30 | C49: 比率(対1,000人) | H49: =+H48/I35*1000 -> 4.601036269 | K49: =+K48/I35*1000 -> 14.42487047 | N49: - | Q49: - | T49: =+T48/I35*1000 -> 4.103626943 | W49: =+W48/I35*1000 -> 0.6632124352 | Z49: ６ 漁 業 | BR49: 中学校 | CA49: =データ一覧!K600 -> 3 | CD49: =データ一覧!K601 -> 0 | CG49: =データ一覧!K602 -> 59 | CK49: =データ一覧!K603 -> 6 | CO49: =データ一覧!K604 -> 559 | CS49: =データ一覧!K605 -> 279 | CW49: =データ一覧!K606 -> 280
AO50: 水 道 供 給 人 口 | AV50: 上 水 道 | AZ50: 簡易水道 | BD50: 専用水道 | BH50: 飲料水供給施設 | BL50: 下水道処理人口 | BR50: 高等学校 | CA50: =データ一覧!K608 -> 1 | CD50: =データ一覧!K609 -> 0 | CG50: =データ一覧!K610 -> 32 | CK50: =データ一覧!K611 -> 9 | CO50: =データ一覧!K612 -> 325 | CS50: =データ一覧!K613 -> 166 | CW50: =データ一覧!K614 -> 159
A51: ３ 事 業 所（民 営） （平 28.6.1） | Z51: 漁船隻数・トン数 | AD51: =データ一覧!$A$290 -> 30.12.31 | AH51: 動 力 船 | AO51: =データ一覧!$A$416 -> 31.3.31 | AU51: 人 | AW51: =データ一覧!K416 -> 22184 | AZ51: =データ一覧!K417 -> 0 | BE51: =データ一覧!K418 -> 135 | BI51: =データ一覧!K419 -> 0 | BM51: =データ一覧!K420 -> 19851 | BR51: 大学・短期大学 | CA51: =データ一覧!K615 -> 0 | CD51: =データ一覧!K616 -> 0 | CG51: =データ一覧!K617 -> 0 | CK51: =データ一覧!K618 -> 0 | CO51: =データ一覧!K619 -> 0 | CS51: =データ一覧!K620 -> 0 | CW51: =データ一覧!K621 -> 0
Z52: 無動力船隻数 | AD52: 船外機付漁船隻数 | AH52: 隻 数 | AK52: 総 ト ン 数 | BR52: 高等専門学校 | CA52: =データ一覧!K622 -> 0 | CD52: =データ一覧!K623 -> 0 | CG52: =データ一覧!K624 -> 0 | CK52: =データ一覧!K625 -> 0 | CO52: =データ一覧!K626 -> 0 | CS52: =データ一覧!K627 -> 0 | CW52: =データ一覧!K628 -> 0
H53: 総 数 | N53: 民 営 | T53: 国 ･ 地方公共団体 | AC53: 隻 | AG53: 隻 | AJ53: 隻 | AM53: t | AO53: １２ 交 通 ・ 通 信 | BR53: 特別支援学校 | CA53: =データ一覧!K630 -> 1 | CD53: =データ一覧!K631 -> 0 | CG53: =+データ一覧!K632 -> 61 | CK53: =+データ一覧!K633 -> x | CO53: =+データ一覧!K634 -> 66 | CS53: =+データ一覧!K635 -> 40 | CW53: =+データ一覧!K636 -> 26
A54: 区 分 | H54: 事業所数 | K54: 従業者数 | N54: 事業所数 | Q54: 従業者数 | T54: 事業所数 | W54: 従業者数 | Z54: =データ一覧!$K$290 -> 0 | AD54: =データ一覧!$K$291 -> 0 | AH54: =データ一覧!K292 -> 0 | AK54: =データ一覧!K293 -> 0 | BR54: 幼稚園 | CA54: =データ一覧!K638 -> 1 | CD54: =データ一覧!K639 -> 0 | CG54: =データ一覧!K640 -> 4 | CK54: =データ一覧!K641 -> 0 | CO54: =データ一覧!K642 -> 21 | CS54: =データ一覧!K643 -> 7 | CW54: =データ一覧!K644 -> 14
K55: 人 | Q55: 人 | W55: 人 | Z55: 男女別就業者数 | AH55: =データ一覧!$A$294 -> 30.11.1 | AO55: 道 路 | AS55: 実 延 長 | AW55: 国 道 | BA55: 県 道 | BE55: 市町道 | BI55: 鉄 道 営 業 キ ロ 数 | BR55: 幼保連携認定こども園 | CA55: =データ一覧!K646 -> 7 | CD55: =データ一覧!K647 -> 0 | CG55: =データ一覧!K648 -> 130 | CK55: =データ一覧!K649 -> 7 | CO55: =データ一覧!K650 -> 558 | CS55: =データ一覧!K651 -> 307 | CW55: =データ一覧!K652 -> 251
A56: 総数 | H56: =データ一覧!K95 -> … | K56: =データ一覧!K152 -> … | N56: =データ一覧!K96 -> 1212 | Q56: =データ一覧!K153 -> 9260 | T56: =データ一覧!K97 -> … | W56: =データ一覧!K154 -> … | Z56: 総 数 | AF56: 男 | AJ56: 女 | AO56: =データ一覧!$A$421 -> 30.4.1 | AS56: =データ一覧!K421 -> 568.46 | AV56: ㎞ | AW56: =データ一覧!K422 -> 39.7 | AZ56: ㎞ | BA56: =データ一覧!K423 -> 82.7 | BD56: ㎞ | BE56: =データ一覧!K424 -> 446.06 | BH56: km | BI56: =データ一覧!$A$425 -> 31.4.1 | BM56: =データ一覧!K425 -> 6.6 | BP56: ㎞ | BR56: 各種学校 | CA56: =データ一覧!K654 -> 1 | CD56: =データ一覧!K655 -> 0 | CG56: =データ一覧!K656 -> 21 | CK56: =データ一覧!K657 -> 0 | CO56: =データ一覧!K658 -> 82 | CS56: =データ一覧!K659 -> 53 | CW56: =データ一覧!K660 -> 29
A57: 農林漁業 | H57: =データ一覧!K98 -> … | K57: =データ一覧!K155 -> … | N57: =データ一覧!K99 -> 18 | Q57: =データ一覧!K156 -> 323 | T57: =データ一覧!K100 -> … | W57: =データ一覧!K157 -> … | AE57: 人 | AH57: 人 | AM57: 人 | AO57: 自 動 車 | AX57: 乗用車 | BR57: 専修学校 | CA57: =データ一覧!K662 -> 0 | CD57: =データ一覧!K663 -> 0 | CG57: =データ一覧!K664 -> 0 | CK57: =データ一覧!K665 -> 0 | CO57: =データ一覧!K666 -> 0 | CS57: =データ一覧!K667 -> 0 | CW57: =データ一覧!K668 -> 0
A58: 鉱業 | H58: =データ一覧!K101 -> … | K58: =データ一覧!K158 -> … | N58: =データ一覧!K102 -> 0 | Q58: =データ一覧!K159 -> 0 | T58: =データ一覧!K103 -> … | W58: =データ一覧!K160 -> … | Z58: =SUM(AF58,AJ58) -> 0 | AF58: =データ一覧!$K$295 -> 0 | AJ58: =データ一覧!K296 -> 0 | AO58: 台 数 | AS58: 貨 物 | AW58: 普 通 | BA58: 小 型 | BE58: 乗 合 | BH58: 特 種 | BK58: 小型二輪 | BN58: 軽自動車 | BQ58: １８ 衛 生
A59: 建設業 | H59: =データ一覧!K104 -> … | K59: =データ一覧!K161 -> … | N59: =データ一覧!K105 -> 167 | Q59: =データ一覧!K162 -> 814 | T59: =データ一覧!K106 -> … | W59: =データ一覧!K163 -> … | Z59: 海 面 漁 業 漁 獲 量 （属人） | AH59: =データ一覧!$A$297 -> 29年中 | AO59: =データ一覧!$A$426 -> 31.3.31 | AT59: =データ一覧!K426 -> 956 | AX59: =データ一覧!K428 -> 3866 | BB59: =データ一覧!K429 -> 4615 | BE59: =データ一覧!K427 -> 66 | BH59: =データ一覧!K430 -> 473 | BK59: =データ一覧!K431 -> 219 | BN59: =データ一覧!K432 -> 9638
A60: 製造業 | H60: =データ一覧!K107 -> … | K60: =データ一覧!K164 -> … | N60: =データ一覧!K108 -> 172 | Q60: =データ一覧!K165 -> 2909 | T60: =データ一覧!K109 -> … | W60: =データ一覧!K166 -> … | AF60: ｔ | AM60: t | AV60: 郵便局数 | BB60: =データ一覧!$A$433 -> 31.3.31 | BI60: 一般加入 | BM60: ＩＮＳネット | BU60: 医療関係施設 | CA60: =データ一覧!$A$669 -> 30.10.1 | CH60: および医療関係者数 | CP60: =データ一覧!$A$674 -> 30.12.31
A61: 電気・ｶﾞ ｽ・熱供給・水道業 | H61: =データ一覧!K110 -> … | K61: =データ一覧!K167 -> … | N61: =データ一覧!K111 -> 2 | Q61: =データ一覧!K168 -> 15 | T61: =データ一覧!K112 -> … | W61: =データ一覧!K169 -> … | Z61: 総 数 | AD61: =データ一覧!K297 -> 0 | AG61: 藻 類 | AK61: =データ一覧!K300 -> 0 | AO61: 通 信 | AS61: 総 数 | AY61: 郵 便 局 | BD61: 簡 易 局 | BI61: 電話数 | BM61: 加入数 | BX61: 病 | CA61: 院 | CI61: 一般診療所 | CU61: 歯科診療所
A62: 情報通信業 | H62: =データ一覧!K113 -> … | K62: =データ一覧!K170 -> … | N62: =データ一覧!K114 -> 6 | Q62: =データ一覧!K171 -> 43 | T62: =データ一覧!K115 -> … | W62: =データ一覧!K172 -> … | Z62: 魚 類 | AD62: =データ一覧!K298 -> 0 | AG62: そ の 他 | AK62: =データ一覧!K301 -> 0 | AO62: =データ一覧!$A$436 -> 31.3.31 | AS62: =データ一覧!K433 -> 10 | AY62: =データ一覧!K434 -> 9 | BD62: =データ一覧!K435 -> 1 | BI62: =データ一覧!K436 -> 3115 | BM62: =データ一覧!K437 -> 285 | BR62: 医療関係 | CD62: 一般病院 | CP62: 有 | CS62: 床
A63: 運輸業、郵便業 | H63: =データ一覧!K116 -> … | K63: =データ一覧!K173 -> … | N63: =データ一覧!K117 -> 16 | Q63: =データ一覧!K174 -> 345 | T63: =データ一覧!K118 -> … | W63: =データ一覧!K175 -> … | Z63: 貝 類 | AD63: =データ一覧!K299 -> 0 | BR63: 施設数 | BY63: =データ一覧!K669 -> 2 | CE63: =データ一覧!K670 -> 1 | CK63: =データ一覧!K671 -> 13 | CQ63: =データ一覧!K672 -> 3 | CW63: =データ一覧!K673 -> 8
A64: 卸売業、小売業 | H64: =データ一覧!K119 -> … | K64: =データ一覧!K176 -> … | N64: =データ一覧!K120 -> 285 | Q64: =データ一覧!K177 -> 1379 | T64: =データ一覧!K121 -> … | W64: =データ一覧!K178 -> … | AO64: １３ 税 ・ 財 政 | BX64: 医師 | CC64: 歯科医師 | CH64: 薬剤師 | CM64: 保健師 | CR64: 助産師 | CW64: 看護師
A65: 金融業、保険業 | H65: =データ一覧!K122 -> … | K65: =データ一覧!K179 -> … | N65: =データ一覧!K123 -> 17 | Q65: =データ一覧!K180 -> 118 | T65: =データ一覧!K124 -> … | W65: =データ一覧!K181 -> … | Z65: ７ 商 業 | AG65: =データ一覧!$A$302 -> 28.6.1(平成27年実績） | BR65: 医療 | CA65: 人 | CF65: 人 | CK65: 人 | CP65: 人 | CU65: 人 | CZ65: 人
A66: 不動産業、物品賃貸業 | H66: =データ一覧!K125 -> … | K66: =データ一覧!K182 -> … | N66: =データ一覧!K126 -> 14 | Q66: =データ一覧!K183 -> 31 | T66: =データ一覧!K127 -> … | W66: =データ一覧!K184 -> … | AS66: 歳入 | BB66: (千円） | BG66: 歳出 | BP66: (千円） | BR66: 関係者 | BW66: =データ一覧!K674 -> 43 | CB66: =データ一覧!K675 -> 13 | CG66: =データ一覧!K676 -> 44 | CL66: =データ一覧!K677 -> 20 | CQ66: =データ一覧!K678 -> 1 | CV66: =データ一覧!K679 -> 357
A67: 学術研究、専門・技術ｻｰﾋﾞｽ業 | H67: =データ一覧!K128 -> … | K67: =データ一覧!K185 -> … | N67: =データ一覧!K129 -> 32 | Q67: =データ一覧!K186 -> 97 | T67: =データ一覧!K130 -> … | W67: =データ一覧!K187 -> … | Z67: 産 業 分 類 | AD67: 商 店 数 | AG67: 従 業 者 数 | AJ67: 年 間 販 売 額 | AO67: 一人当たり歳入歳出予算決算額 | BZ67: 死因別死亡数 | CP67: =データ一覧!$A$680 -> 30年中 | CY67: 単 位：人
A68: 宿泊業、飲食サービス業 | H68: =データ一覧!K131 -> … | K68: =データ一覧!K188 -> … | N68: =データ一覧!K132 -> 151 | Q68: =データ一覧!K189 -> 645 | T68: =データ一覧!K133 -> … | W68: =データ一覧!K190 -> … | AE68: 店 | AI68: 人 | AK68: 百万円 | AO68: 区分 | AS68: =データ一覧!$A$446 -> 元年度 | AX68: =データ一覧!$A$460 -> 30年度 | BC68: 区分 | BG68: =+AS68 -> 元年度 | BL68: =データ一覧!$A$460 -> 30年度 | BQ68: 死 因 | CC68: 悪 性 | CF68: 高血圧 | CL68: 脳血管 | CU68: 不慮の事故
A69: 生活関連サービス業、娯楽業 | H69: =データ一覧!K134 -> … | K69: =データ一覧!K191 -> … | N69: =データ一覧!K135 -> 128 | Q69: =データ一覧!K192 -> 317 | T69: =データ一覧!K136 -> … | W69: =データ一覧!K193 -> … | Z69: 総 計 | AD69: =データ一覧!K302 -> 240 | AG69: =データ一覧!K311 -> 1163 | AJ69: =データ一覧!K320 -> 22697 | AS69: =データ一覧!K442 -> 529131.8204 | AX69: =データ一覧!K443 -> 545051.9396 | BG69: =データ一覧!K444 -> 529131.8204 | BL69: =データ一覧!K445 -> 533270.1467 | BV69: 全 死 因 | BZ69: 結 核 | CC69: 新生物 | CF69: 性疾患 | CI69: 心疾患 | CL69: 疾 患 | CO69: 肺 炎 | CR69: 老 衰 | CX69: 交通事故
A70: 教育、学習支援業 | H70: =データ一覧!K137 -> … | K70: =データ一覧!K194 -> … | N70: =データ一覧!K138 -> 30 | Q70: =データ一覧!K195 -> 149 | T70: =データ一覧!K139 -> … | W70: =データ一覧!K196 -> … | Z70: 卸売業 | AD70: =データ一覧!K303 -> 28 | AG70: =データ一覧!K312 -> 99 | AJ70: =データ一覧!K321 -> 6386 | AO70: 項目別歳入歳出予算決算額
A71: 医療、福祉 | H71: =データ一覧!K140 -> … | K71: =データ一覧!K197 -> … | N71: =データ一覧!K141 -> 75 | Q71: =データ一覧!K198 -> 1671 | T71: =データ一覧!K142 -> … | W71: =データ一覧!K199 -> … | Z71: 小売業 | AD71: =データ一覧!K304 -> 212 | AG71: =データ一覧!K313 -> 1064 | AJ71: =データ一覧!K322 -> 16311 | AO71: 区分 | AS71: =データ一覧!$A$446 -> 元年度 | AX71: =データ一覧!$A$460 -> 30年度 | BC71: 区分 | BG71: =+AS71 -> 元年度 | BL71: =データ一覧!$A$460 -> 30年度 | BV71: =データ一覧!K680 -> 341 | BZ71: － | CA71: =データ一覧!K681 -> 1 | CC71: =データ一覧!K682 -> 66 | CG71: =データ一覧!K683 -> 0 | CI71: =データ一覧!K684 -> 74 | CL71: =データ一覧!K685 -> 43 | CO71: =データ一覧!K686 -> 13 | CR71: =データ一覧!K687 -> 32 | CU71: =データ一覧!K688 -> 14 | CY71: =データ一覧!K689 -> 2
A72: 複合サービス事業 | H72: =データ一覧!K143 -> … | K72: =データ一覧!K200 -> … | N72: =データ一覧!K144 -> 13 | Q72: =データ一覧!K201 -> 133 | T72: =データ一覧!K145 -> … | W72: =データ一覧!K202 -> … | Z72: 各種商品 | AD72: =データ一覧!K305 -> 0 | AG72: =データ一覧!K314 -> 0 | AJ72: =データ一覧!K323 -> 0 | AO72: 総額 | AS72: =SUM(AS73:AW85) -> 11937743 | AX72: =SUM(AX73:BB85) -> 12519298 | BC72: 総額 | BG72: =SUM(BG73:BK85) -> 11937743 | BL72: =SUM(BL73:BP85) -> 12248682 | BQ72: １９ 警 察 ・ 消 防 | CG72: =+データ一覧!$A690 -> 31.4.1
A73: サービス業 | H73: =データ一覧!K146 -> … | K73: =データ一覧!K203 -> … | N73: =データ一覧!K147 -> 86 | Q73: =データ一覧!K204 -> 271 | T73: =データ一覧!K148 -> … | W73: =データ一覧!K205 -> … | Z73: 織物・衣服・身の回り品 | AD73: =データ一覧!K306 -> 26 | AG73: =データ一覧!K315 -> 69 | AJ73: =データ一覧!K324 -> 743 | AO73: 地方税 | AS73: =データ一覧!K447 -> 2798816 | AX73: =データ一覧!K461 -> 2811070 | BC73: 議会費 | BG73: =データ一覧!K475 -> 158819 | BL73: =データ一覧!K489 -> 159991
A74: 公務 | H74: =データ一覧!K149 -> … | K74: =データ一覧!K206 -> … | N74: =データ一覧!K150 -> … | Q74: =データ一覧!K207 -> … | T74: =データ一覧!K151 -> … | W74: =データ一覧!K208 -> … | Z74: 飲食料品 | AD74: =データ一覧!K307 -> 63 | AG74: =データ一覧!K316 -> 373 | AJ74: =データ一覧!K325 -> 6094 | AO74: 地方譲与税 | AS74: =データ一覧!K448 -> 153281 | AX74: =データ一覧!K462 -> 146121 | BC74: 総務費 | BG74: =データ一覧!K476 -> 1811034 | BL74: =データ一覧!K490 -> 1527098 | CA74: 交番・駐在所 | CJ74: 刑法犯認知件数 | CS74: 交通事故発生件数
A75: ４ 農 業 | Z75: 機械器具 | AD75: =データ一覧!K308 -> 40 | AG75: =データ一覧!K317 -> 164 | AJ75: =データ一覧!K326 -> 2691 | AO75: 各種交付金 | AS75: =データ一覧!K449 -> 486322 | AX75: =データ一覧!K463 -> 499084 | BC75: 民生費 | BG75: =データ一覧!K477 -> 3671950 | BL75: =データ一覧!K491 -> 3746187 | BR75: 警察署数 | CA75: 検問所数 | CK75: （27年中） | CT75: （27年中）
Z76: その他 | AD76: =データ一覧!K309 -> 76 | AG76: =データ一覧!K318 -> 402 | AJ76: =データ一覧!K327 -> 6072 | AO76: 地方特例交付金 | AS76: =データ一覧!K450 -> 45381 | AX76: =データ一覧!K464 -> 8089 | BC76: 衛生費 | BG76: =データ一覧!K478 -> 505156 | BL76: =データ一覧!K492 -> 762228 | CO76: 件 | CX76: 件
C77: 農家人口と世帯員数(販売農家) | K77: 農家世帯の就業状態（販売農家） | Z77: 無店舗 | AD77: =データ一覧!K310 -> 7 | AG77: =データ一覧!K319 -> 56 | AJ77: =データ一覧!K328 -> 711 | AO77: 地方交付税 | AS77: =データ一覧!K451 -> 3961000 | AX77: =データ一覧!K465 -> 4034168 | BC77: 労働費 | BG77: =データ一覧!K479 -> 113935 | BL77: =データ一覧!K493 -> 113903 | BS77: =データ一覧!K690 -> 1 | CB77: =データ一覧!K691 -> 5 | CK77: =データ一覧!K692 -> 32 | CT77: =データ一覧!K693 -> 16
A78: 農 | B78: 平 | K78: 農業従事者 | T78: 非農業従事 | W78: 農業従事者 | AO78: 分担金および負担金 | AS78: =データ一覧!K452 -> 107616 | AX78: =データ一覧!K466 -> 112827 | BC78: 農林水産業費 | BG78: =データ一覧!K480 -> 695470 | BL78: =データ一覧!K494 -> 792898 | BQ78: 火災発生件数 | CA78: 林野焼損 | CF78: 損 害 | CK78: 消 防 自 | CO78: その他の
A79: 家 | B79: =+LEFT(データ一覧!$A$209,2) -> 27 | C79: 区分 | E79: 農家人口 | H79: 15歳以上の | N79: 農業就業人口 | T79: 者 | W79: の平均年齢 | Z79: ８ 住 宅 | AO79: 使用料および手数料 | AS79: =データ一覧!K453 -> 118471 | AX79: =データ一覧!K467 -> 123867 | BC79: 商工費 | BG79: =データ一覧!K481 -> 793568 | BL79: =データ一覧!K495 -> 597891 | BQ79: =+データ一覧!$A$694 -> 30年中 | BV79: 焼損棟数 | CA79: 面 積 | CF79: 見 積 額 | CK79: 動 車 数 | CO79: ﾎﾟﾝﾌﾟ数 | CS79: 消防吏員 | CW79: 消防団員
A80: 人就 | B80: ・ | H80: 世帯員数 | Q80: 基幹的農業 | AO80: 国庫支出金 | AS80: =データ一覧!K454 -> 1432091 | AX80: =データ一覧!K468 -> 1540396 | BC80: 土木費 | BG80: =データ一覧!K482 -> 1512726 | BL80: =データ一覧!K496 -> 1542061 | BQ80: 件 | BW80: 棟 | CD80: ａ | CH80: 千円 | CU80: 人 | CY80: 人
A81: 口業 | B81: =+MID(データ一覧!$A$209,4,1) -> 2 | G81: 人 | J81: 人 | M81: 人 | P81: 人 | Q81: 従事者 | S81: 人 | V81: 人 | Y81: 歳 | Z81: =+データ一覧!$A$329 -> 29年 | AE81: =データ一覧!$A$332 -> 30年 | AF81: 中の増減 | AJ81: =+データ一覧!$A$332 -> 30年 | AO81: 県支出金 | AS81: =データ一覧!K455 -> 1199284 | AX81: =データ一覧!K469 -> 1144810 | BC81: 消防費 | BG81: =データ一覧!K483 -> 388294 | BL81: =データ一覧!K497 -> 419869 | BR81: =データ一覧!K694 -> 10 | BW81: =データ一覧!K695 -> 8 | CB81: =データ一覧!K696 -> 0 | CF81: =データ一覧!K697 -> 24344 | CL81: =データ一覧!K698 -> 8 | CP81: =データ一覧!K699 -> 37 | CT81: =データ一覧!K700 -> 38 | CX81: =データ一覧!K701 -> 296
A82: と状 | B82: ・ | C82: 総数 | E82: =データ一覧!K209 -> 3509 | H82: =データ一覧!K212 -> 3156 | K82: =データ一覧!K215 -> 2410 | N82: =データ一覧!K218 -> 1092 | Q82: =データ一覧!K221 -> 924 | T82: =データ一覧!K224 -> 746 | W82: =データ一覧!K227 -> 58.8 | AD82: 建設した住宅 | AG82: 消失した住宅 | AO82: 財産収入 | AS82: =データ一覧!K456 -> 25326 | AX82: =データ一覧!K470 -> 35623 | BC82: 教育費 | BG82: =データ一覧!K484 -> 1155833 | BL82: =データ一覧!K498 -> 1473934 | BQ82: ２０ そ の 他
A83: 況 | B83: =+RIGHT(データ一覧!$A$209,1) -> 1 | C83: 男 | E83: =データ一覧!K210 -> 1746 | H83: =データ一覧!K213 -> 1565 | K83: =データ一覧!K216 -> 1334 | N83: =データ一覧!K219 -> 568 | Q83: =データ一覧!K222 -> 523 | T83: =データ一覧!K225 -> 231 | W83: =データ一覧!K228 -> 57.2 | AO83: 繰入金 | AS83: =データ一覧!K457 -> 104525 | AX83: =データ一覧!K471 -> 201749 | BC83: 災害復旧費 | BG83: =データ一覧!K485 -> 0 | BL83: =データ一覧!K499 -> 46858
C84: 女 | E84: =データ一覧!K211 -> 1763 | H84: =データ一覧!K214 -> 1591 | K84: =データ一覧!K217 -> 1076 | N84: =データ一覧!K220 -> 524 | Q84: =データ一覧!K223 -> 401 | T84: =データ一覧!K226 -> 515 | W84: =データ一覧!K229 -> 60.7 | Z84: 281,432 戸 | AA84: =データ一覧!K329 -> 8474 | AC84: 戸 | AD84: =データ一覧!K330 -> 65 | AF84: 戸 | AG84: =データ一覧!K331 -> 132 | AI84: 戸 | AK84: =データ一覧!K332 -> 8407 | AM84: 戸 | AO84: 地方債 | AS84: =データ一覧!K458 -> 803600 | AX84: =データ一覧!K472 -> 1133761 | BC84: 公債費 | BG84: =データ一覧!K486 -> 1122758 | BL84: =データ一覧!K500 -> 1065764 | BV84: 越前大仏、勝山温泉センター｢水芭蕉｣、平泉寺白山神社、弁天桜、県立恐竜博物館、
AO85: その他 | AS85: =データ一覧!K459 -> 702030 | AX85: =データ一覧!K473 -> 727733 | BC85: その他 | BG85: =データ一覧!K487 -> 8200 | BL85: =データ一覧!K501 -> 0 | BQ85: 名所・旧跡 | BV85: 東山いこいの森、岩屋オートキャンプ場、勝山城博物館、弁ヶ滝、岩屋観音、
C86: 総農家数等 | J86: 専兼業別（販売農家） | R86: 経営面積規模別（販売農家） | BQ86: 文化財等 | BV86: スキージャム勝山、はたや記念館 ゆめおーれ勝山、加越国境と取立山「水芭蕉群生地」、
B87: 平 | C87: 区 分 | G87: 戸数（戸） | J87: 区 分 | O87: 戸数（戸） | R87: 区 分 | W87: 戸数（戸） | Z87: ９ 議 員 ・ 職 員 | AO87: １４ 文 化 | AY87: ( | AZ87: =データ一覧!$A$508 -> 31.3.31 | BD87: ただし図書館・公民館・児童館 | BL87: =データ一覧!$A$502 -> 31.4.1 | BV87: 史跡白山平泉寺旧境内、旧木下家住宅、藩校｢旧成器堂講堂」外３棟、
A88: 農 | B88: =+LEFT(データ一覧!$A$230,2) -> 27 | C88: 総農家 | G88: =データ一覧!K230 -> 1217 | J88: 総数 | O88: =データ一覧!K236 -> 850 | R88: 総数 | W88: =データ一覧!K241 -> 850 | BE88: 宗教法人数 | BL88: =データ一覧!$A$510 -> 30.12.31 | BP88: ） | BV88: えちぜん鉄道勝山駅本屋・ホーム待合所、白山平泉寺歴史探遊館まほろば
A89: 家 | B89: ・ | C89: 販売農家 | G89: =データ一覧!K231 -> 850 | J89: 専業農家 | O89: =データ一覧!K237 -> 141 | R89: 0.5 ha 未満 | W89: =データ一覧!K242 -> 174 | Z89: 市 町 村 議 会 | AC89: 有権者数 | AE89: =データ一覧!$A$336 -> 元.9.1 | AG89: 市 町 村 議 会 | AJ89: 職 員 数 | AT89: 図書館 | AZ89: 公 民 館 | BK89: 社会教育学級講座 | BQ89: 特産物 | BV89: 繊維製品、勝山水菜、コシヒカリ、さといも、ねぎ、妙金なす、えごま、ほうれんそう 山菜加工品、菊、そば、若猪野メロン、ミディトマト、スイートコーン、じねんじょ
A90: 数 | B90: =+MID(データ一覧!$A$230,4,1) -> 2 | D90: 主業 | G90: =データ一覧!K232 -> 61 | J90: 兼業農家 | O90: =データ一覧!K238 -> 709 | R90: 0.5 ha ～ 1.0 ha | W90: =データ一覧!K243 -> 327 | Z90: 議 員 定 数 | AC90: 男 | AE90: 女 | AG90: 選 挙 投 票 率 | AJ90: 総 数 | AL90: 一般行政職 | AO90: 公 共 | AS90: 館 数 | AV90: 図書数 | AY90: 本 館 | BB90: 分 館 | BE90: 公 園 | BH90: 児童館 | BK90: 学級講座数 | BN90: 受講者数
B91: ・ | D91: 準主業 | G91: =データ一覧!K233 -> 222 | K91: 第１種兼業 | O91: =データ一覧!K239 -> 75 | R91: 1.0 ha ～ 1.5 ha | W91: =データ一覧!K244 -> 170 | AB91: 人 | AD91: 人 | AF91: 人 | AI91: ％ | AK91: 人 | AM91: 人 | AO91: 施 設 数 | AT91: =データ一覧!K502 -> 1 | AV91: =データ一覧!K503 -> 142048 | AZ91: =データ一覧!K504 -> 10 | BB91: =データ一覧!K505 -> 0 | BE91: =データ一覧!K506 -> 33 | BH91: =データ一覧!K507 -> 1 | BK91: =データ一覧!K508 -> 501 | BN91: =データ一覧!K509 -> 10044 | BQ91: 年中行事 | BV91: 勝山年の市、勝山左義長まつり、弁天桜まつり、
B92: =+RIGHT(データ一覧!$A$230,1) -> 1 | D92: 副業的 | G92: =データ一覧!K234 -> 567 | K92: 第２種兼業 | O92: =データ一覧!K240 -> 634 | R92: 1.5 ha ～ 2.0 ha | W92: =データ一覧!K245 -> 80 | AA92: =データ一覧!K333 -> 16 | AC92: =データ一覧!K336 -> 9372 | AE92: =データ一覧!K337 -> 10421 | AG92: =データ一覧!K335 -> 63.7 | AJ92: =データ一覧!K338 -> 268 | AL92: =データ一覧!K339 -> 159 | AO92: 宗 教 | AS92: 仏教系 | AV92: ｷﾘｽﾄ教系 | AY92: 神道諸派 | BB92: 公会堂・市民会館 | BH92: テレビ | BK92: 衛星放送契約数 | BV92: 勝ち山夏物語、顕如講、神明神社祭礼、走りやんこ、勝山恐竜クロカンマラソン
C93: 自給的農家 | G93: =データ一覧!K235 -> 367 | R93: 2.0 ha 以上 | W93: =データ一覧!K246 -> 99 | AG93: =データ一覧!K334 -> 元.8.4 | AO93: 法 人 数 | AS93: =データ一覧!K510 -> 46 | AV93: =データ一覧!K511 -> 2 | AY93: =データ一覧!K512 -> 83 | BB93: =データ一覧!K513 -> 2 | BH93: 等 | BK93: =データ一覧!K514 -> 5021

Sheet 鯖江市
A1: =+データ一覧!L5 -> 0
A2: =+データ一覧!L8 -> 0 | AO2: 0
AO3: 0
AB4: 【市章とそのいわれ】 サの図案化にて飛鳥の上昇を形象し、 | AO4: 【位置および地勢】鯖江市は福井県のほぼ中央、福井平野の南に位置し、 | BT4: 所在地 | CB4: 〒916-8666
AB5: 市将来の向上発展を意味づけたもの。 | AP5: 北は福井市、南は越前市に接している。東西約19.2㎞南北約 8.3㎞に | CB5: 鯖江市西山町１３番１号
A6: =+データ一覧!L6 -> さばえし | AB6: 0 | AP6: わたる地域のうち、その多くが平坦地であり、東部及び南西の一部が山地と
A7: =データ一覧!L9 -> 鯖江市 | AB7: 0 | AP7: なっている。市の中央を低い丘陵が南北に細長く延び、これに沿って市街地が | BT7: 電話番号 | CB7: （０７７８）５１－２２００
AB8: 0 | AP8: 形成されている。この丘陵に沿って国道８号、東側を北陸自動車道が走り、 | BT8: FAX番号 | CB8: 〃 ５１－８１５０
AB9: 0 | AP9: また日野川が北方に向かって流れている。
AB10: 0 | AO10: 0 | BT10: 最寄駅および距離 | CB10: 福井鉄道福武線西山公園駅 下車５００ｍ
AO11: 0
AB13: 【市が掲げる標語】若者が住みたくなる・住み続けたくなるまち鯖江 | BT13: ホームページ | CB13: http://www.city.sabae.fukui.jp/
A15: １ 土 地 | Z15: =データ一覧!$A$261 -> 30年 | AA15: 産米収穫量 | AD15: 収 穫 量 | AG15: 作 付 面 積 | AJ15: 10a当たり収量 | BQ15: １５ 労 働 | CF15: 27.10.1
AD16: =データ一覧!$L$261 -> 7880 | AF16: t | AG16: =データ一覧!$L$262 -> 1470 | AI16: ha | AJ16: =データ一覧!L263 -> 536 | AM16: kg | AO16: １０ 工 業 | BC16: =データ一覧!$A$340 -> 30.6.1（平成29年実績）
A17: 総 面 積 | K17: 固 定 資 産 概 要 調 書 に よ る 地 目 別 面 積 | AC17: 総 数 | AG17: うち 田 | AK17: うち 畑 | BX17: 産業別就業者数
C18: =データ一覧!$A$10 -> 元.10.1 | Q18: =データ一覧!$A$12 -> 31.1.1 | Z18: 耕 地 面 積 | AD18: ha | AG18: ha | AK18: ha | AP18: 産業分類 | AX18: 事業所数 | BC18: 従業者数 | BI18: 年間製造品出荷額等 | BR18: 区 分 | BW18: 総 数 | CB18: 男 | CF18: 女 | CJ18: 区 分 | CO18: 総 数 | CT18: 男 | CX18: 女
G19: ㎢ | K19: 総 数 | P19: う ち 田 | U19: う ち 畑 | Z19: =データ一覧!$A$247 -> 30.7.15 | AC19: =データ一覧!$L$247 -> 2060 | AF19: =データ一覧!$L$248 -> 1990 | AJ19: =データ一覧!$L$249 -> 72 | BA19: 事業所 | BC19: 人 | BF19: 人 | BH19: 万円 | BO19: 万円 | BW19: 人 | CC19: 人 | CG19: 人 | CO19: 人 | CS19: 人 | CW19: 人
D20: =データ一覧!L10 -> 84.59 | O20: ha | T20: ha | Y20: ha | Z20: 農 業 生 産 物 | AD20: 作 付 面 積 | AG20: 収 穫 量 | AJ20: 10a当たり収量 | AP20: 総数 | AY20: =データ一覧!L340 -> 352 | BC20: =+データ一覧!L365 -> 9072 | BJ20: =データ一覧!L390 -> 17716069 | BQ20: 総 数 | BW20: =CA20+CE20 -> 34919 | CA20: =データ一覧!L515 -> 18777 | CE20: =データ一覧!L540 -> 16142
L21: =データ一覧!L12 -> 8459 | Q21: =データ一覧!L13 -> 2032.1 | V21: =データ一覧!L14 -> 125.3 | Z21: =データ一覧!$A$264 -> 30年中 | AD21: ha | AG21: t | AJ21: kg | AO21: 食料品 | AP21: 食料品 | AY21: =データ一覧!L341 -> 7 | BC21: =+データ一覧!L366 -> 122 | BJ21: =データ一覧!L391 -> 116328 | CJ21: 卸売業,小売業 | CO21: =CS21+CW21 -> 5016 | CS21: =データ一覧!L528 -> 2397 | CW21: =データ一覧!L553 -> 2619
A22: 町 ･ 丁 ･ 大 字 | K22: う ち 宅 地 | P22: う ち 山 林 | U22: う ち 原 野 | Z22: 水 稲 | AD22: =データ一覧!L264 -> 1470 | AG22: =データ一覧!L265 -> 7880 | AJ22: =データ一覧!L266 -> 536 | AO22: 飲料・飼料 | AP22: 飲料・飼料 | AY22: =データ一覧!L342 -> 0 | BC22: =+データ一覧!L367 -> 0 | BJ22: =データ一覧!L392 -> 0 | BQ22: 第１次産業 | BW22: =CA22+CE22 -> 622 | CA22: =データ一覧!L516 -> 443 | CE22: =データ一覧!L541 -> 179 | CJ22: 金融業,保険業 | CO22: =CS22+CW22 -> 798 | CS22: =データ一覧!L529 -> 307 | CW22: =データ一覧!L554 -> 491
A23: 区 画 数 | H23: =データ一覧!L11 -> 153 | O23: ha | T23: ha | Y23: ha | Z23: 六 条 大 麦 | AD23: =データ一覧!L267 -> 277 | AG23: =データ一覧!L268 -> 323 | AJ23: =データ一覧!L269 -> 117 | AO23: 繊維 | AP23: 繊維 | AY23: =データ一覧!L343 -> 60 | BC23: =+データ一覧!L368 -> 1994 | BJ23: =データ一覧!L393 -> 4165141 | BR23: 農業 | BW23: =CA23+CE23 -> 587 | CA23: =データ一覧!L517 -> 413 | CE23: =データ一覧!L542 -> 174 | CJ23: 不動産業 | CO23: 278 | CS23: =データ一覧!L530 -> 164 | CW23: =データ一覧!L555 -> 114
A24: =データ一覧!$A$11 -> 31.4.1 | L24: =データ一覧!L15 -> 1462.8 | Q24: =データ一覧!L16 -> 1161.6 | V24: =データ一覧!L17 -> 0 | Z24: 大 豆 | AD24: =データ一覧!L270 -> 117 | AG24: =データ一覧!L271 -> 117 | AJ24: =データ一覧!L272 -> 100 | AO24: 衣服 | AP24: 木材 | AY24: =データ一覧!L344 -> 4 | BC24: =+データ一覧!L369 -> 107 | BJ24: =データ一覧!L394 -> 139247 | BR24: 林業 | BW24: 27 | CA24: =データ一覧!L518 -> 24 | CE24: =データ一覧!L543 -> 3 | CJ24: 学術研究 | CO24: 719 | CS24: =データ一覧!L531 -> 438 | CW24: =データ一覧!L556 -> 281
A25: ２ 世 帯 数 と 人 口 | AB25: 区 分 | AD25: 乳 用 牛 | AF25: 肉 用 牛 | AH25: 豚 | AJ25: 採卵鶏 | AL25: ブロイラー | AO25: 木材 | AP25: 家具 | AY25: =データ一覧!L345 -> 3 | BC25: =+データ一覧!L370 -> 41 | BJ25: =データ一覧!L395 -> 47099 | BR25: 漁業 | BW25: 8 | CA25: =データ一覧!L519 -> 6 | CE25: =データ一覧!L544 -> 2 | CJ25: 宿泊業,飲食ｻｰﾋﾞｽ | CO25: 1346 | CS25: =データ一覧!L532 -> 506 | CW25: =データ一覧!L557 -> 840
Z26: 畜 産 | AB26: 飼養農家 | AD26: =データ一覧!$L$251 -> - | AF26: =データ一覧!$L$253 -> - | AH26: =データ一覧!$L$255 -> - | AJ26: =データ一覧!$L$257 -> x | AL26: =データ一覧!$L$259 -> - | AO26: 家具 | AP26: パルプ・紙 | AY26: =データ一覧!L346 -> 2 | BC26: =+データ一覧!L371 -> 64 | BJ26: =データ一覧!L396 -> x | BQ26: 第２次産業 | BW26: 13630 | CA26: =データ一覧!L520 -> 8919 | CE26: =データ一覧!L545 -> 4711 | CJ26: 生活関連ｻｰﾋﾞｽ業 | CO26: 1054 | CS26: =データ一覧!L533 -> 404 | CW26: =データ一覧!L558 -> 650
I27: 人 口 | U27: １世帯当 | W27: 人 口 | Z27: =データ一覧!$A$251 -> 31.3.31 | AB27: （戸） | AO27: パルプ・紙 | AP27: 印刷 | AY27: =データ一覧!L347 -> 11 | BC27: =+データ一覧!L372 -> 187 | BJ27: =データ一覧!L397 -> 387182 | BR27: 鉱業，採石業 | BW27: 4 | CA27: =データ一覧!L521 -> 4 | CE27: =データ一覧!L546 -> 0 | CJ27: 教育,学習支援業 | CO27: 1423 | CS27: =データ一覧!L534 -> 556 | CW27: =データ一覧!L559 -> 867
A28: 区 分 | F28: 世帯数 | I28: 総 数 | L28: 男 | O28: 女 | R28: 男／女 | U28: たり人員 | W28: 密 度 | AB28: 頭 羽 | AD28: =データ一覧!$L$252 -> - | AF28: =データ一覧!$L$254 -> - | AH28: =データ一覧!$L$256 -> - | AJ28: =データ一覧!$L$258 -> 222 | AL28: =データ一覧!$L$260 -> - | AO28: 出版・印刷 | AP28: 化学 | AY28: =データ一覧!L348 -> 4 | BC28: =+データ一覧!L373 -> 108 | BJ28: =データ一覧!L398 -> 639242 | BR28: 建設業 | BW28: 2181 | CA28: =データ一覧!L522 -> 1824 | CE28: =データ一覧!L547 -> 357 | CJ28: 医療，福祉 | CO28: 4372 | CS28: =データ一覧!L535 -> 777 | CW28: =データ一覧!L560 -> 3595
F29: 世 帯 | I29: 人 | L29: 人 | O29: 人 | S29: ％ | U29: 人 | W29: 人/㎢ | AO29: 化学 | AP29: 石油・石炭 | AY29: =データ一覧!L349 -> 1 | BC29: =+データ一覧!L374 -> 5 | BJ29: =データ一覧!L399 -> x | BR29: 製造業 | BW29: 11445 | CA29: =データ一覧!L523 -> 7091 | CE29: =データ一覧!L548 -> 4354 | CJ29: 複合サービス事業 | CO29: 373 | CS29: =データ一覧!L536 -> 211 | CW29: =データ一覧!L561 -> 162
A30: =データ一覧!$A$25 -> 2.10.1 | F30: =データ一覧!L25 -> 16053 | I30: =+L30+O30 -> 62283 | L30: =データ一覧!L27 -> 30164 | O30: =データ一覧!L28 -> 32119 | S30: =+L30/O30*100 -> 93.91326006 | U30: =データ一覧!L30 -> 3.88 | W30: =データ一覧!L31 -> 734.9 | Z30: ５ 林 業 | AO30: 石油・石炭 | AP30: プラスチック | AY30: =データ一覧!L350 -> 16 | BC30: =+データ一覧!L375 -> 464 | BJ30: =データ一覧!L400 -> 1579172 | BQ30: 第３次産業 | BW30: 19721 | CA30: =データ一覧!L524 -> 8898 | CE30: =データ一覧!L549 -> 10823 | CJ30: サービス業 | CO30: 1533 | CS30: =データ一覧!L537 -> 981 | CW30: =データ一覧!L562 -> 552
A31: =データ一覧!$A$32 -> 7.10.1 | F31: =データ一覧!L32 -> 16919 | I31: =+L31+O31 -> 62890 | L31: =データ一覧!L34 -> 30376 | O31: =データ一覧!L35 -> 32514 | S31: 93.42437104 | U31: =データ一覧!L37 -> 3.72 | W31: =データ一覧!L38 -> 742.1 | AO31: プラスチック | AP31: ゴム | AY31: =データ一覧!L351 -> 0 | BC31: =+データ一覧!L376 -> 0 | BJ31: =データ一覧!L401 -> 0 | BR31: 電気･ｶﾞｽ･水道業 | BW31: 123 | CA31: =データ一覧!L525 -> 106 | CE31: =データ一覧!L550 -> 17 | CJ31: 公務 | CO31: 999 | CS31: =データ一覧!L538 -> 691 | CW31: =データ一覧!L563 -> 308
A32: =データ一覧!$A$39 -> 12.10.1 | F32: =データ一覧!L39 -> 18598 | I32: =+L32+O32 -> 64898 | L32: =データ一覧!L41 -> 31448 | O32: =データ一覧!L42 -> 33450 | S32: 94.01494768 | U32: =データ一覧!L44 -> 3.49 | W32: =データ一覧!L45 -> 765.8 | Z32: 森 林 総 面 積 | AH32: =データ一覧!$A$273 -> 31.3.31 | AO32: ゴム | AP32: 皮革 | AY32: =データ一覧!L352 -> 0 | BC32: =+データ一覧!L377 -> 0 | BJ32: =データ一覧!L402 -> 0 | BR32: 情報通信業 | BW32: 498 | CA32: =データ一覧!L526 -> 361 | CE32: =データ一覧!L551 -> 137 | CI32: 分類不能の産業 | CO32: 946 | CS32: =データ一覧!L539 -> 517 | CW32: =データ一覧!L564 -> 429
A33: =+データ一覧!$A$46 -> 17.10.1 | F33: =データ一覧!L46 -> 20177 | I33: =+L33+O33 -> 66831 | L33: =データ一覧!L48 -> 32263 | O33: =データ一覧!L49 -> 34568 | S33: 93.33198334 | U33: =データ一覧!L51 -> 3.31 | W33: =データ一覧!L52 -> 788.6 | Z33: 森 林 の 構 成 | AO33: 皮革 | AP33: 窯業・土石 | AY33: =データ一覧!L353 -> 5 | BC33: =+データ一覧!L378 -> 125 | BJ33: =データ一覧!L403 -> 360232 | BR33: 運輸業,郵便業 | BW33: =CA33+CE33 -> 1189 | CA33: =データ一覧!L527 -> 999 | CE33: =データ一覧!L552 -> 190
A34: =+データ一覧!$A$53 -> 22.10.1 | F34: =+データ一覧!L53 -> 21028 | I34: =+L34+O34 -> 67450 | L34: =+データ一覧!L55 -> 32507 | O34: =+データ一覧!L56 -> 34943 | S34: 93.02864665 | U34: =+データ一覧!L58 -> 3.21 | W34: =+データ一覧!L59 -> 795.9 | AE34: ha | AL34: ha | AO34: 窯業・土石 | AP34: 鉄鋼 | AY34: =データ一覧!L354 -> 3 | BC34: =+データ一覧!L379 -> 36 | BJ34: =データ一覧!L404 -> x | BQ34: １６ 社 会 福 祉 | CG34: =データ一覧!$A$565 -> 31.4.1
A35: =データ一覧!$A$60 -> 27.10.1 | F35: =データ一覧!L60 -> 22335 | I35: =データ一覧!L61 -> 68284 | L35: =データ一覧!L62 -> 33105 | O35: =データ一覧!L63 -> 35179 | S35: 94.10443731 | U35: =データ一覧!L65 -> 3.057264383 | W35: =データ一覧!L66 -> 807.2 | Z35: 総 数 | AD35: =データ一覧!L273 -> 3148.08 | AG35: 天然林 針葉樹 | AK35: =データ一覧!L276 -> 72.23 | AO35: 鉄鋼 | AP35: 非鉄金属 | AY35: =データ一覧!L355 -> 0 | BC35: =+データ一覧!L380 -> 0 | BJ35: =データ一覧!L405 -> 0
A36: =+データ一覧!$A$67 -> 元.10.1 | F36: =データ一覧!L67 -> 23713 | I36: =データ一覧!L76 -> 68533 | L36: =データ一覧!L77 -> 33261 | O36: =データ一覧!L78 -> 35272 | S36: =+L36/O36*100 -> 94.29859379 | U36: =データ一覧!L68 -> 2.89 | W36: =データ一覧!L69 -> 810.1785081 | Z36: 人工林 針葉樹 | AD36: =データ一覧!L274 -> 2092.96 | AG36: 天然林 広葉樹 | AK36: =データ一覧!L277 -> 899.68 | AO36: 非鉄金属 | AP36: 金属 | AY36: =データ一覧!L356 -> 19 | BC36: =+データ一覧!L381 -> 723 | BJ36: =データ一覧!L406 -> 1298354 | BR36: 区分 | BY36: 施設数 | CD36: 収容定員 | CJ36: 区分 | CQ36: 施設数 | CV36: 収容定員
A37: 年 | C37: 区 | E37: 0歳 | H37: 15歳 | K37: 25歳 | N37: 35歳 | Q37: 45歳 | T37: 55歳 | W37: 65歳 | Z37: 人工林 広葉樹 | AD37: =データ一覧!L275 -> 40.33 | AG37: 竹 林 | AK37: =データ一覧!L278 -> 18.62 | AO37: 金属 | AP37: はん用機械 | AY37: =データ一覧!L357 -> 2 | BC37: =+データ一覧!L382 -> 19 | BJ37: =データ一覧!L407 -> x | BQ37: 生活保護施設 | BY37: =データ一覧!L565 -> 0 | CC37: =データ一覧!L578 -> 0 | CG37: 人 | CI37: 指定障害者支援施設 | CQ37: =データ一覧!L571 -> 2 | CU37: =データ一覧!L584 -> 190 | CY37: 人
A38: 齢 | B38: 令 | F38: ～ | I38: ～ | L38: ～ | O38: ～ | R38: ～ | U38: ～ | AO38: 一般機械 | AP38: 生産用機械 | AY38: =データ一覧!L358 -> 25 | BC38: =+データ一覧!L383 -> 391 | BJ38: =データ一覧!L408 -> 854050 | BQ38: 地域福祉施設 | BY38: =データ一覧!L566 -> 0 | CC38: =データ一覧!L579 -> 0 | CI38: 指定相談支援事業所 | CQ38: =データ一覧!L572 -> 3 | CU38: =データ一覧!L585 -> 0
A39: 階 | B39: 元 | C39: 分 | G39: 14歳 | J39: 24歳 | M39: 34歳 | P39: 44歳 | S39: 54歳 | V39: 64歳 | Y39: 以上 | Z39: 林 野 の 構 成 | AG39: 保 有 形 態 別 | AO39: 電気機械 | AP39: 業務用機械 | AY39: =データ一覧!L359 -> 3 | BC39: =+データ一覧!L384 -> 152 | BJ39: =データ一覧!L409 -> 208798 | BQ39: 老人福祉施設 | BY39: =データ一覧!L567 -> 6 | CC39: =データ一覧!L580 -> 143 | CI39: 児童福祉施設 | CQ39: =データ一覧!L573 -> 43 | CU39: =データ一覧!L586 -> 2765
A40: 級 | B40: ・ | G40: 人 | J40: 人 | L40: 人 | O40: 人 | R40: 人 | U40: 人 | X40: 人 | AF40: ha | AL40: ha | AP40: 電子・デバイス | AY40: =データ一覧!L360 -> 3 | BC40: =+データ一覧!L385 -> 706 | BJ40: =データ一覧!L410 -> 1853000 | BQ40: 介護保険施設 | BY40: =データ一覧!L568 -> 82 | CC40: =データ一覧!L581 -> 1626 | CI40: 母子福祉施設 | CQ40: =データ一覧!L574 -> 0 | CU40: =データ一覧!L587 -> 0
A41: 別 | B41: 10 | C41: 総 数 | E41: =+E42+E43 -> 9734 | H41: =+H42+H43 -> 6942 | K41: =+K42+K43 -> 6329 | N41: =+N42+N43 -> 9082 | Q41: =+Q42+Q43 -> 9591 | T41: =+T42+T43 -> 7794 | W41: =+W42+W43 -> 18839 | Z41: 無立木地 伐採跡地 | AD41: =データ一覧!L279 -> - | AG41: 国 有 | AK41: =データ一覧!L281 -> 16.62 | AP41: 電気機械 | AY41: =データ一覧!L361 -> 3 | BC41: =+データ一覧!L386 -> 33 | BJ41: =データ一覧!L411 -> 57799 | BQ41: 障害者自立支援法施行前からの身体障害者福祉施設 | BY41: =データ一覧!L569 -> 0 | CC41: =データ一覧!L582 -> 0 | CI41: 婦人保護施設 | CQ41: =データ一覧!L575 -> 0 | CU41: =データ一覧!L588 -> 0
A42: 人 | B42: ・ | C42: 男 | E42: =データ一覧!L79 -> 4954 | H42: =データ一覧!L80 -> 3543 | K42: =データ一覧!L81 -> 3213 | N42: =データ一覧!L82 -> 4569 | Q42: =データ一覧!L83 -> 4841 | T42: =データ一覧!L84 -> 3781 | W42: =データ一覧!L85 -> 8235 | Z42: 無立木地 未立木地 | AD42: =データ一覧!L280 -> 24.26 | AG42: 公 有 | AK42: =データ一覧!L282 -> 126.77 | AO42: 輸送機械 | AP42: 情報通信機械 | AY42: =データ一覧!L362 -> 1 | BC42: =+データ一覧!L387 -> 5 | BJ42: =データ一覧!L412 -> x | CI42: その他の社会福祉施設 | CQ42: =データ一覧!L576+データ一覧!L577 -> 0 | CU42: =データ一覧!L589+データ一覧!L590 -> 0
A43: 口 | B43: 1 | C43: 女 | E43: =データ一覧!L87 -> 4780 | H43: =データ一覧!L88 -> 3399 | K43: =データ一覧!L89 -> 3116 | N43: =データ一覧!L90 -> 4513 | Q43: =データ一覧!L91 -> 4750 | T43: =データ一覧!L92 -> 4013 | W43: =データ一覧!L93 -> 10604 | AG43: 私 有 | AK43: =データ一覧!L283 -> 3004.69 | AO43: 精密機械 | AP43: 輸送機械 | AY43: =データ一覧!L363 -> 1 | BC43: =+データ一覧!L388 -> 12 | BJ43: =データ一覧!L413 -> x | BQ43: 障害福祉サービス事業所 | BY43: =データ一覧!L570 -> 37 | CC43: =データ一覧!L583 -> 437
Z44: 林 産 物 生 産 量 | AJ44: =データ一覧!$A$284 -> 30年中 | AO44: その他 | AP44: その他 | AY44: =データ一覧!L364 -> 179 | BC44: =+データ一覧!L389 -> 3778 | BJ44: =データ一覧!L414 -> 5778034 | BQ44: １７ 教 育 | CG44: =データ一覧!$A$591 -> 元.5.1（特別支援学校、専修学校はH30.5.1現在）
A45: 人口動態 | H45: 自 然 動 態 | N45: 社 会 動 態 | T45: =データ一覧!$A74 -> 30.1.1～30.12.31 | Z45: 生椎茸 | AD45: =データ一覧!L284 -> 1349 | AF45: ㎏ | AG45: 乾椎茸 | AK45: =データ一覧!L285 -> 96 | AM45: ㎏
C46: 区 分 | H46: 出 生 | K46: 死 亡 | N46: 転 入 | Q46: 転 出 | T46: 婚 姻 | W46: 離 婚 | Z46: えのきだけ | AD46: =データ一覧!L287 -> - | AF46: ㎏ | AG46: なめこ | AK46: =データ一覧!L286 -> - | AM46: ㎏ | AP46: 工 業 用 水 量 | AV46: （従業者30人以上の事業所） | BG46: =データ一覧!L415 -> 34409 | BL46: ㎥／日 | CA46: 学校数（校） | CH46: 教員数（人） | CP46: 学生・生徒・児童数（人）
A47: =LEFT(データ一覧!$A70,7) -> 30.10.1 | H47: 人 | K47: 人 | N47: 人 | Q47: 人 | U47: 件 | X47: 件 | Z47: ひらたけ | AD47: =+データ一覧!L288 -> - | AF47: ㎏ | AG47: まいたけ | AK47: =+データ一覧!L289 -> - | AM47: ㎏ | BS47: 区分 | CA47: 本 校 | CD47: 分 校 | CG47: 本 務 | CK47: 兼 務 | CO47: 総 数 | CS47: 男 | CW47: 女
A48: ～ | C48: 実 数 | H48: =データ一覧!L70 -> 567 | K48: =データ一覧!L71 -> 676 | N48: =データ一覧!L72 -> 1988 | Q48: =データ一覧!L73 -> 2015 | T48: =データ一覧!L74 -> 294 | W48: =データ一覧!L75 -> 107 | AO48: １１ 上 ・ 下 水 道 | BR48: 小学校 | CA48: =データ一覧!L592 -> 12 | CD48: =データ一覧!L593 -> 0 | CG48: =データ一覧!L594 -> 263 | CK48: =データ一覧!L595 -> 29 | CO48: =データ一覧!L596 -> 4170 | CS48: =データ一覧!L597 -> 2102 | CW48: =データ一覧!L598 -> 2068
A49: =RIGHT(データ一覧!$A72,7) -> ～元.9.30 | C49: 比率(対1,000人) | H49: =+H48/I35*1000 -> 8.303555738 | K49: =+K48/I35*1000 -> 9.899830121 | N49: - | Q49: - | T49: =+T48/I35*1000 -> 4.30554742 | W49: =+W48/I35*1000 -> 1.566984945 | Z49: ６ 漁 業 | BR49: 中学校 | CA49: =データ一覧!L600 -> 3 | CD49: =データ一覧!L601 -> 0 | CG49: =データ一覧!L602 -> 145 | CK49: =データ一覧!L603 -> 5 | CO49: =データ一覧!L604 -> 2087 | CS49: =データ一覧!L605 -> 1084 | CW49: =データ一覧!L606 -> 1003
AO50: 水 道 供 給 人 口 | AV50: 上 水 道 | AZ50: 簡易水道 | BD50: 専用水道 | BH50: 飲料水供給施設 | BL50: 下水道処理人口 | BR50: 高等学校 | CA50: =データ一覧!L608 -> 2 | CD50: =データ一覧!L609 -> 0 | CG50: =データ一覧!L610 -> 84 | CK50: =データ一覧!L611 -> 26 | CO50: =データ一覧!L612 -> 943 | CS50: =データ一覧!L613 -> 437 | CW50: =データ一覧!L614 -> 506
A51: ３ 事 業 所（民 営） （平 28.6.1） | Z51: 漁船隻数・トン数 | AD51: =データ一覧!$A$290 -> 30.12.31 | AH51: 動 力 船 | AO51: =データ一覧!$A$416 -> 31.3.31 | AU51: 人 | AW51: =データ一覧!L416 -> 69374 | AZ51: =データ一覧!L417 -> 0 | BE51: =データ一覧!L418 -> 0 | BI51: =データ一覧!L419 -> 0 | BM51: =データ一覧!L420 -> 50437 | BR51: 大学・短期大学 | CA51: =データ一覧!L615 -> 0 | CD51: =データ一覧!L616 -> 0 | CG51: =データ一覧!L617 -> 0 | CK51: =データ一覧!L618 -> 0 | CO51: =データ一覧!L619 -> 0 | CS51: =データ一覧!L620 -> 0 | CW51: =データ一覧!L621 -> 0
Z52: 無動力船隻数 | AD52: 船外機付漁船隻数 | AH52: 隻 数 | AK52: 総 ト ン 数 | BR52: 高等専門学校 | CA52: =データ一覧!L622 -> 1 | CD52: =データ一覧!L623 -> 0 | CG52: =データ一覧!L624 -> 77 | CK52: =データ一覧!L625 -> 42 | CO52: =データ一覧!L626 -> 1012 | CS52: =データ一覧!L627 -> 802 | CW52: =データ一覧!L628 -> 210
H53: 総 数 | N53: 民 営 | T53: 国 ･ 地方公共団体 | AC53: 隻 | AG53: 隻 | AJ53: 隻 | AM53: t | AO53: １２ 交 通 ・ 通 信 | BR53: 特別支援学校 | CA53: =データ一覧!L630 -> 0 | CD53: =データ一覧!L631 -> 0 | CG53: =データ一覧!L632 -> 0 | CK53: =データ一覧!L633 -> 0 | CO53: =データ一覧!L634 -> 0 | CS53: =データ一覧!L635 -> 0 | CW53: =データ一覧!L636 -> 0
A54: 区 分 | H54: 事業所数 | K54: 従業者数 | N54: 事業所数 | Q54: 従業者数 | T54: 事業所数 | W54: 従業者数 | Z54: =データ一覧!$L$290 -> 0 | AD54: =データ一覧!$L$291 -> 0 | AH54: =データ一覧!L292 -> 0 | AK54: =データ一覧!L293 -> 0 | BR54: 幼稚園 | CA54: =データ一覧!L638 -> 5 | CD54: =データ一覧!L639 -> 0 | CG54: =データ一覧!L640 -> 21 | CK54: =データ一覧!L641 -> 4 | CO54: =データ一覧!L642 -> 176 | CS54: =データ一覧!L643 -> 95 | CW54: =データ一覧!L644 -> 81
K55: 人 | Q55: 人 | W55: 人 | Z55: 男女別就業者数 | AH55: =データ一覧!$A$294 -> 30.11.1 | AO55: 道 路 | AS55: 実 延 長 | AW55: 国 道 | BA55: 県 道 | BE55: 市町道 | BI55: 鉄 道 営 業 キ ロ 数 | BR55: 幼保連携認定こども園 | CA55: =データ一覧!L646 -> 3 | CD55: =データ一覧!L647 -> 0 | CG55: =データ一覧!L648 -> 60 | CK55: =データ一覧!L649 -> 13 | CO55: =データ一覧!L650 -> 442 | CS55: =データ一覧!L651 -> 217 | CW55: =データ一覧!L652 -> 225
A56: 総数 | H56: =データ一覧!L95 -> … | K56: =データ一覧!L152 -> … | N56: =データ一覧!L96 -> 3520 | Q56: =データ一覧!L153 -> 29663 | T56: =データ一覧!L97 -> … | W56: =データ一覧!L154 -> … | Z56: 総 数 | AF56: 男 | AJ56: 女 | AO56: =データ一覧!$A$421 -> 30.4.1 | AS56: =データ一覧!L421 -> 709.086 | AV56: ㎞ | AW56: =データ一覧!L422 -> 11.1 | AZ56: ㎞ | BA56: =データ一覧!L423 -> 66.9 | BD56: ㎞ | BE56: =データ一覧!L424 -> 631.086 | BH56: km | BI56: =データ一覧!$A$425 -> 31.4.1 | BM56: =データ一覧!L425 -> 13.726 | BP56: ㎞ | BR56: 各種学校 | CA56: =データ一覧!L654 -> - | CD56: =データ一覧!L655 -> 0 | CG56: =データ一覧!L656 -> - | CK56: =データ一覧!L657 -> 0 | CO56: =データ一覧!L658 -> - | CS56: =データ一覧!L659 -> - | CW56: =データ一覧!L660 -> -
A57: 農林漁業 | H57: =データ一覧!L98 -> … | K57: =データ一覧!L155 -> … | N57: =データ一覧!L99 -> 15 | Q57: =データ一覧!L156 -> 177 | T57: =データ一覧!L100 -> … | W57: =データ一覧!L157 -> … | AE57: 人 | AH57: 人 | AM57: 人 | AO57: 自 動 車 | AX57: 乗用車 | BR57: 専修学校 | CA57: =データ一覧!L662 -> 0 | CD57: =データ一覧!L663 -> 0 | CG57: =データ一覧!L664 -> 0 | CK57: =データ一覧!L665 -> 0 | CO57: =データ一覧!L666 -> 0 | CS57: =データ一覧!L667 -> 0 | CW57: =データ一覧!L668 -> 0
A58: 鉱業 | H58: =データ一覧!L101 -> … | K58: =データ一覧!L158 -> … | N58: =データ一覧!L102 -> 0 | Q58: =データ一覧!L159 -> 0 | T58: =データ一覧!L103 -> … | W58: =データ一覧!L160 -> … | Z58: =SUM(AF58,AJ58) -> 0 | AF58: =データ一覧!$L$295 -> 0 | AJ58: =データ一覧!L296 -> 0 | AO58: 台 数 | AS58: 貨 物 | AW58: 普 通 | BA58: 小 型 | BE58: 乗 合 | BH58: 特 種 | BK58: 小型二輪 | BN58: 軽自動車 | BQ58: １８ 衛 生
A59: 建設業 | H59: =データ一覧!L104 -> … | K59: =データ一覧!L161 -> … | N59: =データ一覧!L105 -> 265 | Q59: =データ一覧!L162 -> 1510 | T59: =データ一覧!L106 -> … | W59: =データ一覧!L163 -> … | Z59: 海 面 漁 業 漁 獲 量 （属人） | AH59: =データ一覧!$A$297 -> 29年中 | AO59: =データ一覧!$A$426 -> 31.3.31 | AT59: =データ一覧!L426 -> 2666 | AX59: =データ一覧!L428 -> 12296 | BB59: =データ一覧!L429 -> 13407 | BE59: =データ一覧!L427 -> 100 | BH59: =データ一覧!L430 -> 821 | BK59: =データ一覧!L431 -> 722 | BN59: =データ一覧!L432 -> 24912
A60: 製造業 | H60: =データ一覧!L107 -> … | K60: =データ一覧!L164 -> … | N60: =データ一覧!L108 -> 1056 | Q60: =データ一覧!L165 -> 10659 | T60: =データ一覧!L109 -> … | W60: =データ一覧!L166 -> … | AF60: ｔ | AM60: t | AV60: 郵便局数 | BB60: =データ一覧!$A$433 -> 31.3.31 | BI60: 一般加入 | BM60: ＩＮＳネット | BU60: 医療関係施設 | CA60: =データ一覧!$A$669 -> 30.10.1 | CH60: および医療関係者数 | CP60: =データ一覧!$A$674 -> 30.12.31
A61: 電気・ｶﾞ ｽ・熱供給・水道業 | H61: =データ一覧!L110 -> … | K61: =データ一覧!L167 -> … | N61: =データ一覧!L111 -> 0 | Q61: =データ一覧!L168 -> 0 | T61: =データ一覧!L112 -> … | W61: =データ一覧!L169 -> … | Z61: 総 数 | AD61: =データ一覧!L297 -> 0 | AG61: 藻 類 | AK61: =データ一覧!L300 -> 0 | AO61: 通 信 | AS61: 総 数 | AY61: 郵 便 局 | BD61: 簡 易 局 | BI61: 電話数 | BM61: 加入数 | BX61: 病 | CA61: 院 | CI61: 一般診療所 | CU61: 歯科診療所
A62: 情報通信業 | H62: =データ一覧!L113 -> … | K62: =データ一覧!L170 -> … | N62: =データ一覧!L114 -> 17 | Q62: =データ一覧!L171 -> 265 | T62: =データ一覧!L115 -> … | W62: =データ一覧!L172 -> … | Z62: 魚 類 | AD62: =データ一覧!L298 -> 0 | AG62: そ の 他 | AK62: =データ一覧!L301 -> 0 | AO62: =データ一覧!$A$436 -> 31.3.31 | AS62: =データ一覧!L433 -> 14 | AY62: =データ一覧!L434 -> 12 | BD62: =データ一覧!L435 -> 2 | BI62: =データ一覧!L436 -> 5859 | BM62: =データ一覧!L437 -> 751 | BR62: 医療関係 | CD62: 一般病院 | CP62: 有 | CS62: 床
A63: 運輸業、郵便業 | H63: =データ一覧!L116 -> … | K63: =データ一覧!L173 -> … | N63: =データ一覧!L117 -> 48 | Q63: =データ一覧!L174 -> 677 | T63: =データ一覧!L118 -> … | W63: =データ一覧!L175 -> … | Z63: 貝 類 | AD63: =データ一覧!L299 -> 0 | BR63: 施設数 | BY63: =データ一覧!L669 -> 8 | CE63: =データ一覧!L670 -> 7 | CK63: =データ一覧!L671 -> 39 | CQ63: =データ一覧!L672 -> 4 | CW63: =データ一覧!L673 -> 22
A64: 卸売業、小売業 | H64: =データ一覧!L119 -> … | K64: =データ一覧!L176 -> … | N64: =データ一覧!L120 -> 797 | Q64: =データ一覧!L177 -> 5638 | T64: =データ一覧!L121 -> … | W64: =データ一覧!L178 -> … | AO64: １３ 税 ・ 財 政 | BX64: 医師 | CC64: 歯科医師 | CH64: 薬剤師 | CM64: 保健師 | CR64: 助産師 | CW64: 看護師
A65: 金融業、保険業 | H65: =データ一覧!L122 -> … | K65: =データ一覧!L179 -> … | N65: =データ一覧!L123 -> 51 | Q65: =データ一覧!L180 -> 650 | T65: =データ一覧!L124 -> … | W65: =データ一覧!L181 -> … | Z65: ７ 商 業 | AG65: =データ一覧!$A$302 -> 28.6.1(平成27年実績） | BR65: 医療 | CA65: 人 | CF65: 人 | CK65: 人 | CP65: 人 | CU65: 人 | CZ65: 人
A66: 不動産業、物品賃貸業 | H66: =データ一覧!L125 -> … | K66: =データ一覧!L182 -> … | N66: =データ一覧!L126 -> 74 | Q66: =データ一覧!L183 -> 243 | T66: =データ一覧!L127 -> … | W66: =データ一覧!L184 -> … | AS66: 歳入 | BB66: (千円） | BG66: 歳出 | BP66: (千円） | BR66: 関係者 | BW66: =データ一覧!L674 -> 110 | CB66: =データ一覧!L675 -> 35 | CG66: =データ一覧!L676 -> 95 | CL66: =データ一覧!L677 -> 35 | CQ66: =データ一覧!L678 -> 10 | CV66: =データ一覧!L679 -> 877
A67: 学術研究、専門・技術ｻｰﾋﾞｽ業 | H67: =データ一覧!L128 -> … | K67: =データ一覧!L185 -> … | N67: =データ一覧!L129 -> 89 | Q67: =データ一覧!L186 -> 397 | T67: =データ一覧!L130 -> … | W67: =データ一覧!L187 -> … | Z67: 産 業 分 類 | AD67: 商 店 数 | AG67: 従 業 者 数 | AJ67: 年 間 販 売 額 | AO67: 一人当たり歳入歳出予算決算額 | BZ67: 死因別死亡数 | CP67: =データ一覧!$A$680 -> 30年中 | CY67: 単 位：人
A68: 宿泊業、飲食サービス業 | H68: =データ一覧!L131 -> … | K68: =データ一覧!L188 -> … | N68: =データ一覧!L132 -> 338 | Q68: =データ一覧!L189 -> 2542 | T68: =データ一覧!L133 -> … | W68: =データ一覧!L190 -> … | AE68: 店 | AI68: 人 | AK68: 百万円 | AO68: 区分 | AS68: =データ一覧!$A$446 -> 元年度 | AX68: =データ一覧!$A$460 -> 30年度 | BC68: 区分 | BG68: =+AS68 -> 元年度 | BL68: =データ一覧!$A$460 -> 30年度 | BQ68: 死 因 | CC68: 悪 性 | CF68: 高血圧 | CL68: 脳血管 | CU68: 不慮の事故
A69: 生活関連サービス業、娯楽業 | H69: =データ一覧!L134 -> … | K69: =データ一覧!L191 -> … | N69: =データ一覧!L135 -> 296 | Q69: =データ一覧!L192 -> 1069 | T69: =データ一覧!L136 -> … | W69: =データ一覧!L193 -> … | Z69: 総 計 | AD69: =データ一覧!L302 -> 681 | AG69: =データ一覧!L311 -> 4817 | AJ69: =データ一覧!L320 -> 115279 | AS69: =データ一覧!L442 -> 380219.0623 | AX69: =データ一覧!L443 -> 386927.7258 | BG69: =データ一覧!L444 -> 380219.0623 | BL69: =データ一覧!L445 -> 378864.5677 | BV69: 全 死 因 | BZ69: 結 核 | CC69: 新生物 | CF69: 性疾患 | CI69: 心疾患 | CL69: 疾 患 | CO69: 肺 炎 | CR69: 老 衰 | CX69: 交通事故
A70: 教育、学習支援業 | H70: =データ一覧!L137 -> … | K70: =データ一覧!L194 -> … | N70: =データ一覧!L138 -> 85 | Q70: =データ一覧!L195 -> 490 | T70: =データ一覧!L139 -> … | W70: =データ一覧!L196 -> … | Z70: 卸売業 | AD70: =データ一覧!L303 -> 178 | AG70: =データ一覧!L312 -> 1486 | AJ70: =データ一覧!L321 -> 57280 | AO70: 項目別歳入歳出予算決算額
A71: 医療、福祉 | H71: =データ一覧!L140 -> … | K71: =データ一覧!L197 -> … | N71: =データ一覧!L141 -> 195 | Q71: =データ一覧!L198 -> 3700 | T71: =データ一覧!L142 -> … | W71: =データ一覧!L199 -> … | Z71: 小売業 | AD71: =データ一覧!L304 -> 503 | AG71: =データ一覧!L313 -> 3331 | AJ71: =データ一覧!L322 -> 57999 | AO71: 区分 | AS71: =データ一覧!$A$446 -> 元年度 | AX71: =データ一覧!$A$460 -> 30年度 | BC71: 区分 | BG71: =+AS71 -> 元年度 | BL71: =データ一覧!$A$460 -> 30年度 | BV71: =データ一覧!L680 -> 695 | BZ71: － | CA71: =データ一覧!L681 -> 1 | CC71: =データ一覧!L682 -> 187 | CG71: =データ一覧!L683 -> 6 | CI71: =データ一覧!L684 -> 124 | CL71: =データ一覧!L685 -> 47 | CO71: =データ一覧!L686 -> 79 | CR71: =データ一覧!L687 -> 29 | CU71: =データ一覧!L688 -> 35 | CX71: =データ一覧!L689 -> 2
A72: 複合サービス事業 | H72: =データ一覧!L143 -> … | K72: =データ一覧!L200 -> … | N72: =データ一覧!L144 -> 24 | Q72: =データ一覧!L201 -> 557 | T72: =データ一覧!L145 -> … | W72: =データ一覧!L202 -> … | Z72: 各種商品 | AD72: =データ一覧!L305 -> 2 | AG72: =データ一覧!L314 -> 198 | AJ72: =データ一覧!L323 -> x | AO72: 総額 | AS72: =SUM(AS73:AW85) -> 26057553 | AX72: =SUM(AX73:BB85) -> 26569940 | BC72: 総額 | BG72: =SUM(BG73:BK85) -> 26057553 | BL72: =SUM(BL73:BP85) -> 26016251 | BQ72: １９ 警 察 ・ 消 防 | CG72: =+データ一覧!$A690 -> 31.4.1
A73: サービス業 | H73: =データ一覧!L146 -> … | K73: =データ一覧!L203 -> … | N73: =データ一覧!L147 -> 170 | Q73: =データ一覧!L204 -> 1089 | T73: =データ一覧!L148 -> … | W73: =データ一覧!L205 -> … | Z73: 織物・衣服・身の回り品 | AD73: =データ一覧!L306 -> 79 | AG73: =データ一覧!L315 -> 270 | AJ73: =データ一覧!L324 -> 3492 | AO73: 地方税 | AS73: =データ一覧!L447 -> 9327000 | AX73: =データ一覧!L461 -> 9218573 | BC73: 議会費 | BG73: =データ一覧!L475 -> 254038 | BL73: =データ一覧!L489 -> 242745
A74: 公務 | H74: =データ一覧!L149 -> … | K74: =データ一覧!L206 -> … | N74: =データ一覧!L150 -> … | Q74: =データ一覧!L207 -> … | T74: =データ一覧!L151 -> … | W74: =データ一覧!L208 -> … | Z74: 飲食料品 | AD74: =データ一覧!L307 -> 154 | AG74: =データ一覧!L316 -> 1271 | AJ74: =データ一覧!L325 -> 22395 | AO74: 地方譲与税 | AS74: =データ一覧!L448 -> 250000 | AX74: =データ一覧!L462 -> 246124 | BC74: 総務費 | BG74: =データ一覧!L476 -> 2422999 | BL74: =データ一覧!L490 -> 2921516 | CA74: 交番・駐在所 | CJ74: 刑法犯認知件数 | CS74: 交通事故発生件数
A75: ４ 農 業 | Z75: 機械器具 | AD75: =データ一覧!L308 -> 71 | AG75: =データ一覧!L317 -> 359 | AJ75: =データ一覧!L326 -> 8600 | AO75: 各種交付金 | AS75: =データ一覧!L449 -> 1410000 | AX75: =データ一覧!L463 -> 1416678 | BC75: 民生費 | BG75: =データ一覧!L477 -> 9341521 | BL75: =データ一覧!L491 -> 9785816 | BR75: 警察署数 | CA75: 検問所数 | CK75: （27年中） | CT75: （27年中）
Z76: その他 | AD76: =データ一覧!L309 -> 175 | AG76: =データ一覧!L318 -> 1005 | AJ76: =データ一覧!L327 -> x | AO76: 地方特例交付金 | AS76: =データ一覧!L450 -> 55000 | AX76: =データ一覧!L464 -> 55685 | BC76: 衛生費 | BG76: =データ一覧!L478 -> 2285718 | BL76: =データ一覧!L492 -> 1715384 | CO76: 件 | CX76: 件
C77: 農家人口と世帯員数(販売農家) | K77: 農家世帯の就業状態（販売農家） | Z77: 無店舗 | AD77: =データ一覧!L310 -> 22 | AG77: =データ一覧!L319 -> 228 | AJ77: =データ一覧!L328 -> 5362 | AO77: 地方交付税 | AS77: =データ一覧!L451 -> 4460000 | AX77: =データ一覧!L465 -> 4495229 | BC77: 労働費 | BG77: =データ一覧!L479 -> 118419 | BL77: =データ一覧!L493 -> 139803 | BS77: =データ一覧!L690 -> 1 | CB77: =データ一覧!L691 -> 8 | CK77: =データ一覧!L692 -> 228 | CT77: =データ一覧!L693 -> 135
A78: 農 | B78: 平 | K78: 農業従事者 | T78: 非農業従事 | W78: 農業従事者 | AO78: 分担金および負担金 | AS78: =データ一覧!L452 -> 637210 | AX78: =データ一覧!L466 -> 391169 | BC78: 農林水産業費 | BG78: =データ一覧!L480 -> 1340668 | BL78: =データ一覧!L494 -> 1132593 | BQ78: 火災発生件数 | CA78: 林野焼損 | CF78: 損 害 | CK78: 消 防 自 | CO78: その他の
A79: 家 | B79: =+LEFT(データ一覧!$A$209,2) -> 27 | C79: 区分 | E79: 農家人口 | H79: 15歳以上の | N79: 農業就業人口 | T79: 者 | W79: の平均年齢 | Z79: ８ 住 宅 | AO79: 使用料および手数料 | AS79: =データ一覧!L453 -> 406412 | AX79: =データ一覧!L467 -> 387209 | BC79: 商工費 | BG79: =データ一覧!L481 -> 1160473 | BL79: =データ一覧!L495 -> 1204757 | BQ79: =+データ一覧!$A$694 -> 30年中 | BV79: 焼損棟数 | CA79: 面 積 | CF79: 見 積 額 | CK79: 動 車 数 | CO79: ﾎﾟﾝﾌﾟ数 | CS79: 消防吏員 | CW79: 消防団員
A80: 人就 | B80: ・ | H80: 世帯員数 | Q80: 基幹的農業 | AO80: 国庫支出金 | AS80: =データ一覧!L454 -> 3355312 | AX80: =データ一覧!L468 -> 3342529 | BC80: 土木費 | BG80: =データ一覧!L482 -> 2497835 | BL80: =データ一覧!L496 -> 2387166 | BQ80: 件 | BW80: 棟 | CD80: ａ | CH80: 千円 | CU80: 人 | CY80: 人
A81: 口業 | B81: =+MID(データ一覧!$A$209,4,1) -> 2 | G81: 人 | J81: 人 | M81: 人 | P81: 人 | Q81: 従事者 | S81: 人 | V81: 人 | Y81: 歳 | Z81: =+データ一覧!$A$329 -> 29年 | AE81: =データ一覧!$A$332 -> 30年 | AF81: 中の増減 | AJ81: =+データ一覧!$A$332 -> 30年 | AO81: 県支出金 | AS81: =データ一覧!L455 -> 2448621 | AX81: =データ一覧!L469 -> 2347678 | BC81: 消防費 | BG81: =データ一覧!L483 -> 825322 | BL81: =データ一覧!L497 -> 905463 | BR81: =データ一覧!L694 -> 9 | BW81: =データ一覧!L695 -> 7 | CB81: =データ一覧!L696 -> 0 | CF81: =データ一覧!L697 -> 14379 | CL81: =データ一覧!L698 -> 20 | CP81: =データ一覧!L699 -> 2 | CT81: =データ一覧!L700 -> 80 | CX81: =データ一覧!L701 -> 223
A82: と状 | B82: ・ | C82: 総数 | E82: =データ一覧!L209 -> 3164 | H82: =データ一覧!L212 -> 2791 | K82: =データ一覧!L215 -> 1862 | N82: =データ一覧!L218 -> 805 | Q82: =データ一覧!L221 -> 580 | T82: =データ一覧!L224 -> 929 | W82: =データ一覧!L227 -> 58.3 | AD82: 建設した住宅 | AG82: 消失した住宅 | AO82: 財産収入 | AS82: =データ一覧!L456 -> 59925 | AX82: =データ一覧!L470 -> 78399 | BC82: 教育費 | BG82: =データ一覧!L484 -> 2636677 | BL82: =データ一覧!L498 -> 2734338 | BQ82: ２０ そ の 他
A83: 況 | B83: =+RIGHT(データ一覧!$A$209,1) -> 1 | C83: 男 | E83: =データ一覧!L210 -> 1590 | H83: =データ一覧!L213 -> 1402 | K83: =データ一覧!L216 -> 1116 | N83: =データ一覧!L219 -> 460 | Q83: =データ一覧!L222 -> 395 | T83: =データ一覧!L225 -> 286 | W83: =データ一覧!L228 -> 57.4 | AO83: 繰入金 | AS83: =データ一覧!L457 -> 351680 | AX83: =データ一覧!L471 -> 302163 | BC83: 災害復旧費 | BG83: =データ一覧!L485 -> 0 | BL83: =データ一覧!L499 -> 80345
C84: 女 | E84: =データ一覧!L211 -> 1574 | H84: =データ一覧!L214 -> 1389 | K84: =データ一覧!L217 -> 746 | N84: =データ一覧!L220 -> 345 | Q84: =データ一覧!L223 -> 185 | T84: =データ一覧!L226 -> 643 | W84: =データ一覧!L229 -> 59.6 | Z84: 281,432 戸 | AA84: =データ一覧!L329 -> 22177 | AC84: 戸 | AD84: =データ一覧!L330 -> 347 | AF84: 戸 | AG84: =データ一覧!L331 -> 165 | AI84: 戸 | AK84: =データ一覧!L332 -> 22359 | AM84: 戸 | AO84: 地方債 | AS84: =データ一覧!L458 -> 2350300 | AX84: =データ一覧!L472 -> 2552500 | BC84: 公債費 | BG84: =データ一覧!L486 -> 3153883 | BL84: =データ一覧!L500 -> 2766325 | BV84: 西山公園、本山誠照寺、本山證誠寺、王山古墳群、兜山古墳、木地屋資料、旧瓜生家住宅、
AO85: その他 | AS85: =データ一覧!L459 -> 946093 | AX85: =データ一覧!L473 -> 1736004 | BC85: その他 | BG85: =データ一覧!L487 -> 20000 | BL85: =データ一覧!L501 -> 0 | BQ85: 名所・旧跡 | BV85: 春日神社本殿、鳥ヶ森社叢、三六の桜、加多志波神社の追儺面、木造聖観音菩薩立像、
C86: 総農家数等 | J86: 専兼業別（販売農家） | R86: 経営面積規模別（販売農家） | BQ86: 文化財等 | BV86: 日吉神社の相生の大杉、鯖江藩家老植田家長屋門、舟津神社本殿、神明社中雀門、
B87: 平 | C87: 区 分 | G87: 戸数（戸） | J87: 区 分 | O87: 戸数（戸） | R87: 区 分 | W87: 戸数（戸） | Z87: ９ 議 員 ・ 職 員 | AO87: １４ 文 化 | AY87: ( | AZ87: =データ一覧!$A$508 -> 31.3.31 | BD87: ただし図書館・公民館・児童館 | BL87: =データ一覧!$A$502 -> 31.4.1 | BV87: 上河内の薄墨桜、薬師堂古樹林、三峯城跡、萬慶寺本堂天井絵
A88: 農 | B88: =+LEFT(データ一覧!$A$230,2) -> 27 | C88: 総農家 | G88: =データ一覧!L230 -> 1048 | J88: 総数 | O88: =データ一覧!L236 -> 677 | R88: 総数 | W88: =データ一覧!L241 -> 716 | BE88: 宗教法人数 | BL88: =データ一覧!$A$510 -> 30.12.31 | BP88: ） | BQ88: 特産物 | BV88: 眼鏡枠、織物、漆器、吉川ナス、ブロッコリー、マルセイユメロン、さばえ菜花、
A89: 家 | B89: ・ | C89: 販売農家 | G89: =データ一覧!L231 -> 716 | J89: 専業農家 | O89: =データ一覧!L237 -> 95 | R89: 0.5 ha 未満 | W89: =データ一覧!L242 -> 117 | Z89: 市 町 村 議 会 | AC89: 有権者数 | AE89: =データ一覧!$A$336 -> 元.9.1 | AG89: 市 町 村 議 会 | AJ89: 職 員 数 | AT89: 図書館 | AZ89: 公 民 館 | BK89: 社会教育学級講座 | BV89: ミディトマト、山うに、さばえ菜花米、川島ごぼう
A90: 数 | B90: =+MID(データ一覧!$A$230,4,1) -> 2 | D90: 主業 | G90: =データ一覧!L232 -> 39 | J90: 兼業農家 | O90: =データ一覧!L238 -> 621 | R90: 0.5 ha ～ 1.0 ha | W90: =データ一覧!L243 -> 251 | Z90: 議 員 定 数 | AC90: 男 | AE90: 女 | AG90: 選 挙 投 票 率 | AJ90: 総 数 | AL90: 一般行政職 | AO90: 公 共 | AS90: 館 数 | AV90: 図書数 | AY90: 本 館 | BB90: 分 館 | BE90: 公 園 | BH90: 児童館 | BK90: 学級講座数 | BN90: 受講者数 | BQ90: 年中行事 | BV90: すりばちやいと(2月20日・3月2日)、誠市(3月～12月第2日曜)、 さばえ菜花まつり(4月中旬)､かたかみ春たんぼ(4月29日)､越前漆器まつり(5月3･4日)､ さばえつつじまつり(5月上旬)、つつじマラソン(5月第2日曜)、 やっしきまつり(7月下旬)、じゃぼんこう(11月17日)
B91: ・ | D91: 準主業 | G91: =データ一覧!L233 -> 93 | K91: 第１種兼業 | O91: =データ一覧!L239 -> 67 | R91: 1.0 ha ～ 1.5 ha | W91: =データ一覧!L244 -> 168 | AB91: 人 | AD91: 人 | AF91: 人 | AI91: ％ | AK91: 人 | AM91: 人 | AO91: 施 設 数 | AT91: =データ一覧!L502 -> 1 | AV91: =データ一覧!L503 -> 344530 | AZ91: =データ一覧!L504 -> 10 | BB91: =データ一覧!L505 -> 0 | BE91: =データ一覧!L506 -> 180 | BH91: =データ一覧!L507 -> 15 | BK91: =データ一覧!L508 -> 425 | BN91: =データ一覧!L509 -> 38239
B92: =+RIGHT(データ一覧!$A$230,1) -> 1 | D92: 副業的 | G92: =データ一覧!L234 -> 584 | K92: 第２種兼業 | O92: =データ一覧!L240 -> 554 | R92: 1.5 ha ～ 2.0 ha | W92: =データ一覧!L245 -> 73 | AA92: =データ一覧!L333 -> 20 | AC92: =データ一覧!L336 -> 27255 | AE92: =データ一覧!L337 -> 29128 | AG92: =データ一覧!L335 -> 53.07 | AJ92: =データ一覧!L338 -> 393 | AL92: =データ一覧!L339 -> 255 | AO92: 宗 教 | AS92: 仏教系 | AV92: ｷﾘｽﾄ教系 | AY92: 神道諸派 | BB92: 公会堂・市民会館 | BH92: テレビ | BK92: 衛星放送契約数
C93: 自給的農家 | G93: =データ一覧!L235 -> 332 | R93: 2.0 ha 以上 | W93: =データ一覧!L246 -> 106 | AG93: =データ一覧!L334 -> 元.6.30 | AO93: 法 人 数 | AS93: =データ一覧!L510 -> 111 | AV93: =データ一覧!L511 -> 3 | AY93: =データ一覧!L512 -> 63 | BB93: =データ一覧!L513 -> 5 | BH93: 等 | BK93: =データ一覧!L514 -> 15018

Sheet あわら市
A1: =+データ一覧!M5 -> 0
A2: =+データ一覧!M8 -> 0
AO3: 0
AB4: 【市章とそのいわれ】あわら市の頭文字である、アルファベット | AO4: 【位置および地勢】あわら市は、福井県の最北端に位置し、西および南は | BT4: 所在地 | CB4: 〒919-0692
AB5: 小文字の「a」をモチーフにデザイン化した。 | AP5: 坂井市、北東は石川県加賀市に隣接し、北西は日本海に面している。 | CB5: あわら市市姫三丁目１番１号
A6: =+データ一覧!M6 -> あわらし | AB6: 緑の山並みをバックに、自然に囲まれ、黄色く | AP6: 面積は、116.98ｋ㎡で、地形は北部の丘陵地、南西部の平坦地、東部の
A7: =データ一覧!M9 -> あわら市 | AB7: 輝くあわら市を表現している。 | AP7: 山岳地帯と大きく３つに分かれており、南北に北潟湖が横たわり、東西には | BT7: 電話番号 | CB7: （０７７６）７３－１２２１
AP8: 竹田川が流れている。美しい日本海と静かな湖や川、優れた泉質の温泉、 | BT8: FAX番号 | CB8: 〃 ７３－１３５０
AP9: 太陽をいっぱいあびた農作物など、自然の恵みにあふれたところである。
AB10: 0 | AP10: 気候は、北陸地方の中でも比較的温暖で、気象環境は過ごしやすいものと | BT10: 最寄駅および距離 | CB10: ＪＲ北陸本線芦原温泉駅 下車８００ｍ
AB11: 0 | AP11: なっている。
AB13: 【市が掲げる標語】暮らしやすくて 幸せを実感できるまち | BT13: ホームページ | CB13: http://www.city.awara.lg.jp/
A15: １ 土 地 | Z15: =データ一覧!$A$261 -> 30年 | AA15: 産米収穫量 | AD15: 収 穫 量 | AG15: 作 付 面 積 | AJ15: 10a当たり収量 | BQ15: １５ 労 働 | CF15: 27.10.1
AD16: =データ一覧!$M$261 -> 9510 | AF16: t | AG16: =データ一覧!$M$262 -> 1760 | AI16: ha | AJ16: =データ一覧!M263 -> 540 | AM16: kg | AO16: １０ 工 業 | BC16: =データ一覧!$A$340 -> 30.6.1（平成29年実績）
A17: 総 面 積 | K17: 固 定 資 産 概 要 調 書 に よ る 地 目 別 面 積 | AC17: 総 数 | AG17: うち 田 | AK17: うち 畑 | BX17: 産業別就業者数
C18: =データ一覧!$A$10 -> 元.10.1 | Q18: =データ一覧!$A$12 -> 31.1.1 | Z18: 耕 地 面 積 | AD18: ha | AG18: ha | AK18: ha | AP18: 産業分類 | AX18: 事業所数 | BC18: 従業者数 | BI18: 年間製造品出荷額等 | BR18: 区 分 | BW18: 総 数 | CB18: 男 | CF18: 女 | CJ18: 区 分 | CO18: 総 数 | CT18: 男 | CX18: 女
G19: ㎢ | K19: 総 数 | P19: う ち 田 | U19: う ち 畑 | Z19: =データ一覧!$A$247 -> 30.7.15 | AC19: =データ一覧!$M$247 -> 3430 | AF19: =データ一覧!$M$248 -> 2600 | AJ19: =データ一覧!$M$249 -> 826 | BA19: 事業所 | BC19: 人 | BF19: 人 | BH19: 万円 | BO19: 万円 | BW19: 人 | CC19: 人 | CG19: 人 | CO19: 人 | CS19: 人 | CW19: 人
D20: =データ一覧!M10 -> 116.98 | O20: ha | T20: ha | Y20: ha | Z20: 農 業 生 産 物 | AD20: 作 付 面 積 | AG20: 収 穫 量 | AJ20: 10a当たり収量 | AP20: 総数 | AY20: =データ一覧!M340 -> 80 | BC20: =+データ一覧!M365 -> 4469 | BJ20: =データ一覧!M390 -> 19737108 | BQ20: 総 数 | BW20: =CA20+CE20 -> 15132 | CA20: =データ一覧!M515 -> 8033 | CE20: =データ一覧!M540 -> 7099
L21: =データ一覧!M12 -> 8972.1 | Q21: =データ一覧!M13 -> 2681.8 | V21: =データ一覧!M14 -> 895.4 | Z21: =データ一覧!$A$264 -> 30年中 | AD21: ha | AG21: t | AJ21: kg | AO21: 食料品 | AP21: 食料品 | AY21: =データ一覧!M341 -> 2 | BC21: =+データ一覧!M366 -> 42 | BJ21: =データ一覧!M391 -> x | CJ21: 卸売業,小売業 | CO21: =CS21+CW21 -> 2070 | CS21: =データ一覧!M528 -> 912 | CW21: =データ一覧!M553 -> 1158
A22: 町 ･ 丁 ･ 大 字 | K22: う ち 宅 地 | P22: う ち 山 林 | U22: う ち 原 野 | Z22: 水 稲 | AD22: =データ一覧!M264 -> 1760 | AG22: =データ一覧!M265 -> 9510 | AJ22: =データ一覧!M266 -> 540 | AO22: 飲料・飼料 | AP22: 飲料・飼料 | AY22: =データ一覧!M342 -> 0 | BC22: =+データ一覧!M367 -> 0 | BJ22: =データ一覧!M392 -> 0 | BQ22: 第１次産業 | BW22: =CA22+CE22 -> 923 | CA22: =データ一覧!M516 -> 610 | CE22: =データ一覧!M541 -> 313 | CJ22: 金融業,保険業 | CO22: =CS22+CW22 -> 314 | CS22: =データ一覧!M529 -> 130 | CW22: =データ一覧!M554 -> 184
A23: 区 画 数 | H23: =データ一覧!M11 -> 125 | O23: ha | T23: ha | Y23: ha | Z23: 六 条 大 麦 | AD23: =データ一覧!M267 -> 592 | AG23: =データ一覧!M268 -> 1140 | AJ23: =データ一覧!M269 -> 193 | AO23: 繊維 | AP23: 繊維 | AY23: =データ一覧!M343 -> 22 | BC23: =+データ一覧!M368 -> 486 | BJ23: =データ一覧!M393 -> 569855 | BR23: 農業 | BW23: =CA23+CE23 -> 893 | CA23: =データ一覧!M517 -> 583 | CE23: =データ一覧!M542 -> 310 | CJ23: 不動産業 | CO23: 90 | CS23: =データ一覧!M530 -> 55 | CW23: =データ一覧!M555 -> 35
A24: =データ一覧!$A$11 -> 31.4.1 | L24: =データ一覧!M15 -> 868.7 | Q24: =データ一覧!M16 -> 2172.8 | V24: =データ一覧!M17 -> 97.6 | Z24: 大 豆 | AD24: =データ一覧!M270 -> 344 | AG24: =データ一覧!M271 -> 461 | AJ24: =データ一覧!M272 -> 134 | AO24: 衣服 | AP24: 木材 | AY24: =データ一覧!M344 -> 1 | BC24: =+データ一覧!M369 -> 4 | BJ24: =データ一覧!M394 -> x | BR24: 林業 | BW24: 24 | CA24: =データ一覧!M518 -> 21 | CE24: =データ一覧!M543 -> 3 | CJ24: 学術研究 | CO24: 322 | CS24: =データ一覧!M531 -> 209 | CW24: =データ一覧!M556 -> 113
A25: ２ 世 帯 数 と 人 口 | AB25: 区 分 | AD25: 乳 用 牛 | AF25: 肉 用 牛 | AH25: 豚 | AJ25: 採卵鶏 | AL25: ブロイラー | AO25: 木材 | AP25: 家具 | AY25: =データ一覧!M345 -> 2 | BC25: =+データ一覧!M370 -> 37 | BJ25: =データ一覧!M395 -> x | BR25: 漁業 | BW25: 6 | CA25: =データ一覧!M519 -> 6 | CE25: =データ一覧!M544 -> 0 | CJ25: 宿泊業,飲食ｻｰﾋﾞｽ | CO25: 1238 | CS25: =データ一覧!M532 -> 447 | CW25: =データ一覧!M557 -> 791
Z26: 畜 産 | AB26: 飼養農家 | AD26: =データ一覧!$M$251 -> x | AF26: =データ一覧!$M$253 -> - | AH26: =データ一覧!$M$255 -> - | AJ26: =データ一覧!$M$257 -> x | AL26: =データ一覧!$M$259 -> x | AO26: 家具 | AP26: パルプ・紙 | AY26: =データ一覧!M346 -> 3 | BC26: =+データ一覧!M371 -> 190 | BJ26: =データ一覧!M396 -> 1509203 | BQ26: 第２次産業 | BW26: 4711 | CA26: =データ一覧!M520 -> 3153 | CE26: =データ一覧!M545 -> 1558 | CJ26: 生活関連ｻｰﾋﾞｽ業 | CO26: 593 | CS26: =データ一覧!M533 -> 212 | CW26: =データ一覧!M558 -> 381
I27: 人 口 | U27: １世帯当 | W27: 人 口 | Z27: =データ一覧!$A$251 -> 31.3.31 | AB27: （戸） | AO27: パルプ・紙 | AP27: 印刷 | AY27: =データ一覧!M347 -> 2 | BC27: =+データ一覧!M372 -> 13 | BJ27: =データ一覧!M397 -> x | BR27: 鉱業，採石業 | BW27: 1 | CA27: =データ一覧!M521 -> 1 | CE27: =データ一覧!M546 -> 0 | CJ27: 教育,学習支援業 | CO27: 685 | CS27: =データ一覧!M534 -> 268 | CW27: =データ一覧!M559 -> 417
A28: 区 分 | F28: 世帯数 | I28: 総 数 | L28: 男 | O28: 女 | R28: 男／女 | U28: たり人員 | W28: 密 度 | AB28: 頭 羽 | AD28: =データ一覧!$M$252 -> 131 | AF28: =データ一覧!$M$254 -> - | AH28: =データ一覧!$M$256 -> - | AJ28: =データ一覧!$M$258 -> 201200 | AL28: =データ一覧!$M$260 -> 36000 | AO28: 出版・印刷 | AP28: 化学 | AY28: =データ一覧!M348 -> 2 | BC28: =+データ一覧!M373 -> 843 | BJ28: =データ一覧!M398 -> x | BR28: 建設業 | BW28: 1032 | CA28: =データ一覧!M522 -> 863 | CE28: =データ一覧!M547 -> 169 | CJ28: 医療，福祉 | CO28: 1697 | CS28: =データ一覧!M535 -> 365 | CW28: =データ一覧!M560 -> 1332
F29: 世 帯 | I29: 人 | L29: 人 | O29: 人 | S29: ％ | U29: 人 | W29: 人/㎢ | AO29: 化学 | AP29: 石油・石炭 | AY29: =データ一覧!M349 -> 0 | BC29: =+データ一覧!M374 -> 0 | BJ29: =データ一覧!M399 -> 0 | BR29: 製造業 | BW29: 3678 | CA29: =データ一覧!M523 -> 2289 | CE29: =データ一覧!M548 -> 1389 | CJ29: 複合サービス事業 | CO29: 232 | CS29: =データ一覧!M536 -> 146 | CW29: =データ一覧!M561 -> 86
A30: =データ一覧!$A$25 -> 2.10.1 | F30: =データ一覧!M25 -> 8708 | I30: =+L30+O30 -> 31743 | L30: =データ一覧!M27 -> 14885 | O30: =データ一覧!M28 -> 16858 | S30: =+L30/O30*100 -> 88.29635781 | U30: =データ一覧!M30 -> 3.65 | W30: =データ一覧!M24 -> 0 | Z30: ５ 林 業 | AO30: 石油・石炭 | AP30: プラスチック | AY30: =データ一覧!M350 -> 5 | BC30: =+データ一覧!M375 -> 101 | BJ30: =データ一覧!M400 -> 107999 | BQ30: 第３次産業 | BW30: 9345 | CA30: =データ一覧!M524 -> 4190 | CE30: =データ一覧!M549 -> 5155 | CJ30: サービス業 | CO30: 699 | CS30: =データ一覧!M537 -> 418 | CW30: =データ一覧!M562 -> 281
A31: =データ一覧!$A$32 -> 7.10.1 | F31: =データ一覧!M32 -> 9327 | I31: =+L31+O31 -> 32432 | L31: =データ一覧!M34 -> 15174 | O31: =データ一覧!M35 -> 17258 | S31: 87.92444084 | U31: =データ一覧!M37 -> 3.48 | W31: =データ一覧!M31 -> 0 | AO31: プラスチック | AP31: ゴム | AY31: =データ一覧!M351 -> 0 | BC31: =+データ一覧!M376 -> 0 | BJ31: =データ一覧!M401 -> 0 | BR31: 電気･ｶﾞｽ･水道業 | BW31: 50 | CA31: =データ一覧!M525 -> 40 | CE31: =データ一覧!M550 -> 10 | CJ31: 公務 | CO31: 493 | CS31: =データ一覧!M538 -> 346 | CW31: =データ一覧!M563 -> 147
A32: =データ一覧!$A$39 -> 12.10.1 | F32: =データ一覧!M39 -> 9562 | I32: =+L32+O32 -> 32178 | L32: =データ一覧!M41 -> 15072 | O32: =データ一覧!M42 -> 17106 | S32: 88.10943529 | U32: =データ一覧!M44 -> 3.37 | W32: =データ一覧!M38 -> 0 | Z32: 森 林 総 面 積 | AH32: =データ一覧!$A$273 -> 31.3.31 | AO32: ゴム | AP32: 皮革 | AY32: =データ一覧!M352 -> 0 | BC32: =+データ一覧!M377 -> 0 | BJ32: =データ一覧!M402 -> 0 | BR32: 情報通信業 | BW32: 208 | CA32: =データ一覧!M526 -> 157 | CE32: =データ一覧!M551 -> 51 | CI32: 分類不能の産業 | CO32: 153 | CS32: =データ一覧!M539 -> 80 | CW32: =データ一覧!M564 -> 73
A33: =+データ一覧!$A$46 -> 17.10.1 | F33: =データ一覧!M46 -> 9658 | I33: =+L33+O33 -> 31081 | L33: =データ一覧!M48 -> 14498 | O33: =データ一覧!M49 -> 16583 | S33: 87.42688295 | U33: =データ一覧!M51 -> 3.22 | W33: =データ一覧!M52 -> 265.7 | Z33: 森 林 の 構 成 | AO33: 皮革 | AP33: 窯業・土石 | AY33: =データ一覧!M353 -> 7 | BC33: =+データ一覧!M378 -> 110 | BJ33: =データ一覧!M403 -> 418648 | BR33: 運輸業,郵便業 | BW33: =CA33+CE33 -> 654 | CA33: =データ一覧!M527 -> 485 | CE33: =データ一覧!M552 -> 169
A34: =+データ一覧!$A$53 -> 22.10.1 | F34: =+データ一覧!M53 -> 9735 | I34: =+L34+O34 -> 29989 | L34: =+データ一覧!M55 -> 14081 | O34: =+データ一覧!M56 -> 15908 | S34: 88.51521247 | U34: =+データ一覧!M58 -> 3.08 | W34: =+データ一覧!M59 -> 256.3 | AE34: ha | AL34: ha | AO34: 窯業・土石 | AP34: 鉄鋼 | AY34: =データ一覧!M354 -> 0 | BC34: =+データ一覧!M379 -> 0 | BJ34: =データ一覧!M404 -> 0 | BQ34: １６ 社 会 福 祉 | CG34: =データ一覧!$A$565 -> 31.4.1
A35: =データ一覧!$A$60 -> 27.10.1 | F35: =データ一覧!M60 -> 9697 | I35: =データ一覧!M61 -> 28729 | L35: =データ一覧!M62 -> 13555 | O35: =データ一覧!M63 -> 15174 | S35: 89.33043364 | U35: =データ一覧!M65 -> 2.962668867 | W35: =データ一覧!M66 -> 245.6 | Z35: 総 数 | AD35: =データ一覧!M273 -> 4441.14 | AG35: 天然林 針葉樹 | AK35: =データ一覧!M276 -> 281.75 | AO35: 鉄鋼 | AP35: 非鉄金属 | AY35: =データ一覧!M355 -> 1 | BC35: =+データ一覧!M380 -> 14 | BJ35: =データ一覧!M405 -> x
A36: =+データ一覧!$A$67 -> 元.10.1 | F36: =データ一覧!M67 -> 9866 | I36: =データ一覧!M76 -> 27577 | L36: =データ一覧!M77 -> 13033 | O36: =データ一覧!M78 -> 14544 | S36: =+L36/O36*100 -> 89.61083608 | U36: =データ一覧!M68 -> 2.8 | W36: =データ一覧!M69 -> 235.7411523 | Z36: 人工林 針葉樹 | AD36: =データ一覧!M274 -> 3176.54 | AG36: 天然林 広葉樹 | AK36: =データ一覧!M277 -> 862.91 | AO36: 非鉄金属 | AP36: 金属 | AY36: =データ一覧!M356 -> 5 | BC36: =+データ一覧!M381 -> 345 | BJ36: =データ一覧!M406 -> 781821 | BR36: 区分 | BY36: 施設数 | CD36: 収容定員 | CJ36: 区分 | CQ36: 施設数 | CV36: 収容定員
A37: 年 | C37: 区 | E37: 0歳 | H37: 15歳 | K37: 25歳 | N37: 35歳 | Q37: 45歳 | T37: 55歳 | W37: 65歳 | Z37: 人工林 広葉樹 | AD37: =データ一覧!M275 -> 25.39 | AG37: 竹 林 | AK37: =データ一覧!M278 -> 15.75 | AO37: 金属 | AP37: はん用機械 | AY37: =データ一覧!M357 -> 3 | BC37: =+データ一覧!M382 -> 38 | BJ37: =データ一覧!M407 -> 54676 | BQ37: 生活保護施設 | BY37: =データ一覧!M565 -> 0 | CC37: =データ一覧!M578 -> 0 | CG37: 人 | CI37: 指定障害者支援施設 | CQ37: =データ一覧!M571 -> 1 | CU37: =データ一覧!M584 -> 40 | CY37: 人
A38: 齢 | B38: 令 | F38: ～ | I38: ～ | L38: ～ | O38: ～ | R38: ～ | U38: ～ | AO38: 一般機械 | AP38: 生産用機械 | AY38: =データ一覧!M358 -> 10 | BC38: =+データ一覧!M383 -> 603 | BJ38: =データ一覧!M408 -> 2927260 | BQ38: 地域福祉施設 | BY38: =データ一覧!M566 -> 0 | CC38: =データ一覧!M579 -> 0 | CI38: 指定相談支援事業所 | CQ38: =データ一覧!M572 -> 3 | CU38: =データ一覧!M585 -> 0
A39: 階 | B39: 元 | C39: 分 | G39: 14歳 | J39: 24歳 | M39: 34歳 | P39: 44歳 | S39: 54歳 | V39: 64歳 | Y39: 以上 | Z39: 林 野 の 構 成 | AG39: 保 有 形 態 別 | AO39: 電気機械 | AP39: 業務用機械 | AY39: =データ一覧!M359 -> 1 | BC39: =+データ一覧!M384 -> 31 | BJ39: =データ一覧!M409 -> x | BQ39: 老人福祉施設 | BY39: =データ一覧!M567 -> 7 | CC39: =データ一覧!M580 -> 646 | CI39: 児童福祉施設 | CQ39: =データ一覧!M573 -> 16 | CU39: =データ一覧!M586 -> 1098
A40: 級 | B40: ・ | G40: 人 | J40: 人 | L40: 人 | O40: 人 | R40: 人 | U40: 人 | X40: 人 | AF40: ha | AL40: ha | AP40: 電子・デバイス | AY40: =データ一覧!M360 -> 7 | BC40: =+データ一覧!M385 -> 1505 | BJ40: =データ一覧!M410 -> 5514562 | BQ40: 介護保険施設 | BY40: =データ一覧!M568 -> 48 | CC40: =データ一覧!M581 -> 959 | CI40: 母子福祉施設 | CQ40: =データ一覧!M574 -> 0 | CU40: =データ一覧!M587 -> 0
A41: 別 | B41: 10 | C41: 総 数 | E41: =+E42+E43 -> 3054 | H41: =+H42+H43 -> 2410 | K41: =+K42+K43 -> 2339 | N41: =+N42+N43 -> 2957 | Q41: =+Q42+Q43 -> 3588 | T41: =+T42+T43 -> 3918 | W41: =+W42+W43 -> 9294 | Z41: 無立木地 伐採跡地 | AD41: =データ一覧!M279 -> 7.61 | AG41: 国 有 | AK41: =データ一覧!M281 -> 44.34 | AP41: 電気機械 | AY41: =データ一覧!M361 -> 3 | BC41: =+データ一覧!M386 -> 19 | BJ41: =データ一覧!M411 -> 24109 | BQ41: 障害者自立支援法施行前からの身体障害者福祉施設 | BY41: =データ一覧!M569 -> 0 | CC41: =データ一覧!M582 -> 0 | CI41: 婦人保護施設 | CQ41: =データ一覧!M575 -> 0 | CU41: =データ一覧!M588 -> 0
A42: 人 | B42: ・ | C42: 男 | E42: =データ一覧!M79 -> 1534 | H42: =データ一覧!M80 -> 1213 | K42: =データ一覧!M81 -> 1226 | N42: =データ一覧!M82 -> 1483 | Q42: =データ一覧!M83 -> 1771 | T42: =データ一覧!M84 -> 1890 | W42: =データ一覧!M85 -> 3902 | Z42: 無立木地 未立木地 | AD42: =データ一覧!M280 -> 71.19 | AG42: 公 有 | AK42: =データ一覧!M282 -> 571.91 | AO42: 輸送機械 | AP42: 情報通信機械 | AY42: =データ一覧!M362 -> 0 | BC42: =+データ一覧!M387 -> 0 | BJ42: =データ一覧!M412 -> 481100 | CI42: その他の社会福祉施設 | CQ42: =データ一覧!M576+データ一覧!M577 -> 0 | CU42: =データ一覧!M589+データ一覧!M590 -> 0
A43: 口 | B43: 1 | C43: 女 | E43: =データ一覧!M87 -> 1520 | H43: =データ一覧!M88 -> 1197 | K43: =データ一覧!M89 -> 1113 | N43: =データ一覧!M90 -> 1474 | Q43: =データ一覧!M91 -> 1817 | T43: =データ一覧!M92 -> 2028 | W43: =データ一覧!M93 -> 5392 | AG43: 私 有 | AK43: =データ一覧!M283 -> 3824.89 | AO43: 精密機械 | AP43: 輸送機械 | AY43: =データ一覧!M363 -> 3 | BC43: =+データ一覧!M388 -> 82 | BJ43: =データ一覧!M413 -> x | BQ43: 障害福祉サービス事業所 | BY43: =データ一覧!M570 -> 36 | CC43: =データ一覧!M583 -> 424
Z44: 林 産 物 生 産 量 | AJ44: =データ一覧!$A$284 -> 30年中 | AO44: その他 | AP44: その他 | AY44: =データ一覧!M364 -> 1 | BC44: =+データ一覧!M389 -> 6 | BJ44: =データ一覧!M414 -> x | BQ44: １７ 教 育 | CG44: =データ一覧!$A$591 -> 元.5.1（特別支援学校、専修学校はH30.5.1現在）
A45: 人口動態 | H45: 自 然 動 態 | N45: 社 会 動 態 | T45: =データ一覧!$A74 -> 30.1.1～30.12.31 | Z45: 生椎茸 | AD45: =データ一覧!M284 -> - | AF45: ㎏ | AG45: 乾椎茸 | AK45: =データ一覧!M285 -> - | AM45: ㎏
C46: 区 分 | H46: 出 生 | K46: 死 亡 | N46: 転 入 | Q46: 転 出 | T46: 婚 姻 | W46: 離 婚 | Z46: えのきだけ | AD46: =データ一覧!M287 -> - | AF46: ㎏ | AG46: なめこ | AK46: =データ一覧!M286 -> - | AM46: ㎏ | AP46: 工 業 用 水 量 | AV46: （従業者30人以上の事業所） | BG46: =データ一覧!M415 -> 16764 | BL46: ㎥／日 | CA46: 学校数（校） | CH46: 教員数（人） | CP46: 学生・生徒・児童数（人）
A47: =LEFT(データ一覧!$A70,7) -> 30.10.1 | H47: 人 | K47: 人 | N47: 人 | Q47: 人 | U47: 件 | X47: 件 | Z47: ひらたけ | AD47: =+データ一覧!M288 -> - | AF47: ㎏ | AG47: まいたけ | AK47: =+データ一覧!M289 -> - | AM47: ㎏ | BS47: 区分 | CA47: 本 校 | CD47: 分 校 | CG47: 本 務 | CK47: 兼 務 | CO47: 総 数 | CS47: 男 | CW47: 女
A48: ～ | C48: 実 数 | H48: =データ一覧!M70 -> 161 | K48: =データ一覧!M71 -> 393 | N48: =データ一覧!M72 -> 854 | Q48: =データ一覧!M73 -> 925 | T48: =データ一覧!M74 -> 106 | W48: =データ一覧!M75 -> 30 | AO48: １１ 上 ・ 下 水 道 | BR48: 小学校 | CA48: =データ一覧!M592 -> 10 | CD48: =データ一覧!M593 -> 0 | CG48: =データ一覧!M594 -> 111 | CK48: =データ一覧!M595 -> 19 | CO48: =データ一覧!M596 -> 1262 | CS48: =データ一覧!M597 -> 643 | CW48: =データ一覧!M598 -> 619
A49: =RIGHT(データ一覧!$A72,7) -> ～元.9.30 | C49: 比率(対1,000人) | H49: =+H48/I35*1000 -> 5.604093425 | K49: =+K48/I35*1000 -> 13.67955724 | N49: - | Q49: - | T49: =+T48/I35*1000 -> 3.689651572 | W49: =+W48/I35*1000 -> 1.044241011 | Z49: ６ 漁 業 | BR49: 中学校 | CA49: =データ一覧!M600 -> 2 | CD49: =データ一覧!M601 -> 0 | CG49: =データ一覧!M602 -> 63 | CK49: =データ一覧!M603 -> 3 | CO49: =データ一覧!M604 -> 678 | CS49: =データ一覧!M605 -> 337 | CW49: =データ一覧!M606 -> 341
AO50: 水 道 供 給 人 口 | AV50: 上 水 道 | AZ50: 簡易水道 | BD50: 専用水道 | BH50: 飲料水供給施設 | BL50: 下水道処理人口 | BR50: 高等学校 | CA50: =データ一覧!M608 -> 1 | CD50: =データ一覧!M609 -> 0 | CG50: =データ一覧!M610 -> 49 | CK50: =データ一覧!M611 -> 9 | CO50: =データ一覧!M612 -> 650 | CS50: =データ一覧!M613 -> 362 | CW50: =データ一覧!M614 -> 288
A51: ３ 事 業 所（民 営） （平 28.6.1） | Z51: 漁船隻数・トン数 | AD51: =データ一覧!$A$290 -> 30.12.31 | AH51: 動 力 船 | AO51: =データ一覧!$A$416 -> 31.3.31 | AU51: 人 | AW51: =データ一覧!M416 -> 25267 | AZ51: =データ一覧!M417 -> 2821 | BE51: =データ一覧!M418 -> 0 | BI51: =データ一覧!M419 -> 0 | BM51: =データ一覧!M420 -> 26686 | BR51: 大学・短期大学 | CA51: =データ一覧!M615 -> 0 | CD51: =データ一覧!M616 -> 0 | CG51: =データ一覧!M617 -> 0 | CK51: =データ一覧!M618 -> 0 | CO51: =データ一覧!M619 -> 0 | CS51: =データ一覧!M620 -> 0 | CW51: =データ一覧!M621 -> 0
Z52: 無動力船隻数 | AD52: 船外機付漁船隻数 | AH52: 隻 数 | AK52: 総 ト ン 数 | BR52: 高等専門学校 | CA52: =データ一覧!M622 -> 0 | CD52: =データ一覧!M623 -> 0 | CG52: =データ一覧!M624 -> 0 | CK52: =データ一覧!M625 -> 0 | CO52: =データ一覧!M626 -> 0 | CS52: =データ一覧!M627 -> 0 | CW52: =データ一覧!M628 -> 0
H53: 総 数 | N53: 民 営 | T53: 国 ･ 地方公共団体 | AC53: 隻 | AG53: 隻 | AJ53: 隻 | AM53: t | AO53: １２ 交 通 ・ 通 信 | BR53: 特別支援学校 | CA53: =データ一覧!M630 -> 0 | CD53: =データ一覧!M631 -> 0 | CG53: =+データ一覧!M632 -> 0 | CK53: =+データ一覧!M633 -> 0 | CO53: =+データ一覧!M634 -> 0 | CS53: =+データ一覧!M635 -> 0 | CW53: =+データ一覧!M636 -> 0
A54: 区 分 | H54: 事業所数 | K54: 従業者数 | N54: 事業所数 | Q54: 従業者数 | T54: 事業所数 | W54: 従業者数 | Z54: =データ一覧!$M$290 -> 0 | AD54: =データ一覧!$M$291 -> 28 | AH54: =データ一覧!M292 -> 13 | AK54: =データ一覧!M293 -> 20.82 | BR54: 幼稚園 | CA54: =データ一覧!M638 -> 0 | CD54: =データ一覧!M639 -> 0 | CG54: =データ一覧!M640 -> 0 | CK54: =データ一覧!M641 -> 0 | CO54: =データ一覧!M642 -> 0 | CS54: =データ一覧!M643 -> 0 | CW54: =データ一覧!M644 -> 0
K55: 人 | Q55: 人 | W55: 人 | Z55: 男女別就業者数 | AH55: =データ一覧!$A$294 -> 30.11.1 | AO55: 道 路 | AS55: 実 延 長 | AW55: 国 道 | BA55: 県 道 | BE55: 市町道 | BI55: 鉄 道 営 業 キ ロ 数 | BR55: 幼保連携認定こども園 | CA55: =データ一覧!M646 -> 12 | CD55: =データ一覧!M647 -> 0 | CG55: =データ一覧!M648 -> 207 | CK55: =データ一覧!M649 -> 7 | CO55: =データ一覧!M650 -> 910 | CS55: =データ一覧!M651 -> 463 | CW55: =データ一覧!M652 -> 447
A56: 総数 | H56: =データ一覧!M95 -> … | K56: =データ一覧!M152 -> … | N56: =データ一覧!M96 -> 1282 | Q56: =データ一覧!M153 -> 13756 | T56: =データ一覧!M97 -> … | W56: =データ一覧!M154 -> … | Z56: 総 数 | AF56: 男 | AJ56: 女 | AO56: =データ一覧!$A$421 -> 30.4.1 | AS56: =データ一覧!M421 -> 414.085 | AV56: ㎞ | AW56: =データ一覧!M422 -> 11.2 | AZ56: ㎞ | BA56: =データ一覧!M423 -> 70.9 | BD56: ㎞ | BE56: =データ一覧!M424 -> 331.985 | BH56: km | BI56: =データ一覧!$A$425 -> 31.4.1 | BM56: =データ一覧!M425 -> 14.772 | BP56: ㎞ | BR56: 各種学校 | CA56: =データ一覧!M654 -> - | CD56: =データ一覧!M655 -> 0 | CG56: =データ一覧!M656 -> - | CK56: =データ一覧!M657 -> 0 | CO56: =データ一覧!M658 -> - | CS56: =データ一覧!M659 -> - | CW56: =データ一覧!M660 -> -
A57: 農林漁業 | H57: =データ一覧!M98 -> … | K57: =データ一覧!M155 -> … | N57: =データ一覧!M99 -> 24 | Q57: =データ一覧!M156 -> 285 | T57: =データ一覧!M100 -> … | W57: =データ一覧!M157 -> … | AE57: 人 | AH57: 人 | AM57: 人 | AO57: 自 動 車 | AX57: 乗用車 | BR57: 専修学校 | CA57: =データ一覧!M662 -> 0 | CD57: =データ一覧!M663 -> 0 | CG57: =データ一覧!M664 -> 0 | CK57: =データ一覧!M665 -> 0 | CO57: =データ一覧!M666 -> 0 | CS57: =データ一覧!M667 -> 0 | CW57: =データ一覧!M668 -> 0
A58: 鉱業 | H58: =データ一覧!M101 -> … | K58: =データ一覧!M158 -> … | N58: =データ一覧!M102 -> 1 | Q58: =データ一覧!M159 -> 4 | T58: =データ一覧!M103 -> … | W58: =データ一覧!M160 -> … | Z58: =SUM(AF58,AJ58) -> 42 | AF58: =データ一覧!$M$295 -> 41 | AJ58: =データ一覧!M296 -> 1 | AO58: 台 数 | AS58: 貨 物 | AW58: 普 通 | BA58: 小 型 | BE58: 乗 合 | BH58: 特 種 | BK58: 小型二輪 | BN58: 軽自動車 | BQ58: １８ 衛 生
A59: 建設業 | H59: =データ一覧!M104 -> … | K59: =データ一覧!M161 -> … | N59: =データ一覧!M105 -> 142 | Q59: =データ一覧!M162 -> 686 | T59: =データ一覧!M106 -> … | W59: =データ一覧!M163 -> … | Z59: 海 面 漁 業 漁 獲 量 （属人） | AH59: =データ一覧!$A$297 -> 29年中 | AO59: =データ一覧!$A$426 -> 31.3.31 | AT59: =データ一覧!M426 -> 1411 | AX59: =データ一覧!M428 -> 5399 | BB59: =データ一覧!M429 -> 6241 | BE59: =データ一覧!M427 -> 123 | BH59: =データ一覧!M430 -> 479 | BK59: =データ一覧!M431 -> 271 | BN59: =データ一覧!M432 -> 11470
A60: 製造業 | H60: =データ一覧!M107 -> … | K60: =データ一覧!M164 -> … | N60: =データ一覧!M108 -> 166 | Q60: =データ一覧!M165 -> 4684 | T60: =データ一覧!M109 -> … | W60: =データ一覧!M166 -> … | AF60: ｔ | AM60: t | AV60: 郵便局数 | BB60: =データ一覧!$A$433 -> 31.3.31 | BI60: 一般加入 | BM60: ＩＮＳネット | BU60: 医療関係施設 | CA60: =データ一覧!$A$669 -> 30.10.1 | CH60: および医療関係者数 | CP60: =データ一覧!$A$674 -> 30.12.31
A61: 電気・ｶﾞ ｽ・熱供給・水道業 | H61: =データ一覧!M110 -> … | K61: =データ一覧!M167 -> … | N61: =データ一覧!M111 -> 0 | Q61: =データ一覧!M168 -> 0 | T61: =データ一覧!M112 -> … | W61: =データ一覧!M169 -> … | Z61: 総 数 | AD61: =データ一覧!M297 -> 7 | AG61: 藻 類 | AK61: =データ一覧!M300 -> 0 | AO61: 通 信 | AS61: 総 数 | AY61: 郵 便 局 | BD61: 簡 易 局 | BI61: 電話数 | BM61: 加入数 | BX61: 病 | CA61: 院 | CI61: 一般診療所 | CU61: 歯科診療所
A62: 情報通信業 | H62: =データ一覧!M113 -> … | K62: =データ一覧!M170 -> … | N62: =データ一覧!M114 -> 2 | Q62: =データ一覧!M171 -> 10 | T62: =データ一覧!M115 -> … | W62: =データ一覧!M172 -> … | Z62: 魚 類 | AD62: =データ一覧!M298 -> 5 | AG62: そ の 他 | AK62: =データ一覧!M301 -> 1 | AO62: =データ一覧!$A$436 -> 31.3.31 | AS62: =データ一覧!M433 -> 9 | AY62: =データ一覧!M434 -> 7 | BD62: =データ一覧!M435 -> 2 | BI62: =データ一覧!M436 -> 2755 | BM62: =データ一覧!M437 -> 521 | BR62: 医療関係 | CD62: 一般病院 | CP62: 有 | CS62: 床
A63: 運輸業、郵便業 | H63: =データ一覧!M116 -> … | K63: =データ一覧!M173 -> … | N63: =データ一覧!M117 -> 32 | Q63: =データ一覧!M174 -> 1199 | T63: =データ一覧!M118 -> … | W63: =データ一覧!M175 -> … | Z63: 貝 類 | AD63: =データ一覧!M299 -> 1 | BR63: 施設数 | BY63: =データ一覧!M669 -> 3 | CE63: =データ一覧!M670 -> 3 | CK63: =データ一覧!M671 -> 15 | CQ63: =データ一覧!M672 -> 0 | CW63: =データ一覧!M673 -> 9
A64: 卸売業、小売業 | H64: =データ一覧!M119 -> … | K64: =データ一覧!M176 -> … | N64: =データ一覧!M120 -> 291 | Q64: =データ一覧!M177 -> 1655 | T64: =データ一覧!M121 -> … | W64: =データ一覧!M178 -> … | AO64: １３ 税 ・ 財 政 | BX64: 医師 | CC64: 歯科医師 | CH64: 薬剤師 | CM64: 保健師 | CR64: 助産師 | CW64: 看護師
A65: 金融業、保険業 | H65: =データ一覧!M122 -> … | K65: =データ一覧!M179 -> … | N65: =データ一覧!M123 -> 15 | Q65: =データ一覧!M180 -> 143 | T65: =データ一覧!M124 -> … | W65: =データ一覧!M181 -> … | Z65: ７ 商 業 | AG65: =データ一覧!$A$302 -> 28.6.1(平成27年実績） | BR65: 医療 | CA65: 人 | CF65: 人 | CK65: 人 | CP65: 人 | CU65: 人 | CZ65: 人
A66: 不動産業、物品賃貸業 | H66: =データ一覧!M125 -> … | K66: =データ一覧!M182 -> … | N66: =データ一覧!M126 -> 19 | Q66: =データ一覧!M183 -> 37 | T66: =データ一覧!M127 -> … | W66: =データ一覧!M184 -> … | AS66: 歳入 | BB66: (千円） | BG66: 歳出 | BP66: (千円） | BR66: 関係者 | BW66: =データ一覧!M674 -> 39 | CB66: =データ一覧!M675 -> 16 | CG66: =データ一覧!M676 -> 52 | CL66: =データ一覧!M677 -> 22 | CQ66: =データ一覧!M678 -> 3 | CV66: =データ一覧!M679 -> 312
A67: 学術研究、専門・技術ｻｰﾋﾞｽ業 | H67: =データ一覧!M128 -> … | K67: =データ一覧!M185 -> … | N67: =データ一覧!M129 -> 33 | Q67: =データ一覧!M186 -> 116 | T67: =データ一覧!M130 -> … | W67: =データ一覧!M187 -> … | Z67: 産 業 分 類 | AD67: 商 店 数 | AG67: 従 業 者 数 | AJ67: 年 間 販 売 額 | AO67: 一人当たり歳入歳出予算決算額 | BZ67: 死因別死亡数 | CP67: =データ一覧!$A$680 -> 30年中 | CY67: 単 位：人
A68: 宿泊業、飲食サービス業 | H68: =データ一覧!M131 -> … | K68: =データ一覧!M188 -> … | N68: =データ一覧!M132 -> 202 | Q68: =データ一覧!M189 -> 1686 | T68: =データ一覧!M133 -> … | W68: =データ一覧!M190 -> … | AE68: 店 | AI68: 人 | AK68: 百万円 | AO68: 区分 | AS68: =データ一覧!$A$446 -> 元年度 | AX68: =データ一覧!$A$460 -> 30年度 | BC68: 区分 | BG68: =+AS68 -> 元年度 | BL68: =データ一覧!$A$460 -> 30年度 | BQ68: 死 因 | CC68: 悪 性 | CF68: 高血圧 | CL68: 脳血管 | CU68: 不慮の事故
A69: 生活関連サービス業、娯楽業 | H69: =データ一覧!M134 -> … | K69: =データ一覧!M191 -> … | N69: =データ一覧!M135 -> 127 | Q69: =データ一覧!M192 -> 564 | T69: =データ一覧!M136 -> … | W69: =データ一覧!M193 -> … | Z69: 総 計 | AD69: =データ一覧!M302 -> 253 | AG69: =データ一覧!M311 -> 1390 | AJ69: =データ一覧!M320 -> 24938 | AS69: =データ一覧!M442 -> 531787.4678 | AX69: =データ一覧!M443 -> 551464.3472 | BG69: =データ一覧!M444 -> 531787.4678 | BL69: =データ一覧!M445 -> 528180.5954 | BV69: 全 死 因 | BZ69: 結 核 | CC69: 新生物 | CF69: 性疾患 | CI69: 心疾患 | CL69: 疾 患 | CO69: 肺 炎 | CR69: 老 衰 | CX69: 交通事故
A70: 教育、学習支援業 | H70: =データ一覧!M137 -> … | K70: =データ一覧!M194 -> … | N70: =データ一覧!M138 -> 32 | Q70: =データ一覧!M195 -> 205 | T70: =データ一覧!M139 -> … | W70: =データ一覧!M196 -> … | Z70: 卸売業 | AD70: =データ一覧!M303 -> 32 | AG70: =データ一覧!M312 -> 232 | AJ70: =データ一覧!M321 -> 8458 | AO70: 項目別歳入歳出予算決算額
A71: 医療、福祉 | H71: =データ一覧!M140 -> … | K71: =データ一覧!M197 -> … | N71: =データ一覧!M141 -> 81 | Q71: =データ一覧!M198 -> 1484 | T71: =データ一覧!M142 -> … | W71: =データ一覧!M199 -> … | Z71: 小売業 | AD71: =データ一覧!M304 -> 221 | AG71: =データ一覧!M313 -> 1158 | AJ71: =データ一覧!M322 -> 16481 | AO71: 区分 | AS71: =データ一覧!$A$446 -> 元年度 | AX71: =データ一覧!$A$460 -> 30年度 | BC71: 区分 | BG71: =+AS71 -> 元年度 | BL71: =データ一覧!$A$460 -> 30年度 | BV71: =データ一覧!M680 -> 367 | BZ71: － | CA71: =データ一覧!M681 -> 0 | CC71: =データ一覧!M682 -> 102 | CG71: =データ一覧!M683 -> 0 | CI71: =データ一覧!M684 -> 57 | CL71: =データ一覧!M685 -> 30 | CO71: =データ一覧!M686 -> 43 | CR71: =データ一覧!M687 -> 14 | CU71: =データ一覧!M688 -> 17 | CX71: =データ一覧!M689 -> 0
A72: 複合サービス事業 | H72: =データ一覧!M143 -> … | K72: =データ一覧!M200 -> … | N72: =データ一覧!M144 -> 13 | Q72: =データ一覧!M201 -> 128 | T72: =データ一覧!M145 -> … | W72: =データ一覧!M202 -> … | Z72: 各種商品 | AD72: =データ一覧!M305 -> 0 | AG72: =データ一覧!M314 -> 0 | AJ72: =データ一覧!M323 -> 0 | AO72: 総額 | AS72: =SUM(AS73:AW85) -> 14665103 | AX72: =SUM(AX73:BB85) -> 15374826 | BC72: 総額 | BG72: =SUM(BG73:BK85) -> 14665103 | BL72: =SUM(BL73:BP85) -> 14725675 | BQ72: １９ 警 察 ・ 消 防 | CG72: =+データ一覧!$A690 -> 31.4.1
A73: サービス業 | H73: =データ一覧!M146 -> … | K73: =データ一覧!M203 -> … | N73: =データ一覧!M147 -> 102 | Q73: =データ一覧!M204 -> 870 | T73: =データ一覧!M148 -> … | W73: =データ一覧!M205 -> … | Z73: 織物・衣服・身の回り品 | AD73: =データ一覧!M306 -> 23 | AG73: =データ一覧!M315 -> 78 | AJ73: =データ一覧!M324 -> 764 | AO73: 地方税 | AS73: =データ一覧!M447 -> 4706859 | AX73: =データ一覧!M461 -> 4840128 | BC73: 議会費 | BG73: =データ一覧!M475 -> 165316 | BL73: =データ一覧!M489 -> 166652
A74: 公務 | H74: =データ一覧!M149 -> … | K74: =データ一覧!M206 -> … | N74: =データ一覧!M150 -> … | Q74: =データ一覧!M207 -> … | T74: =データ一覧!M151 -> … | W74: =データ一覧!M208 -> … | Z74: 飲食料品 | AD74: =データ一覧!M307 -> 89 | AG74: =データ一覧!M316 -> 525 | AJ74: =データ一覧!M325 -> 6676 | AO74: 地方譲与税 | AS74: =データ一覧!M448 -> 115000 | AX74: =データ一覧!M462 -> 120577 | BC74: 総務費 | BG74: =データ一覧!M476 -> 1351956 | BL74: =データ一覧!M490 -> 1559629 | CA74: 交番・駐在所 | CJ74: 刑法犯認知件数 | CS74: 交通事故発生件数
A75: ４ 農 業 | Z75: 機械器具 | AD75: =データ一覧!M308 -> 31 | AG75: =データ一覧!M317 -> 122 | AJ75: =データ一覧!M326 -> 1820 | AO75: 各種交付金 | AS75: =データ一覧!M449 -> 639700 | AX75: =データ一覧!M463 -> 668239 | BC75: 民生費 | BG75: =データ一覧!M477 -> 4762243 | BL75: =データ一覧!M491 -> 4650272 | BR75: 警察署数 | CA75: 検問所数 | CK75: （27年中） | CT75: （27年中）
Z76: その他 | AD76: =データ一覧!M309 -> 75 | AG76: =データ一覧!M318 -> 391 | AJ76: =データ一覧!M327 -> x | AO76: 地方特例交付金 | AS76: =データ一覧!M450 -> 10000 | AX76: =データ一覧!M464 -> 12887 | BC76: 衛生費 | BG76: =データ一覧!M478 -> 784821 | BL76: =データ一覧!M492 -> 758730 | CO76: 件 | CX76: 件
C77: 農家人口と世帯員数(販売農家) | K77: 農家世帯の就業状態（販売農家） | Z77: 無店舗 | AD77: =データ一覧!M310 -> 3 | AG77: =データ一覧!M319 -> 42 | AJ77: =データ一覧!M328 -> x | AO77: 地方交付税 | AS77: =データ一覧!M451 -> 2830000 | AX77: =データ一覧!M465 -> 3133393 | BC77: 労働費 | BG77: =データ一覧!M479 -> 52221 | BL77: =データ一覧!M493 -> 52893 | BS77: =データ一覧!M690 -> 1 | CB77: =データ一覧!M691 -> 7 | CK77: =データ一覧!M692 -> 98 | CT77: =データ一覧!M693 -> 50
A78: 農 | B78: 平 | K78: 農業従事者 | T78: 非農業従事 | W78: 農業従事者 | AO78: 分担金および負担金 | AS78: =データ一覧!M452 -> 136335 | AX78: =データ一覧!M466 -> 282560 | BC78: 農林水産業費 | BG78: =データ一覧!M480 -> 1399021 | BL78: =データ一覧!M494 -> 772630 | BQ78: 火災発生件数 | CA78: 林野焼損 | CF78: 損 害 | CK78: 消 防 自 | CO78: その他の
A79: 家 | B79: =+LEFT(データ一覧!$A$209,2) -> 27 | C79: 区分 | E79: 農家人口 | H79: 15歳以上の | N79: 農業就業人口 | T79: 者 | W79: の平均年齢 | Z79: ８ 住 宅 | AO79: 使用料および手数料 | AS79: =データ一覧!M453 -> 187152 | AX79: =データ一覧!M467 -> 206910 | BC79: 商工費 | BG79: =データ一覧!M481 -> 403973 | BL79: =データ一覧!M495 -> 639462 | BQ79: =+データ一覧!$A$694 -> 30年中 | BV79: 焼損棟数 | CA79: 面 積 | CF79: 見 積 額 | CK79: 動 車 数 | CO79: ﾎﾟﾝﾌﾟ数 | CS79: 消防吏員 | CW79: 消防団員
A80: 人就 | B80: ・ | H80: 世帯員数 | Q80: 基幹的農業 | AO80: 国庫支出金 | AS80: =データ一覧!M454 -> 1715339 | AX80: =データ一覧!M468 -> 1955661 | BC80: 土木費 | BG80: =データ一覧!M482 -> 2153509 | BL80: =データ一覧!M496 -> 2126792 | BQ80: 件 | BW80: 棟 | CD80: ａ | CH80: 千円 | CU80: 人 | CY80: 人
A81: 口業 | B81: =+MID(データ一覧!$A$209,4,1) -> 2 | G81: 人 | J81: 人 | M81: 人 | P81: 人 | Q81: 従事者 | S81: 人 | V81: 人 | Y81: 歳 | Z81: =+データ一覧!$A$329 -> 29年 | AE81: =データ一覧!$A$332 -> 30年 | AF81: 中の増減 | AJ81: =+データ一覧!$A$332 -> 30年 | AO81: 県支出金 | AS81: =データ一覧!M455 -> 1269972 | AX81: =データ一覧!M469 -> 1412911 | BC81: 消防費 | BG81: =データ一覧!M483 -> 534454 | BL81: =データ一覧!M497 -> 549671 | BR81: =データ一覧!M694 -> 9 | BW81: =データ一覧!M695 -> 6 | CB81: =データ一覧!M696 -> 0 | CF81: =データ一覧!M697 -> 394651 | CL81: =データ一覧!M698 -> 16 | CP81: =データ一覧!M699 -> 5 | CT81: =データ一覧!M700 -> 46 | CX81: =データ一覧!M701 -> 250
A82: と状 | B82: ・ | C82: 総数 | E82: =データ一覧!M209 -> 2922 | H82: =データ一覧!M212 -> 2633 | K82: =データ一覧!M215 -> 1826 | N82: =データ一覧!M218 -> 834 | Q82: =データ一覧!M221 -> 671 | T82: =データ一覧!M224 -> 807 | W82: =データ一覧!M227 -> 58.8 | AD82: 建設した住宅 | AG82: 消失した住宅 | AO82: 財産収入 | AS82: =データ一覧!M456 -> 40340 | AX82: =データ一覧!M470 -> 77707 | BC82: 教育費 | BG82: =データ一覧!M484 -> 1530847 | BL82: =データ一覧!M498 -> 1935202 | BQ82: ２０ そ の 他
A83: 況 | B83: =+RIGHT(データ一覧!$A$209,1) -> 1 | C83: 男 | E83: =データ一覧!M210 -> 1426 | H83: =データ一覧!M213 -> 1282 | K83: =データ一覧!M216 -> 1026 | N83: =データ一覧!M219 -> 454 | Q83: =データ一覧!M222 -> 408 | T83: =データ一覧!M225 -> 256 | W83: =データ一覧!M228 -> 57.3 | AO83: 繰入金 | AS83: =データ一覧!M457 -> 702738 | AX83: =データ一覧!M471 -> 603359 | BC83: 災害復旧費 | BG83: =データ一覧!M485 -> 1300 | BL83: =データ一覧!M499 -> 32340
C84: 女 | E84: =データ一覧!M211 -> 1496 | H84: =データ一覧!M214 -> 1351 | K84: =データ一覧!M217 -> 800 | N84: =データ一覧!M220 -> 380 | Q84: =データ一覧!M223 -> 263 | T84: =データ一覧!M226 -> 551 | W84: =データ一覧!M229 -> 60.6 | Z84: 281,432 戸 | AA84: =データ一覧!M329 -> 12996 | AC84: 戸 | AD84: =データ一覧!M330 -> 106 | AF84: 戸 | AG84: =データ一覧!M331 -> 107 | AI84: 戸 | AK84: =データ一覧!M332 -> 12995 | AM84: 戸 | AO84: 地方債 | AS84: =データ一覧!M458 -> 1715500 | AX84: =データ一覧!M472 -> 1197272 | BC84: 公債費 | BG84: =データ一覧!M486 -> 1513904 | BL84: =データ一覧!M500 -> 1481402 | BV84: あわら温泉、芦湯、屋台村、藤野厳九郎記念館、越前加賀海岸国定公園、北潟湖畔公園、夢ぐるま公園、刈安山森林自然公園、金津創作の森美術館、あわら市郷土歴史資料館、桑野遺跡出土品、吉崎御坊跡、県境の館、横山古墳群、椚古墳（石室）、千束一里塚、本荘春日神社本殿、紙本著色法然上人図像（福円寺）絹本著色梅山聞本禅師像（龍澤寺）、絹本著色龍澤寺三祖像（龍澤寺）木造執金剛神像（安楽寺）、石造狛犬（永正十二年銘）、どっしゃどっしゃ、多賀谷左近の墓
AO85: その他 | AS85: =データ一覧!M459 -> 596168 | AX85: =データ一覧!M473 -> 863222 | BC85: その他 | BG85: =データ一覧!M487 -> 11538 | BL85: =データ一覧!M501 -> 0 | BQ85: 名所・旧跡
C86: 総農家数等 | J86: 専兼業別（販売農家） | R86: 経営面積規模別（販売農家） | BQ86: 文化財等
B87: 平 | C87: 区 分 | G87: 戸数（戸） | J87: 区 分 | O87: 戸数（戸） | R87: 区 分 | W87: 戸数（戸） | Z87: ９ 議 員 ・ 職 員 | AO87: １４ 文 化 | AY87: ( | AZ87: =データ一覧!$A$508 -> 31.3.31 | BD87: ただし図書館・公民館・児童館 | BL87: =データ一覧!$A$502 -> 31.4.1
A88: 農 | B88: =+LEFT(データ一覧!$A$230,2) -> 27 | C88: 総農家 | G88: =データ一覧!M230 -> 956 | J88: 総数 | O88: =データ一覧!M236 -> 689 | R88: 総数 | W88: =データ一覧!M241 -> 689 | BE88: 宗教法人数 | BL88: =データ一覧!$A$510 -> 30.12.31 | BP88: ） | BQ88: 特産物 | BV88: メロン、とみつ金時（サツマイモ）、越廼ルビー、越前柿、芦原梨、スイカ、剱岳そば
A89: 家 | B89: ・ | C89: 販売農家 | G89: =データ一覧!M231 -> 689 | J89: 専業農家 | O89: =データ一覧!M237 -> 87 | R89: 0.5 ha 未満 | W89: =データ一覧!M242 -> 91 | Z89: 市 町 村 議 会 | AC89: 有権者数 | AE89: =データ一覧!$A$336 -> 元.9.1 | AG89: 市 町 村 議 会 | AJ89: 職 員 数 | AT89: 図書館 | AZ89: 公 民 館 | BK89: 社会教育学級講座
A90: 数 | B90: =+MID(データ一覧!$A$230,4,1) -> 2 | D90: 主業 | G90: =データ一覧!M232 -> 73 | J90: 兼業農家 | O90: =データ一覧!M238 -> 602 | R90: 0.5 ha ～ 1.0 ha | W90: =データ一覧!M243 -> 158 | Z90: 議 員 定 数 | AC90: 男 | AE90: 女 | AG90: 選 挙 投 票 率 | AJ90: 総 数 | AL90: 一般行政職 | AO90: 公 共 | AS90: 館 数 | AV90: 図書数 | AY90: 本 館 | BB90: 分 館 | BE90: 公 園 | BH90: 児童館 | BK90: 学級講座数 | BN90: 受講者数 | BV90: 芦原温泉春まつり、蓮如忌、あわら市トリムマラソン、あわら北潟湖畔花菖蒲まつり、 金津祭、あわら湯かけまつり、あわらカップカヌーポロ大会、あわら観月の夕べ、 越前・加賀県境綱引き、あわら灯源郷、剱岳かりんて祭
B91: ・ | D91: 準主業 | G91: =データ一覧!M233 -> 132 | K91: 第１種兼業 | O91: =データ一覧!M239 -> 94 | R91: 1.0 ha ～ 1.5 ha | W91: =データ一覧!M244 -> 160 | AB91: 人 | AD91: 人 | AF91: 人 | AI91: ％ | AK91: 人 | AM91: 人 | AO91: 施 設 数 | AT91: =データ一覧!M502 -> 2 | AV91: =データ一覧!M503 -> 160205 | AZ91: =データ一覧!M504 -> 9 | BB91: =データ一覧!M505 -> 0 | BE91: =データ一覧!M506 -> 24 | BH91: =データ一覧!M507 -> - | BK91: =データ一覧!M508 -> 728 | BN91: =データ一覧!M509 -> 7718 | BQ91: 年中行事
B92: =+RIGHT(データ一覧!$A$230,1) -> 1 | D92: 副業的 | G92: =データ一覧!M234 -> 484 | K92: 第２種兼業 | O92: =データ一覧!M240 -> 508 | R92: 1.5 ha ～ 2.0 ha | W92: =データ一覧!M245 -> 118 | AA92: =データ一覧!M333 -> 18 | AC92: =データ一覧!M336 -> 11241 | AE92: =データ一覧!M337 -> 12676 | AG92: =データ一覧!M335 -> 69.05 | AJ92: =データ一覧!M338 -> 284 | AL92: =データ一覧!M339 -> 197 | AO92: 宗 教 | AS92: 仏教系 | AV92: ｷﾘｽﾄ教系 | AY92: 神道諸派 | BB92: 公会堂・市民会館 | BH92: テレビ | BK92: 衛星放送契約数
C93: 自給的農家 | G93: =データ一覧!M235 -> 267 | R93: 2.0 ha 以上 | W93: =データ一覧!M246 -> 161 | AG93: =データ一覧!M334 -> 29.6.18 | AO93: 法 人 数 | AS93: =データ一覧!M510 -> 64 | AV93: =データ一覧!M511 -> 2 | AY93: =データ一覧!M512 -> 95 | BB93: =データ一覧!M513 -> 1 | BH93: 等 | BK93: =データ一覧!M514 -> 6775

Sheet 越前市
A1: =+データ一覧!N5 -> 0
A2: =+データ一覧!N8 -> 0
AC4: 【市章とそのいわれ】 | AD4: 越前（ECHIZEN）市の頭文字である「Ｅ」をモチーフに | AO4: 【位置および地勢】越前市は、福井県のほぼ中央に位置し、市の中央を北陸自動車道と | BT4: 所在地 | CB4: 〒915-8530
AD5: デザイン化しています。 | AP5: 国道８号が縦断し、関西・中央圏などの主要都市や福井市・敦賀市など周辺都市との | CB5: 越前市府中一丁目１３番７号
A6: =+データ一覧!N6 -> えちぜんし | AD6: ３つの太く流れるようなラインは、かつて越前の国府が | AP6: 交通の動脈となっている。
A7: =データ一覧!N9 -> 越前市 | AD7: 置かれて以来連綿と積み重ねられてきた歴史、伝統、 | AP7: また、両路線に交差するように国道417号や県道、主要地方道が横断している。 | BT7: 電話番号 | CB7: （０７７８）２２－３０００
AD8: 文化そして豊かな自然を、また、越前市の将来像である | AP8: 地形は、東部の越前中央山脈、西部の丹生山地、南部の「越前冨士」と呼ばれる
AD9: 「交流拠点都市」、「生活快適都市」、「伝統文化都市」 | AP9: 日野山など、４００～７００メートル級の山々に囲まれ、武生盆地を作っている。
AD10: を表現している。 | AP10: 武生盆地の中央を、県内三大河川のひとつ日野川が南北に貫流し、九頭竜川と名を | BT10: 最寄駅および距離 | CB10: ＪＲ北陸本線武生駅 下車１００ｍ
AP11: 変えて日本海に注いでいる。旧今立町内に流れる五つの川は、鞍谷川に合流した後、
Z12: 【市が掲げる標語】 環境・文化創造都市 | AP12: 福井市内で日野川に合流している。
BT13: ホームページ | CB13: http://www.city.echizen.lg.jp/
A15: １ 土 地 | Z15: =データ一覧!$A$261 -> 30年 | AA15: 産米収穫量 | AD15: 収 穫 量 | AG15: 作 付 面 積 | AJ15: 10a当たり収量 | BQ15: １５ 労 働 | CF15: 27.10.1
AD16: =データ一覧!$N$261 -> 13400 | AF16: t | AG16: =データ一覧!$N$262 -> 2500 | AI16: ha | AJ16: =データ一覧!N263 -> 535 | AM16: kg | AO16: １０ 工 業 | BC16: =データ一覧!$A$340 -> 30.6.1（平成29年実績）
A17: 総 面 積 | K17: 固 定 資 産 概 要 調 書 に よ る 地 目 別 面 積 | AC17: 総 数 | AG17: うち 田 | AK17: うち 畑 | BX17: 産業別就業者数
C18: =データ一覧!$A$10 -> 元.10.1 | Q18: =データ一覧!$A$12 -> 31.1.1 | Z18: 耕 地 面 積 | AD18: ha | AG18: ha | AK18: ha | AP18: 産業分類 | AX18: 事業所数 | BC18: 従業者数 | BI18: 年間製造品出荷額等 | BR18: 区 分 | BW18: 総 数 | CB18: 男 | CF18: 女 | CJ18: 区 分 | CO18: 総 数 | CT18: 男 | CX18: 女
G19: ㎢ | K19: 総 数 | P19: う ち 田 | U19: う ち 畑 | Z19: =データ一覧!$A$247 -> 30.7.15 | AC19: =データ一覧!$N$247 -> 3650 | AF19: =データ一覧!$N$248 -> 3470 | AJ19: =データ一覧!$N$249 -> 181 | BA19: 事業所 | BC19: 人 | BF19: 人 | BH19: 万円 | BO19: 万円 | BW19: 人 | CC19: 人 | CG19: 人 | CO19: 人 | CS19: 人 | CW19: 人
D20: =データ一覧!N10 -> 230.7 | O20: ha | T20: ha | Y20: ha | Z20: 農 業 生 産 物 | AD20: 作 付 面 積 | AG20: 収 穫 量 | AJ20: 10a当たり収量 | AP20: 総数 | AY20: =データ一覧!N340 -> 295 | BC20: =+データ一覧!N365 -> 16562 | BJ20: =データ一覧!N390 -> 61390340 | BQ20: 総 数 | BW20: =CA20+CE20 -> 41593 | CA20: =データ一覧!N515 -> 22823 | CE20: =データ一覧!N540 -> 18770
L21: =データ一覧!N12 -> 13143.1 | Q21: =データ一覧!N13 -> 3733.2 | V21: =データ一覧!N14 -> 335.5 | Z21: =データ一覧!$A$264 -> 30年中 | AD21: ha | AG21: t | AJ21: kg | AO21: 食料品 | AP21: 食料品 | AY21: =データ一覧!N341 -> 29 | BC21: =+データ一覧!N366 -> 884 | BJ21: =データ一覧!N391 -> 1453049 | CJ21: 卸売業,小売業 | CO21: =CS21+CW21 -> 6078 | CS21: =データ一覧!N528 -> 2788 | CW21: =データ一覧!N553 -> 3290
A22: 町 ･ 丁 ･ 大 字 | K22: う ち 宅 地 | P22: う ち 山 林 | U22: う ち 原 野 | Z22: 水 稲 | AD22: =データ一覧!N264 -> 2500 | AG22: =データ一覧!N265 -> 13400 | AJ22: =データ一覧!N266 -> 535 | AO22: 飲料・飼料 | AP22: 飲料・飼料 | AY22: =データ一覧!N342 -> 1 | BC22: =+データ一覧!N367 -> 6 | BJ22: =データ一覧!N392 -> x | BQ22: 第１次産業 | BW22: =CA22+CE22 -> 1153 | CA22: =データ一覧!N516 -> 821 | CE22: =データ一覧!N541 -> 332 | CJ22: 金融業,保険業 | CO22: =CS22+CW22 -> 758 | CS22: =データ一覧!N529 -> 315 | CW22: =データ一覧!N554 -> 443
A23: 区 画 数 | H23: =データ一覧!N11 -> 253 | O23: ha | T23: ha | Y23: ha | Z23: 六 条 大 麦 | AD23: =データ一覧!N267 -> 250 | AG23: =データ一覧!N268 -> 286 | AJ23: =データ一覧!N269 -> 114 | AO23: 繊維 | AP23: 繊維 | AY23: =データ一覧!N343 -> 68 | BC23: =+データ一覧!N368 -> 1627 | BJ23: =データ一覧!N393 -> 2502984 | BR23: 農業 | BW23: =CA23+CE23 -> 1097 | CA23: =データ一覧!N517 -> 769 | CE23: =データ一覧!N542 -> 328 | CJ23: 不動産業 | CO23: 307 | CS23: =データ一覧!N530 -> 155 | CW23: =データ一覧!N555 -> 152
A24: =データ一覧!$A$11 -> 31.4.1 | L24: =データ一覧!N15 -> 1910.6 | Q24: =データ一覧!N16 -> 4838 | V24: =データ一覧!N17 -> 111.4 | Z24: 大 豆 | AD24: =データ一覧!N270 -> 68 | AG24: =データ一覧!N271 -> 64 | AJ24: =データ一覧!N272 -> 94 | AO24: 衣服 | AP24: 木材 | AY24: =データ一覧!N344 -> 12 | BC24: =+データ一覧!N369 -> 165 | BJ24: =データ一覧!N394 -> 264605 | BR24: 林業 | BW24: 48 | CA24: =データ一覧!N518 -> 45 | CE24: =データ一覧!N543 -> 3 | CJ24: 学術研究 | CO24: 897 | CS24: =データ一覧!N531 -> 554 | CW24: =データ一覧!N556 -> 343
A25: ２ 世 帯 数 と 人 口 | AB25: 区 分 | AD25: 乳 用 牛 | AF25: 肉 用 牛 | AH25: 豚 | AJ25: 採卵鶏 | AL25: ブロイラー | AO25: 木材 | AP25: 家具 | AY25: =データ一覧!N345 -> 5 | BC25: =+データ一覧!N370 -> 139 | BJ25: =データ一覧!N395 -> 301036 | BR25: 漁業 | BW25: 8 | CA25: =データ一覧!N519 -> 7 | CE25: =データ一覧!N544 -> 1 | CJ25: 宿泊業,飲食ｻｰﾋﾞｽ | CO25: 1711 | CS25: =データ一覧!N532 -> 619 | CW25: =データ一覧!N557 -> 1092
Z26: 畜 産 | AB26: 飼養農家 | AD26: =データ一覧!$N$251 -> - | AF26: =データ一覧!$N$253 -> x | AH26: =データ一覧!$N$255 -> 4 | AJ26: =データ一覧!$N$257 -> 4 | AL26: =データ一覧!$N$259 -> - | AO26: 家具 | AP26: パルプ・紙 | AY26: =データ一覧!N346 -> 42 | BC26: =+データ一覧!N371 -> 670 | BJ26: =データ一覧!N396 -> 1440589 | BQ26: 第２次産業 | BW26: 17417 | CA26: =データ一覧!N520 -> 11673 | CE26: =データ一覧!N545 -> 5744 | CJ26: 生活関連ｻｰﾋﾞｽ業 | CO26: 1214 | CS26: =データ一覧!N533 -> 435 | CW26: =データ一覧!N558 -> 779
I27: 人 口 | U27: １世帯当 | W27: 人 口 | Z27: =データ一覧!$A$251 -> 31.3.31 | AB27: （戸） | AO27: パルプ・紙 | AP27: 印刷 | AY27: =データ一覧!N347 -> 9 | BC27: =+データ一覧!N372 -> 110 | BJ27: =データ一覧!N397 -> 133322 | BR27: 鉱業，採石業 | BW27: 10 | CA27: =データ一覧!N521 -> 10 | CE27: =データ一覧!N546 -> 0 | CJ27: 教育,学習支援業 | CO27: 1642 | CS27: =データ一覧!N534 -> 640 | CW27: =データ一覧!N559 -> 1002
A28: 区 分 | F28: 世帯数 | I28: 総 数 | L28: 男 | O28: 女 | R28: 男／女 | U28: たり人員 | W28: 密 度 | AB28: 頭 羽 | AD28: =データ一覧!$N$252 -> - | AF28: =データ一覧!$N$254 -> 17 | AH28: =データ一覧!$N$256 -> 2178 | AJ28: =データ一覧!$N$258 -> 48638 | AL28: =データ一覧!$N$260 -> - | AO28: 出版・印刷 | AP28: 化学 | AY28: =データ一覧!N348 -> 5 | BC28: =+データ一覧!N373 -> 428 | BJ28: =データ一覧!N398 -> 2420895 | BR28: 建設業 | BW28: 3147 | CA28: =データ一覧!N522 -> 2623 | CE28: =データ一覧!N547 -> 524 | CJ28: 医療，福祉 | CO28: 4460 | CS28: =データ一覧!N535 -> 787 | CW28: =データ一覧!N560 -> 3673
F29: 世 帯 | I29: 人 | L29: 人 | O29: 人 | S29: ％ | U29: 人 | W29: 人/㎢ | AO29: 化学 | AP29: 石油・石炭 | AY29: =データ一覧!N349 -> 1 | BC29: =+データ一覧!N374 -> 5 | BJ29: =データ一覧!N399 -> x | BR29: 製造業 | BW29: 14260 | CA29: =データ一覧!N523 -> 9040 | CE29: =データ一覧!N548 -> 5220 | CJ29: 複合サービス事業 | CO29: 430 | CS29: =データ一覧!N536 -> 252 | CW29: =データ一覧!N561 -> 178
A30: =データ一覧!$A$25 -> 2.10.1 | F30: =データ一覧!N25 -> 22678 | I30: =+L30+O30 -> 84897 | L30: =データ一覧!N27 -> 41272 | O30: =データ一覧!N28 -> 43625 | S30: =+L30/O30*100 -> 94.60630372 | U30: =データ一覧!N30 -> 3.74 | W30: =データ一覧!N24 -> 0 | Z30: ５ 林 業 | AO30: 石油・石炭 | AP30: プラスチック | AY30: =データ一覧!N350 -> 27 | BC30: =+データ一覧!N375 -> 1133 | BJ30: =データ一覧!N400 -> 2893363 | BQ30: 第３次産業 | BW30: 22259 | CA30: =データ一覧!N524 -> 9904 | CE30: =データ一覧!N549 -> 12355 | CJ30: サービス業 | CO30: 1747 | CS30: =データ一覧!N537 -> 1109 | CW30: =データ一覧!N562 -> 638
A31: =データ一覧!$A$32 -> 7.10.1 | F31: =データ一覧!N32 -> 24233 | I31: =+L31+O31 -> 85533 | L31: =データ一覧!N34 -> 41641 | O31: =データ一覧!N35 -> 43892 | S31: 94.87150278 | U31: =データ一覧!N37 -> 3.53 | W31: =データ一覧!N31 -> 0 | AO31: プラスチック | AP31: ゴム | AY31: =データ一覧!N351 -> 1 | BC31: =+データ一覧!N376 -> 131 | BJ31: =データ一覧!N401 -> x | BR31: 電気･ｶﾞｽ･水道業 | BW31: 153 | CA31: =データ一覧!N525 -> 129 | CE31: =データ一覧!N550 -> 24 | CJ31: 公務 | CO31: 1100 | CS31: =データ一覧!N538 -> 719 | CW31: =データ一覧!N563 -> 381
A32: =データ一覧!$A$39 -> 12.10.1 | F32: =データ一覧!N39 -> 26461 | I32: =+L32+O32 -> 87699 | L32: =データ一覧!N41 -> 42858 | O32: =データ一覧!N42 -> 44841 | S32: 95.5777079 | U32: =データ一覧!N44 -> 3.31 | W32: =データ一覧!N38 -> 0 | Z32: 森 林 総 面 積 | AH32: =データ一覧!$A$273 -> 31.3.31 | AO32: ゴム | AP32: 皮革 | AY32: =データ一覧!N352 -> 0 | BC32: =+データ一覧!N377 -> 0 | BJ32: =データ一覧!N402 -> 0 | BR32: 情報通信業 | BW32: 367 | CA32: =データ一覧!N526 -> 262 | CE32: =データ一覧!N551 -> 105 | CI32: 分類不能の産業 | CO32: 764 | CS32: =データ一覧!N539 -> 425 | CW32: =データ一覧!N564 -> 339
A33: =+データ一覧!$A$46 -> 17.10.1 | F33: =データ一覧!N46 -> 27916 | I33: =+L33+O33 -> 87742 | L33: =データ一覧!N48 -> 42706 | O33: =データ一覧!N49 -> 45036 | S33: 94.82636113 | U33: =データ一覧!N51 -> 3.14 | W33: =データ一覧!N52 -> 380.2 | Z33: 森 林 の 構 成 | AO33: 皮革 | AP33: 窯業・土石 | AY33: =データ一覧!N353 -> 13 | BC33: =+データ一覧!N378 -> 460 | BJ33: =データ一覧!N403 -> 1214884 | BR33: 運輸業,郵便業 | BW33: =CA33+CE33 -> 1395 | CA33: =データ一覧!N527 -> 1140 | CE33: =データ一覧!N552 -> 255
A34: =+データ一覧!$A$53 -> 22.10.1 | F34: =+データ一覧!N53 -> 27601 | I34: =+L34+O34 -> 85614 | L34: =+データ一覧!N55 -> 41762 | O34: =+データ一覧!N56 -> 43852 | S34: 95.2339688 | U34: =+データ一覧!N58 -> 3.1 | W34: =+データ一覧!N59 -> 371 | AE34: ha | AL34: ha | AO34: 窯業・土石 | AP34: 鉄鋼 | AY34: =データ一覧!N354 -> 5 | BC34: =+データ一覧!N379 -> 106 | BJ34: =データ一覧!N404 -> 880895 | BQ34: １６ 社 会 福 祉 | CG34: =データ一覧!$A$565 -> 31.4.1
A35: =データ一覧!$A$60 -> 27.10.1 | F35: =データ一覧!N60 -> 27889 | I35: =データ一覧!N61 -> 81524 | L35: =データ一覧!N62 -> 39859 | O35: =データ一覧!N63 -> 41665 | S35: 95.66542662 | U35: =データ一覧!N65 -> 2.923159669 | W35: =データ一覧!N66 -> 353.4 | Z35: 総 数 | AD35: =データ一覧!N273 -> 14185.4 | AG35: 天然林 針葉樹 | AK35: =データ一覧!N276 -> 627.94 | AO35: 鉄鋼 | AP35: 非鉄金属 | AY35: =データ一覧!N355 -> 4 | BC35: =+データ一覧!N380 -> 296 | BJ35: =データ一覧!N405 -> 2673242
A36: =+データ一覧!$A$67 -> 元.10.1 | F36: =データ一覧!N67 -> 28906 | I36: =データ一覧!N76 -> 79889 | L36: =データ一覧!N77 -> 39216 | O36: =データ一覧!N78 -> 40673 | S36: =+L36/O36*100 -> 96.417771 | U36: =データ一覧!N68 -> 2.76 | W36: =データ一覧!N69 -> 346.2895535 | Z36: 人工林 針葉樹 | AD36: =データ一覧!N274 -> 7776.24 | AG36: 天然林 広葉樹 | AK36: =データ一覧!N277 -> 5465.63 | AO36: 非鉄金属 | AP36: 金属 | AY36: =データ一覧!N356 -> 24 | BC36: =+データ一覧!N381 -> 307 | BJ36: =データ一覧!N406 -> 746877 | BR36: 区分 | BY36: 施設数 | CD36: 収容定員 | CJ36: 区分 | CQ36: 施設数 | CV36: 収容定員
A37: 年 | C37: 区 | E37: 0歳 | H37: 15歳 | K37: 25歳 | N37: 35歳 | Q37: 45歳 | T37: 55歳 | W37: 65歳 | Z37: 人工林 広葉樹 | AD37: =データ一覧!N275 -> 59.06 | AG37: 竹 林 | AK37: =データ一覧!N278 -> 135.77 | AO37: 金属 | AP37: はん用機械 | AY37: =データ一覧!N357 -> 2 | BC37: =+データ一覧!N382 -> 27 | BJ37: =データ一覧!N407 -> x | BQ37: 生活保護施設 | BY37: =データ一覧!N565 -> 0 | CC37: =データ一覧!N578 -> 0 | CG37: 人 | CI37: 指定障害者支援施設 | CQ37: =データ一覧!N571 -> 2 | CU37: =データ一覧!N584 -> 138 | CY37: 人
A38: 齢 | B38: 令 | F38: ～ | I38: ～ | L38: ～ | O38: ～ | R38: ～ | U38: ～ | AO38: 一般機械 | AP38: 生産用機械 | AY38: =データ一覧!N358 -> 7 | BC38: =+データ一覧!N383 -> 152 | BJ38: =データ一覧!N408 -> 191209 | BQ38: 地域福祉施設 | BY38: =データ一覧!N566 -> 0 | CC38: =データ一覧!N579 -> 0 | CI38: 指定相談支援事業所 | CQ38: =データ一覧!N572 -> 2 | CU38: =データ一覧!N585 -> 0
